{"text_format":"1","workbook":"xlsx","n_sheets":12,"sheets":["Mapa","Dane","Przykład","Przykładowe kody","Dane_","Kody","Kody_Dane","GUS","_MP_dane_","Ster","Paleta","Przedstawiciele"],"not_rendered":{"charts":1,"images":0,"macros":1,"external_links":1,"defined_names":415,"comments":0,"pivot_tables":0},"unopened":[],"bounds":{"document_bytes":16777216,"sheet_cells":100000,"rows_first":2000,"rows_last":500,"rows_between":2000,"halvings":0,"cell_chars":16384,"cell_head_chars":4096},"cells_cut":0,"cells_raw":0,"read":"whole","date_system":"1900"}

{"sheet":"Mapa","index":0,"n_rows":24,"n_cols":16,"rows_kept":24,"cut":false,"hidden":false,"merged":[[20,10,20,13]]}
[]
[null,null,null,null,null,null,null,null,null,null,null,null,null,null,null,"Szybkie demo"]
[null,null,null,null,null,null,null,null,null,null,null,null,null,null,null,"Kartogram"]
[null,null,null,null,null,null,null,null,null,null,null,null,null,null,null,"1. Wprowadź wartości w kolumnie G arkusza Dane (możesz je skopiować z arkusza Przykład)."]
[null,null,null,null,null,null,null,null,null,null,null,null,null,null,null,"2. Wybierz polecenie Wybierz paletę i ustaw przedziały."]
[null,null,null,null,null,null,null,null,null,null,null,null,null,null,null,"3. Kliknij OK"]
[]
[null,null,null,null,null,null,null,null,null,null,null,null,null,null,null,"Wykres bąbelkowy"]
[null,null,null,null,null,null,null,null,null,null,null,null,null,null,null,"1. Wprowadź wartości w kolumnie H arkusza Dane (możesz je skopiować z arkusza Przykład)."]
[null,null,null,null,null,null,null,null,null,null,null,null,null,null,null,"2. Wybierz polecenie Włącz/Wyłącz z grupy Bąbelkowy."]
[]
[null,null,null,null,null,null,null,null,null,null,null,null,null,null,null,"Wykres kolumnowy / kołowy"]
[null,null,null,null,null,null,null,null,null,null,null,null,null,null,null,"1. Wprowadź wartości w kolumnach J:S (możesz je skopiować z arkusza Przykład z kolumn F:H)."]
[null,null,null,null,null,null,null,null,null,null,null,null,null,null,null,"2. Wybierz polecenie Wstaw z grupy Kolumnowy lub Kołowy."]
[]
[null,null,null,null,null,null,null,null,null,null,null,null,null,null,null,"Kody pocztowe"]
[null,null,null,null,null,null,null,null,null,null,null,null,null,null,null,"1. Wybierz polecenie Wstaw z grupy kody pocztowe."]
[null,null,null,null,null,null,null,null,null,null,null,null,null,null,null,"2. Do arkusza Kody_dane wstaw dane w kolumnach A:B (możesz je skopiować z arkusza Przykładowe kody)."]
[null,null,null,null,null,null,null,null,null,null,null,null,null,null,null,"3. Wybierz polecenie Przypisz."]
[null,null,null,null,null,null,null,null,null,null,null,null,null,null,null,"4. Ustaw przedziały i wybierz rRysuj."]
[null,null,null,null,null,null,null,null,null,null,"Legenda"]
[null,null,null,null,null,null,null,null,null,null,">="," ",0]
[null,null,null,null,null,null,null,null,null,null,0,"-",0]
[null,null,null,null,null,null,null,null,null,null,"<"," ",0]

{"sheet":"Dane","index":1,"n_rows":44,"n_cols":54,"rows_kept":44,"cut":false,"hidden":false,"merged":[]}
["ID","Województwo","Powiat","Gmina","Typ","Siedziba","Wartość","Wielkość bąbelka","Kolor bąbelka","Dane 1","Dane 2","Dane 3","Dane 4","Dane 5","Dane 6","Dane 7","Dane 8","Dane 9","Dane 10","Etykiety","Widoczność kształtu","Długość","Szerokość","Nazwa","Szerokość","Wysokość","Pozycja Top","Pozycja Left","Kolory1","Kolory2","Kolory3","Kolory4","Kolory5","Kolory6","Kolory7","Kolory8","Kolory9","Kolory10",null,null,null,null,null,null,null,null,null,null,null,null,null,null,null,0]
["mazowieckie","mazowieckie",null,null,"województwo","Warszawa",null,null,null,null,null,null,null,null,null,null,null,null,null,{"$f":"B2&\": \"&G2","v":"mazowieckie: "},0,21.006250000000001,52.228748000000003]
["mazo_Warszawa","mazowieckie","Warszawa",null,"powiat","Warszawa",null,null,null,null,null,null,null,null,null,null,null,null,null,{"$f":"B3&\", \"&C3&\": \"&G3","v":"mazowieckie, Warszawa: "},1,21.006250000000001,52.228748000000003]
["mazo_Ostroleka","mazowieckie","Ostrołęka",null,"powiat","Ostrołęka",null,null,null,null,null,null,null,null,null,null,null,null,null,"mazowieckie, Ostrołęka: ",1,21.571059999999999,53.088428]
["mazo_Plock","mazowieckie","Płock",null,"powiat","Płock",null,null,null,null,null,null,null,null,null,null,null,null,null,"mazowieckie, Płock: ",1,19.706249,52.543449000000003]
["mazo_Radom","mazowieckie","Radom",null,"powiat","Radom",null,null,null,null,null,null,null,null,null,null,null,null,null,"mazowieckie, Radom: ",1,21.137969999999999,51.390510999999996]
["mazo_Siedlce","mazowieckie","Siedlce",null,"powiat","Siedlce",null,null,null,null,null,null,null,null,null,null,null,null,null,"mazowieckie, Siedlce: ",1,22.284229,52.163527999999999]
["mazo_Bialobrzegi","mazowieckie","białobrzeski",null,"powiat","Białobrzegi",null,null,null,null,null,null,null,null,null,null,null,null,null,"mazowieckie, białobrzeski: ",1,20.953291,51.645302000000001]
["mazo_Ciechanow","mazowieckie","ciechanowski",null,"powiat","Ciechanów",null,null,null,null,null,null,null,null,null,null,null,null,null,"mazowieckie, ciechanowski: ",1,20.617460000000001,52.881672000000002]
["mazo_Garwolin","mazowieckie","garwoliński",null,"powiat","Garwolin",null,null,null,null,null,null,null,null,null,null,null,null,null,"mazowieckie, garwoliński: ",1,21.610099999999999,51.902802000000001]
["mazo_Gostynin","mazowieckie","gostyniński",null,"powiat","Gostynin",null,null,null,null,null,null,null,null,null,null,null,null,null,"mazowieckie, gostyniński: ",1,19.462039999999998,52.429648999999998]
["mazo_Grodzisk_Mazowiecki","mazowieckie","grodziski",null,"powiat","Grodzisk Mazowiecki",null,null,null,null,null,null,null,null,null,null,null,null,null,"mazowieckie, grodziski: ",1,20.623118999999999,52.103949999999998]
["mazo_Grojec","mazowieckie","grójecki",null,"powiat","Grójec",null,null,null,null,null,null,null,null,null,null,null,null,null,"mazowieckie, grójecki: ",1,20.866810000000001,51.865212]
["mazo_Kozienice","mazowieckie","kozienicki",null,"powiat","Kozienice",null,null,null,null,null,null,null,null,null,null,null,null,null,"mazowieckie, kozienicki: ",1,21.543119000000001,51.586779999999997]
["mazo_Legionowo","mazowieckie","legionowski",null,"powiat","Legionowo",null,null,null,null,null,null,null,null,null,null,null,null,null,"mazowieckie, legionowski: ",1,20.93421,52.397480000000002]
["mazo_Lipsko","mazowieckie","lipski",null,"powiat","Lipsko",null,null,null,null,null,null,null,null,null,null,null,null,null,"mazowieckie, lipski: ",1,21.650700000000001,51.158099999999997]
["mazo_losice","mazowieckie","łosicki",null,"powiat","Łosice",null,null,null,null,null,null,null,null,null,null,null,null,null,"mazowieckie, łosicki: ",1,22.709530000000001,52.212710999999999]
["mazo_Makow_Mazowiecki","mazowieckie","makowski",null,"powiat","Maków Mazowiecki",null,null,null,null,null,null,null,null,null,null,null,null,null,"mazowieckie, makowski: ",1,21.086309,52.862887999999998]
["mazo_Minsk_Mazowiecki","mazowieckie","miński",null,"powiat","Mińsk Mazowiecki",null,null,null,null,null,null,null,null,null,null,null,null,null,"mazowieckie, miński: ",1,21.572289999999999,52.179240999999998]
["mazo_Mlawa","mazowieckie","mławski",null,"powiat","Mława",null,null,null,null,null,null,null,null,null,null,null,null,null,"mazowieckie, mławski: ",1,20.376639999999998,53.115231000000001]
["mazo_Nowy_Dwor_Mazowiecki","mazowieckie","nowodworski",null,"powiat","Nowy Dwór Mazowiecki",null,null,null,null,null,null,null,null,null,null,null,null,null,"mazowieckie, nowodworski: ",1,20.715299999999999,52.430359000000003]
["mazo_Ostroleka2","mazowieckie","ostrołęcki",null,"powiat","Ostrołęka",null,null,null,null,null,null,null,null,null,null,null,null,null,"mazowieckie, ostrołęcki: ",1,21.571059999999999,53.088428]
["mazo_Ostrow_Mazowiecka","mazowieckie","ostrowski",null,"powiat","Ostrów Mazowiecka",null,null,null,null,null,null,null,null,null,null,null,null,null,"mazowieckie, ostrowski: ",1,21.86092,52.802180999999997]
["mazo_Otwock","mazowieckie","otwocki",null,"powiat","Otwock",null,null,null,null,null,null,null,null,null,null,null,null,null,"mazowieckie, otwocki: ",1,21.263020000000001,52.105719999999998]
["mazo_Piaseczno","mazowieckie","piaseczyński",null,"powiat","Piaseczno",null,null,null,null,null,null,null,null,null,null,null,null,null,"mazowieckie, piaseczyński: ",1,21.027830000000002,52.074939999999998]
["mazo_Plock2","mazowieckie","płocki",null,"powiat","Płock",null,null,null,null,null,null,null,null,null,null,null,null,null,"mazowieckie, płocki: ",1,19.706249,52.543449000000003]
["mazo_Plonsk","mazowieckie","płoński",null,"powiat","Płońsk",null,null,null,null,null,null,null,null,null,null,null,null,null,"mazowieckie, płoński: ",1,20.375601,52.622748999999999]
["mazo_Pruszkow","mazowieckie","pruszkowski",null,"powiat","Pruszków",null,null,null,null,null,null,null,null,null,null,null,null,null,"mazowieckie, pruszkowski: ",1,20.805119999999999,52.165889999999997]
["mazo_Przasnysz","mazowieckie","przasnyski",null,"powiat","Przasnysz",null,null,null,null,null,null,null,null,null,null,null,null,null,"mazowieckie, przasnyski: ",1,20.887131,53.018588999999999]
["mazo_Przysucha","mazowieckie","przysuski",null,"powiat","Przysucha",null,null,null,null,null,null,null,null,null,null,null,null,null,"mazowieckie, przysuski: ",1,20.632010000000001,51.35783]
["mazo_Pultusk","mazowieckie","pułtuski",null,"powiat","Pułtusk",null,null,null,null,null,null,null,null,null,null,null,null,null,"mazowieckie, pułtuski: ",1,21.083718999999999,52.707858999999999]
["mazo_Radom2","mazowieckie","radomski",null,"powiat","Radom",null,null,null,null,null,null,null,null,null,null,null,null,null,"mazowieckie, radomski: ",1,21.137969999999999,51.390510999999996]
["mazo_Siedlce2","mazowieckie","siedlecki",null,"powiat","Siedlce",null,null,null,null,null,null,null,null,null,null,null,null,null,"mazowieckie, siedlecki: ",1,22.284229,52.163527999999999]
["mazo_Sierpc","mazowieckie","sierpecki",null,"powiat","Sierpc",null,null,null,null,null,null,null,null,null,null,null,null,null,"mazowieckie, sierpecki: ",1,19.66639,52.863627999999999]
["mazo_Sochaczew","mazowieckie","sochaczewski",null,"powiat","Sochaczew",null,null,null,null,null,null,null,null,null,null,null,null,null,"mazowieckie, sochaczewski: ",1,20.238689000000001,52.229278999999998]
["mazo_Sokolow_Podlaski","mazowieckie","sokołowski",null,"powiat","Sokołów Podlaski",null,null,null,null,null,null,null,null,null,null,null,null,null,"mazowieckie, sokołowski: ",1,22.254339000000002,52.405369]
["mazo_Szydlowiec","mazowieckie","szydłowiecki",null,"powiat","Szydłowiec",null,null,null,null,null,null,null,null,null,null,null,null,null,"mazowieckie, szydłowiecki: ",1,20.857510000000001,51.227699000000001]
["mazo_Ozarow_Mazowiecki","mazowieckie","warszawski zachodni",null,"powiat","Ożarów Mazowiecki",null,null,null,null,null,null,null,null,null,null,null,null,null,"mazowieckie, warszawski zachodni: ",1,20.80125,52.21022]
["mazo_Wegrow","mazowieckie","węgrowski",null,"powiat","Węgrów",null,null,null,null,null,null,null,null,null,null,null,null,null,"mazowieckie, węgrowski: ",1,22.016331000000001,52.398890999999999]
["mazo_Wolomin","mazowieckie","wołomiński",null,"powiat","Wołomin",null,null,null,null,null,null,null,null,null,null,null,null,null,"mazowieckie, wołomiński: ",1,21.241710999999999,52.346148999999997]
["mazo_Wyszkow","mazowieckie","wyszkowski",null,"powiat","Wyszków",null,null,null,null,null,null,null,null,null,null,null,null,null,"mazowieckie, wyszkowski: ",1,21.460190000000001,52.594920999999999]
["mazo_Zwolen","mazowieckie","zwoleński",null,"powiat","Zwoleń",null,null,null,null,null,null,null,null,null,null,null,null,null,{"$f":"B42&\", \"&C42&\": \"&G42","v":"mazowieckie, zwoleński: "},1,21.585840000000001,51.356110000000001]
["mazo_zuromin","mazowieckie","żuromiński",null,"powiat","Żuromin",null,null,null,null,null,null,null,null,null,null,null,null,null,"mazowieckie, żuromiński: ",1,19.90719,53.067267999999999]
["mazo_zyrardow","mazowieckie","żyrardowski",null,"powiat","Żyrardów",null,null,null,null,null,null,null,null,null,null,null,null,null,"mazowieckie, żyrardowski: ",1,20.445350999999999,52.048439000000002]

{"sheet":"Przykład","index":2,"n_rows":44,"n_cols":8,"rows_kept":44,"cut":false,"hidden":false,"merged":[]}
["TERYT","Województwo","Powiat","Liczba mieszkańców (2014)","Średnie miesięczne wynagrodzenie (2013)","Artykuły biurowe","Meble","Urządzenia techniczne"]
["14","mazowieckie",null,5334511,4773.41,1870,2225,2630]
["1465","mazowieckie","Warszawa",1735442,5226.05,56,86,43]
["1461","mazowieckie","Ostrołęka",52611,3912.91,41,31,26]
["1462","mazowieckie","Płock",122224,4799.33,2,84,97]
["1463","mazowieckie","Radom",217201,3523.34,19,79,93]
["1464","mazowieckie","Siedlce",76603,3533.39,50,27,35]
["1401","mazowieckie","białobrzeski",33599,3384.33,22,86,85]
["1402","mazowieckie","ciechanowski",90703,3460.07,14,51,36]
["1403","mazowieckie","garwoliński",108654,3406.49,72,23,32]
["1404","mazowieckie","gostyniński",46221,3073.49,73,71,92]
["1405","mazowieckie","grodziski",89663,3997.34,15,14,41]
["1406","mazowieckie","grójecki",98670,3646.41,27,83,20]
["1407","mazowieckie","kozienicki",61722,4445.71,30,3,97]
["1408","mazowieckie","legionowski",112226,3689.53,36,20,42]
["1409","mazowieckie","lipski",35309,3228.39,93,79,98]
["1410","mazowieckie","łosicki",31973,3058.17,18,91,71]
["1411","mazowieckie","makowski",46365,3064.46,78,99,2]
["1412","mazowieckie","miński",150889,3238.87,35,72,89]
["1413","mazowieckie","mławski",73887,2824.25,98,24,86]
["1414","mazowieckie","nowodworski",78693,4283.8900000000003,33,79,84]
["1415","mazowieckie","ostrołęcki",88413,3248.62,18,21,55]
["1416","mazowieckie","ostrowski",74348,3340.13,97,7,92]
["1417","mazowieckie","otwocki",122854,3629.76,68,72,91]
["1418","mazowieckie","piaseczyński",174085,3892.64,30,44,70]
["1419","mazowieckie","płocki",111149,3212.67,18,40,74]
["1420","mazowieckie","płoński",88583,3370.85,9,71,15]
["1421","mazowieckie","pruszkowski",159515,4726.1099999999997,21,68,12]
["1422","mazowieckie","przasnyski",53439,3246.87,42,30,79]
["1423","mazowieckie","przysuski",42888,3142.24,86,79,30]
["1424","mazowieckie","pułtuski",51436,3113.27,52,82,17]
["1425","mazowieckie","radomski",151321,2961.92,18,42,96]
["1426","mazowieckie","siedlecki",81590,3059.64,73,3,73]
["1427","mazowieckie","sierpecki",53259,3161.67,13,58,97]
["1428","mazowieckie","sochaczewski",85100,3770.19,52,10,30]
["1429","mazowieckie","sokołowski",55424,3034.42,45,66,46]
["1430","mazowieckie","szydłowiecki",40339,2950.92,66,90,95]
["1432","mazowieckie","warszawski zachodni",111899,4118.21,51,52,9]
["1433","mazowieckie","węgrowski",67360,3075.59,84,42,96]
["1434","mazowieckie","wołomiński",231757,3504.2,50,70,89]
["1435","mazowieckie","wyszkowski",73892,3138.01,86,26,88]
["1436","mazowieckie","zwoleński",36919,3204.57,11,80,78]
["1437","mazowieckie","żuromiński",39866,3000.9,29,66,99]
["1438","mazowieckie","żyrardowski",76420,3624.61,39,4,30]

{"sheet":"Przykładowe kody","index":3,"n_rows":51,"n_cols":2,"rows_kept":51,"cut":false,"hidden":false,"merged":[]}
["Kod","Wartość"]
["06-126",59]
["00-909",73]
["01-064",19]
["04-367",59]
["04-384",60]
["01-962",74]
["02-959",53]
["03-451",49]
["02-701",11]
["01-128",45]
["04-652",26]
["05-301",52]
["04-121",13]
["00-724",89]
["03-432",73]
["04-829",69]
["02-637",31]
["00-961",35]
["01-054",56]
["01-456",76]
["03-164",82]
["04-779",62]
["04-736",16]
["02-127",43]
["02-157",34]
["03-395",19]
["02-662",20]
["03-721",13]
["00-251",89]
["03-012",43]
["04-190",47]
["01-737",43]
["03-149",53]
["01-649",86]
["04-409",54]
["02-815",54]
["04-471",1]
["01-973",84]
["01-608",11]
["00-390",47]
["03-831",43]
["01-850",77]
["09-440",16]
["02-252",80]
["04-506",52]
["26-901",90]
["02-988",75]
["04-516",9]
["02-362",39]
["01-603",45]

{"sheet":"Dane_","index":4,"n_rows":381,"n_cols":54,"rows_kept":381,"cut":false,"hidden":true,"merged":[]}
["Województwo","Powiat","Siedziba gminy","Wartość","Wielkość bąbelka","Kolor bąbelka",null,"Przedziały",null,"Przedziały na wykresie",null,null,null,null,null,null,null,null,null,null,null,null,null,null,null,null,9,0,382838928,null,null,null,null,null,null,null,null,null,null,null,null,null,null,null,null,null,null,null,null,null,null,null,null,0]
["dolnośląskie","Wrocław","Wrocław","A",null,null,"Minimum",null,"<",{"$f":"H2","v":0},null,null,null,13395711,null,null,null,null,null,null,null,null,null,null,null,null,1,1,null,null,null,null,null,null,null,null,null,null,null,null,null,null,null,null,null,null,null,null,null,null,null,null,null,3]
["dolnośląskie","Jelenia Góra","Jelenia Góra","A",null,null,null,null,"<",0,null,null,null,null,null,null,null,null,null,null,null,null,null,null,null,null,2]
["dolnośląskie","Legnica","Legnica","A",null,null,null,null,"<",0,null,null,null,null,null,null,null,null,null,null,null,null,null,null,null,null,3]
["dolnośląskie","Wałbrzych","Wałbrzych","A",null,null,null,null,"<",0,null,null,null,null,null,null,null,null,null,null,null,null,null,null,null,null,4]
["dolnośląskie","bolesławiecki","Bolesławiec","A",null,null,null,null,"<",0,null,null,null,null,null,null,null,null,null,null,null,null,null,null,null,null,5]
["dolnośląskie","dzierżoniowski","Dzierżoniów","A",null,null,null,null,"<",0,null,null,null,null,null,null,null,null,null,null,null,null,null,null,null,null,6]
["dolnośląskie","głogowski","Głogów","A",null,null,null,null,"<",0,null,null,null,null,null,null,null,null,null,null,null,null,null,null,null,null,7]
["dolnośląskie","górowski","Góra","A",null,null,null,null,"<",0,null,null,null,null,null,null,null,null,null,null,null,null,null,null,null,null,8]
["dolnośląskie","jaworski","Jawor","A",null,null,null,null,"<",0,null,null,null,null,null,null,null,null,null,null,null,null,null,null,null,null,9]
["dolnośląskie","jeleniogórski","Jelenia Góra","A",null,null,"Maksimum",null,"<",0,null,null,null,null,null,null,null,null,null,null,null,null,null,null,null,null,10]
["dolnośląskie","kamiennogórski","Kamienna Góra","A",null,null,null,null,">=",{"$f":"H11","v":0}]
["dolnośląskie","kłodzki","Kłodzko","A"]
["dolnośląskie","legnicki","Legnica","A"]
["dolnośląskie","lubański","Lubań","A"]
["dolnośląskie","lubiński","Lubin","A"]
["dolnośląskie","lwówecki","Lwówek Śląski","A"]
["dolnośląskie","milicki","Milicz","A"]
["dolnośląskie","oleśnicki","Oleśnica","A"]
["dolnośląskie","oławski","Oława","A"]
["dolnośląskie","polkowicki","Polkowice","A"]
["dolnośląskie","strzeliński","Strzelin","A"]
["dolnośląskie","średzki","Środa Śląska","A"]
["dolnośląskie","świdnicki","Świdnica","A"]
["dolnośląskie","trzebnicki","Trzebnica","A"]
["dolnośląskie","wałbrzyski","Wałbrzych","A"]
["dolnośląskie","wołowski","Wołów","A"]
["dolnośląskie","wrocławski","Wrocław","A"]
["dolnośląskie","ząbkowicki","Ząbkowice Śląskie","A"]
["dolnośląskie","zgorzelecki","Zgorzelec","A"]
["dolnośląskie","złotoryjski","Złotoryja","A"]
["kujawsko-pomorskie","Bydgoszcz","Bydgoszcz"]
["kujawsko-pomorskie","Toruń","Toruń"]
["kujawsko-pomorskie","Włocławek","Włocławek"]
["kujawsko-pomorskie","Grudziądz","Grudziądz"]
["kujawsko-pomorskie","aleksandrowski","Aleksandrów Kujawski"]
["kujawsko-pomorskie","brodnicki","Brodnica"]
["kujawsko-pomorskie","bydgoski","Bydgoszcz"]
["kujawsko-pomorskie","chełmiński","Chełmno"]
["kujawsko-pomorskie","golubsko-dobrzyński","Golub-Dobrzyń"]
["kujawsko-pomorskie","grudziądzki","Grudziądz"]
["kujawsko-pomorskie","inowrocławski","Inowrocław"]
["kujawsko-pomorskie","lipnowski","Lipno"]
["kujawsko-pomorskie","mogileński","Mogilno"]
["kujawsko-pomorskie","nakielski","Nakło nad Notecią"]
["kujawsko-pomorskie","radziejowski","Radziejów"]
["kujawsko-pomorskie","rypiński","Rypin"]
["kujawsko-pomorskie","sępoleński","Sępólno Krajeńskie"]
["kujawsko-pomorskie","świecki","Świecie"]
["kujawsko-pomorskie","toruński","Toruń"]
["kujawsko-pomorskie","tucholski","Tuchola"]
["kujawsko-pomorskie","wąbrzeski","Wąbrzeźno"]
["kujawsko-pomorskie","włocławski","Włocławek"]
["kujawsko-pomorskie","żniński","Żnin"]
["lubelskie","Lublin","Lublin","null"]
["lubelskie","Biała Podlaska","Biała Podlaska","null"]
["lubelskie","Chełm","Chełm","null"]
["lubelskie","Zamość","Zamość","null"]
["lubelskie","bialski","Biała Podlaska","null"]
["lubelskie","biłgorajski","Biłgoraj","null"]
["lubelskie","chełmski","Chełm","null"]
["lubelskie","hrubieszowski","Hrubieszów","null"]
["lubelskie","janowski","Janów Lubelski","null"]
["lubelskie","krasnostawski","Krasnystaw","null"]
["lubelskie","kraśnicki","Kraśnik","null"]
["lubelskie","lubartowski","Lubartów","null"]
["lubelskie","lubelski","Lublin","null"]
["lubelskie","łęczyński","Łęczna","null"]
["lubelskie","łukowski","Łuków","null"]
["lubelskie","opolski","Opole Lubelskie","null"]
["lubelskie","parczewski","Parczew","null"]
["lubelskie","puławski","Puławy","null"]
["lubelskie","radzyński","Radzyń Podlaski","null"]
["lubelskie","rycki","Ryki","null"]
["lubelskie","świdnicki","Świdnik","null"]
["lubelskie","tomaszowski","Tomaszów Lubelski","null"]
["lubelskie","włodawski","Włodawa","null"]
["lubelskie","zamojski","Zamość","null"]
["lubuskie","Gorzów Wielkopolski","Gorzów Wielkopolski","null"]
["lubuskie","Zielona Góra","Zielona Góra","null"]
["lubuskie","gorzowski","Gorzów Wielkopolski","null"]
["lubuskie","krośnieński","Krosno Odrzańskie","null"]
["lubuskie","międzyrzecki","Międzyrzecz","null"]
["lubuskie","nowosolski","Nowa Sól","null"]
["lubuskie","słubicki","Słubice","null"]
["lubuskie","strzelecko-drezdenecki","Strzelce Krajeńskie","null"]
["lubuskie","sulęciński","Sulęcin","null"]
["lubuskie","świebodziński","Świebodzin","null"]
["lubuskie","wschowski","Wschowa","null"]
["lubuskie","zielonogórski","Zielona Góra","null"]
["lubuskie","żagański","Żagań","null"]
["lubuskie","żarski","Żary","null"]
["łódzkie","Łódź","Łódź","20 30"]
["łódzkie","Piotrków Trybunalski","Piotrków Trybunalski","21 30"]
["łódzkie","Skierniewice","Skierniewice","22 30"]
["łódzkie","bełchatowski","Bełchatów","23 30"]
["łódzkie","brzeziński","Brzeziny","24 30"]
["łódzkie","kutnowski","Kutno","25 30"]
["łódzkie","łaski","Łask","26 30"]
["łódzkie","łęczycki","Łęczyca","27 30"]
["łódzkie","łowicki","Łowicz","28 30"]
["łódzkie","łódzki wschodni","Łódź","29 30"]
["łódzkie","opoczyński","Opoczno","30 30"]
["łódzkie","pabianicki","Pabianice","31 30"]
["łódzkie","pajęczański","Pajęczno","32 30"]
["łódzkie","piotrkowski","Piotrków Trybunalski","33 30"]
["łódzkie","poddębicki","Poddębice","34 30"]
["łódzkie","radomszczański","Radomsko","35 30"]
["łódzkie","rawski","Rawa Mazowiecka","36 30"]
["łódzkie","sieradzki","Sieradz","37 30"]
["łódzkie","skierniewicki","Skierniewice","38 30"]
["łódzkie","tomaszowski","Tomaszów Mazowiecki","39 30"]
["łódzkie","wieluński","Wieluń","40 30"]
["łódzkie","wieruszowski","Wieruszów","41 30"]
["łódzkie","zduńskowolski","Zduńska Wola","42 30"]
["łódzkie","zgierski","Zgierz","43 30"]
["małopolskie","Kraków","Kraków",26]
["małopolskie","Nowy Sącz","Nowy Sącz",27]
["małopolskie","Tarnów","Tarnów",28]
["małopolskie","bocheński","Bochnia",29]
["małopolskie","brzeski","Brzesko",30]
["małopolskie","chrzanowski","Chrzanów",1]
["małopolskie","dąbrowski","Dąbrowa Tarnowska",2]
["małopolskie","gorlicki","Gorlice",3]
["małopolskie","krakowski","Kraków",4]
["małopolskie","limanowski","Limanowa",5]
["małopolskie","miechowski","Miechów",6]
["małopolskie","myślenicki","Myślenice",7]
["małopolskie","nowosądecki","Nowy Sącz",8]
["małopolskie","nowotarski","Nowy Targ",9]
["małopolskie","olkuski","Olkusz",10]
["małopolskie","oświęcimski","Oświęcim",11]
["małopolskie","proszowicki","Proszowice",12]
["małopolskie","suski","Sucha Beskidzka",13]
["małopolskie","tarnowski","Tarnów",14]
["małopolskie","tatrzański","Zakopane",15]
["małopolskie","wadowicki","Wadowice",16]
["małopolskie","wielicki","Wieliczka",17]
["mazowieckie","Warszawa","Warszawa",18]
["mazowieckie","Ostrołęka","Ostrołęka",19]
["mazowieckie","Płock","Płock",20]
["mazowieckie","Radom","Radom",21]
["mazowieckie","Siedlce","Siedlce",22]
["mazowieckie","białobrzeski","Białobrzegi",23]
["mazowieckie","ciechanowski","Ciechanów",24]
["mazowieckie","garwoliński","Garwolin",25]
["mazowieckie","gostyniński","Gostynin",26]
["mazowieckie","grodziski","Grodzisk Mazowiecki",27]
["mazowieckie","grójecki","Grójec",28]
["mazowieckie","kozienicki","Kozienice",29]
["mazowieckie","legionowski","Legionowo",30]
["mazowieckie","lipski","Lipsko",1]
["mazowieckie","łosicki","Łosice",2]
["mazowieckie","makowski","Maków Mazowiecki",3]
["mazowieckie","miński","Mińsk Mazowiecki",4]
["mazowieckie","mławski","Mława",5]
["mazowieckie","nowodworski","Nowy Dwór Mazowiecki",6]
["mazowieckie","ostrołęcki","Ostrołęka",7]
["mazowieckie","ostrowski","Ostrów Mazowiecka",8]
["mazowieckie","otwocki","Otwock",9]
["mazowieckie","piaseczyński","Piaseczno",10]
["mazowieckie","płocki","Płock",11]
["mazowieckie","płoński","Płońsk",12]
["mazowieckie","pruszkowski","Pruszków",13]
["mazowieckie","przasnyski","Przasnysz",14]
["mazowieckie","przysuski","Przysucha",15]
["mazowieckie","pułtuski","Pułtusk",16]
["mazowieckie","radomski","Radom",17]
["mazowieckie","siedlecki","Siedlce",18]
["mazowieckie","sierpecki","Sierpc",19]
["mazowieckie","sochaczewski","Sochaczew",20]
["mazowieckie","sokołowski","Sokołów Podlaski",21]
["mazowieckie","szydłowiecki","Szydłowiec",22]
["mazowieckie","warszawski zachodni","Ożarów Mazowiecki",23]
["mazowieckie","węgrowski","Węgrów",24]
["mazowieckie","wołomiński","Wołomin",25]
["mazowieckie","wyszkowski","Wyszków",26]
["mazowieckie","zwoleński","Zwoleń",27]
["mazowieckie","żuromiński","Żuromin",28]
["mazowieckie","żyrardowski","Żyrardów",29]
["opolskie","Opole","Opole",30]
["opolskie","brzeski","Brzeg",1]
["opolskie","głubczycki","Głubczyce",2]
["opolskie","kędzierzyńsko-kozielski","Kędzierzyn-Koźle",3]
["opolskie","kluczborski","Kluczbork",4]
["opolskie","krapkowicki","Krapkowice",5]
["opolskie","namysłowski","Namysłów",6]
["opolskie","nyski","Nysa",7]
["opolskie","oleski","Olesno",8]
["opolskie","opolski","Opole",9]
["opolskie","prudnicki","Prudnik",10]
["opolskie","strzelecki","Strzelce Opolskie",11]
["podkarpackie","Rzeszów","Rzeszów",12]
["podkarpackie","Krosno","Krosno",13]
["podkarpackie","Przemyśl","Przemyśl",14]
["podkarpackie","Tarnobrzeg","Tarnobrzeg",15]
["podkarpackie","bieszczadzki","Ustrzyki Dolne",16]
["podkarpackie","brzozowski","Brzozów",17]
["podkarpackie","dębicki","Dębica",18]
["podkarpackie","jarosławski","Jarosław",19]
["podkarpackie","jasielski","Jasło",20]
["podkarpackie","kolbuszowski","Kolbuszowa",21]
["podkarpackie","krośnieński","Krosno",22]
["podkarpackie","leski","Lesko",23]
["podkarpackie","leżajski","Leżajsk",24]
["podkarpackie","lubaczowski","Lubaczów",25]
["podkarpackie","łańcucki","Łańcut",26]
["podkarpackie","mielecki","Mielec",27]
["podkarpackie","niżański","Nisko",28]
["podkarpackie","przemyski","Przemyśl",29]
["podkarpackie","przeworski","Przeworsk",30]
["podkarpackie","ropczycko-sędziszowski","Ropczyce",1]
["podkarpackie","rzeszowski","Rzeszów",2]
["podkarpackie","sanocki","Sanok",3]
["podkarpackie","stalowowolski","Stalowa Wola",4]
["podkarpackie","strzyżowski","Strzyżów",5]
["podkarpackie","tarnobrzeski","Tarnobrzeg",6]
["podlaskie","Białystok","Białystok",7]
["podlaskie","Łomża","Łomża",8]
["podlaskie","Suwałki","Suwałki",9]
["podlaskie","augustowski","Augustów",10]
["podlaskie","białostocki","Białystok",11]
["podlaskie","bielski","Bielsk Podlaski",12]
["podlaskie","grajewski","Grajewo",13]
["podlaskie","hajnowski","Hajnówka",14]
["podlaskie","kolneński","Kolno",15]
["podlaskie","łomżyński","Łomża",16]
["podlaskie","moniecki","Mońki",17]
["podlaskie","sejneński","Sejny",18]
["podlaskie","siemiatycki","Siemiatycze",19]
["podlaskie","sokólski","Sokółka",20]
["podlaskie","suwalski","Suwałki",21]
["podlaskie","wysokomazowiecki","Wysokie Mazowieckie",22]
["podlaskie","zambrowski","Zambrów",23]
["pomorskie","Gdańsk","Gdańsk",24]
["pomorskie","Gdynia","Gdynia",25]
["pomorskie","Słupsk","Słupsk",26]
["pomorskie","Sopot","Sopot",27]
["pomorskie","bytowski","Bytów",28]
["pomorskie","chojnicki","Chojnice",29]
["pomorskie","człuchowski","Człuchów",30]
["pomorskie","kartuski","Kartuzy",1]
["pomorskie","kościerski","Kościerzyna",2]
["pomorskie","kwidzyński","Kwidzyn",3]
["pomorskie","lęborski","Lębork",4]
["pomorskie","malborski","Malbork",5]
["pomorskie","nowodworski","Nowy Dwór",6]
["pomorskie","gdański","Pruszcz Gdański",7]
["pomorskie","pucki","Puck",8]
["pomorskie","słupski","Słupsk",9]
["pomorskie","starogardzki","Starogard Gdański",10]
["pomorskie","sztumski","Sztum",11]
["pomorskie","tczewski","Tczew",12]
["pomorskie","wejherowski","Wejherowo",13]
["śląskie","Katowice","Katowice",14]
["śląskie","Bielsko-Biała","Bielsko-Biała",15]
["śląskie","Bytom","Bytom",16]
["śląskie","Chorzów","Chorzów",17]
["śląskie","Częstochowa","Częstochowa",18]
["śląskie","Dąbrowa Górnicza","Dąbrowa Górnicza",19]
["śląskie","Gliwice","Gliwice",20]
["śląskie","Jastrzębie-Zdrój","Jastrzębie-Zdrój",21]
["śląskie","Jaworzno","Jaworzno",22]
["śląskie","Mysłowice","Mysłowice",23]
["śląskie","Piekary Śląskie","Piekary Śląskie",24]
["śląskie","Ruda Śląska","Ruda Śląska",25]
["śląskie","Rybnik","Rybnik",26]
["śląskie","Siemianowice Śląskie","Siemianowice Śląskie",27]
["śląskie","Sosnowiec","Sosnowiec",28]
["śląskie","Świętochłowice","Świętochłowice",29]
["śląskie","Tychy","Tychy",30]
["śląskie","Zabrze","Zabrze",1]
["śląskie","Żory","Żory",2]
["śląskie","będziński","Będzin",3]
["śląskie","bielski","Bielsko-Biała",4]
["śląskie","bieruńsko-lędziński","Bieruń",5]
["śląskie","cieszyński","Cieszyn",6]
["śląskie","częstochowski","Częstochowa",7]
["śląskie","gliwicki","Gliwice",8]
["śląskie","kłobucki","Kłobuck",9]
["śląskie","lubliniecki","Lubliniec",10]
["śląskie","mikołowski","Mikołów",11]
["śląskie","myszkowski","Myszków",12]
["śląskie","pszczyński","Pszczyna",13]
["śląskie","raciborski","Racibórz",14]
["śląskie","rybnicki","Rybnik",15]
["śląskie","tarnogórski","Tarnowskie Góry",16]
["śląskie","wodzisławski","Wodzisław Śląski",17]
["śląskie","zawierciański","Zawiercie",18]
["śląskie","żywiecki","Żywiec",19]
["świętokrzyskie","Kielce","Kielce",20]
["świętokrzyskie","buski","Busko-Zdrój",21]
["świętokrzyskie","jędrzejowski","Jędrzejów",22]
["świętokrzyskie","kazimierski","Kazimierza Wielka",23]
["świętokrzyskie","kielecki","Kielce",24]
["świętokrzyskie","konecki","Końskie",25]
["świętokrzyskie","opatowski","Opatów",26]
["świętokrzyskie","ostrowiecki","Ostrowiec Świętokrzyski",27]
["świętokrzyskie","pińczowski","Pińczów",28]
["świętokrzyskie","sandomierski","Sandomierz",29]
["świętokrzyskie","skarżyski","Skarżysko-Kamienna",30]
["świętokrzyskie","starachowicki","Starachowice",1]
["świętokrzyskie","staszowski","Staszów",2]
["świętokrzyskie","włoszczowski","Włoszczowa",3]
["warmińsko-mazurskie","Olsztyn","Olsztyn",4]
["warmińsko-mazurskie","Elbląg","Elbląg",5]
["warmińsko-mazurskie","bartoszycki","Bartoszyce",6]
["warmińsko-mazurskie","braniewski","Braniewo",7]
["warmińsko-mazurskie","działdowski","Działdowo",8]
["warmińsko-mazurskie","elbląski","Elbląg",9]
["warmińsko-mazurskie","ełcki","Ełk",10]
["warmińsko-mazurskie","giżycki","Giżycko",11]
["warmińsko-mazurskie","gołdapski","Gołdap",12]
["warmińsko-mazurskie","iławski","Iława",13]
["warmińsko-mazurskie","kętrzyński","Kętrzyn",14]
["warmińsko-mazurskie","lidzbarski","Lidzbark Warmiński",15]
["warmińsko-mazurskie","mrągowski","Mrągowo",16]
["warmińsko-mazurskie","nidzicki","Nidzica",17]
["warmińsko-mazurskie","nowomiejski","Nowe Miasto",18]
["warmińsko-mazurskie","olecki","Olecko",19]
["warmińsko-mazurskie","olsztyński","Olsztyn",20]
["warmińsko-mazurskie","ostródzki","Ostróda",21]
["warmińsko-mazurskie","piski","Pisz",22]
["warmińsko-mazurskie","szczycieński","Szczytno",23]
["warmińsko-mazurskie","węgorzewski","Węgorzewo",24]
["wielkopolskie","Poznań","Poznań",25]
["wielkopolskie","Kalisz","Kalisz",26]
["wielkopolskie","Konin","Konin",27]
["wielkopolskie","Leszno","Leszno",28]
["wielkopolskie","chodzieski","Chodzież",29]
["wielkopolskie","czarnkowsko-trzcianecki","Czarnków",30]
["wielkopolskie","gnieźnieński","Gniezno",1]
["wielkopolskie","gostyński","Gostyń",2]
["wielkopolskie","grodziski","Grodzisk Wielkopolski",3]
["wielkopolskie","jarociński","Jarocin",4]
["wielkopolskie","kaliski","Kalisz",5]
["wielkopolskie","kępiński","Kępno",6]
["wielkopolskie","kolski","Koło",7]
["wielkopolskie","koniński","Konin",8]
["wielkopolskie","kościański","Kościan",9]
["wielkopolskie","krotoszyński","Krotoszyn",10]
["wielkopolskie","leszczyński","Leszno",11]
["wielkopolskie","międzychodzki","Międzychód",12]
["wielkopolskie","nowotomyski","Nowy Tomyśl",13]
["wielkopolskie","obornicki","Oborniki",14]
["wielkopolskie","ostrowski","Ostrów Wielkopolski",15]
["wielkopolskie","ostrzeszowski","Ostrzeszów",16]
["wielkopolskie","pilski","Piła",17]
["wielkopolskie","pleszewski","Pleszew",18]
["wielkopolskie","poznański","Poznań",19]
["wielkopolskie","rawicki","Rawicz",20]
["wielkopolskie","słupecki","Słupca",21]
["wielkopolskie","szamotulski","Szamotuły",22]
["wielkopolskie","średzki","Środa Wielkopolska",23]
["wielkopolskie","śremski","Śrem",24]
["wielkopolskie","turecki","Turek",25]
["wielkopolskie","wągrowiecki","Wągrowiec",26]
["wielkopolskie","wolsztyński","Wolsztyn",27]
["wielkopolskie","wrzesiński","Września",28]
["wielkopolskie","złotowski","Złotów",29]
["zachodniopomorskie","Szczecin","Szczecin",30]
["zachodniopomorskie","Koszalin","Koszalin",1]
["zachodniopomorskie","Świnoujście","Świnoujście",2]
["zachodniopomorskie","białogardzki","Białogard",3]
["zachodniopomorskie","choszczeński","Choszczno",4]
["zachodniopomorskie","drawski","Drawsko Pomorskie",5]
["zachodniopomorskie","goleniowski","Goleniów",6]
["zachodniopomorskie","gryficki","Gryfice",7]
["zachodniopomorskie","gryfiński","Gryfino",8]
["zachodniopomorskie","kamieński","Kamień Pomorski",9]
["zachodniopomorskie","kołobrzeski","Kołobrzeg",10]
["zachodniopomorskie","koszaliński","Koszalin",11]
["zachodniopomorskie","łobeski","Łobez",12]
["zachodniopomorskie","myśliborski","Myślibórz",13]
["zachodniopomorskie","policki","Police",14]
["zachodniopomorskie","pyrzycki","Pyrzyce",15]
["zachodniopomorskie","sławieński","Sławno",16]
["zachodniopomorskie","stargardzki","Stargard Szczeciński",17]
["zachodniopomorskie","szczecinecki","Szczecinek",18]
["zachodniopomorskie","świdwiński","Świdwin",19]
["zachodniopomorskie","wałecki","Wałcz",20]

{"sheet":"Kody","index":5,"n_rows":1,"n_cols":6,"rows_kept":1,"cut":false,"hidden":true,"merged":[]}
["Kod","Wartość","ID","Województwo","Powiat","Gmina"]

{"sheet":"Kody_Dane","index":6,"n_rows":4801,"n_cols":7,"rows_kept":4801,"cut":false,"hidden":true,"merged":[]}
["Kod","ID_wojewodztwa","ID_powiatu","ID_gminy","Wojewodztwo","Powiat","Gmina"]
["00-001","mazowieckie","mazo_Warszawa",null,"mazowieckie","Warszawa","Warszawa"]
["00-002","mazowieckie","mazo_Warszawa",null,"mazowieckie","Warszawa","Warszawa"]
["00-003","mazowieckie","mazo_Warszawa",null,"mazowieckie","Warszawa","Warszawa"]
["00-004","mazowieckie","mazo_Warszawa",null,"mazowieckie","Warszawa","Warszawa"]
["00-005","mazowieckie","mazo_Warszawa",null,"mazowieckie","Warszawa","Warszawa"]
["00-006","mazowieckie","mazo_Warszawa",null,"mazowieckie","Warszawa","Warszawa"]
["00-007","mazowieckie","mazo_Warszawa",null,"mazowieckie","Warszawa","Warszawa"]
["00-008","mazowieckie","mazo_Warszawa",null,"mazowieckie","Warszawa","Warszawa"]
["00-009","mazowieckie","mazo_Warszawa",null,"mazowieckie","Warszawa","Warszawa"]
["00-010","mazowieckie","mazo_Warszawa",null,"mazowieckie","Warszawa","Warszawa"]
["00-011","mazowieckie","mazo_Warszawa",null,"mazowieckie","Warszawa","Warszawa"]
["00-012","mazowieckie","mazo_Warszawa",null,"mazowieckie","Warszawa","Warszawa"]
["00-013","mazowieckie","mazo_Warszawa",null,"mazowieckie","Warszawa","Warszawa"]
["00-014","mazowieckie","mazo_Warszawa",null,"mazowieckie","Warszawa","Warszawa"]
["00-015","mazowieckie","mazo_Warszawa",null,"mazowieckie","Warszawa","Warszawa"]
["00-016","mazowieckie","mazo_Warszawa",null,"mazowieckie","Warszawa","Warszawa"]
["00-017","mazowieckie","mazo_Warszawa",null,"mazowieckie","Warszawa","Warszawa"]
["00-018","mazowieckie","mazo_Warszawa",null,"mazowieckie","Warszawa","Warszawa"]
["00-019","mazowieckie","mazo_Warszawa",null,"mazowieckie","Warszawa","Warszawa"]
["00-020","mazowieckie","mazo_Warszawa",null,"mazowieckie","Warszawa","Warszawa"]
["00-021","mazowieckie","mazo_Warszawa",null,"mazowieckie","Warszawa","Warszawa"]
["00-022","mazowieckie","mazo_Warszawa",null,"mazowieckie","Warszawa","Warszawa"]
["00-023","mazowieckie","mazo_Warszawa",null,"mazowieckie","Warszawa","Warszawa"]
["00-024","mazowieckie","mazo_Warszawa",null,"mazowieckie","Warszawa","Warszawa"]
["00-025","mazowieckie","mazo_Warszawa",null,"mazowieckie","Warszawa","Warszawa"]
["00-026","mazowieckie","mazo_Warszawa",null,"mazowieckie","Warszawa","Warszawa"]
["00-027","mazowieckie","mazo_Warszawa",null,"mazowieckie","Warszawa","Warszawa"]
["00-028","mazowieckie","mazo_Warszawa",null,"mazowieckie","Warszawa","Warszawa"]
["00-029","mazowieckie","mazo_Warszawa",null,"mazowieckie","Warszawa","Warszawa"]
["00-030","mazowieckie","mazo_Warszawa",null,"mazowieckie","Warszawa","Warszawa"]
["00-031","mazowieckie","mazo_Warszawa",null,"mazowieckie","Warszawa","Warszawa"]
["00-032","mazowieckie","mazo_Warszawa",null,"mazowieckie","Warszawa","Warszawa"]
["00-033","mazowieckie","mazo_Warszawa",null,"mazowieckie","Warszawa","Warszawa"]
["00-034","mazowieckie","mazo_Warszawa",null,"mazowieckie","Warszawa","Warszawa"]
["00-035","mazowieckie","mazo_Warszawa",null,"mazowieckie","Warszawa","Warszawa"]
["00-036","mazowieckie","mazo_Warszawa",null,"mazowieckie","Warszawa","Warszawa"]
["00-037","mazowieckie","mazo_Warszawa",null,"mazowieckie","Warszawa","Warszawa"]
["00-038","mazowieckie","mazo_Warszawa",null,"mazowieckie","Warszawa","Warszawa"]
["00-039","mazowieckie","mazo_Warszawa",null,"mazowieckie","Warszawa","Warszawa"]
["00-040","mazowieckie","mazo_Warszawa",null,"mazowieckie","Warszawa","Warszawa"]
["00-041","mazowieckie","mazo_Warszawa",null,"mazowieckie","Warszawa","Warszawa"]
["00-042","mazowieckie","mazo_Warszawa",null,"mazowieckie","Warszawa","Warszawa"]
["00-043","mazowieckie","mazo_Warszawa",null,"mazowieckie","Warszawa","Warszawa"]
["00-044","mazowieckie","mazo_Warszawa",null,"mazowieckie","Warszawa","Warszawa"]
["00-046","mazowieckie","mazo_Warszawa",null,"mazowieckie","Warszawa","Warszawa"]
["00-047","mazowieckie","mazo_Warszawa",null,"mazowieckie","Warszawa","Warszawa"]
["00-048","mazowieckie","mazo_Warszawa",null,"mazowieckie","Warszawa","Warszawa"]
["00-049","mazowieckie","mazo_Warszawa",null,"mazowieckie","Warszawa","Warszawa"]
["00-050","mazowieckie","mazo_Warszawa",null,"mazowieckie","Warszawa","Warszawa"]
["00-051","mazowieckie","mazo_Warszawa",null,"mazowieckie","Warszawa","Warszawa"]
["00-052","mazowieckie","mazo_Warszawa",null,"mazowieckie","Warszawa","Warszawa"]
["00-054","mazowieckie","mazo_Warszawa",null,"mazowieckie","Warszawa","Warszawa"]
["00-055","mazowieckie","mazo_Warszawa",null,"mazowieckie","Warszawa","Warszawa"]
["00-056","mazowieckie","mazo_Warszawa",null,"mazowieckie","Warszawa","Warszawa"]
["00-057","mazowieckie","mazo_Warszawa",null,"mazowieckie","Warszawa","Warszawa"]
["00-058","mazowieckie","mazo_Warszawa",null,"mazowieckie","Warszawa","Warszawa"]
["00-059","mazowieckie","mazo_Warszawa",null,"mazowieckie","Warszawa","Warszawa"]
["00-060","mazowieckie","mazo_Warszawa",null,"mazowieckie","Warszawa","Warszawa"]
["00-061","mazowieckie","mazo_Warszawa",null,"mazowieckie","Warszawa","Warszawa"]
["00-062","mazowieckie","mazo_Warszawa",null,"mazowieckie","Warszawa","Warszawa"]
["00-063","mazowieckie","mazo_Warszawa",null,"mazowieckie","Warszawa","Warszawa"]
["00-064","mazowieckie","mazo_Warszawa",null,"mazowieckie","Warszawa","Warszawa"]
["00-065","mazowieckie","mazo_Warszawa",null,"mazowieckie","Warszawa","Warszawa"]
["00-066","mazowieckie","mazo_Warszawa",null,"mazowieckie","Warszawa","Warszawa"]
["00-067","mazowieckie","mazo_Warszawa",null,"mazowieckie","Warszawa","Warszawa"]
["00-068","mazowieckie","mazo_Warszawa",null,"mazowieckie","Warszawa","Warszawa"]
["00-070","mazowieckie","mazo_Warszawa",null,"mazowieckie","Warszawa","Warszawa"]
["00-071","mazowieckie","mazo_Warszawa",null,"mazowieckie","Warszawa","Warszawa"]
["00-072","mazowieckie","mazo_Warszawa",null,"mazowieckie","Warszawa","Warszawa"]
["00-073","mazowieckie","mazo_Warszawa",null,"mazowieckie","Warszawa","Warszawa"]
["00-074","mazowieckie","mazo_Warszawa",null,"mazowieckie","Warszawa","Warszawa"]
["00-075","mazowieckie","mazo_Warszawa",null,"mazowieckie","Warszawa","Warszawa"]
["00-076","mazowieckie","mazo_Warszawa",null,"mazowieckie","Warszawa","Warszawa"]
["00-077","mazowieckie","mazo_Warszawa",null,"mazowieckie","Warszawa","Warszawa"]
["00-078","mazowieckie","mazo_Warszawa",null,"mazowieckie","Warszawa","Warszawa"]
["00-079","mazowieckie","mazo_Warszawa",null,"mazowieckie","Warszawa","Warszawa"]
["00-080","mazowieckie","mazo_Warszawa",null,"mazowieckie","Warszawa","Warszawa"]
["00-081","mazowieckie","mazo_Warszawa",null,"mazowieckie","Warszawa","Warszawa"]
["00-082","mazowieckie","mazo_Warszawa",null,"mazowieckie","Warszawa","Warszawa"]
["00-083","mazowieckie","mazo_Warszawa",null,"mazowieckie","Warszawa","Warszawa"]
["00-084","mazowieckie","mazo_Warszawa",null,"mazowieckie","Warszawa","Warszawa"]
["00-085","mazowieckie","mazo_Warszawa",null,"mazowieckie","Warszawa","Warszawa"]
["00-086","mazowieckie","mazo_Warszawa",null,"mazowieckie","Warszawa","Warszawa"]
["00-087","mazowieckie","mazo_Warszawa",null,"mazowieckie","Warszawa","Warszawa"]
["00-088","mazowieckie","mazo_Warszawa",null,"mazowieckie","Warszawa","Warszawa"]
["00-089","mazowieckie","mazo_Warszawa",null,"mazowieckie","Warszawa","Warszawa"]
["00-090","mazowieckie","mazo_Warszawa",null,"mazowieckie","Warszawa","Warszawa"]
["00-091","mazowieckie","mazo_Warszawa",null,"mazowieckie","Warszawa","Warszawa"]
["00-092","mazowieckie","mazo_Warszawa",null,"mazowieckie","Warszawa","Warszawa"]
["00-093","mazowieckie","mazo_Warszawa",null,"mazowieckie","Warszawa","Warszawa"]
["00-094","mazowieckie","mazo_Warszawa",null,"mazowieckie","Warszawa","Warszawa"]
["00-095","mazowieckie","mazo_Warszawa",null,"mazowieckie","Warszawa","Warszawa"]
["00-096","mazowieckie","mazo_Warszawa",null,"mazowieckie","Warszawa","Warszawa"]
["00-097","mazowieckie","mazo_Warszawa",null,"mazowieckie","Warszawa","Warszawa"]
["00-098","mazowieckie","mazo_Warszawa",null,"mazowieckie","Warszawa","Warszawa"]
["00-099","mazowieckie","mazo_Warszawa",null,"mazowieckie","Warszawa","Warszawa"]
["00-100","mazowieckie","mazo_Warszawa",null,"mazowieckie","Warszawa","Warszawa"]
["00-102","mazowieckie","mazo_Warszawa",null,"mazowieckie","Warszawa","Warszawa"]
["00-103","mazowieckie","mazo_Warszawa",null,"mazowieckie","Warszawa","Warszawa"]
["00-104","mazowieckie","mazo_Warszawa",null,"mazowieckie","Warszawa","Warszawa"]
["00-105","mazowieckie","mazo_Warszawa",null,"mazowieckie","Warszawa","Warszawa"]
["00-107","mazowieckie","mazo_Warszawa",null,"mazowieckie","Warszawa","Warszawa"]
["00-108","mazowieckie","mazo_Warszawa",null,"mazowieckie","Warszawa","Warszawa"]
["00-109","mazowieckie","mazo_Warszawa",null,"mazowieckie","Warszawa","Warszawa"]
["00-110","mazowieckie","mazo_Warszawa",null,"mazowieckie","Warszawa","Warszawa"]
["00-111","mazowieckie","mazo_Warszawa",null,"mazowieckie","Warszawa","Warszawa"]
["00-112","mazowieckie","mazo_Warszawa",null,"mazowieckie","Warszawa","Warszawa"]
["00-113","mazowieckie","mazo_Warszawa",null,"mazowieckie","Warszawa","Warszawa"]
["00-114","mazowieckie","mazo_Warszawa",null,"mazowieckie","Warszawa","Warszawa"]
["00-115","mazowieckie","mazo_Warszawa",null,"mazowieckie","Warszawa","Warszawa"]
["00-116","mazowieckie","mazo_Warszawa",null,"mazowieckie","Warszawa","Warszawa"]
["00-117","mazowieckie","mazo_Warszawa",null,"mazowieckie","Warszawa","Warszawa"]
["00-118","mazowieckie","mazo_Warszawa",null,"mazowieckie","Warszawa","Warszawa"]
["00-119","mazowieckie","mazo_Warszawa",null,"mazowieckie","Warszawa","Warszawa"]
["00-120","mazowieckie","mazo_Warszawa",null,"mazowieckie","Warszawa","Warszawa"]
["00-121","mazowieckie","mazo_Warszawa",null,"mazowieckie","Warszawa","Warszawa"]
["00-123","mazowieckie","mazo_Warszawa",null,"mazowieckie","Warszawa","Warszawa"]
["00-124","mazowieckie","mazo_Warszawa",null,"mazowieckie","Warszawa","Warszawa"]
["00-125","mazowieckie","mazo_Warszawa",null,"mazowieckie","Warszawa","Warszawa"]
["00-126","mazowieckie","mazo_Warszawa",null,"mazowieckie","Warszawa","Warszawa"]
["00-127","mazowieckie","mazo_Warszawa",null,"mazowieckie","Warszawa","Warszawa"]
["00-130","mazowieckie","mazo_Warszawa",null,"mazowieckie","Warszawa","Warszawa"]
["00-131","mazowieckie","mazo_Warszawa",null,"mazowieckie","Warszawa","Warszawa"]
["00-132","mazowieckie","mazo_Warszawa",null,"mazowieckie","Warszawa","Warszawa"]
["00-133","mazowieckie","mazo_Warszawa",null,"mazowieckie","Warszawa","Warszawa"]
["00-135","mazowieckie","mazo_Warszawa",null,"mazowieckie","Warszawa","Warszawa"]
["00-136","mazowieckie","mazo_Warszawa",null,"mazowieckie","Warszawa","Warszawa"]
["00-137","mazowieckie","mazo_Warszawa",null,"mazowieckie","Warszawa","Warszawa"]
["00-138","mazowieckie","mazo_Warszawa",null,"mazowieckie","Warszawa","Warszawa"]
["00-139","mazowieckie","mazo_Warszawa",null,"mazowieckie","Warszawa","Warszawa"]
["00-140","mazowieckie","mazo_Warszawa",null,"mazowieckie","Warszawa","Warszawa"]
["00-141","mazowieckie","mazo_Warszawa",null,"mazowieckie","Warszawa","Warszawa"]
["00-142","mazowieckie","mazo_Warszawa",null,"mazowieckie","Warszawa","Warszawa"]
["00-143","mazowieckie","mazo_Warszawa",null,"mazowieckie","Warszawa","Warszawa"]
["00-144","mazowieckie","mazo_Warszawa",null,"mazowieckie","Warszawa","Warszawa"]
["00-145","mazowieckie","mazo_Warszawa",null,"mazowieckie","Warszawa","Warszawa"]
["00-146","mazowieckie","mazo_Warszawa",null,"mazowieckie","Warszawa","Warszawa"]
["00-147","mazowieckie","mazo_Warszawa",null,"mazowieckie","Warszawa","Warszawa"]
["00-148","mazowieckie","mazo_Warszawa",null,"mazowieckie","Warszawa","Warszawa"]
["00-149","mazowieckie","mazo_Warszawa",null,"mazowieckie","Warszawa","Warszawa"]
["00-150","mazowieckie","mazo_Warszawa",null,"mazowieckie","Warszawa","Warszawa"]
["00-151","mazowieckie","mazo_Warszawa",null,"mazowieckie","Warszawa","Warszawa"]
["00-152","mazowieckie","mazo_Warszawa",null,"mazowieckie","Warszawa","Warszawa"]
["00-153","mazowieckie","mazo_Warszawa",null,"mazowieckie","Warszawa","Warszawa"]
["00-154","mazowieckie","mazo_Warszawa",null,"mazowieckie","Warszawa","Warszawa"]
["00-155","mazowieckie","mazo_Warszawa",null,"mazowieckie","Warszawa","Warszawa"]
["00-156","mazowieckie","mazo_Warszawa",null,"mazowieckie","Warszawa","Warszawa"]
["00-157","mazowieckie","mazo_Warszawa",null,"mazowieckie","Warszawa","Warszawa"]
["00-158","mazowieckie","mazo_Warszawa",null,"mazowieckie","Warszawa","Warszawa"]
["00-159","mazowieckie","mazo_Warszawa",null,"mazowieckie","Warszawa","Warszawa"]
["00-160","mazowieckie","mazo_Warszawa",null,"mazowieckie","Warszawa","Warszawa"]
["00-161","mazowieckie","mazo_Warszawa",null,"mazowieckie","Warszawa","Warszawa"]
["00-162","mazowieckie","mazo_Warszawa",null,"mazowieckie","Warszawa","Warszawa"]
["00-163","mazowieckie","mazo_Warszawa",null,"mazowieckie","Warszawa","Warszawa"]
["00-164","mazowieckie","mazo_Warszawa",null,"mazowieckie","Warszawa","Warszawa"]
["00-165","mazowieckie","mazo_Warszawa",null,"mazowieckie","Warszawa","Warszawa"]
["00-166","mazowieckie","mazo_Warszawa",null,"mazowieckie","Warszawa","Warszawa"]
["00-167","mazowieckie","mazo_Warszawa",null,"mazowieckie","Warszawa","Warszawa"]
["00-168","mazowieckie","mazo_Warszawa",null,"mazowieckie","Warszawa","Warszawa"]
["00-169","mazowieckie","mazo_Warszawa",null,"mazowieckie","Warszawa","Warszawa"]
["00-170","mazowieckie","mazo_Warszawa",null,"mazowieckie","Warszawa","Warszawa"]
["00-171","mazowieckie","mazo_Warszawa",null,"mazowieckie","Warszawa","Warszawa"]
["00-172","mazowieckie","mazo_Warszawa",null,"mazowieckie","Warszawa","Warszawa"]
["00-173","mazowieckie","mazo_Warszawa",null,"mazowieckie","Warszawa","Warszawa"]
["00-174","mazowieckie","mazo_Warszawa",null,"mazowieckie","Warszawa","Warszawa"]
["00-175","mazowieckie","mazo_Warszawa",null,"mazowieckie","Warszawa","Warszawa"]
["00-176","mazowieckie","mazo_Warszawa",null,"mazowieckie","Warszawa","Warszawa"]
["00-177","mazowieckie","mazo_Warszawa",null,"mazowieckie","Warszawa","Warszawa"]
["00-178","mazowieckie","mazo_Warszawa",null,"mazowieckie","Warszawa","Warszawa"]
["00-179","mazowieckie","mazo_Warszawa",null,"mazowieckie","Warszawa","Warszawa"]
["00-180","mazowieckie","mazo_Warszawa",null,"mazowieckie","Warszawa","Warszawa"]
["00-181","mazowieckie","mazo_Warszawa",null,"mazowieckie","Warszawa","Warszawa"]
["00-182","mazowieckie","mazo_Warszawa",null,"mazowieckie","Warszawa","Warszawa"]
["00-183","mazowieckie","mazo_Warszawa",null,"mazowieckie","Warszawa","Warszawa"]
["00-184","mazowieckie","mazo_Warszawa",null,"mazowieckie","Warszawa","Warszawa"]
["00-185","mazowieckie","mazo_Warszawa",null,"mazowieckie","Warszawa","Warszawa"]
["00-186","mazowieckie","mazo_Warszawa",null,"mazowieckie","Warszawa","Warszawa"]
["00-187","mazowieckie","mazo_Warszawa",null,"mazowieckie","Warszawa","Warszawa"]
["00-188","mazowieckie","mazo_Warszawa",null,"mazowieckie","Warszawa","Warszawa"]
["00-189","mazowieckie","mazo_Warszawa",null,"mazowieckie","Warszawa","Warszawa"]
["00-190","mazowieckie","mazo_Warszawa",null,"mazowieckie","Warszawa","Warszawa"]
["00-191","mazowieckie","mazo_Warszawa",null,"mazowieckie","Warszawa","Warszawa"]
["00-192","mazowieckie","mazo_Warszawa",null,"mazowieckie","Warszawa","Warszawa"]
["00-193","mazowieckie","mazo_Warszawa",null,"mazowieckie","Warszawa","Warszawa"]
["00-194","mazowieckie","mazo_Warszawa",null,"mazowieckie","Warszawa","Warszawa"]
["00-195","mazowieckie","mazo_Warszawa",null,"mazowieckie","Warszawa","Warszawa"]
["00-196","mazowieckie","mazo_Warszawa",null,"mazowieckie","Warszawa","Warszawa"]
["00-197","mazowieckie","mazo_Warszawa",null,"mazowieckie","Warszawa","Warszawa"]
["00-198","mazowieckie","mazo_Warszawa",null,"mazowieckie","Warszawa","Warszawa"]
["00-199","mazowieckie","mazo_Warszawa",null,"mazowieckie","Warszawa","Warszawa"]
["00-200","mazowieckie","mazo_Warszawa",null,"mazowieckie","Warszawa","Warszawa"]
["00-201","mazowieckie","mazo_Warszawa",null,"mazowieckie","Warszawa","Warszawa"]
["00-202","mazowieckie","mazo_Warszawa",null,"mazowieckie","Warszawa","Warszawa"]
["00-203","mazowieckie","mazo_Warszawa",null,"mazowieckie","Warszawa","Warszawa"]
["00-204","mazowieckie","mazo_Warszawa",null,"mazowieckie","Warszawa","Warszawa"]
["00-205","mazowieckie","mazo_Warszawa",null,"mazowieckie","Warszawa","Warszawa"]
["00-206","mazowieckie","mazo_Warszawa",null,"mazowieckie","Warszawa","Warszawa"]
["00-207","mazowieckie","mazo_Warszawa",null,"mazowieckie","Warszawa","Warszawa"]
["00-208","mazowieckie","mazo_Warszawa",null,"mazowieckie","Warszawa","Warszawa"]
["00-209","mazowieckie","mazo_Warszawa",null,"mazowieckie","Warszawa","Warszawa"]
["00-210","mazowieckie","mazo_Warszawa",null,"mazowieckie","Warszawa","Warszawa"]
["00-211","mazowieckie","mazo_Warszawa",null,"mazowieckie","Warszawa","Warszawa"]
["00-213","mazowieckie","mazo_Warszawa",null,"mazowieckie","Warszawa","Warszawa"]
["00-214","mazowieckie","mazo_Warszawa",null,"mazowieckie","Warszawa","Warszawa"]
["00-215","mazowieckie","mazo_Warszawa",null,"mazowieckie","Warszawa","Warszawa"]
["00-216","mazowieckie","mazo_Warszawa",null,"mazowieckie","Warszawa","Warszawa"]
["00-217","mazowieckie","mazo_Warszawa",null,"mazowieckie","Warszawa","Warszawa"]
["00-218","mazowieckie","mazo_Warszawa",null,"mazowieckie","Warszawa","Warszawa"]
["00-219","mazowieckie","mazo_Warszawa",null,"mazowieckie","Warszawa","Warszawa"]
["00-220","mazowieckie","mazo_Warszawa",null,"mazowieckie","Warszawa","Warszawa"]
["00-221","mazowieckie","mazo_Warszawa",null,"mazowieckie","Warszawa","Warszawa"]
["00-222","mazowieckie","mazo_Warszawa",null,"mazowieckie","Warszawa","Warszawa"]
["00-223","mazowieckie","mazo_Warszawa",null,"mazowieckie","Warszawa","Warszawa"]
["00-224","mazowieckie","mazo_Warszawa",null,"mazowieckie","Warszawa","Warszawa"]
["00-225","mazowieckie","mazo_Warszawa",null,"mazowieckie","Warszawa","Warszawa"]
["00-227","mazowieckie","mazo_Warszawa",null,"mazowieckie","Warszawa","Warszawa"]
["00-228","mazowieckie","mazo_Warszawa",null,"mazowieckie","Warszawa","Warszawa"]
["00-229","mazowieckie","mazo_Warszawa",null,"mazowieckie","Warszawa","Warszawa"]
["00-230","mazowieckie","mazo_Warszawa",null,"mazowieckie","Warszawa","Warszawa"]
["00-231","mazowieckie","mazo_Warszawa",null,"mazowieckie","Warszawa","Warszawa"]
["00-232","mazowieckie","mazo_Warszawa",null,"mazowieckie","Warszawa","Warszawa"]
["00-233","mazowieckie","mazo_Warszawa",null,"mazowieckie","Warszawa","Warszawa"]
["00-234","mazowieckie","mazo_Warszawa",null,"mazowieckie","Warszawa","Warszawa"]
["00-235","mazowieckie","mazo_Warszawa",null,"mazowieckie","Warszawa","Warszawa"]
["00-236","mazowieckie","mazo_Warszawa",null,"mazowieckie","Warszawa","Warszawa"]
["00-237","mazowieckie","mazo_Warszawa",null,"mazowieckie","Warszawa","Warszawa"]
["00-238","mazowieckie","mazo_Warszawa",null,"mazowieckie","Warszawa","Warszawa"]
["00-240","mazowieckie","mazo_Warszawa",null,"mazowieckie","Warszawa","Warszawa"]
["00-241","mazowieckie","mazo_Warszawa",null,"mazowieckie","Warszawa","Warszawa"]
["00-242","mazowieckie","mazo_Warszawa",null,"mazowieckie","Warszawa","Warszawa"]
["00-243","mazowieckie","mazo_Warszawa",null,"mazowieckie","Warszawa","Warszawa"]
["00-244","mazowieckie","mazo_Warszawa",null,"mazowieckie","Warszawa","Warszawa"]
["00-245","mazowieckie","mazo_Warszawa",null,"mazowieckie","Warszawa","Warszawa"]
["00-246","mazowieckie","mazo_Warszawa",null,"mazowieckie","Warszawa","Warszawa"]
["00-248","mazowieckie","mazo_Warszawa",null,"mazowieckie","Warszawa","Warszawa"]
["00-249","mazowieckie","mazo_Warszawa",null,"mazowieckie","Warszawa","Warszawa"]
["00-251","mazowieckie","mazo_Warszawa",null,"mazowieckie","Warszawa","Warszawa"]
["00-252","mazowieckie","mazo_Warszawa",null,"mazowieckie","Warszawa","Warszawa"]
["00-253","mazowieckie","mazo_Warszawa",null,"mazowieckie","Warszawa","Warszawa"]
["00-254","mazowieckie","mazo_Warszawa",null,"mazowieckie","Warszawa","Warszawa"]
["00-255","mazowieckie","mazo_Warszawa",null,"mazowieckie","Warszawa","Warszawa"]
["00-256","mazowieckie","mazo_Warszawa",null,"mazowieckie","Warszawa","Warszawa"]
["00-257","mazowieckie","mazo_Warszawa",null,"mazowieckie","Warszawa","Warszawa"]
["00-258","mazowieckie","mazo_Warszawa",null,"mazowieckie","Warszawa","Warszawa"]
["00-259","mazowieckie","mazo_Warszawa",null,"mazowieckie","Warszawa","Warszawa"]
["00-260","mazowieckie","mazo_Warszawa",null,"mazowieckie","Warszawa","Warszawa"]
["00-261","mazowieckie","mazo_Warszawa",null,"mazowieckie","Warszawa","Warszawa"]
["00-262","mazowieckie","mazo_Warszawa",null,"mazowieckie","Warszawa","Warszawa"]
["00-263","mazowieckie","mazo_Warszawa",null,"mazowieckie","Warszawa","Warszawa"]
["00-264","mazowieckie","mazo_Warszawa",null,"mazowieckie","Warszawa","Warszawa"]
["00-265","mazowieckie","mazo_Warszawa",null,"mazowieckie","Warszawa","Warszawa"]
["00-266","mazowieckie","mazo_Warszawa",null,"mazowieckie","Warszawa","Warszawa"]
["00-267","mazowieckie","mazo_Warszawa",null,"mazowieckie","Warszawa","Warszawa"]
["00-268","mazowieckie","mazo_Warszawa",null,"mazowieckie","Warszawa","Warszawa"]
["00-270","mazowieckie","mazo_Warszawa",null,"mazowieckie","Warszawa","Warszawa"]
["00-271","mazowieckie","mazo_Warszawa",null,"mazowieckie","Warszawa","Warszawa"]
["00-272","mazowieckie","mazo_Warszawa",null,"mazowieckie","Warszawa","Warszawa"]
["00-273","mazowieckie","mazo_Warszawa",null,"mazowieckie","Warszawa","Warszawa"]
["00-274","mazowieckie","mazo_Warszawa",null,"mazowieckie","Warszawa","Warszawa"]
["00-275","mazowieckie","mazo_Warszawa",null,"mazowieckie","Warszawa","Warszawa"]
["00-277","mazowieckie","mazo_Warszawa",null,"mazowieckie","Warszawa","Warszawa"]
["00-278","mazowieckie","mazo_Warszawa",null,"mazowieckie","Warszawa","Warszawa"]
["00-279","mazowieckie","mazo_Warszawa",null,"mazowieckie","Warszawa","Warszawa"]
["00-280","mazowieckie","mazo_Warszawa",null,"mazowieckie","Warszawa","Warszawa"]
["00-281","mazowieckie","mazo_Warszawa",null,"mazowieckie","Warszawa","Warszawa"]
["00-282","mazowieckie","mazo_Warszawa",null,"mazowieckie","Warszawa","Warszawa"]
["00-283","mazowieckie","mazo_Warszawa",null,"mazowieckie","Warszawa","Warszawa"]
["00-284","mazowieckie","mazo_Warszawa",null,"mazowieckie","Warszawa","Warszawa"]
["00-285","mazowieckie","mazo_Warszawa",null,"mazowieckie","Warszawa","Warszawa"]
["00-286","mazowieckie","mazo_Warszawa",null,"mazowieckie","Warszawa","Warszawa"]
["00-287","mazowieckie","mazo_Warszawa",null,"mazowieckie","Warszawa","Warszawa"]
["00-288","mazowieckie","mazo_Warszawa",null,"mazowieckie","Warszawa","Warszawa"]
["00-301","mazowieckie","mazo_Warszawa",null,"mazowieckie","Warszawa","Warszawa"]
["00-302","mazowieckie","mazo_Warszawa",null,"mazowieckie","Warszawa","Warszawa"]
["00-303","mazowieckie","mazo_Warszawa",null,"mazowieckie","Warszawa","Warszawa"]
["00-304","mazowieckie","mazo_Warszawa",null,"mazowieckie","Warszawa","Warszawa"]
["00-305","mazowieckie","mazo_Warszawa",null,"mazowieckie","Warszawa","Warszawa"]
["00-306","mazowieckie","mazo_Warszawa",null,"mazowieckie","Warszawa","Warszawa"]
["00-307","mazowieckie","mazo_Warszawa",null,"mazowieckie","Warszawa","Warszawa"]
["00-308","mazowieckie","mazo_Warszawa",null,"mazowieckie","Warszawa","Warszawa"]
["00-309","mazowieckie","mazo_Warszawa",null,"mazowieckie","Warszawa","Warszawa"]
["00-310","mazowieckie","mazo_Warszawa",null,"mazowieckie","Warszawa","Warszawa"]
["00-311","mazowieckie","mazo_Warszawa",null,"mazowieckie","Warszawa","Warszawa"]
["00-312","mazowieckie","mazo_Warszawa",null,"mazowieckie","Warszawa","Warszawa"]
["00-313","mazowieckie","mazo_Warszawa",null,"mazowieckie","Warszawa","Warszawa"]
["00-314","mazowieckie","mazo_Warszawa",null,"mazowieckie","Warszawa","Warszawa"]
["00-315","mazowieckie","mazo_Warszawa",null,"mazowieckie","Warszawa","Warszawa"]
["00-316","mazowieckie","mazo_Warszawa",null,"mazowieckie","Warszawa","Warszawa"]
["00-317","mazowieckie","mazo_Warszawa",null,"mazowieckie","Warszawa","Warszawa"]
["00-318","mazowieckie","mazo_Warszawa",null,"mazowieckie","Warszawa","Warszawa"]
["00-319","mazowieckie","mazo_Warszawa",null,"mazowieckie","Warszawa","Warszawa"]
["00-321","mazowieckie","mazo_Warszawa",null,"mazowieckie","Warszawa","Warszawa"]
["00-322","mazowieckie","mazo_Warszawa",null,"mazowieckie","Warszawa","Warszawa"]
["00-324","mazowieckie","mazo_Warszawa",null,"mazowieckie","Warszawa","Warszawa"]
["00-325","mazowieckie","mazo_Warszawa",null,"mazowieckie","Warszawa","Warszawa"]
["00-327","mazowieckie","mazo_Warszawa",null,"mazowieckie","Warszawa","Warszawa"]
["00-328","mazowieckie","mazo_Warszawa",null,"mazowieckie","Warszawa","Warszawa"]
["00-330","mazowieckie","mazo_Warszawa",null,"mazowieckie","Warszawa","Warszawa"]
["00-331","mazowieckie","mazo_Warszawa",null,"mazowieckie","Warszawa","Warszawa"]
["00-332","mazowieckie","mazo_Warszawa",null,"mazowieckie","Warszawa","Warszawa"]
["00-333","mazowieckie","mazo_Warszawa",null,"mazowieckie","Warszawa","Warszawa"]
["00-334","mazowieckie","mazo_Warszawa",null,"mazowieckie","Warszawa","Warszawa"]
["00-335","mazowieckie","mazo_Warszawa",null,"mazowieckie","Warszawa","Warszawa"]
["00-336","mazowieckie","mazo_Warszawa",null,"mazowieckie","Warszawa","Warszawa"]
["00-337","mazowieckie","mazo_Warszawa",null,"mazowieckie","Warszawa","Warszawa"]
["00-338","mazowieckie","mazo_Warszawa",null,"mazowieckie","Warszawa","Warszawa"]
["00-339","mazowieckie","mazo_Warszawa",null,"mazowieckie","Warszawa","Warszawa"]
["00-340","mazowieckie","mazo_Warszawa",null,"mazowieckie","Warszawa","Warszawa"]
["00-341","mazowieckie","mazo_Warszawa",null,"mazowieckie","Warszawa","Warszawa"]
["00-342","mazowieckie","mazo_Warszawa",null,"mazowieckie","Warszawa","Warszawa"]
["00-343","mazowieckie","mazo_Warszawa",null,"mazowieckie","Warszawa","Warszawa"]
["00-344","mazowieckie","mazo_Warszawa",null,"mazowieckie","Warszawa","Warszawa"]
["00-345","mazowieckie","mazo_Warszawa",null,"mazowieckie","Warszawa","Warszawa"]
["00-346","mazowieckie","mazo_Warszawa",null,"mazowieckie","Warszawa","Warszawa"]
["00-347","mazowieckie","mazo_Warszawa",null,"mazowieckie","Warszawa","Warszawa"]
["00-348","mazowieckie","mazo_Warszawa",null,"mazowieckie","Warszawa","Warszawa"]
["00-349","mazowieckie","mazo_Warszawa",null,"mazowieckie","Warszawa","Warszawa"]
["00-350","mazowieckie","mazo_Warszawa",null,"mazowieckie","Warszawa","Warszawa"]
["00-351","mazowieckie","mazo_Warszawa",null,"mazowieckie","Warszawa","Warszawa"]
["00-353","mazowieckie","mazo_Warszawa",null,"mazowieckie","Warszawa","Warszawa"]
["00-354","mazowieckie","mazo_Warszawa",null,"mazowieckie","Warszawa","Warszawa"]
["00-355","mazowieckie","mazo_Warszawa",null,"mazowieckie","Warszawa","Warszawa"]
["00-356","mazowieckie","mazo_Warszawa",null,"mazowieckie","Warszawa","Warszawa"]
["00-357","mazowieckie","mazo_Warszawa",null,"mazowieckie","Warszawa","Warszawa"]
["00-358","mazowieckie","mazo_Warszawa",null,"mazowieckie","Warszawa","Warszawa"]
["00-359","mazowieckie","mazo_Warszawa",null,"mazowieckie","Warszawa","Warszawa"]
["00-360","mazowieckie","mazo_Warszawa",null,"mazowieckie","Warszawa","Warszawa"]
["00-362","mazowieckie","mazo_Warszawa",null,"mazowieckie","Warszawa","Warszawa"]
["00-363","mazowieckie","mazo_Warszawa",null,"mazowieckie","Warszawa","Warszawa"]
["00-364","mazowieckie","mazo_Warszawa",null,"mazowieckie","Warszawa","Warszawa"]
["00-365","mazowieckie","mazo_Warszawa",null,"mazowieckie","Warszawa","Warszawa"]
["00-366","mazowieckie","mazo_Warszawa",null,"mazowieckie","Warszawa","Warszawa"]
["00-367","mazowieckie","mazo_Warszawa",null,"mazowieckie","Warszawa","Warszawa"]
["00-368","mazowieckie","mazo_Warszawa",null,"mazowieckie","Warszawa","Warszawa"]
["00-369","mazowieckie","mazo_Warszawa",null,"mazowieckie","Warszawa","Warszawa"]
["00-370","mazowieckie","mazo_Warszawa",null,"mazowieckie","Warszawa","Warszawa"]
["00-372","mazowieckie","mazo_Warszawa",null,"mazowieckie","Warszawa","Warszawa"]
["00-373","mazowieckie","mazo_Warszawa",null,"mazowieckie","Warszawa","Warszawa"]
["00-374","mazowieckie","mazo_Warszawa",null,"mazowieckie","Warszawa","Warszawa"]
["00-375","mazowieckie","mazo_Warszawa",null,"mazowieckie","Warszawa","Warszawa"]
["00-377","mazowieckie","mazo_Warszawa",null,"mazowieckie","Warszawa","Warszawa"]
["00-378","mazowieckie","mazo_Warszawa",null,"mazowieckie","Warszawa","Warszawa"]
["00-379","mazowieckie","mazo_Warszawa",null,"mazowieckie","Warszawa","Warszawa"]
["00-380","mazowieckie","mazo_Warszawa",null,"mazowieckie","Warszawa","Warszawa"]
["00-381","mazowieckie","mazo_Warszawa",null,"mazowieckie","Warszawa","Warszawa"]
["00-382","mazowieckie","mazo_Warszawa",null,"mazowieckie","Warszawa","Warszawa"]
["00-384","mazowieckie","mazo_Warszawa",null,"mazowieckie","Warszawa","Warszawa"]
["00-385","mazowieckie","mazo_Warszawa",null,"mazowieckie","Warszawa","Warszawa"]
["00-386","mazowieckie","mazo_Warszawa",null,"mazowieckie","Warszawa","Warszawa"]
["00-388","mazowieckie","mazo_Warszawa",null,"mazowieckie","Warszawa","Warszawa"]
["00-389","mazowieckie","mazo_Warszawa",null,"mazowieckie","Warszawa","Warszawa"]
["00-390","mazowieckie","mazo_Warszawa",null,"mazowieckie","Warszawa","Warszawa"]
["00-391","mazowieckie","mazo_Warszawa",null,"mazowieckie","Warszawa","Warszawa"]
["00-392","mazowieckie","mazo_Warszawa",null,"mazowieckie","Warszawa","Warszawa"]
["00-393","mazowieckie","mazo_Warszawa",null,"mazowieckie","Warszawa","Warszawa"]
["00-394","mazowieckie","mazo_Warszawa",null,"mazowieckie","Warszawa","Warszawa"]
["00-400","mazowieckie","mazo_Warszawa",null,"mazowieckie","Warszawa","Warszawa"]
["00-401","mazowieckie","mazo_Warszawa",null,"mazowieckie","Warszawa","Warszawa"]
["00-402","mazowieckie","mazo_Warszawa",null,"mazowieckie","Warszawa","Warszawa"]
["00-403","mazowieckie","mazo_Warszawa",null,"mazowieckie","Warszawa","Warszawa"]
["00-404","mazowieckie","mazo_Warszawa",null,"mazowieckie","Warszawa","Warszawa"]
["00-405","mazowieckie","mazo_Warszawa",null,"mazowieckie","Warszawa","Warszawa"]
["00-406","mazowieckie","mazo_Warszawa",null,"mazowieckie","Warszawa","Warszawa"]
["00-407","mazowieckie","mazo_Warszawa",null,"mazowieckie","Warszawa","Warszawa"]
["00-408","mazowieckie","mazo_Warszawa",null,"mazowieckie","Warszawa","Warszawa"]
["00-409","mazowieckie","mazo_Warszawa",null,"mazowieckie","Warszawa","Warszawa"]
["00-410","mazowieckie","mazo_Warszawa",null,"mazowieckie","Warszawa","Warszawa"]
["00-411","mazowieckie","mazo_Warszawa",null,"mazowieckie","Warszawa","Warszawa"]
["00-412","mazowieckie","mazo_Warszawa",null,"mazowieckie","Warszawa","Warszawa"]
["00-413","mazowieckie","mazo_Warszawa",null,"mazowieckie","Warszawa","Warszawa"]
["00-414","mazowieckie","mazo_Warszawa",null,"mazowieckie","Warszawa","Warszawa"]
["00-415","mazowieckie","mazo_Warszawa",null,"mazowieckie","Warszawa","Warszawa"]
["00-416","mazowieckie","mazo_Warszawa",null,"mazowieckie","Warszawa","Warszawa"]
["00-417","mazowieckie","mazo_Warszawa",null,"mazowieckie","Warszawa","Warszawa"]
["00-418","mazowieckie","mazo_Warszawa",null,"mazowieckie","Warszawa","Warszawa"]
["00-419","mazowieckie","mazo_Warszawa",null,"mazowieckie","Warszawa","Warszawa"]
["00-420","mazowieckie","mazo_Warszawa",null,"mazowieckie","Warszawa","Warszawa"]
["00-421","mazowieckie","mazo_Warszawa",null,"mazowieckie","Warszawa","Warszawa"]
["00-422","mazowieckie","mazo_Warszawa",null,"mazowieckie","Warszawa","Warszawa"]
["00-423","mazowieckie","mazo_Warszawa",null,"mazowieckie","Warszawa","Warszawa"]
["00-424","mazowieckie","mazo_Warszawa",null,"mazowieckie","Warszawa","Warszawa"]
["00-425","mazowieckie","mazo_Warszawa",null,"mazowieckie","Warszawa","Warszawa"]
["00-427","mazowieckie","mazo_Warszawa",null,"mazowieckie","Warszawa","Warszawa"]
["00-428","mazowieckie","mazo_Warszawa",null,"mazowieckie","Warszawa","Warszawa"]
["00-429","mazowieckie","mazo_Warszawa",null,"mazowieckie","Warszawa","Warszawa"]
["00-430","mazowieckie","mazo_Warszawa",null,"mazowieckie","Warszawa","Warszawa"]
["00-431","mazowieckie","mazo_Warszawa",null,"mazowieckie","Warszawa","Warszawa"]
["00-432","mazowieckie","mazo_Warszawa",null,"mazowieckie","Warszawa","Warszawa"]
["00-433","mazowieckie","mazo_Warszawa",null,"mazowieckie","Warszawa","Warszawa"]
["00-434","mazowieckie","mazo_Warszawa",null,"mazowieckie","Warszawa","Warszawa"]
["00-435","mazowieckie","mazo_Warszawa",null,"mazowieckie","Warszawa","Warszawa"]
["00-436","mazowieckie","mazo_Warszawa",null,"mazowieckie","Warszawa","Warszawa"]
["00-438","mazowieckie","mazo_Warszawa",null,"mazowieckie","Warszawa","Warszawa"]
["00-439","mazowieckie","mazo_Warszawa",null,"mazowieckie","Warszawa","Warszawa"]
["00-440","mazowieckie","mazo_Warszawa",null,"mazowieckie","Warszawa","Warszawa"]
["00-441","mazowieckie","mazo_Warszawa",null,"mazowieckie","Warszawa","Warszawa"]
["00-442","mazowieckie","mazo_Warszawa",null,"mazowieckie","Warszawa","Warszawa"]
["00-443","mazowieckie","mazo_Warszawa",null,"mazowieckie","Warszawa","Warszawa"]
["00-444","mazowieckie","mazo_Warszawa",null,"mazowieckie","Warszawa","Warszawa"]
["00-446","mazowieckie","mazo_Warszawa",null,"mazowieckie","Warszawa","Warszawa"]
["00-447","mazowieckie","mazo_Warszawa",null,"mazowieckie","Warszawa","Warszawa"]
["00-448","mazowieckie","mazo_Warszawa",null,"mazowieckie","Warszawa","Warszawa"]
["00-449","mazowieckie","mazo_Warszawa",null,"mazowieckie","Warszawa","Warszawa"]
["00-450","mazowieckie","mazo_Warszawa",null,"mazowieckie","Warszawa","Warszawa"]
["00-451","mazowieckie","mazo_Warszawa",null,"mazowieckie","Warszawa","Warszawa"]
["00-452","mazowieckie","mazo_Warszawa",null,"mazowieckie","Warszawa","Warszawa"]
["00-453","mazowieckie","mazo_Warszawa",null,"mazowieckie","Warszawa","Warszawa"]
["00-454","mazowieckie","mazo_Warszawa",null,"mazowieckie","Warszawa","Warszawa"]
["00-455","mazowieckie","mazo_Warszawa",null,"mazowieckie","Warszawa","Warszawa"]
["00-456","mazowieckie","mazo_Warszawa",null,"mazowieckie","Warszawa","Warszawa"]
["00-457","mazowieckie","mazo_Warszawa",null,"mazowieckie","Warszawa","Warszawa"]
["00-458","mazowieckie","mazo_Warszawa",null,"mazowieckie","Warszawa","Warszawa"]
["00-459","mazowieckie","mazo_Warszawa",null,"mazowieckie","Warszawa","Warszawa"]
["00-460","mazowieckie","mazo_Warszawa",null,"mazowieckie","Warszawa","Warszawa"]
["00-461","mazowieckie","mazo_Warszawa",null,"mazowieckie","Warszawa","Warszawa"]
["00-462","mazowieckie","mazo_Warszawa",null,"mazowieckie","Warszawa","Warszawa"]
["00-463","mazowieckie","mazo_Warszawa",null,"mazowieckie","Warszawa","Warszawa"]
["00-464","mazowieckie","mazo_Warszawa",null,"mazowieckie","Warszawa","Warszawa"]
["00-465","mazowieckie","mazo_Warszawa",null,"mazowieckie","Warszawa","Warszawa"]
["00-466","mazowieckie","mazo_Warszawa",null,"mazowieckie","Warszawa","Warszawa"]
["00-467","mazowieckie","mazo_Warszawa",null,"mazowieckie","Warszawa","Warszawa"]
["00-468","mazowieckie","mazo_Warszawa",null,"mazowieckie","Warszawa","Warszawa"]
["00-477","mazowieckie","mazo_Warszawa",null,"mazowieckie","Warszawa","Warszawa"]
["00-478","mazowieckie","mazo_Warszawa",null,"mazowieckie","Warszawa","Warszawa"]
["00-479","mazowieckie","mazo_Warszawa",null,"mazowieckie","Warszawa","Warszawa"]
["00-480","mazowieckie","mazo_Warszawa",null,"mazowieckie","Warszawa","Warszawa"]
["00-481","mazowieckie","mazo_Warszawa",null,"mazowieckie","Warszawa","Warszawa"]
["00-482","mazowieckie","mazo_Warszawa",null,"mazowieckie","Warszawa","Warszawa"]
["00-483","mazowieckie","mazo_Warszawa",null,"mazowieckie","Warszawa","Warszawa"]
["00-484","mazowieckie","mazo_Warszawa",null,"mazowieckie","Warszawa","Warszawa"]
["00-485","mazowieckie","mazo_Warszawa",null,"mazowieckie","Warszawa","Warszawa"]
["00-486","mazowieckie","mazo_Warszawa",null,"mazowieckie","Warszawa","Warszawa"]
["00-487","mazowieckie","mazo_Warszawa",null,"mazowieckie","Warszawa","Warszawa"]
["00-488","mazowieckie","mazo_Warszawa",null,"mazowieckie","Warszawa","Warszawa"]
["00-489","mazowieckie","mazo_Warszawa",null,"mazowieckie","Warszawa","Warszawa"]
["00-490","mazowieckie","mazo_Warszawa",null,"mazowieckie","Warszawa","Warszawa"]
["00-491","mazowieckie","mazo_Warszawa",null,"mazowieckie","Warszawa","Warszawa"]
["00-492","mazowieckie","mazo_Warszawa",null,"mazowieckie","Warszawa","Warszawa"]
["00-493","mazowieckie","mazo_Warszawa",null,"mazowieckie","Warszawa","Warszawa"]
["00-495","mazowieckie","mazo_Warszawa",null,"mazowieckie","Warszawa","Warszawa"]
["00-496","mazowieckie","mazo_Warszawa",null,"mazowieckie","Warszawa","Warszawa"]
["00-497","mazowieckie","mazo_Warszawa",null,"mazowieckie","Warszawa","Warszawa"]
["00-498","mazowieckie","mazo_Warszawa",null,"mazowieckie","Warszawa","Warszawa"]
["00-499","mazowieckie","mazo_Warszawa",null,"mazowieckie","Warszawa","Warszawa"]
["00-501","mazowieckie","mazo_Warszawa",null,"mazowieckie","Warszawa","Warszawa"]
["00-502","mazowieckie","mazo_Warszawa",null,"mazowieckie","Warszawa","Warszawa"]
["00-503","mazowieckie","mazo_Warszawa",null,"mazowieckie","Warszawa","Warszawa"]
["00-504","mazowieckie","mazo_Warszawa",null,"mazowieckie","Warszawa","Warszawa"]
["00-505","mazowieckie","mazo_Warszawa",null,"mazowieckie","Warszawa","Warszawa"]
["00-507","mazowieckie","mazo_Warszawa",null,"mazowieckie","Warszawa","Warszawa"]
["00-508","mazowieckie","mazo_Warszawa",null,"mazowieckie","Warszawa","Warszawa"]
["00-509","mazowieckie","mazo_Warszawa",null,"mazowieckie","Warszawa","Warszawa"]
["00-510","mazowieckie","mazo_Warszawa",null,"mazowieckie","Warszawa","Warszawa"]
["00-511","mazowieckie","mazo_Warszawa",null,"mazowieckie","Warszawa","Warszawa"]
["00-512","mazowieckie","mazo_Warszawa",null,"mazowieckie","Warszawa","Warszawa"]
["00-513","mazowieckie","mazo_Warszawa",null,"mazowieckie","Warszawa","Warszawa"]
["00-514","mazowieckie","mazo_Warszawa",null,"mazowieckie","Warszawa","Warszawa"]
["00-515","mazowieckie","mazo_Warszawa",null,"mazowieckie","Warszawa","Warszawa"]
["00-516","mazowieckie","mazo_Warszawa",null,"mazowieckie","Warszawa","Warszawa"]
["00-517","mazowieckie","mazo_Warszawa",null,"mazowieckie","Warszawa","Warszawa"]
["00-518","mazowieckie","mazo_Warszawa",null,"mazowieckie","Warszawa","Warszawa"]
["00-519","mazowieckie","mazo_Warszawa",null,"mazowieckie","Warszawa","Warszawa"]
["00-521","mazowieckie","mazo_Warszawa",null,"mazowieckie","Warszawa","Warszawa"]
["00-522","mazowieckie","mazo_Warszawa",null,"mazowieckie","Warszawa","Warszawa"]
["00-524","mazowieckie","mazo_Warszawa",null,"mazowieckie","Warszawa","Warszawa"]
["00-525","mazowieckie","mazo_Warszawa",null,"mazowieckie","Warszawa","Warszawa"]
["00-526","mazowieckie","mazo_Warszawa",null,"mazowieckie","Warszawa","Warszawa"]
["00-527","mazowieckie","mazo_Warszawa",null,"mazowieckie","Warszawa","Warszawa"]
["00-528","mazowieckie","mazo_Warszawa",null,"mazowieckie","Warszawa","Warszawa"]
["00-529","mazowieckie","mazo_Warszawa",null,"mazowieckie","Warszawa","Warszawa"]
["00-530","mazowieckie","mazo_Warszawa",null,"mazowieckie","Warszawa","Warszawa"]
["00-532","mazowieckie","mazo_Warszawa",null,"mazowieckie","Warszawa","Warszawa"]
["00-533","mazowieckie","mazo_Warszawa",null,"mazowieckie","Warszawa","Warszawa"]
["00-534","mazowieckie","mazo_Warszawa",null,"mazowieckie","Warszawa","Warszawa"]
["00-535","mazowieckie","mazo_Warszawa",null,"mazowieckie","Warszawa","Warszawa"]
["00-536","mazowieckie","mazo_Warszawa",null,"mazowieckie","Warszawa","Warszawa"]
["00-537","mazowieckie","mazo_Warszawa",null,"mazowieckie","Warszawa","Warszawa"]
["00-538","mazowieckie","mazo_Warszawa",null,"mazowieckie","Warszawa","Warszawa"]
["00-539","mazowieckie","mazo_Warszawa",null,"mazowieckie","Warszawa","Warszawa"]
["00-540","mazowieckie","mazo_Warszawa",null,"mazowieckie","Warszawa","Warszawa"]
["00-541","mazowieckie","mazo_Warszawa",null,"mazowieckie","Warszawa","Warszawa"]
["00-542","mazowieckie","mazo_Warszawa",null,"mazowieckie","Warszawa","Warszawa"]
["00-543","mazowieckie","mazo_Warszawa",null,"mazowieckie","Warszawa","Warszawa"]
["00-544","mazowieckie","mazo_Warszawa",null,"mazowieckie","Warszawa","Warszawa"]
["00-545","mazowieckie","mazo_Warszawa",null,"mazowieckie","Warszawa","Warszawa"]
["00-546","mazowieckie","mazo_Warszawa",null,"mazowieckie","Warszawa","Warszawa"]
["00-547","mazowieckie","mazo_Warszawa",null,"mazowieckie","Warszawa","Warszawa"]
["00-548","mazowieckie","mazo_Warszawa",null,"mazowieckie","Warszawa","Warszawa"]
["00-549","mazowieckie","mazo_Warszawa",null,"mazowieckie","Warszawa","Warszawa"]
["00-550","mazowieckie","mazo_Warszawa",null,"mazowieckie","Warszawa","Warszawa"]
["00-551","mazowieckie","mazo_Warszawa",null,"mazowieckie","Warszawa","Warszawa"]
["00-552","mazowieckie","mazo_Warszawa",null,"mazowieckie","Warszawa","Warszawa"]
["00-553","mazowieckie","mazo_Warszawa",null,"mazowieckie","Warszawa","Warszawa"]
["00-554","mazowieckie","mazo_Warszawa",null,"mazowieckie","Warszawa","Warszawa"]
["00-555","mazowieckie","mazo_Warszawa",null,"mazowieckie","Warszawa","Warszawa"]
["00-556","mazowieckie","mazo_Warszawa",null,"mazowieckie","Warszawa","Warszawa"]
["00-557","mazowieckie","mazo_Warszawa",null,"mazowieckie","Warszawa","Warszawa"]
["00-558","mazowieckie","mazo_Warszawa",null,"mazowieckie","Warszawa","Warszawa"]
["00-559","mazowieckie","mazo_Warszawa",null,"mazowieckie","Warszawa","Warszawa"]
["00-560","mazowieckie","mazo_Warszawa",null,"mazowieckie","Warszawa","Warszawa"]
["00-561","mazowieckie","mazo_Warszawa",null,"mazowieckie","Warszawa","Warszawa"]
["00-562","mazowieckie","mazo_Warszawa",null,"mazowieckie","Warszawa","Warszawa"]
["00-563","mazowieckie","mazo_Warszawa",null,"mazowieckie","Warszawa","Warszawa"]
["00-564","mazowieckie","mazo_Warszawa",null,"mazowieckie","Warszawa","Warszawa"]
["00-565","mazowieckie","mazo_Warszawa",null,"mazowieckie","Warszawa","Warszawa"]
["00-566","mazowieckie","mazo_Warszawa",null,"mazowieckie","Warszawa","Warszawa"]
["00-567","mazowieckie","mazo_Warszawa",null,"mazowieckie","Warszawa","Warszawa"]
["00-568","mazowieckie","mazo_Warszawa",null,"mazowieckie","Warszawa","Warszawa"]
["00-569","mazowieckie","mazo_Warszawa",null,"mazowieckie","Warszawa","Warszawa"]
["00-570","mazowieckie","mazo_Warszawa",null,"mazowieckie","Warszawa","Warszawa"]
["00-571","mazowieckie","mazo_Warszawa",null,"mazowieckie","Warszawa","Warszawa"]
["00-572","mazowieckie","mazo_Warszawa",null,"mazowieckie","Warszawa","Warszawa"]
["00-573","mazowieckie","mazo_Warszawa",null,"mazowieckie","Warszawa","Warszawa"]
["00-574","mazowieckie","mazo_Warszawa",null,"mazowieckie","Warszawa","Warszawa"]
["00-575","mazowieckie","mazo_Warszawa",null,"mazowieckie","Warszawa","Warszawa"]
["00-576","mazowieckie","mazo_Warszawa",null,"mazowieckie","Warszawa","Warszawa"]
["00-577","mazowieckie","mazo_Warszawa",null,"mazowieckie","Warszawa","Warszawa"]
["00-578","mazowieckie","mazo_Warszawa",null,"mazowieckie","Warszawa","Warszawa"]
["00-580","mazowieckie","mazo_Warszawa",null,"mazowieckie","Warszawa","Warszawa"]
["00-581","mazowieckie","mazo_Warszawa",null,"mazowieckie","Warszawa","Warszawa"]
["00-582","mazowieckie","mazo_Warszawa",null,"mazowieckie","Warszawa","Warszawa"]
["00-583","mazowieckie","mazo_Warszawa",null,"mazowieckie","Warszawa","Warszawa"]
["00-584","mazowieckie","mazo_Warszawa",null,"mazowieckie","Warszawa","Warszawa"]
["00-585","mazowieckie","mazo_Warszawa",null,"mazowieckie","Warszawa","Warszawa"]
["00-586","mazowieckie","mazo_Warszawa",null,"mazowieckie","Warszawa","Warszawa"]
["00-587","mazowieckie","mazo_Warszawa",null,"mazowieckie","Warszawa","Warszawa"]
["00-588","mazowieckie","mazo_Warszawa",null,"mazowieckie","Warszawa","Warszawa"]
["00-589","mazowieckie","mazo_Warszawa",null,"mazowieckie","Warszawa","Warszawa"]
["00-590","mazowieckie","mazo_Warszawa",null,"mazowieckie","Warszawa","Warszawa"]
["00-591","mazowieckie","mazo_Warszawa",null,"mazowieckie","Warszawa","Warszawa"]
["00-592","mazowieckie","mazo_Warszawa",null,"mazowieckie","Warszawa","Warszawa"]
["00-594","mazowieckie","mazo_Warszawa",null,"mazowieckie","Warszawa","Warszawa"]
["00-605","mazowieckie","mazo_Warszawa",null,"mazowieckie","Warszawa","Warszawa"]
["00-608","mazowieckie","mazo_Warszawa",null,"mazowieckie","Warszawa","Warszawa"]
["00-609","mazowieckie","mazo_Warszawa",null,"mazowieckie","Warszawa","Warszawa"]
["00-610","mazowieckie","mazo_Warszawa",null,"mazowieckie","Warszawa","Warszawa"]
["00-611","mazowieckie","mazo_Warszawa",null,"mazowieckie","Warszawa","Warszawa"]
["00-613","mazowieckie","mazo_Warszawa",null,"mazowieckie","Warszawa","Warszawa"]
["00-614","mazowieckie","mazo_Warszawa",null,"mazowieckie","Warszawa","Warszawa"]
["00-620","mazowieckie","mazo_Warszawa",null,"mazowieckie","Warszawa","Warszawa"]
["00-621","mazowieckie","mazo_Warszawa",null,"mazowieckie","Warszawa","Warszawa"]
["00-622","mazowieckie","mazo_Warszawa",null,"mazowieckie","Warszawa","Warszawa"]
["00-623","mazowieckie","mazo_Warszawa",null,"mazowieckie","Warszawa","Warszawa"]
["00-624","mazowieckie","mazo_Warszawa",null,"mazowieckie","Warszawa","Warszawa"]
["00-625","mazowieckie","mazo_Warszawa",null,"mazowieckie","Warszawa","Warszawa"]
["00-626","mazowieckie","mazo_Warszawa",null,"mazowieckie","Warszawa","Warszawa"]
["00-627","mazowieckie","mazo_Warszawa",null,"mazowieckie","Warszawa","Warszawa"]
["00-628","mazowieckie","mazo_Warszawa",null,"mazowieckie","Warszawa","Warszawa"]
["00-629","mazowieckie","mazo_Warszawa",null,"mazowieckie","Warszawa","Warszawa"]
["00-630","mazowieckie","mazo_Warszawa",null,"mazowieckie","Warszawa","Warszawa"]
["00-631","mazowieckie","mazo_Warszawa",null,"mazowieckie","Warszawa","Warszawa"]
["00-632","mazowieckie","mazo_Warszawa",null,"mazowieckie","Warszawa","Warszawa"]
["00-633","mazowieckie","mazo_Warszawa",null,"mazowieckie","Warszawa","Warszawa"]
["00-634","mazowieckie","mazo_Warszawa",null,"mazowieckie","Warszawa","Warszawa"]
["00-635","mazowieckie","mazo_Warszawa",null,"mazowieckie","Warszawa","Warszawa"]
["00-636","mazowieckie","mazo_Warszawa",null,"mazowieckie","Warszawa","Warszawa"]
["00-637","mazowieckie","mazo_Warszawa",null,"mazowieckie","Warszawa","Warszawa"]
["00-638","mazowieckie","mazo_Warszawa",null,"mazowieckie","Warszawa","Warszawa"]
["00-639","mazowieckie","mazo_Warszawa",null,"mazowieckie","Warszawa","Warszawa"]
["00-640","mazowieckie","mazo_Warszawa",null,"mazowieckie","Warszawa","Warszawa"]
["00-641","mazowieckie","mazo_Warszawa",null,"mazowieckie","Warszawa","Warszawa"]
["00-642","mazowieckie","mazo_Warszawa",null,"mazowieckie","Warszawa","Warszawa"]
["00-643","mazowieckie","mazo_Warszawa",null,"mazowieckie","Warszawa","Warszawa"]
["00-644","mazowieckie","mazo_Warszawa",null,"mazowieckie","Warszawa","Warszawa"]
["00-645","mazowieckie","mazo_Warszawa",null,"mazowieckie","Warszawa","Warszawa"]
["00-646","mazowieckie","mazo_Warszawa",null,"mazowieckie","Warszawa","Warszawa"]
["00-647","mazowieckie","mazo_Warszawa",null,"mazowieckie","Warszawa","Warszawa"]
["00-648","mazowieckie","mazo_Warszawa",null,"mazowieckie","Warszawa","Warszawa"]
["00-649","mazowieckie","mazo_Warszawa",null,"mazowieckie","Warszawa","Warszawa"]
["00-650","mazowieckie","mazo_Warszawa",null,"mazowieckie","Warszawa","Warszawa"]
["00-651","mazowieckie","mazo_Warszawa",null,"mazowieckie","Warszawa","Warszawa"]
["00-653","mazowieckie","mazo_Warszawa",null,"mazowieckie","Warszawa","Warszawa"]
["00-654","mazowieckie","mazo_Warszawa",null,"mazowieckie","Warszawa","Warszawa"]
["00-655","mazowieckie","mazo_Warszawa",null,"mazowieckie","Warszawa","Warszawa"]
["00-656","mazowieckie","mazo_Warszawa",null,"mazowieckie","Warszawa","Warszawa"]
["00-657","mazowieckie","mazo_Warszawa",null,"mazowieckie","Warszawa","Warszawa"]
["00-658","mazowieckie","mazo_Warszawa",null,"mazowieckie","Warszawa","Warszawa"]
["00-659","mazowieckie","mazo_Warszawa",null,"mazowieckie","Warszawa","Warszawa"]
["00-660","mazowieckie","mazo_Warszawa",null,"mazowieckie","Warszawa","Warszawa"]
["00-661","mazowieckie","mazo_Warszawa",null,"mazowieckie","Warszawa","Warszawa"]
["00-662","mazowieckie","mazo_Warszawa",null,"mazowieckie","Warszawa","Warszawa"]
["00-663","mazowieckie","mazo_Warszawa",null,"mazowieckie","Warszawa","Warszawa"]
["00-664","mazowieckie","mazo_Warszawa",null,"mazowieckie","Warszawa","Warszawa"]
["00-665","mazowieckie","mazo_Warszawa",null,"mazowieckie","Warszawa","Warszawa"]
["00-666","mazowieckie","mazo_Warszawa",null,"mazowieckie","Warszawa","Warszawa"]
["00-667","mazowieckie","mazo_Warszawa",null,"mazowieckie","Warszawa","Warszawa"]
["00-668","mazowieckie","mazo_Warszawa",null,"mazowieckie","Warszawa","Warszawa"]
["00-669","mazowieckie","mazo_Warszawa",null,"mazowieckie","Warszawa","Warszawa"]
["00-670","mazowieckie","mazo_Warszawa",null,"mazowieckie","Warszawa","Warszawa"]
["00-671","mazowieckie","mazo_Warszawa",null,"mazowieckie","Warszawa","Warszawa"]
["00-672","mazowieckie","mazo_Warszawa",null,"mazowieckie","Warszawa","Warszawa"]
["00-673","mazowieckie","mazo_Warszawa",null,"mazowieckie","Warszawa","Warszawa"]
["00-674","mazowieckie","mazo_Warszawa",null,"mazowieckie","Warszawa","Warszawa"]
["00-675","mazowieckie","mazo_Warszawa",null,"mazowieckie","Warszawa","Warszawa"]
["00-676","mazowieckie","mazo_Warszawa",null,"mazowieckie","Warszawa","Warszawa"]
["00-677","mazowieckie","mazo_Warszawa",null,"mazowieckie","Warszawa","Warszawa"]
["00-678","mazowieckie","mazo_Warszawa",null,"mazowieckie","Warszawa","Warszawa"]
["00-679","mazowieckie","mazo_Warszawa",null,"mazowieckie","Warszawa","Warszawa"]
["00-680","mazowieckie","mazo_Warszawa",null,"mazowieckie","Warszawa","Warszawa"]
["00-681","mazowieckie","mazo_Warszawa",null,"mazowieckie","Warszawa","Warszawa"]
["00-682","mazowieckie","mazo_Warszawa",null,"mazowieckie","Warszawa","Warszawa"]
["00-683","mazowieckie","mazo_Warszawa",null,"mazowieckie","Warszawa","Warszawa"]
["00-684","mazowieckie","mazo_Warszawa",null,"mazowieckie","Warszawa","Warszawa"]
["00-685","mazowieckie","mazo_Warszawa",null,"mazowieckie","Warszawa","Warszawa"]
["00-686","mazowieckie","mazo_Warszawa",null,"mazowieckie","Warszawa","Warszawa"]
["00-687","mazowieckie","mazo_Warszawa",null,"mazowieckie","Warszawa","Warszawa"]
["00-688","mazowieckie","mazo_Warszawa",null,"mazowieckie","Warszawa","Warszawa"]
["00-689","mazowieckie","mazo_Warszawa",null,"mazowieckie","Warszawa","Warszawa"]
["00-691","mazowieckie","mazo_Warszawa",null,"mazowieckie","Warszawa","Warszawa"]
["00-692","mazowieckie","mazo_Warszawa",null,"mazowieckie","Warszawa","Warszawa"]
["00-693","mazowieckie","mazo_Warszawa",null,"mazowieckie","Warszawa","Warszawa"]
["00-694","mazowieckie","mazo_Warszawa",null,"mazowieckie","Warszawa","Warszawa"]
["00-695","mazowieckie","mazo_Warszawa",null,"mazowieckie","Warszawa","Warszawa"]
["00-696","mazowieckie","mazo_Warszawa",null,"mazowieckie","Warszawa","Warszawa"]
["00-697","mazowieckie","mazo_Warszawa",null,"mazowieckie","Warszawa","Warszawa"]
["00-698","mazowieckie","mazo_Warszawa",null,"mazowieckie","Warszawa","Warszawa"]
["00-699","mazowieckie","mazo_Warszawa",null,"mazowieckie","Warszawa","Warszawa"]
["00-701","mazowieckie","mazo_Warszawa",null,"mazowieckie","Warszawa","Warszawa"]
["00-702","mazowieckie","mazo_Warszawa",null,"mazowieckie","Warszawa","Warszawa"]
["00-703","mazowieckie","mazo_Warszawa",null,"mazowieckie","Warszawa","Warszawa"]
["00-704","mazowieckie","mazo_Warszawa",null,"mazowieckie","Warszawa","Warszawa"]
["00-705","mazowieckie","mazo_Warszawa",null,"mazowieckie","Warszawa","Warszawa"]
["00-706","mazowieckie","mazo_Warszawa",null,"mazowieckie","Warszawa","Warszawa"]
["00-707","mazowieckie","mazo_Warszawa",null,"mazowieckie","Warszawa","Warszawa"]
["00-708","mazowieckie","mazo_Warszawa",null,"mazowieckie","Warszawa","Warszawa"]
["00-709","mazowieckie","mazo_Warszawa",null,"mazowieckie","Warszawa","Warszawa"]
["00-710","mazowieckie","mazo_Warszawa",null,"mazowieckie","Warszawa","Warszawa"]
["00-711","mazowieckie","mazo_Warszawa",null,"mazowieckie","Warszawa","Warszawa"]
["00-712","mazowieckie","mazo_Warszawa",null,"mazowieckie","Warszawa","Warszawa"]
["00-713","mazowieckie","mazo_Warszawa",null,"mazowieckie","Warszawa","Warszawa"]
["00-714","mazowieckie","mazo_Warszawa",null,"mazowieckie","Warszawa","Warszawa"]
["00-715","mazowieckie","mazo_Warszawa",null,"mazowieckie","Warszawa","Warszawa"]
["00-716","mazowieckie","mazo_Warszawa",null,"mazowieckie","Warszawa","Warszawa"]
["00-717","mazowieckie","mazo_Warszawa",null,"mazowieckie","Warszawa","Warszawa"]
["00-718","mazowieckie","mazo_Warszawa",null,"mazowieckie","Warszawa","Warszawa"]
["00-719","mazowieckie","mazo_Warszawa",null,"mazowieckie","Warszawa","Warszawa"]
["00-720","mazowieckie","mazo_Warszawa",null,"mazowieckie","Warszawa","Warszawa"]
["00-721","mazowieckie","mazo_Warszawa",null,"mazowieckie","Warszawa","Warszawa"]
["00-722","mazowieckie","mazo_Warszawa",null,"mazowieckie","Warszawa","Warszawa"]
["00-723","mazowieckie","mazo_Warszawa",null,"mazowieckie","Warszawa","Warszawa"]
["00-724","mazowieckie","mazo_Warszawa",null,"mazowieckie","Warszawa","Warszawa"]
["00-725","mazowieckie","mazo_Warszawa",null,"mazowieckie","Warszawa","Warszawa"]
["00-726","mazowieckie","mazo_Warszawa",null,"mazowieckie","Warszawa","Warszawa"]
["00-727","mazowieckie","mazo_Warszawa",null,"mazowieckie","Warszawa","Warszawa"]
["00-728","mazowieckie","mazo_Warszawa",null,"mazowieckie","Warszawa","Warszawa"]
["00-730","mazowieckie","mazo_Warszawa",null,"mazowieckie","Warszawa","Warszawa"]
["00-731","mazowieckie","mazo_Warszawa",null,"mazowieckie","Warszawa","Warszawa"]
["00-732","mazowieckie","mazo_Warszawa",null,"mazowieckie","Warszawa","Warszawa"]
["00-733","mazowieckie","mazo_Warszawa",null,"mazowieckie","Warszawa","Warszawa"]
["00-734","mazowieckie","mazo_Warszawa",null,"mazowieckie","Warszawa","Warszawa"]
["00-735","mazowieckie","mazo_Warszawa",null,"mazowieckie","Warszawa","Warszawa"]
["00-736","mazowieckie","mazo_Warszawa",null,"mazowieckie","Warszawa","Warszawa"]
["00-737","mazowieckie","mazo_Warszawa",null,"mazowieckie","Warszawa","Warszawa"]
["00-738","mazowieckie","mazo_Warszawa",null,"mazowieckie","Warszawa","Warszawa"]
["00-739","mazowieckie","mazo_Warszawa",null,"mazowieckie","Warszawa","Warszawa"]
["00-740","mazowieckie","mazo_Warszawa",null,"mazowieckie","Warszawa","Warszawa"]
["00-741","mazowieckie","mazo_Warszawa",null,"mazowieckie","Warszawa","Warszawa"]
["00-742","mazowieckie","mazo_Warszawa",null,"mazowieckie","Warszawa","Warszawa"]
["00-743","mazowieckie","mazo_Warszawa",null,"mazowieckie","Warszawa","Warszawa"]
["00-745","mazowieckie","mazo_Warszawa",null,"mazowieckie","Warszawa","Warszawa"]
["00-746","mazowieckie","mazo_Warszawa",null,"mazowieckie","Warszawa","Warszawa"]
["00-747","mazowieckie","mazo_Warszawa",null,"mazowieckie","Warszawa","Warszawa"]
["00-748","mazowieckie","mazo_Warszawa",null,"mazowieckie","Warszawa","Warszawa"]
["00-749","mazowieckie","mazo_Warszawa",null,"mazowieckie","Warszawa","Warszawa"]
["00-750","mazowieckie","mazo_Warszawa",null,"mazowieckie","Warszawa","Warszawa"]
["00-752","mazowieckie","mazo_Warszawa",null,"mazowieckie","Warszawa","Warszawa"]
["00-753","mazowieckie","mazo_Warszawa",null,"mazowieckie","Warszawa","Warszawa"]
["00-754","mazowieckie","mazo_Warszawa",null,"mazowieckie","Warszawa","Warszawa"]
["00-758","mazowieckie","mazo_Warszawa",null,"mazowieckie","Warszawa","Warszawa"]
["00-759","mazowieckie","mazo_Warszawa",null,"mazowieckie","Warszawa","Warszawa"]
["00-761","mazowieckie","mazo_Warszawa",null,"mazowieckie","Warszawa","Warszawa"]
["00-762","mazowieckie","mazo_Warszawa",null,"mazowieckie","Warszawa","Warszawa"]
["00-763","mazowieckie","mazo_Warszawa",null,"mazowieckie","Warszawa","Warszawa"]
["00-764","mazowieckie","mazo_Warszawa",null,"mazowieckie","Warszawa","Warszawa"]
["00-765","mazowieckie","mazo_Warszawa",null,"mazowieckie","Warszawa","Warszawa"]
["00-766","mazowieckie","mazo_Warszawa",null,"mazowieckie","Warszawa","Warszawa"]
["00-767","mazowieckie","mazo_Warszawa",null,"mazowieckie","Warszawa","Warszawa"]
["00-768","mazowieckie","mazo_Warszawa",null,"mazowieckie","Warszawa","Warszawa"]
["00-769","mazowieckie","mazo_Warszawa",null,"mazowieckie","Warszawa","Warszawa"]
["00-770","mazowieckie","mazo_Warszawa",null,"mazowieckie","Warszawa","Warszawa"]
["00-771","mazowieckie","mazo_Warszawa",null,"mazowieckie","Warszawa","Warszawa"]
["00-772","mazowieckie","mazo_Warszawa",null,"mazowieckie","Warszawa","Warszawa"]
["00-773","mazowieckie","mazo_Warszawa",null,"mazowieckie","Warszawa","Warszawa"]
["00-774","mazowieckie","mazo_Warszawa",null,"mazowieckie","Warszawa","Warszawa"]
["00-775","mazowieckie","mazo_Warszawa",null,"mazowieckie","Warszawa","Warszawa"]
["00-777","mazowieckie","mazo_Warszawa",null,"mazowieckie","Warszawa","Warszawa"]
["00-778","mazowieckie","mazo_Warszawa",null,"mazowieckie","Warszawa","Warszawa"]
["00-780","mazowieckie","mazo_Warszawa",null,"mazowieckie","Warszawa","Warszawa"]
["00-781","mazowieckie","mazo_Warszawa",null,"mazowieckie","Warszawa","Warszawa"]
["00-782","mazowieckie","mazo_Warszawa",null,"mazowieckie","Warszawa","Warszawa"]
["00-783","mazowieckie","mazo_Warszawa",null,"mazowieckie","Warszawa","Warszawa"]
["00-784","mazowieckie","mazo_Warszawa",null,"mazowieckie","Warszawa","Warszawa"]
["00-785","mazowieckie","mazo_Warszawa",null,"mazowieckie","Warszawa","Warszawa"]
["00-787","mazowieckie","mazo_Warszawa",null,"mazowieckie","Warszawa","Warszawa"]
["00-788","mazowieckie","mazo_Warszawa",null,"mazowieckie","Warszawa","Warszawa"]
["00-789","mazowieckie","mazo_Warszawa",null,"mazowieckie","Warszawa","Warszawa"]
["00-790","mazowieckie","mazo_Warszawa",null,"mazowieckie","Warszawa","Warszawa"]
["00-791","mazowieckie","mazo_Warszawa",null,"mazowieckie","Warszawa","Warszawa"]
["00-792","mazowieckie","mazo_Warszawa",null,"mazowieckie","Warszawa","Warszawa"]
["00-793","mazowieckie","mazo_Warszawa",null,"mazowieckie","Warszawa","Warszawa"]
["00-794","mazowieckie","mazo_Warszawa",null,"mazowieckie","Warszawa","Warszawa"]
["00-795","mazowieckie","mazo_Warszawa",null,"mazowieckie","Warszawa","Warszawa"]
["00-800","mazowieckie","mazo_Warszawa",null,"mazowieckie","Warszawa","Warszawa"]
["00-801","mazowieckie","mazo_Warszawa",null,"mazowieckie","Warszawa","Warszawa"]
["00-802","mazowieckie","mazo_Warszawa",null,"mazowieckie","Warszawa","Warszawa"]
["00-803","mazowieckie","mazo_Warszawa",null,"mazowieckie","Warszawa","Warszawa"]
["00-804","mazowieckie","mazo_Warszawa",null,"mazowieckie","Warszawa","Warszawa"]
["00-805","mazowieckie","mazo_Warszawa",null,"mazowieckie","Warszawa","Warszawa"]
["00-806","mazowieckie","mazo_Warszawa",null,"mazowieckie","Warszawa","Warszawa"]
["00-807","mazowieckie","mazo_Warszawa",null,"mazowieckie","Warszawa","Warszawa"]
["00-808","mazowieckie","mazo_Warszawa",null,"mazowieckie","Warszawa","Warszawa"]
["00-809","mazowieckie","mazo_Warszawa",null,"mazowieckie","Warszawa","Warszawa"]
["00-810","mazowieckie","mazo_Warszawa",null,"mazowieckie","Warszawa","Warszawa"]
["00-811","mazowieckie","mazo_Warszawa",null,"mazowieckie","Warszawa","Warszawa"]
["00-812","mazowieckie","mazo_Warszawa",null,"mazowieckie","Warszawa","Warszawa"]
["00-813","mazowieckie","mazo_Warszawa",null,"mazowieckie","Warszawa","Warszawa"]
["00-814","mazowieckie","mazo_Warszawa",null,"mazowieckie","Warszawa","Warszawa"]
["00-815","mazowieckie","mazo_Warszawa",null,"mazowieckie","Warszawa","Warszawa"]
["00-816","mazowieckie","mazo_Warszawa",null,"mazowieckie","Warszawa","Warszawa"]
["00-817","mazowieckie","mazo_Warszawa",null,"mazowieckie","Warszawa","Warszawa"]
["00-818","mazowieckie","mazo_Warszawa",null,"mazowieckie","Warszawa","Warszawa"]
["00-819","mazowieckie","mazo_Warszawa",null,"mazowieckie","Warszawa","Warszawa"]
["00-820","mazowieckie","mazo_Warszawa",null,"mazowieckie","Warszawa","Warszawa"]
["00-821","mazowieckie","mazo_Warszawa",null,"mazowieckie","Warszawa","Warszawa"]
["00-822","mazowieckie","mazo_Warszawa",null,"mazowieckie","Warszawa","Warszawa"]
["00-823","mazowieckie","mazo_Warszawa",null,"mazowieckie","Warszawa","Warszawa"]
["00-824","mazowieckie","mazo_Warszawa",null,"mazowieckie","Warszawa","Warszawa"]
["00-825","mazowieckie","mazo_Warszawa",null,"mazowieckie","Warszawa","Warszawa"]
["00-826","mazowieckie","mazo_Warszawa",null,"mazowieckie","Warszawa","Warszawa"]
["00-827","mazowieckie","mazo_Warszawa",null,"mazowieckie","Warszawa","Warszawa"]
["00-828","mazowieckie","mazo_Warszawa",null,"mazowieckie","Warszawa","Warszawa"]
["00-830","mazowieckie","mazo_Warszawa",null,"mazowieckie","Warszawa","Warszawa"]
["00-831","mazowieckie","mazo_Warszawa",null,"mazowieckie","Warszawa","Warszawa"]
["00-832","mazowieckie","mazo_Warszawa",null,"mazowieckie","Warszawa","Warszawa"]
["00-833","mazowieckie","mazo_Warszawa",null,"mazowieckie","Warszawa","Warszawa"]
["00-834","mazowieckie","mazo_Warszawa",null,"mazowieckie","Warszawa","Warszawa"]
["00-835","mazowieckie","mazo_Warszawa",null,"mazowieckie","Warszawa","Warszawa"]
["00-836","mazowieckie","mazo_Warszawa",null,"mazowieckie","Warszawa","Warszawa"]
["00-837","mazowieckie","mazo_Warszawa",null,"mazowieckie","Warszawa","Warszawa"]
["00-838","mazowieckie","mazo_Warszawa",null,"mazowieckie","Warszawa","Warszawa"]
["00-839","mazowieckie","mazo_Warszawa",null,"mazowieckie","Warszawa","Warszawa"]
["00-840","mazowieckie","mazo_Warszawa",null,"mazowieckie","Warszawa","Warszawa"]
["00-841","mazowieckie","mazo_Warszawa",null,"mazowieckie","Warszawa","Warszawa"]
["00-842","mazowieckie","mazo_Warszawa",null,"mazowieckie","Warszawa","Warszawa"]
["00-844","mazowieckie","mazo_Warszawa",null,"mazowieckie","Warszawa","Warszawa"]
["00-845","mazowieckie","mazo_Warszawa",null,"mazowieckie","Warszawa","Warszawa"]
["00-846","mazowieckie","mazo_Warszawa",null,"mazowieckie","Warszawa","Warszawa"]
["00-847","mazowieckie","mazo_Warszawa",null,"mazowieckie","Warszawa","Warszawa"]
["00-848","mazowieckie","mazo_Warszawa",null,"mazowieckie","Warszawa","Warszawa"]
["00-849","mazowieckie","mazo_Warszawa",null,"mazowieckie","Warszawa","Warszawa"]
["00-850","mazowieckie","mazo_Warszawa",null,"mazowieckie","Warszawa","Warszawa"]
["00-851","mazowieckie","mazo_Warszawa",null,"mazowieckie","Warszawa","Warszawa"]
["00-852","mazowieckie","mazo_Warszawa",null,"mazowieckie","Warszawa","Warszawa"]
["00-853","mazowieckie","mazo_Warszawa",null,"mazowieckie","Warszawa","Warszawa"]
["00-854","mazowieckie","mazo_Warszawa",null,"mazowieckie","Warszawa","Warszawa"]
["00-855","mazowieckie","mazo_Warszawa",null,"mazowieckie","Warszawa","Warszawa"]
["00-862","mazowieckie","mazo_Warszawa",null,"mazowieckie","Warszawa","Warszawa"]
["00-863","mazowieckie","mazo_Warszawa",null,"mazowieckie","Warszawa","Warszawa"]
["00-864","mazowieckie","mazo_Warszawa",null,"mazowieckie","Warszawa","Warszawa"]
["00-865","mazowieckie","mazo_Warszawa",null,"mazowieckie","Warszawa","Warszawa"]
["00-866","mazowieckie","mazo_Warszawa",null,"mazowieckie","Warszawa","Warszawa"]
["00-867","mazowieckie","mazo_Warszawa",null,"mazowieckie","Warszawa","Warszawa"]
["00-868","mazowieckie","mazo_Warszawa",null,"mazowieckie","Warszawa","Warszawa"]
["00-869","mazowieckie","mazo_Warszawa",null,"mazowieckie","Warszawa","Warszawa"]
["00-870","mazowieckie","mazo_Warszawa",null,"mazowieckie","Warszawa","Warszawa"]
["00-871","mazowieckie","mazo_Warszawa",null,"mazowieckie","Warszawa","Warszawa"]
["00-872","mazowieckie","mazo_Warszawa",null,"mazowieckie","Warszawa","Warszawa"]
["00-873","mazowieckie","mazo_Warszawa",null,"mazowieckie","Warszawa","Warszawa"]
["00-874","mazowieckie","mazo_Warszawa",null,"mazowieckie","Warszawa","Warszawa"]
["00-875","mazowieckie","mazo_Warszawa",null,"mazowieckie","Warszawa","Warszawa"]
["00-876","mazowieckie","mazo_Warszawa",null,"mazowieckie","Warszawa","Warszawa"]
["00-877","mazowieckie","mazo_Warszawa",null,"mazowieckie","Warszawa","Warszawa"]
["00-878","mazowieckie","mazo_Warszawa",null,"mazowieckie","Warszawa","Warszawa"]
["00-879","mazowieckie","mazo_Warszawa",null,"mazowieckie","Warszawa","Warszawa"]
["00-888","mazowieckie","mazo_Warszawa",null,"mazowieckie","Warszawa","Warszawa"]
["00-890","mazowieckie","mazo_Warszawa",null,"mazowieckie","Warszawa","Warszawa"]
["00-891","mazowieckie","mazo_Warszawa",null,"mazowieckie","Warszawa","Warszawa"]
["00-892","mazowieckie","mazo_Warszawa",null,"mazowieckie","Warszawa","Warszawa"]
["00-893","mazowieckie","mazo_Warszawa",null,"mazowieckie","Warszawa","Warszawa"]
["00-894","mazowieckie","mazo_Warszawa",null,"mazowieckie","Warszawa","Warszawa"]
["00-895","mazowieckie","mazo_Warszawa",null,"mazowieckie","Warszawa","Warszawa"]
["00-896","mazowieckie","mazo_Warszawa",null,"mazowieckie","Warszawa","Warszawa"]
["00-897","mazowieckie","mazo_Warszawa",null,"mazowieckie","Warszawa","Warszawa"]
["00-898","mazowieckie","mazo_Warszawa",null,"mazowieckie","Warszawa","Warszawa"]
["00-899","mazowieckie","mazo_Warszawa",null,"mazowieckie","Warszawa","Warszawa"]
["00-900","mazowieckie","mazo_Warszawa",null,"mazowieckie","Warszawa","Warszawa"]
["00-901","mazowieckie","mazo_Warszawa",null,"mazowieckie","Warszawa","Warszawa"]
["00-902","mazowieckie","mazo_Warszawa",null,"mazowieckie","Warszawa","Warszawa"]
["00-903","mazowieckie","mazo_Warszawa",null,"mazowieckie","Warszawa","Warszawa"]
["00-904","mazowieckie","mazo_Warszawa",null,"mazowieckie","Warszawa","Warszawa"]
["00-905","mazowieckie","mazo_Warszawa",null,"mazowieckie","Warszawa","Warszawa"]
["00-906","mazowieckie","mazo_Warszawa",null,"mazowieckie","Warszawa","Warszawa"]
["00-908","mazowieckie","mazo_Warszawa",null,"mazowieckie","Warszawa","Warszawa"]
["00-909","mazowieckie","mazo_Warszawa",null,"mazowieckie","Warszawa","Warszawa"]
["00-910","mazowieckie","mazo_Warszawa",null,"mazowieckie","Warszawa","Warszawa"]
["00-911","mazowieckie","mazo_Warszawa",null,"mazowieckie","Warszawa","Warszawa"]
["00-912","mazowieckie","mazo_Warszawa",null,"mazowieckie","Warszawa","Warszawa"]
["00-914","mazowieckie","mazo_Warszawa",null,"mazowieckie","Warszawa","Warszawa"]
["00-915","mazowieckie","mazo_Warszawa",null,"mazowieckie","Warszawa","Warszawa"]
["00-916","mazowieckie","mazo_Warszawa",null,"mazowieckie","Warszawa","Warszawa"]
["00-917","mazowieckie","mazo_Warszawa",null,"mazowieckie","Warszawa","Warszawa"]
["00-918","mazowieckie","mazo_Warszawa",null,"mazowieckie","Warszawa","Warszawa"]
["00-919","mazowieckie","mazo_Warszawa",null,"mazowieckie","Warszawa","Warszawa"]
["00-920","mazowieckie","mazo_Warszawa",null,"mazowieckie","Warszawa","Warszawa"]
["00-921","mazowieckie","mazo_Warszawa",null,"mazowieckie","Warszawa","Warszawa"]
["00-922","mazowieckie","mazo_Warszawa",null,"mazowieckie","Warszawa","Warszawa"]
["00-923","mazowieckie","mazo_Warszawa",null,"mazowieckie","Warszawa","Warszawa"]
["00-924","mazowieckie","mazo_Warszawa",null,"mazowieckie","Warszawa","Warszawa"]
["00-925","mazowieckie","mazo_Warszawa",null,"mazowieckie","Warszawa","Warszawa"]
["00-926","mazowieckie","mazo_Warszawa",null,"mazowieckie","Warszawa","Warszawa"]
["00-927","mazowieckie","mazo_Warszawa",null,"mazowieckie","Warszawa","Warszawa"]
["00-928","mazowieckie","mazo_Warszawa",null,"mazowieckie","Warszawa","Warszawa"]
["00-929","mazowieckie","mazo_Warszawa",null,"mazowieckie","Warszawa","Warszawa"]
["00-930","mazowieckie","mazo_Warszawa",null,"mazowieckie","Warszawa","Warszawa"]
["00-931","mazowieckie","mazo_Warszawa",null,"mazowieckie","Warszawa","Warszawa"]
["00-932","mazowieckie","mazo_Warszawa",null,"mazowieckie","Warszawa","Warszawa"]
["00-933","mazowieckie","mazo_Warszawa",null,"mazowieckie","Warszawa","Warszawa"]
["00-934","mazowieckie","mazo_Warszawa",null,"mazowieckie","Warszawa","Warszawa"]
["00-937","mazowieckie","mazo_Warszawa",null,"mazowieckie","Warszawa","Warszawa"]
["00-939","mazowieckie","mazo_Warszawa",null,"mazowieckie","Warszawa","Warszawa"]
["00-940","mazowieckie","mazo_Warszawa",null,"mazowieckie","Warszawa","Warszawa"]
["00-941","mazowieckie","mazo_Warszawa",null,"mazowieckie","Warszawa","Warszawa"]
["00-944","mazowieckie","mazo_Warszawa",null,"mazowieckie","Warszawa","Warszawa"]
["00-945","mazowieckie","mazo_Warszawa",null,"mazowieckie","Warszawa","Warszawa"]
["00-946","mazowieckie","mazo_Warszawa",null,"mazowieckie","Warszawa","Warszawa"]
["00-950","mazowieckie","mazo_Warszawa",null,"mazowieckie","Warszawa","Warszawa"]
["00-951","mazowieckie","mazo_Warszawa",null,"mazowieckie","Warszawa","Warszawa"]
["00-952","mazowieckie","mazo_Warszawa",null,"mazowieckie","Warszawa","Warszawa"]
["00-954","mazowieckie","mazo_Warszawa",null,"mazowieckie","Warszawa","Warszawa"]
["00-955","mazowieckie","mazo_Warszawa",null,"mazowieckie","Warszawa","Warszawa"]
["00-956","mazowieckie","mazo_Warszawa",null,"mazowieckie","Warszawa","Warszawa"]
["00-957","mazowieckie","mazo_Warszawa",null,"mazowieckie","Warszawa","Warszawa"]
["00-958","mazowieckie","mazo_Warszawa",null,"mazowieckie","Warszawa","Warszawa"]
["00-959","mazowieckie","mazo_Warszawa",null,"mazowieckie","Warszawa","Warszawa"]
["00-961","mazowieckie","mazo_Warszawa",null,"mazowieckie","Warszawa","Warszawa"]
["00-962","mazowieckie","mazo_Warszawa",null,"mazowieckie","Warszawa","Warszawa"]
["00-963","mazowieckie","mazo_Warszawa",null,"mazowieckie","Warszawa","Warszawa"]
["00-964","mazowieckie","mazo_Warszawa",null,"mazowieckie","Warszawa","Warszawa"]
["00-965","mazowieckie","mazo_Warszawa",null,"mazowieckie","Warszawa","Warszawa"]
["00-967","mazowieckie","mazo_Warszawa",null,"mazowieckie","Warszawa","Warszawa"]
["00-968","mazowieckie","mazo_Warszawa",null,"mazowieckie","Warszawa","Warszawa"]
["00-970","mazowieckie","mazo_Warszawa",null,"mazowieckie","Warszawa","Warszawa"]
["00-972","mazowieckie","mazo_Warszawa",null,"mazowieckie","Warszawa","Warszawa"]
["00-973","mazowieckie","mazo_Warszawa",null,"mazowieckie","Warszawa","Warszawa"]
["00-974","mazowieckie","mazo_Warszawa",null,"mazowieckie","Warszawa","Warszawa"]
["00-975","mazowieckie","mazo_Warszawa",null,"mazowieckie","Warszawa","Warszawa"]
["00-976","mazowieckie","mazo_Warszawa",null,"mazowieckie","Warszawa","Warszawa"]
["00-977","mazowieckie","mazo_Warszawa",null,"mazowieckie","Warszawa","Warszawa"]
["00-978","mazowieckie","mazo_Warszawa",null,"mazowieckie","Warszawa","Warszawa"]
["00-980","mazowieckie","mazo_Warszawa",null,"mazowieckie","Warszawa","Warszawa"]
["00-981","mazowieckie","mazo_Warszawa",null,"mazowieckie","Warszawa","Warszawa"]
["00-982","mazowieckie","mazo_Warszawa",null,"mazowieckie","Warszawa","Warszawa"]
["00-983","mazowieckie","mazo_Warszawa",null,"mazowieckie","Warszawa","Warszawa"]
["00-984","mazowieckie","mazo_Warszawa",null,"mazowieckie","Warszawa","Warszawa"]
["00-987","mazowieckie","mazo_Warszawa",null,"mazowieckie","Warszawa","Warszawa"]
["00-988","mazowieckie","mazo_Warszawa",null,"mazowieckie","Warszawa","Warszawa"]
["00-989","mazowieckie","mazo_Warszawa",null,"mazowieckie","Warszawa","Warszawa"]
["00-991","mazowieckie","mazo_Warszawa",null,"mazowieckie","Warszawa","Warszawa"]
["00-992","mazowieckie","mazo_Warszawa",null,"mazowieckie","Warszawa","Warszawa"]
["00-993","mazowieckie","mazo_Warszawa",null,"mazowieckie","Warszawa","Warszawa"]
["00-996","mazowieckie","mazo_Warszawa",null,"mazowieckie","Warszawa","Warszawa"]
["00-997","mazowieckie","mazo_Warszawa",null,"mazowieckie","Warszawa","Warszawa"]
["00-998","mazowieckie","mazo_Warszawa",null,"mazowieckie","Warszawa","Warszawa"]
["00-999","mazowieckie","mazo_Warszawa",null,"mazowieckie","Warszawa","Warszawa"]
["01-001","mazowieckie","mazo_Warszawa",null,"mazowieckie","Warszawa","Warszawa"]
["01-002","mazowieckie","mazo_Warszawa",null,"mazowieckie","Warszawa","Warszawa"]
["01-003","mazowieckie","mazo_Warszawa",null,"mazowieckie","Warszawa","Warszawa"]
["01-004","mazowieckie","mazo_Warszawa",null,"mazowieckie","Warszawa","Warszawa"]
["01-005","mazowieckie","mazo_Warszawa",null,"mazowieckie","Warszawa","Warszawa"]
["01-006","mazowieckie","mazo_Warszawa",null,"mazowieckie","Warszawa","Warszawa"]
["01-007","mazowieckie","mazo_Warszawa",null,"mazowieckie","Warszawa","Warszawa"]
["01-008","mazowieckie","mazo_Warszawa",null,"mazowieckie","Warszawa","Warszawa"]
["01-009","mazowieckie","mazo_Warszawa",null,"mazowieckie","Warszawa","Warszawa"]
["01-010","mazowieckie","mazo_Warszawa",null,"mazowieckie","Warszawa","Warszawa"]
["01-011","mazowieckie","mazo_Warszawa",null,"mazowieckie","Warszawa","Warszawa"]
["01-012","mazowieckie","mazo_Warszawa",null,"mazowieckie","Warszawa","Warszawa"]
["01-013","mazowieckie","mazo_Warszawa",null,"mazowieckie","Warszawa","Warszawa"]
["01-014","mazowieckie","mazo_Warszawa",null,"mazowieckie","Warszawa","Warszawa"]
["01-015","mazowieckie","mazo_Warszawa",null,"mazowieckie","Warszawa","Warszawa"]
["01-016","mazowieckie","mazo_Warszawa",null,"mazowieckie","Warszawa","Warszawa"]
["01-017","mazowieckie","mazo_Warszawa",null,"mazowieckie","Warszawa","Warszawa"]
["01-018","mazowieckie","mazo_Warszawa",null,"mazowieckie","Warszawa","Warszawa"]
["01-019","mazowieckie","mazo_Warszawa",null,"mazowieckie","Warszawa","Warszawa"]
["01-020","mazowieckie","mazo_Warszawa",null,"mazowieckie","Warszawa","Warszawa"]
["01-021","mazowieckie","mazo_Warszawa",null,"mazowieckie","Warszawa","Warszawa"]
["01-022","mazowieckie","mazo_Warszawa",null,"mazowieckie","Warszawa","Warszawa"]
["01-023","mazowieckie","mazo_Warszawa",null,"mazowieckie","Warszawa","Warszawa"]
["01-024","mazowieckie","mazo_Warszawa",null,"mazowieckie","Warszawa","Warszawa"]
["01-025","mazowieckie","mazo_Warszawa",null,"mazowieckie","Warszawa","Warszawa"]
["01-026","mazowieckie","mazo_Warszawa",null,"mazowieckie","Warszawa","Warszawa"]
["01-027","mazowieckie","mazo_Warszawa",null,"mazowieckie","Warszawa","Warszawa"]
["01-029","mazowieckie","mazo_Warszawa",null,"mazowieckie","Warszawa","Warszawa"]
["01-030","mazowieckie","mazo_Warszawa",null,"mazowieckie","Warszawa","Warszawa"]
["01-031","mazowieckie","mazo_Warszawa",null,"mazowieckie","Warszawa","Warszawa"]
["01-032","mazowieckie","mazo_Warszawa",null,"mazowieckie","Warszawa","Warszawa"]
["01-033","mazowieckie","mazo_Warszawa",null,"mazowieckie","Warszawa","Warszawa"]
["01-034","mazowieckie","mazo_Warszawa",null,"mazowieckie","Warszawa","Warszawa"]
["01-036","mazowieckie","mazo_Warszawa",null,"mazowieckie","Warszawa","Warszawa"]
["01-037","mazowieckie","mazo_Warszawa",null,"mazowieckie","Warszawa","Warszawa"]
["01-038","mazowieckie","mazo_Warszawa",null,"mazowieckie","Warszawa","Warszawa"]
["01-039","mazowieckie","mazo_Warszawa",null,"mazowieckie","Warszawa","Warszawa"]
["01-040","mazowieckie","mazo_Warszawa",null,"mazowieckie","Warszawa","Warszawa"]
["01-041","mazowieckie","mazo_Warszawa",null,"mazowieckie","Warszawa","Warszawa"]
["01-042","mazowieckie","mazo_Warszawa",null,"mazowieckie","Warszawa","Warszawa"]
["01-043","mazowieckie","mazo_Warszawa",null,"mazowieckie","Warszawa","Warszawa"]
["01-044","mazowieckie","mazo_Warszawa",null,"mazowieckie","Warszawa","Warszawa"]
["01-045","mazowieckie","mazo_Warszawa",null,"mazowieckie","Warszawa","Warszawa"]
["01-046","mazowieckie","mazo_Warszawa",null,"mazowieckie","Warszawa","Warszawa"]
["01-047","mazowieckie","mazo_Warszawa",null,"mazowieckie","Warszawa","Warszawa"]
["01-048","mazowieckie","mazo_Warszawa",null,"mazowieckie","Warszawa","Warszawa"]
["01-049","mazowieckie","mazo_Warszawa",null,"mazowieckie","Warszawa","Warszawa"]
["01-050","mazowieckie","mazo_Warszawa",null,"mazowieckie","Warszawa","Warszawa"]
["01-051","mazowieckie","mazo_Warszawa",null,"mazowieckie","Warszawa","Warszawa"]
["01-052","mazowieckie","mazo_Warszawa",null,"mazowieckie","Warszawa","Warszawa"]
["01-053","mazowieckie","mazo_Warszawa",null,"mazowieckie","Warszawa","Warszawa"]
["01-054","mazowieckie","mazo_Warszawa",null,"mazowieckie","Warszawa","Warszawa"]
["01-056","mazowieckie","mazo_Warszawa",null,"mazowieckie","Warszawa","Warszawa"]
["01-057","mazowieckie","mazo_Warszawa",null,"mazowieckie","Warszawa","Warszawa"]
["01-058","mazowieckie","mazo_Warszawa",null,"mazowieckie","Warszawa","Warszawa"]
["01-059","mazowieckie","mazo_Warszawa",null,"mazowieckie","Warszawa","Warszawa"]
["01-060","mazowieckie","mazo_Warszawa",null,"mazowieckie","Warszawa","Warszawa"]
["01-061","mazowieckie","mazo_Warszawa",null,"mazowieckie","Warszawa","Warszawa"]
["01-063","mazowieckie","mazo_Warszawa",null,"mazowieckie","Warszawa","Warszawa"]
["01-064","mazowieckie","mazo_Warszawa",null,"mazowieckie","Warszawa","Warszawa"]
["01-065","mazowieckie","mazo_Warszawa",null,"mazowieckie","Warszawa","Warszawa"]
["01-066","mazowieckie","mazo_Warszawa",null,"mazowieckie","Warszawa","Warszawa"]
["01-067","mazowieckie","mazo_Warszawa",null,"mazowieckie","Warszawa","Warszawa"]
["01-068","mazowieckie","mazo_Warszawa",null,"mazowieckie","Warszawa","Warszawa"]
["01-100","mazowieckie","mazo_Warszawa",null,"mazowieckie","Warszawa","Warszawa"]
["01-101","mazowieckie","mazo_Warszawa",null,"mazowieckie","Warszawa","Warszawa"]
["01-102","mazowieckie","mazo_Warszawa",null,"mazowieckie","Warszawa","Warszawa"]
["01-103","mazowieckie","mazo_Warszawa",null,"mazowieckie","Warszawa","Warszawa"]
["01-104","mazowieckie","mazo_Warszawa",null,"mazowieckie","Warszawa","Warszawa"]
["01-105","mazowieckie","mazo_Warszawa",null,"mazowieckie","Warszawa","Warszawa"]
["01-106","mazowieckie","mazo_Warszawa",null,"mazowieckie","Warszawa","Warszawa"]
["01-107","mazowieckie","mazo_Warszawa",null,"mazowieckie","Warszawa","Warszawa"]
["01-108","mazowieckie","mazo_Warszawa",null,"mazowieckie","Warszawa","Warszawa"]
["01-109","mazowieckie","mazo_Warszawa",null,"mazowieckie","Warszawa","Warszawa"]
["01-110","mazowieckie","mazo_Warszawa",null,"mazowieckie","Warszawa","Warszawa"]
["01-111","mazowieckie","mazo_Warszawa",null,"mazowieckie","Warszawa","Warszawa"]
["01-112","mazowieckie","mazo_Warszawa",null,"mazowieckie","Warszawa","Warszawa"]
["01-113","mazowieckie","mazo_Warszawa",null,"mazowieckie","Warszawa","Warszawa"]
["01-114","mazowieckie","mazo_Warszawa",null,"mazowieckie","Warszawa","Warszawa"]
["01-115","mazowieckie","mazo_Warszawa",null,"mazowieckie","Warszawa","Warszawa"]
["01-116","mazowieckie","mazo_Warszawa",null,"mazowieckie","Warszawa","Warszawa"]
["01-117","mazowieckie","mazo_Warszawa",null,"mazowieckie","Warszawa","Warszawa"]
["01-118","mazowieckie","mazo_Warszawa",null,"mazowieckie","Warszawa","Warszawa"]
["01-119","mazowieckie","mazo_Warszawa",null,"mazowieckie","Warszawa","Warszawa"]
["01-120","mazowieckie","mazo_Warszawa",null,"mazowieckie","Warszawa","Warszawa"]
["01-121","mazowieckie","mazo_Warszawa",null,"mazowieckie","Warszawa","Warszawa"]
["01-122","mazowieckie","mazo_Warszawa",null,"mazowieckie","Warszawa","Warszawa"]
["01-123","mazowieckie","mazo_Warszawa",null,"mazowieckie","Warszawa","Warszawa"]
["01-124","mazowieckie","mazo_Warszawa",null,"mazowieckie","Warszawa","Warszawa"]
["01-125","mazowieckie","mazo_Warszawa",null,"mazowieckie","Warszawa","Warszawa"]
["01-126","mazowieckie","mazo_Warszawa",null,"mazowieckie","Warszawa","Warszawa"]
["01-127","mazowieckie","mazo_Warszawa",null,"mazowieckie","Warszawa","Warszawa"]
["01-128","mazowieckie","mazo_Warszawa",null,"mazowieckie","Warszawa","Warszawa"]
["01-129","mazowieckie","mazo_Warszawa",null,"mazowieckie","Warszawa","Warszawa"]
["01-130","mazowieckie","mazo_Warszawa",null,"mazowieckie","Warszawa","Warszawa"]
["01-131","mazowieckie","mazo_Warszawa",null,"mazowieckie","Warszawa","Warszawa"]
["01-132","mazowieckie","mazo_Warszawa",null,"mazowieckie","Warszawa","Warszawa"]
["01-133","mazowieckie","mazo_Warszawa",null,"mazowieckie","Warszawa","Warszawa"]
["01-134","mazowieckie","mazo_Warszawa",null,"mazowieckie","Warszawa","Warszawa"]
["01-135","mazowieckie","mazo_Warszawa",null,"mazowieckie","Warszawa","Warszawa"]
["01-136","mazowieckie","mazo_Warszawa",null,"mazowieckie","Warszawa","Warszawa"]
["01-137","mazowieckie","mazo_Warszawa",null,"mazowieckie","Warszawa","Warszawa"]
["01-138","mazowieckie","mazo_Warszawa",null,"mazowieckie","Warszawa","Warszawa"]
["01-139","mazowieckie","mazo_Warszawa",null,"mazowieckie","Warszawa","Warszawa"]
["01-140","mazowieckie","mazo_Warszawa",null,"mazowieckie","Warszawa","Warszawa"]
["01-141","mazowieckie","mazo_Warszawa",null,"mazowieckie","Warszawa","Warszawa"]
["01-142","mazowieckie","mazo_Warszawa",null,"mazowieckie","Warszawa","Warszawa"]
["01-143","mazowieckie","mazo_Warszawa",null,"mazowieckie","Warszawa","Warszawa"]
["01-144","mazowieckie","mazo_Warszawa",null,"mazowieckie","Warszawa","Warszawa"]
["01-145","mazowieckie","mazo_Warszawa",null,"mazowieckie","Warszawa","Warszawa"]
["01-146","mazowieckie","mazo_Warszawa",null,"mazowieckie","Warszawa","Warszawa"]
["01-147","mazowieckie","mazo_Warszawa",null,"mazowieckie","Warszawa","Warszawa"]
["01-148","mazowieckie","mazo_Warszawa",null,"mazowieckie","Warszawa","Warszawa"]
["01-149","mazowieckie","mazo_Warszawa",null,"mazowieckie","Warszawa","Warszawa"]
["01-150","mazowieckie","mazo_Warszawa",null,"mazowieckie","Warszawa","Warszawa"]
["01-151","mazowieckie","mazo_Warszawa",null,"mazowieckie","Warszawa","Warszawa"]
["01-152","mazowieckie","mazo_Warszawa",null,"mazowieckie","Warszawa","Warszawa"]
["01-153","mazowieckie","mazo_Warszawa",null,"mazowieckie","Warszawa","Warszawa"]
["01-154","mazowieckie","mazo_Warszawa",null,"mazowieckie","Warszawa","Warszawa"]
["01-155","mazowieckie","mazo_Warszawa",null,"mazowieckie","Warszawa","Warszawa"]
["01-156","mazowieckie","mazo_Warszawa",null,"mazowieckie","Warszawa","Warszawa"]
["01-157","mazowieckie","mazo_Warszawa",null,"mazowieckie","Warszawa","Warszawa"]
["01-158","mazowieckie","mazo_Warszawa",null,"mazowieckie","Warszawa","Warszawa"]
["01-159","mazowieckie","mazo_Warszawa",null,"mazowieckie","Warszawa","Warszawa"]
["01-160","mazowieckie","mazo_Warszawa",null,"mazowieckie","Warszawa","Warszawa"]
["01-161","mazowieckie","mazo_Warszawa",null,"mazowieckie","Warszawa","Warszawa"]
["01-162","mazowieckie","mazo_Warszawa",null,"mazowieckie","Warszawa","Warszawa"]
["01-163","mazowieckie","mazo_Warszawa",null,"mazowieckie","Warszawa","Warszawa"]
["01-164","mazowieckie","mazo_Warszawa",null,"mazowieckie","Warszawa","Warszawa"]
["01-165","mazowieckie","mazo_Warszawa",null,"mazowieckie","Warszawa","Warszawa"]
["01-166","mazowieckie","mazo_Warszawa",null,"mazowieckie","Warszawa","Warszawa"]
["01-167","mazowieckie","mazo_Warszawa",null,"mazowieckie","Warszawa","Warszawa"]
["01-168","mazowieckie","mazo_Warszawa",null,"mazowieckie","Warszawa","Warszawa"]
["01-169","mazowieckie","mazo_Warszawa",null,"mazowieckie","Warszawa","Warszawa"]
["01-170","mazowieckie","mazo_Warszawa",null,"mazowieckie","Warszawa","Warszawa"]
["01-171","mazowieckie","mazo_Warszawa",null,"mazowieckie","Warszawa","Warszawa"]
["01-172","mazowieckie","mazo_Warszawa",null,"mazowieckie","Warszawa","Warszawa"]
["01-173","mazowieckie","mazo_Warszawa",null,"mazowieckie","Warszawa","Warszawa"]
["01-174","mazowieckie","mazo_Warszawa",null,"mazowieckie","Warszawa","Warszawa"]
["01-175","mazowieckie","mazo_Warszawa",null,"mazowieckie","Warszawa","Warszawa"]
["01-176","mazowieckie","mazo_Warszawa",null,"mazowieckie","Warszawa","Warszawa"]
["01-177","mazowieckie","mazo_Warszawa",null,"mazowieckie","Warszawa","Warszawa"]
["01-178","mazowieckie","mazo_Warszawa",null,"mazowieckie","Warszawa","Warszawa"]
["01-179","mazowieckie","mazo_Warszawa",null,"mazowieckie","Warszawa","Warszawa"]
["01-180","mazowieckie","mazo_Warszawa",null,"mazowieckie","Warszawa","Warszawa"]
["01-181","mazowieckie","mazo_Warszawa",null,"mazowieckie","Warszawa","Warszawa"]
["01-182","mazowieckie","mazo_Warszawa",null,"mazowieckie","Warszawa","Warszawa"]
["01-183","mazowieckie","mazo_Warszawa",null,"mazowieckie","Warszawa","Warszawa"]
["01-184","mazowieckie","mazo_Warszawa",null,"mazowieckie","Warszawa","Warszawa"]
["01-186","mazowieckie","mazo_Warszawa",null,"mazowieckie","Warszawa","Warszawa"]
["01-187","mazowieckie","mazo_Warszawa",null,"mazowieckie","Warszawa","Warszawa"]
["01-188","mazowieckie","mazo_Warszawa",null,"mazowieckie","Warszawa","Warszawa"]
["01-189","mazowieckie","mazo_Warszawa",null,"mazowieckie","Warszawa","Warszawa"]
["01-190","mazowieckie","mazo_Warszawa",null,"mazowieckie","Warszawa","Warszawa"]
["01-191","mazowieckie","mazo_Warszawa",null,"mazowieckie","Warszawa","Warszawa"]
["01-192","mazowieckie","mazo_Warszawa",null,"mazowieckie","Warszawa","Warszawa"]
["01-193","mazowieckie","mazo_Warszawa",null,"mazowieckie","Warszawa","Warszawa"]
["01-194","mazowieckie","mazo_Warszawa",null,"mazowieckie","Warszawa","Warszawa"]
["01-195","mazowieckie","mazo_Warszawa",null,"mazowieckie","Warszawa","Warszawa"]
["01-196","mazowieckie","mazo_Warszawa",null,"mazowieckie","Warszawa","Warszawa"]
["01-197","mazowieckie","mazo_Warszawa",null,"mazowieckie","Warszawa","Warszawa"]
["01-198","mazowieckie","mazo_Warszawa",null,"mazowieckie","Warszawa","Warszawa"]
["01-199","mazowieckie","mazo_Warszawa",null,"mazowieckie","Warszawa","Warszawa"]
["01-201","mazowieckie","mazo_Warszawa",null,"mazowieckie","Warszawa","Warszawa"]
["01-202","mazowieckie","mazo_Warszawa",null,"mazowieckie","Warszawa","Warszawa"]
["01-203","mazowieckie","mazo_Warszawa",null,"mazowieckie","Warszawa","Warszawa"]
["01-204","mazowieckie","mazo_Warszawa",null,"mazowieckie","Warszawa","Warszawa"]
["01-205","mazowieckie","mazo_Warszawa",null,"mazowieckie","Warszawa","Warszawa"]
["01-206","mazowieckie","mazo_Warszawa",null,"mazowieckie","Warszawa","Warszawa"]
["01-207","mazowieckie","mazo_Warszawa",null,"mazowieckie","Warszawa","Warszawa"]
["01-208","mazowieckie","mazo_Warszawa",null,"mazowieckie","Warszawa","Warszawa"]
["01-209","mazowieckie","mazo_Warszawa",null,"mazowieckie","Warszawa","Warszawa"]
["01-210","mazowieckie","mazo_Warszawa",null,"mazowieckie","Warszawa","Warszawa"]
["01-211","mazowieckie","mazo_Warszawa",null,"mazowieckie","Warszawa","Warszawa"]
["01-212","mazowieckie","mazo_Warszawa",null,"mazowieckie","Warszawa","Warszawa"]
["01-213","mazowieckie","mazo_Warszawa",null,"mazowieckie","Warszawa","Warszawa"]
["01-214","mazowieckie","mazo_Warszawa",null,"mazowieckie","Warszawa","Warszawa"]
["01-216","mazowieckie","mazo_Warszawa",null,"mazowieckie","Warszawa","Warszawa"]
["01-217","mazowieckie","mazo_Warszawa",null,"mazowieckie","Warszawa","Warszawa"]
["01-218","mazowieckie","mazo_Warszawa",null,"mazowieckie","Warszawa","Warszawa"]
["01-219","mazowieckie","mazo_Warszawa",null,"mazowieckie","Warszawa","Warszawa"]
["01-220","mazowieckie","mazo_Warszawa",null,"mazowieckie","Warszawa","Warszawa"]
["01-221","mazowieckie","mazo_Warszawa",null,"mazowieckie","Warszawa","Warszawa"]
["01-222","mazowieckie","mazo_Warszawa",null,"mazowieckie","Warszawa","Warszawa"]
["01-223","mazowieckie","mazo_Warszawa",null,"mazowieckie","Warszawa","Warszawa"]
["01-224","mazowieckie","mazo_Warszawa",null,"mazowieckie","Warszawa","Warszawa"]
["01-225","mazowieckie","mazo_Warszawa",null,"mazowieckie","Warszawa","Warszawa"]
["01-226","mazowieckie","mazo_Warszawa",null,"mazowieckie","Warszawa","Warszawa"]
["01-227","mazowieckie","mazo_Warszawa",null,"mazowieckie","Warszawa","Warszawa"]
["01-228","mazowieckie","mazo_Warszawa",null,"mazowieckie","Warszawa","Warszawa"]
["01-229","mazowieckie","mazo_Warszawa",null,"mazowieckie","Warszawa","Warszawa"]
["01-230","mazowieckie","mazo_Warszawa",null,"mazowieckie","Warszawa","Warszawa"]
["01-231","mazowieckie","mazo_Warszawa",null,"mazowieckie","Warszawa","Warszawa"]
["01-232","mazowieckie","mazo_Warszawa",null,"mazowieckie","Warszawa","Warszawa"]
["01-233","mazowieckie","mazo_Warszawa",null,"mazowieckie","Warszawa","Warszawa"]
["01-234","mazowieckie","mazo_Warszawa",null,"mazowieckie","Warszawa","Warszawa"]
["01-235","mazowieckie","mazo_Warszawa",null,"mazowieckie","Warszawa","Warszawa"]
["01-236","mazowieckie","mazo_Warszawa",null,"mazowieckie","Warszawa","Warszawa"]
["01-237","mazowieckie","mazo_Warszawa",null,"mazowieckie","Warszawa","Warszawa"]
["01-238","mazowieckie","mazo_Warszawa",null,"mazowieckie","Warszawa","Warszawa"]
["01-239","mazowieckie","mazo_Warszawa",null,"mazowieckie","Warszawa","Warszawa"]
["01-240","mazowieckie","mazo_Warszawa",null,"mazowieckie","Warszawa","Warszawa"]
["01-241","mazowieckie","mazo_Warszawa",null,"mazowieckie","Warszawa","Warszawa"]
["01-242","mazowieckie","mazo_Warszawa",null,"mazowieckie","Warszawa","Warszawa"]
["01-243","mazowieckie","mazo_Warszawa",null,"mazowieckie","Warszawa","Warszawa"]
["01-244","mazowieckie","mazo_Warszawa",null,"mazowieckie","Warszawa","Warszawa"]
["01-245","mazowieckie","mazo_Warszawa",null,"mazowieckie","Warszawa","Warszawa"]
["01-246","mazowieckie","mazo_Warszawa",null,"mazowieckie","Warszawa","Warszawa"]
["01-247","mazowieckie","mazo_Warszawa",null,"mazowieckie","Warszawa","Warszawa"]
["01-248","mazowieckie","mazo_Warszawa",null,"mazowieckie","Warszawa","Warszawa"]
["01-249","mazowieckie","mazo_Warszawa",null,"mazowieckie","Warszawa","Warszawa"]
["01-250","mazowieckie","mazo_Warszawa",null,"mazowieckie","Warszawa","Warszawa"]
["01-251","mazowieckie","mazo_Warszawa",null,"mazowieckie","Warszawa","Warszawa"]
["01-252","mazowieckie","mazo_Warszawa",null,"mazowieckie","Warszawa","Warszawa"]
["01-253","mazowieckie","mazo_Warszawa",null,"mazowieckie","Warszawa","Warszawa"]
["01-254","mazowieckie","mazo_Warszawa",null,"mazowieckie","Warszawa","Warszawa"]
["01-255","mazowieckie","mazo_Warszawa",null,"mazowieckie","Warszawa","Warszawa"]
["01-258","mazowieckie","mazo_Warszawa",null,"mazowieckie","Warszawa","Warszawa"]
["01-259","mazowieckie","mazo_Warszawa",null,"mazowieckie","Warszawa","Warszawa"]
["01-260","mazowieckie","mazo_Warszawa",null,"mazowieckie","Warszawa","Warszawa"]
["01-261","mazowieckie","mazo_Warszawa",null,"mazowieckie","Warszawa","Warszawa"]
["01-262","mazowieckie","mazo_Warszawa",null,"mazowieckie","Warszawa","Warszawa"]
["01-263","mazowieckie","mazo_Warszawa",null,"mazowieckie","Warszawa","Warszawa"]
["01-264","mazowieckie","mazo_Warszawa",null,"mazowieckie","Warszawa","Warszawa"]
["01-265","mazowieckie","mazo_Warszawa",null,"mazowieckie","Warszawa","Warszawa"]
["01-266","mazowieckie","mazo_Warszawa",null,"mazowieckie","Warszawa","Warszawa"]
["01-267","mazowieckie","mazo_Warszawa",null,"mazowieckie","Warszawa","Warszawa"]
["01-301","mazowieckie","mazo_Warszawa",null,"mazowieckie","Warszawa","Warszawa"]
["01-302","mazowieckie","mazo_Warszawa",null,"mazowieckie","Warszawa","Warszawa"]
["01-303","mazowieckie","mazo_Warszawa",null,"mazowieckie","Warszawa","Warszawa"]
["01-304","mazowieckie","mazo_Warszawa",null,"mazowieckie","Warszawa","Warszawa"]
["01-305","mazowieckie","mazo_Warszawa",null,"mazowieckie","Warszawa","Warszawa"]
["01-306","mazowieckie","mazo_Warszawa",null,"mazowieckie","Warszawa","Warszawa"]
["01-307","mazowieckie","mazo_Warszawa",null,"mazowieckie","Warszawa","Warszawa"]
["01-308","mazowieckie","mazo_Warszawa",null,"mazowieckie","Warszawa","Warszawa"]
["01-309","mazowieckie","mazo_Warszawa",null,"mazowieckie","Warszawa","Warszawa"]
["01-310","mazowieckie","mazo_Warszawa",null,"mazowieckie","Warszawa","Warszawa"]
["01-312","mazowieckie","mazo_Warszawa",null,"mazowieckie","Warszawa","Warszawa"]
["01-313","mazowieckie","mazo_Warszawa",null,"mazowieckie","Warszawa","Warszawa"]
["01-314","mazowieckie","mazo_Warszawa",null,"mazowieckie","Warszawa","Warszawa"]
["01-315","mazowieckie","mazo_Warszawa",null,"mazowieckie","Warszawa","Warszawa"]
["01-317","mazowieckie","mazo_Warszawa",null,"mazowieckie","Warszawa","Warszawa"]
["01-318","mazowieckie","mazo_Warszawa",null,"mazowieckie","Warszawa","Warszawa"]
["01-319","mazowieckie","mazo_Warszawa",null,"mazowieckie","Warszawa","Warszawa"]
["01-320","mazowieckie","mazo_Warszawa",null,"mazowieckie","Warszawa","Warszawa"]
["01-321","mazowieckie","mazo_Warszawa",null,"mazowieckie","Warszawa","Warszawa"]
["01-323","mazowieckie","mazo_Warszawa",null,"mazowieckie","Warszawa","Warszawa"]
["01-327","mazowieckie","mazo_Warszawa",null,"mazowieckie","Warszawa","Warszawa"]
["01-328","mazowieckie","mazo_Warszawa",null,"mazowieckie","Warszawa","Warszawa"]
["01-329","mazowieckie","mazo_Warszawa",null,"mazowieckie","Warszawa","Warszawa"]
["01-330","mazowieckie","mazo_Warszawa",null,"mazowieckie","Warszawa","Warszawa"]
["01-336","mazowieckie","mazo_Warszawa",null,"mazowieckie","Warszawa","Warszawa"]
["01-337","mazowieckie","mazo_Warszawa",null,"mazowieckie","Warszawa","Warszawa"]
["01-338","mazowieckie","mazo_Warszawa",null,"mazowieckie","Warszawa","Warszawa"]
["01-339","mazowieckie","mazo_Warszawa",null,"mazowieckie","Warszawa","Warszawa"]
["01-340","mazowieckie","mazo_Warszawa",null,"mazowieckie","Warszawa","Warszawa"]
["01-341","mazowieckie","mazo_Warszawa",null,"mazowieckie","Warszawa","Warszawa"]
["01-342","mazowieckie","mazo_Warszawa",null,"mazowieckie","Warszawa","Warszawa"]
["01-343","mazowieckie","mazo_Warszawa",null,"mazowieckie","Warszawa","Warszawa"]
["01-345","mazowieckie","mazo_Warszawa",null,"mazowieckie","Warszawa","Warszawa"]
["01-346","mazowieckie","mazo_Warszawa",null,"mazowieckie","Warszawa","Warszawa"]
["01-347","mazowieckie","mazo_Warszawa",null,"mazowieckie","Warszawa","Warszawa"]
["01-348","mazowieckie","mazo_Warszawa",null,"mazowieckie","Warszawa","Warszawa"]
["01-349","mazowieckie","mazo_Warszawa",null,"mazowieckie","Warszawa","Warszawa"]
["01-350","mazowieckie","mazo_Warszawa",null,"mazowieckie","Warszawa","Warszawa"]
["01-351","mazowieckie","mazo_Warszawa",null,"mazowieckie","Warszawa","Warszawa"]
["01-352","mazowieckie","mazo_Warszawa",null,"mazowieckie","Warszawa","Warszawa"]
["01-353","mazowieckie","mazo_Warszawa",null,"mazowieckie","Warszawa","Warszawa"]
["01-354","mazowieckie","mazo_Warszawa",null,"mazowieckie","Warszawa","Warszawa"]
["01-355","mazowieckie","mazo_Warszawa",null,"mazowieckie","Warszawa","Warszawa"]
["01-356","mazowieckie","mazo_Warszawa",null,"mazowieckie","Warszawa","Warszawa"]
["01-357","mazowieckie","mazo_Warszawa",null,"mazowieckie","Warszawa","Warszawa"]
["01-358","mazowieckie","mazo_Warszawa",null,"mazowieckie","Warszawa","Warszawa"]
["01-359","mazowieckie","mazo_Warszawa",null,"mazowieckie","Warszawa","Warszawa"]
["01-360","mazowieckie","mazo_Warszawa",null,"mazowieckie","Warszawa","Warszawa"]
["01-361","mazowieckie","mazo_Warszawa",null,"mazowieckie","Warszawa","Warszawa"]
["01-362","mazowieckie","mazo_Warszawa",null,"mazowieckie","Warszawa","Warszawa"]
["01-364","mazowieckie","mazo_Warszawa",null,"mazowieckie","Warszawa","Warszawa"]
["01-365","mazowieckie","mazo_Warszawa",null,"mazowieckie","Warszawa","Warszawa"]
["01-366","mazowieckie","mazo_Warszawa",null,"mazowieckie","Warszawa","Warszawa"]
["01-367","mazowieckie","mazo_Warszawa",null,"mazowieckie","Warszawa","Warszawa"]
["01-368","mazowieckie","mazo_Warszawa",null,"mazowieckie","Warszawa","Warszawa"]
["01-373","mazowieckie","mazo_Warszawa",null,"mazowieckie","Warszawa","Warszawa"]
["01-374","mazowieckie","mazo_Warszawa",null,"mazowieckie","Warszawa","Warszawa"]
["01-376","mazowieckie","mazo_Warszawa",null,"mazowieckie","Warszawa","Warszawa"]
["01-377","mazowieckie","mazo_Warszawa",null,"mazowieckie","Warszawa","Warszawa"]
["01-378","mazowieckie","mazo_Warszawa",null,"mazowieckie","Warszawa","Warszawa"]
["01-380","mazowieckie","mazo_Warszawa",null,"mazowieckie","Warszawa","Warszawa"]
["01-381","mazowieckie","mazo_Warszawa",null,"mazowieckie","Warszawa","Warszawa"]
["01-382","mazowieckie","mazo_Warszawa",null,"mazowieckie","Warszawa","Warszawa"]
["01-383","mazowieckie","mazo_Warszawa",null,"mazowieckie","Warszawa","Warszawa"]
["01-384","mazowieckie","mazo_Warszawa",null,"mazowieckie","Warszawa","Warszawa"]
["01-385","mazowieckie","mazo_Warszawa",null,"mazowieckie","Warszawa","Warszawa"]
["01-386","mazowieckie","mazo_Warszawa",null,"mazowieckie","Warszawa","Warszawa"]
["01-387","mazowieckie","mazo_Warszawa",null,"mazowieckie","Warszawa","Warszawa"]
["01-388","mazowieckie","mazo_Warszawa",null,"mazowieckie","Warszawa","Warszawa"]
["01-389","mazowieckie","mazo_Warszawa",null,"mazowieckie","Warszawa","Warszawa"]
["01-390","mazowieckie","mazo_Warszawa",null,"mazowieckie","Warszawa","Warszawa"]
["01-391","mazowieckie","mazo_Warszawa",null,"mazowieckie","Warszawa","Warszawa"]
["01-392","mazowieckie","mazo_Warszawa",null,"mazowieckie","Warszawa","Warszawa"]
["01-393","mazowieckie","mazo_Warszawa",null,"mazowieckie","Warszawa","Warszawa"]
["01-401","mazowieckie","mazo_Warszawa",null,"mazowieckie","Warszawa","Warszawa"]
["01-402","mazowieckie","mazo_Warszawa",null,"mazowieckie","Warszawa","Warszawa"]
["01-405","mazowieckie","mazo_Warszawa",null,"mazowieckie","Warszawa","Warszawa"]
["01-406","mazowieckie","mazo_Warszawa",null,"mazowieckie","Warszawa","Warszawa"]
["01-407","mazowieckie","mazo_Warszawa",null,"mazowieckie","Warszawa","Warszawa"]
["01-408","mazowieckie","mazo_Warszawa",null,"mazowieckie","Warszawa","Warszawa"]
["01-409","mazowieckie","mazo_Warszawa",null,"mazowieckie","Warszawa","Warszawa"]
["01-410","mazowieckie","mazo_Warszawa",null,"mazowieckie","Warszawa","Warszawa"]
["01-411","mazowieckie","mazo_Warszawa",null,"mazowieckie","Warszawa","Warszawa"]
["01-413","mazowieckie","mazo_Warszawa",null,"mazowieckie","Warszawa","Warszawa"]
["01-416","mazowieckie","mazo_Warszawa",null,"mazowieckie","Warszawa","Warszawa"]
["01-417","mazowieckie","mazo_Warszawa",null,"mazowieckie","Warszawa","Warszawa"]
["01-418","mazowieckie","mazo_Warszawa",null,"mazowieckie","Warszawa","Warszawa"]
["01-419","mazowieckie","mazo_Warszawa",null,"mazowieckie","Warszawa","Warszawa"]
["01-420","mazowieckie","mazo_Warszawa",null,"mazowieckie","Warszawa","Warszawa"]
["01-421","mazowieckie","mazo_Warszawa",null,"mazowieckie","Warszawa","Warszawa"]
["01-422","mazowieckie","mazo_Warszawa",null,"mazowieckie","Warszawa","Warszawa"]
["01-423","mazowieckie","mazo_Warszawa",null,"mazowieckie","Warszawa","Warszawa"]
["01-424","mazowieckie","mazo_Warszawa",null,"mazowieckie","Warszawa","Warszawa"]
["01-425","mazowieckie","mazo_Warszawa",null,"mazowieckie","Warszawa","Warszawa"]
["01-426","mazowieckie","mazo_Warszawa",null,"mazowieckie","Warszawa","Warszawa"]
["01-428","mazowieckie","mazo_Warszawa",null,"mazowieckie","Warszawa","Warszawa"]
["01-429","mazowieckie","mazo_Warszawa",null,"mazowieckie","Warszawa","Warszawa"]
["01-431","mazowieckie","mazo_Warszawa",null,"mazowieckie","Warszawa","Warszawa"]
["01-432","mazowieckie","mazo_Warszawa",null,"mazowieckie","Warszawa","Warszawa"]
["01-433","mazowieckie","mazo_Warszawa",null,"mazowieckie","Warszawa","Warszawa"]
["01-434","mazowieckie","mazo_Warszawa",null,"mazowieckie","Warszawa","Warszawa"]
["01-436","mazowieckie","mazo_Warszawa",null,"mazowieckie","Warszawa","Warszawa"]
["01-437","mazowieckie","mazo_Warszawa",null,"mazowieckie","Warszawa","Warszawa"]
["01-438","mazowieckie","mazo_Warszawa",null,"mazowieckie","Warszawa","Warszawa"]
["01-439","mazowieckie","mazo_Warszawa",null,"mazowieckie","Warszawa","Warszawa"]
["01-441","mazowieckie","mazo_Warszawa",null,"mazowieckie","Warszawa","Warszawa"]
["01-442","mazowieckie","mazo_Warszawa",null,"mazowieckie","Warszawa","Warszawa"]
["01-443","mazowieckie","mazo_Warszawa",null,"mazowieckie","Warszawa","Warszawa"]
["01-444","mazowieckie","mazo_Warszawa",null,"mazowieckie","Warszawa","Warszawa"]
["01-445","mazowieckie","mazo_Warszawa",null,"mazowieckie","Warszawa","Warszawa"]
["01-446","mazowieckie","mazo_Warszawa",null,"mazowieckie","Warszawa","Warszawa"]
["01-447","mazowieckie","mazo_Warszawa",null,"mazowieckie","Warszawa","Warszawa"]
["01-448","mazowieckie","mazo_Warszawa",null,"mazowieckie","Warszawa","Warszawa"]
["01-449","mazowieckie","mazo_Warszawa",null,"mazowieckie","Warszawa","Warszawa"]
["01-450","mazowieckie","mazo_Warszawa",null,"mazowieckie","Warszawa","Warszawa"]
["01-451","mazowieckie","mazo_Warszawa",null,"mazowieckie","Warszawa","Warszawa"]
["01-452","mazowieckie","mazo_Warszawa",null,"mazowieckie","Warszawa","Warszawa"]
["01-456","mazowieckie","mazo_Warszawa",null,"mazowieckie","Warszawa","Warszawa"]
["01-457","mazowieckie","mazo_Warszawa",null,"mazowieckie","Warszawa","Warszawa"]
["01-458","mazowieckie","mazo_Warszawa",null,"mazowieckie","Warszawa","Warszawa"]
["01-459","mazowieckie","mazo_Warszawa",null,"mazowieckie","Warszawa","Warszawa"]
["01-460","mazowieckie","mazo_Warszawa",null,"mazowieckie","Warszawa","Warszawa"]
["01-461","mazowieckie","mazo_Warszawa",null,"mazowieckie","Warszawa","Warszawa"]
["01-462","mazowieckie","mazo_Warszawa",null,"mazowieckie","Warszawa","Warszawa"]
["01-464","mazowieckie","mazo_Warszawa",null,"mazowieckie","Warszawa","Warszawa"]
["01-465","mazowieckie","mazo_Warszawa",null,"mazowieckie","Warszawa","Warszawa"]
["01-466","mazowieckie","mazo_Warszawa",null,"mazowieckie","Warszawa","Warszawa"]
["01-467","mazowieckie","mazo_Warszawa",null,"mazowieckie","Warszawa","Warszawa"]
["01-468","mazowieckie","mazo_Warszawa",null,"mazowieckie","Warszawa","Warszawa"]
["01-469","mazowieckie","mazo_Warszawa",null,"mazowieckie","Warszawa","Warszawa"]
["01-470","mazowieckie","mazo_Warszawa",null,"mazowieckie","Warszawa","Warszawa"]
["01-471","mazowieckie","mazo_Warszawa",null,"mazowieckie","Warszawa","Warszawa"]
["01-472","mazowieckie","mazo_Warszawa",null,"mazowieckie","Warszawa","Warszawa"]
["01-473","mazowieckie","mazo_Warszawa",null,"mazowieckie","Warszawa","Warszawa"]
["01-474","mazowieckie","mazo_Warszawa",null,"mazowieckie","Warszawa","Warszawa"]
["01-475","mazowieckie","mazo_Warszawa",null,"mazowieckie","Warszawa","Warszawa"]
["01-476","mazowieckie","mazo_Warszawa",null,"mazowieckie","Warszawa","Warszawa"]
["01-477","mazowieckie","mazo_Warszawa",null,"mazowieckie","Warszawa","Warszawa"]
["01-478","mazowieckie","mazo_Warszawa",null,"mazowieckie","Warszawa","Warszawa"]
["01-479","mazowieckie","mazo_Warszawa",null,"mazowieckie","Warszawa","Warszawa"]
["01-480","mazowieckie","mazo_Warszawa",null,"mazowieckie","Warszawa","Warszawa"]
["01-481","mazowieckie","mazo_Warszawa",null,"mazowieckie","Warszawa","Warszawa"]
["01-482","mazowieckie","mazo_Warszawa",null,"mazowieckie","Warszawa","Warszawa"]
["01-483","mazowieckie","mazo_Warszawa",null,"mazowieckie","Warszawa","Warszawa"]
["01-485","mazowieckie","mazo_Warszawa",null,"mazowieckie","Warszawa","Warszawa"]
["01-486","mazowieckie","mazo_Warszawa",null,"mazowieckie","Warszawa","Warszawa"]
["01-487","mazowieckie","mazo_Warszawa",null,"mazowieckie","Warszawa","Warszawa"]
["01-488","mazowieckie","mazo_Warszawa",null,"mazowieckie","Warszawa","Warszawa"]
["01-489","mazowieckie","mazo_Warszawa",null,"mazowieckie","Warszawa","Warszawa"]
["01-490","mazowieckie","mazo_Warszawa",null,"mazowieckie","Warszawa","Warszawa"]
["01-491","mazowieckie","mazo_Warszawa",null,"mazowieckie","Warszawa","Warszawa"]
["01-492","mazowieckie","mazo_Warszawa",null,"mazowieckie","Warszawa","Warszawa"]
["01-493","mazowieckie","mazo_Warszawa",null,"mazowieckie","Warszawa","Warszawa"]
["01-494","mazowieckie","mazo_Warszawa",null,"mazowieckie","Warszawa","Warszawa"]
["01-495","mazowieckie","mazo_Warszawa",null,"mazowieckie","Warszawa","Warszawa"]
["01-496","mazowieckie","mazo_Warszawa",null,"mazowieckie","Warszawa","Warszawa"]
["01-497","mazowieckie","mazo_Warszawa",null,"mazowieckie","Warszawa","Warszawa"]
["01-498","mazowieckie","mazo_Warszawa",null,"mazowieckie","Warszawa","Warszawa"]
["01-499","mazowieckie","mazo_Warszawa",null,"mazowieckie","Warszawa","Warszawa"]
["01-501","mazowieckie","mazo_Warszawa",null,"mazowieckie","Warszawa","Warszawa"]
["01-502","mazowieckie","mazo_Warszawa",null,"mazowieckie","Warszawa","Warszawa"]
["01-503","mazowieckie","mazo_Warszawa",null,"mazowieckie","Warszawa","Warszawa"]
["01-504","mazowieckie","mazo_Warszawa",null,"mazowieckie","Warszawa","Warszawa"]
["01-505","mazowieckie","mazo_Warszawa",null,"mazowieckie","Warszawa","Warszawa"]
["01-506","mazowieckie","mazo_Warszawa",null,"mazowieckie","Warszawa","Warszawa"]
["01-507","mazowieckie","mazo_Warszawa",null,"mazowieckie","Warszawa","Warszawa"]
["01-508","mazowieckie","mazo_Warszawa",null,"mazowieckie","Warszawa","Warszawa"]
["01-510","mazowieckie","mazo_Warszawa",null,"mazowieckie","Warszawa","Warszawa"]
["01-511","mazowieckie","mazo_Warszawa",null,"mazowieckie","Warszawa","Warszawa"]
["01-512","mazowieckie","mazo_Warszawa",null,"mazowieckie","Warszawa","Warszawa"]
["01-513","mazowieckie","mazo_Warszawa",null,"mazowieckie","Warszawa","Warszawa"]
["01-514","mazowieckie","mazo_Warszawa",null,"mazowieckie","Warszawa","Warszawa"]
["01-515","mazowieckie","mazo_Warszawa",null,"mazowieckie","Warszawa","Warszawa"]
["01-517","mazowieckie","mazo_Warszawa",null,"mazowieckie","Warszawa","Warszawa"]
["01-518","mazowieckie","mazo_Warszawa",null,"mazowieckie","Warszawa","Warszawa"]
["01-519","mazowieckie","mazo_Warszawa",null,"mazowieckie","Warszawa","Warszawa"]
["01-520","mazowieckie","mazo_Warszawa",null,"mazowieckie","Warszawa","Warszawa"]
["01-521","mazowieckie","mazo_Warszawa",null,"mazowieckie","Warszawa","Warszawa"]
["01-522","mazowieckie","mazo_Warszawa",null,"mazowieckie","Warszawa","Warszawa"]
["01-523","mazowieckie","mazo_Warszawa",null,"mazowieckie","Warszawa","Warszawa"]
["01-524","mazowieckie","mazo_Warszawa",null,"mazowieckie","Warszawa","Warszawa"]
["01-526","mazowieckie","mazo_Warszawa",null,"mazowieckie","Warszawa","Warszawa"]
["01-527","mazowieckie","mazo_Warszawa",null,"mazowieckie","Warszawa","Warszawa"]
["01-528","mazowieckie","mazo_Warszawa",null,"mazowieckie","Warszawa","Warszawa"]
["01-529","mazowieckie","mazo_Warszawa",null,"mazowieckie","Warszawa","Warszawa"]
["01-530","mazowieckie","mazo_Warszawa",null,"mazowieckie","Warszawa","Warszawa"]
["01-531","mazowieckie","mazo_Warszawa",null,"mazowieckie","Warszawa","Warszawa"]
["01-532","mazowieckie","mazo_Warszawa",null,"mazowieckie","Warszawa","Warszawa"]
["01-533","mazowieckie","mazo_Warszawa",null,"mazowieckie","Warszawa","Warszawa"]
["01-534","mazowieckie","mazo_Warszawa",null,"mazowieckie","Warszawa","Warszawa"]
["01-535","mazowieckie","mazo_Warszawa",null,"mazowieckie","Warszawa","Warszawa"]
["01-536","mazowieckie","mazo_Warszawa",null,"mazowieckie","Warszawa","Warszawa"]
["01-537","mazowieckie","mazo_Warszawa",null,"mazowieckie","Warszawa","Warszawa"]
["01-538","mazowieckie","mazo_Warszawa",null,"mazowieckie","Warszawa","Warszawa"]
["01-539","mazowieckie","mazo_Warszawa",null,"mazowieckie","Warszawa","Warszawa"]
["01-540","mazowieckie","mazo_Warszawa",null,"mazowieckie","Warszawa","Warszawa"]
["01-541","mazowieckie","mazo_Warszawa",null,"mazowieckie","Warszawa","Warszawa"]
["01-542","mazowieckie","mazo_Warszawa",null,"mazowieckie","Warszawa","Warszawa"]
["01-543","mazowieckie","mazo_Warszawa",null,"mazowieckie","Warszawa","Warszawa"]
["01-547","mazowieckie","mazo_Warszawa",null,"mazowieckie","Warszawa","Warszawa"]
["01-548","mazowieckie","mazo_Warszawa",null,"mazowieckie","Warszawa","Warszawa"]
["01-549","mazowieckie","mazo_Warszawa",null,"mazowieckie","Warszawa","Warszawa"]
["01-551","mazowieckie","mazo_Warszawa",null,"mazowieckie","Warszawa","Warszawa"]
["01-552","mazowieckie","mazo_Warszawa",null,"mazowieckie","Warszawa","Warszawa"]
["01-553","mazowieckie","mazo_Warszawa",null,"mazowieckie","Warszawa","Warszawa"]
["01-554","mazowieckie","mazo_Warszawa",null,"mazowieckie","Warszawa","Warszawa"]
["01-555","mazowieckie","mazo_Warszawa",null,"mazowieckie","Warszawa","Warszawa"]
["01-556","mazowieckie","mazo_Warszawa",null,"mazowieckie","Warszawa","Warszawa"]
["01-557","mazowieckie","mazo_Warszawa",null,"mazowieckie","Warszawa","Warszawa"]
["01-558","mazowieckie","mazo_Warszawa",null,"mazowieckie","Warszawa","Warszawa"]
["01-559","mazowieckie","mazo_Warszawa",null,"mazowieckie","Warszawa","Warszawa"]
["01-560","mazowieckie","mazo_Warszawa",null,"mazowieckie","Warszawa","Warszawa"]
["01-562","mazowieckie","mazo_Warszawa",null,"mazowieckie","Warszawa","Warszawa"]
["01-563","mazowieckie","mazo_Warszawa",null,"mazowieckie","Warszawa","Warszawa"]
["01-564","mazowieckie","mazo_Warszawa",null,"mazowieckie","Warszawa","Warszawa"]
["01-565","mazowieckie","mazo_Warszawa",null,"mazowieckie","Warszawa","Warszawa"]
["01-566","mazowieckie","mazo_Warszawa",null,"mazowieckie","Warszawa","Warszawa"]
["01-567","mazowieckie","mazo_Warszawa",null,"mazowieckie","Warszawa","Warszawa"]
["01-568","mazowieckie","mazo_Warszawa",null,"mazowieckie","Warszawa","Warszawa"]
["01-569","mazowieckie","mazo_Warszawa",null,"mazowieckie","Warszawa","Warszawa"]
["01-570","mazowieckie","mazo_Warszawa",null,"mazowieckie","Warszawa","Warszawa"]
["01-571","mazowieckie","mazo_Warszawa",null,"mazowieckie","Warszawa","Warszawa"]
["01-572","mazowieckie","mazo_Warszawa",null,"mazowieckie","Warszawa","Warszawa"]
["01-573","mazowieckie","mazo_Warszawa",null,"mazowieckie","Warszawa","Warszawa"]
["01-574","mazowieckie","mazo_Warszawa",null,"mazowieckie","Warszawa","Warszawa"]
["01-576","mazowieckie","mazo_Warszawa",null,"mazowieckie","Warszawa","Warszawa"]
["01-577","mazowieckie","mazo_Warszawa",null,"mazowieckie","Warszawa","Warszawa"]
["01-578","mazowieckie","mazo_Warszawa",null,"mazowieckie","Warszawa","Warszawa"]
["01-579","mazowieckie","mazo_Warszawa",null,"mazowieckie","Warszawa","Warszawa"]
["01-580","mazowieckie","mazo_Warszawa",null,"mazowieckie","Warszawa","Warszawa"]
["01-581","mazowieckie","mazo_Warszawa",null,"mazowieckie","Warszawa","Warszawa"]
["01-582","mazowieckie","mazo_Warszawa",null,"mazowieckie","Warszawa","Warszawa"]
["01-583","mazowieckie","mazo_Warszawa",null,"mazowieckie","Warszawa","Warszawa"]
["01-584","mazowieckie","mazo_Warszawa",null,"mazowieckie","Warszawa","Warszawa"]
["01-585","mazowieckie","mazo_Warszawa",null,"mazowieckie","Warszawa","Warszawa"]
["01-586","mazowieckie","mazo_Warszawa",null,"mazowieckie","Warszawa","Warszawa"]
["01-587","mazowieckie","mazo_Warszawa",null,"mazowieckie","Warszawa","Warszawa"]
["01-588","mazowieckie","mazo_Warszawa",null,"mazowieckie","Warszawa","Warszawa"]
["01-589","mazowieckie","mazo_Warszawa",null,"mazowieckie","Warszawa","Warszawa"]
["01-590","mazowieckie","mazo_Warszawa",null,"mazowieckie","Warszawa","Warszawa"]
["01-592","mazowieckie","mazo_Warszawa",null,"mazowieckie","Warszawa","Warszawa"]
["01-593","mazowieckie","mazo_Warszawa",null,"mazowieckie","Warszawa","Warszawa"]
["01-594","mazowieckie","mazo_Warszawa",null,"mazowieckie","Warszawa","Warszawa"]
["01-595","mazowieckie","mazo_Warszawa",null,"mazowieckie","Warszawa","Warszawa"]
["01-601","mazowieckie","mazo_Warszawa",null,"mazowieckie","Warszawa","Warszawa"]
["01-602","mazowieckie","mazo_Warszawa",null,"mazowieckie","Warszawa","Warszawa"]
["01-603","mazowieckie","mazo_Warszawa",null,"mazowieckie","Warszawa","Warszawa"]
["01-604","mazowieckie","mazo_Warszawa",null,"mazowieckie","Warszawa","Warszawa"]
["01-605","mazowieckie","mazo_Warszawa",null,"mazowieckie","Warszawa","Warszawa"]
["01-606","mazowieckie","mazo_Warszawa",null,"mazowieckie","Warszawa","Warszawa"]
["01-607","mazowieckie","mazo_Warszawa",null,"mazowieckie","Warszawa","Warszawa"]
["01-608","mazowieckie","mazo_Warszawa",null,"mazowieckie","Warszawa","Warszawa"]
["01-609","mazowieckie","mazo_Warszawa",null,"mazowieckie","Warszawa","Warszawa"]
["01-610","mazowieckie","mazo_Warszawa",null,"mazowieckie","Warszawa","Warszawa"]
["01-611","mazowieckie","mazo_Warszawa",null,"mazowieckie","Warszawa","Warszawa"]
["01-612","mazowieckie","mazo_Warszawa",null,"mazowieckie","Warszawa","Warszawa"]
["01-613","mazowieckie","mazo_Warszawa",null,"mazowieckie","Warszawa","Warszawa"]
["01-614","mazowieckie","mazo_Warszawa",null,"mazowieckie","Warszawa","Warszawa"]
["01-615","mazowieckie","mazo_Warszawa",null,"mazowieckie","Warszawa","Warszawa"]
["01-616","mazowieckie","mazo_Warszawa",null,"mazowieckie","Warszawa","Warszawa"]
["01-617","mazowieckie","mazo_Warszawa",null,"mazowieckie","Warszawa","Warszawa"]
["01-618","mazowieckie","mazo_Warszawa",null,"mazowieckie","Warszawa","Warszawa"]
["01-619","mazowieckie","mazo_Warszawa",null,"mazowieckie","Warszawa","Warszawa"]
["01-620","mazowieckie","mazo_Warszawa",null,"mazowieckie","Warszawa","Warszawa"]
["01-621","mazowieckie","mazo_Warszawa",null,"mazowieckie","Warszawa","Warszawa"]
["01-622","mazowieckie","mazo_Warszawa",null,"mazowieckie","Warszawa","Warszawa"]
["01-623","mazowieckie","mazo_Warszawa",null,"mazowieckie","Warszawa","Warszawa"]
["01-624","mazowieckie","mazo_Warszawa",null,"mazowieckie","Warszawa","Warszawa"]
["01-625","mazowieckie","mazo_Warszawa",null,"mazowieckie","Warszawa","Warszawa"]
["01-626","mazowieckie","mazo_Warszawa",null,"mazowieckie","Warszawa","Warszawa"]
["01-627","mazowieckie","mazo_Warszawa",null,"mazowieckie","Warszawa","Warszawa"]
["01-628","mazowieckie","mazo_Warszawa",null,"mazowieckie","Warszawa","Warszawa"]
["01-629","mazowieckie","mazo_Warszawa",null,"mazowieckie","Warszawa","Warszawa"]
["01-630","mazowieckie","mazo_Warszawa",null,"mazowieckie","Warszawa","Warszawa"]
["01-631","mazowieckie","mazo_Warszawa",null,"mazowieckie","Warszawa","Warszawa"]
["01-632","mazowieckie","mazo_Warszawa",null,"mazowieckie","Warszawa","Warszawa"]
["01-633","mazowieckie","mazo_Warszawa",null,"mazowieckie","Warszawa","Warszawa"]
["01-634","mazowieckie","mazo_Warszawa",null,"mazowieckie","Warszawa","Warszawa"]
["01-635","mazowieckie","mazo_Warszawa",null,"mazowieckie","Warszawa","Warszawa"]
["01-636","mazowieckie","mazo_Warszawa",null,"mazowieckie","Warszawa","Warszawa"]
["01-637","mazowieckie","mazo_Warszawa",null,"mazowieckie","Warszawa","Warszawa"]
["01-638","mazowieckie","mazo_Warszawa",null,"mazowieckie","Warszawa","Warszawa"]
["01-639","mazowieckie","mazo_Warszawa",null,"mazowieckie","Warszawa","Warszawa"]
["01-640","mazowieckie","mazo_Warszawa",null,"mazowieckie","Warszawa","Warszawa"]
["01-641","mazowieckie","mazo_Warszawa",null,"mazowieckie","Warszawa","Warszawa"]
["01-643","mazowieckie","mazo_Warszawa",null,"mazowieckie","Warszawa","Warszawa"]
["01-644","mazowieckie","mazo_Warszawa",null,"mazowieckie","Warszawa","Warszawa"]
["01-645","mazowieckie","mazo_Warszawa",null,"mazowieckie","Warszawa","Warszawa"]
["01-646","mazowieckie","mazo_Warszawa",null,"mazowieckie","Warszawa","Warszawa"]
["01-647","mazowieckie","mazo_Warszawa",null,"mazowieckie","Warszawa","Warszawa"]
["01-648","mazowieckie","mazo_Warszawa",null,"mazowieckie","Warszawa","Warszawa"]
["01-649","mazowieckie","mazo_Warszawa",null,"mazowieckie","Warszawa","Warszawa"]
["01-650","mazowieckie","mazo_Warszawa",null,"mazowieckie","Warszawa","Warszawa"]
["01-651","mazowieckie","mazo_Warszawa",null,"mazowieckie","Warszawa","Warszawa"]
["01-652","mazowieckie","mazo_Warszawa",null,"mazowieckie","Warszawa","Warszawa"]
["01-654","mazowieckie","mazo_Warszawa",null,"mazowieckie","Warszawa","Warszawa"]
["01-656","mazowieckie","mazo_Warszawa",null,"mazowieckie","Warszawa","Warszawa"]
["01-658","mazowieckie","mazo_Warszawa",null,"mazowieckie","Warszawa","Warszawa"]
["01-659","mazowieckie","mazo_Warszawa",null,"mazowieckie","Warszawa","Warszawa"]
["01-664","mazowieckie","mazo_Warszawa",null,"mazowieckie","Warszawa","Warszawa"]
["01-665","mazowieckie","mazo_Warszawa",null,"mazowieckie","Warszawa","Warszawa"]
["01-669","mazowieckie","mazo_Warszawa",null,"mazowieckie","Warszawa","Warszawa"]
["01-670","mazowieckie","mazo_Warszawa",null,"mazowieckie","Warszawa","Warszawa"]
["01-673","mazowieckie","mazo_Warszawa",null,"mazowieckie","Warszawa","Warszawa"]
["01-674","mazowieckie","mazo_Warszawa",null,"mazowieckie","Warszawa","Warszawa"]
["01-677","mazowieckie","mazo_Warszawa",null,"mazowieckie","Warszawa","Warszawa"]
["01-678","mazowieckie","mazo_Warszawa",null,"mazowieckie","Warszawa","Warszawa"]
["01-679","mazowieckie","mazo_Warszawa",null,"mazowieckie","Warszawa","Warszawa"]
["01-680","mazowieckie","mazo_Warszawa",null,"mazowieckie","Warszawa","Warszawa"]
["01-681","mazowieckie","mazo_Warszawa",null,"mazowieckie","Warszawa","Warszawa"]
["01-682","mazowieckie","mazo_Warszawa",null,"mazowieckie","Warszawa","Warszawa"]
["01-683","mazowieckie","mazo_Warszawa",null,"mazowieckie","Warszawa","Warszawa"]
["01-684","mazowieckie","mazo_Warszawa",null,"mazowieckie","Warszawa","Warszawa"]
["01-685","mazowieckie","mazo_Warszawa",null,"mazowieckie","Warszawa","Warszawa"]
["01-687","mazowieckie","mazo_Warszawa",null,"mazowieckie","Warszawa","Warszawa"]
["01-688","mazowieckie","mazo_Warszawa",null,"mazowieckie","Warszawa","Warszawa"]
["01-689","mazowieckie","mazo_Warszawa",null,"mazowieckie","Warszawa","Warszawa"]
["01-690","mazowieckie","mazo_Warszawa",null,"mazowieckie","Warszawa","Warszawa"]
["01-691","mazowieckie","mazo_Warszawa",null,"mazowieckie","Warszawa","Warszawa"]
["01-692","mazowieckie","mazo_Warszawa",null,"mazowieckie","Warszawa","Warszawa"]
["01-693","mazowieckie","mazo_Warszawa",null,"mazowieckie","Warszawa","Warszawa"]
["01-694","mazowieckie","mazo_Warszawa",null,"mazowieckie","Warszawa","Warszawa"]
["01-695","mazowieckie","mazo_Warszawa",null,"mazowieckie","Warszawa","Warszawa"]
["01-696","mazowieckie","mazo_Warszawa",null,"mazowieckie","Warszawa","Warszawa"]
["01-697","mazowieckie","mazo_Warszawa",null,"mazowieckie","Warszawa","Warszawa"]
["01-698","mazowieckie","mazo_Warszawa",null,"mazowieckie","Warszawa","Warszawa"]
["01-699","mazowieckie","mazo_Warszawa",null,"mazowieckie","Warszawa","Warszawa"]
["01-702","mazowieckie","mazo_Warszawa",null,"mazowieckie","Warszawa","Warszawa"]
["01-703","mazowieckie","mazo_Warszawa",null,"mazowieckie","Warszawa","Warszawa"]
["01-707","mazowieckie","mazo_Warszawa",null,"mazowieckie","Warszawa","Warszawa"]
["01-708","mazowieckie","mazo_Warszawa",null,"mazowieckie","Warszawa","Warszawa"]
["01-709","mazowieckie","mazo_Warszawa",null,"mazowieckie","Warszawa","Warszawa"]
["01-710","mazowieckie","mazo_Warszawa",null,"mazowieckie","Warszawa","Warszawa"]
["01-711","mazowieckie","mazo_Warszawa",null,"mazowieckie","Warszawa","Warszawa"]
["01-715","mazowieckie","mazo_Warszawa",null,"mazowieckie","Warszawa","Warszawa"]
["01-716","mazowieckie","mazo_Warszawa",null,"mazowieckie","Warszawa","Warszawa"]
["01-727","mazowieckie","mazo_Warszawa",null,"mazowieckie","Warszawa","Warszawa"]
["01-728","mazowieckie","mazo_Warszawa",null,"mazowieckie","Warszawa","Warszawa"]
["01-730","mazowieckie","mazo_Warszawa",null,"mazowieckie","Warszawa","Warszawa"]
["01-735","mazowieckie","mazo_Warszawa",null,"mazowieckie","Warszawa","Warszawa"]
["01-736","mazowieckie","mazo_Warszawa",null,"mazowieckie","Warszawa","Warszawa"]
["01-737","mazowieckie","mazo_Warszawa",null,"mazowieckie","Warszawa","Warszawa"]
["01-738","mazowieckie","mazo_Warszawa",null,"mazowieckie","Warszawa","Warszawa"]
["01-739","mazowieckie","mazo_Warszawa",null,"mazowieckie","Warszawa","Warszawa"]
["01-740","mazowieckie","mazo_Warszawa",null,"mazowieckie","Warszawa","Warszawa"]
["01-741","mazowieckie","mazo_Warszawa",null,"mazowieckie","Warszawa","Warszawa"]
["01-742","mazowieckie","mazo_Warszawa",null,"mazowieckie","Warszawa","Warszawa"]
["01-743","mazowieckie","mazo_Warszawa",null,"mazowieckie","Warszawa","Warszawa"]
["01-745","mazowieckie","mazo_Warszawa",null,"mazowieckie","Warszawa","Warszawa"]
["01-747","mazowieckie","mazo_Warszawa",null,"mazowieckie","Warszawa","Warszawa"]
["01-748","mazowieckie","mazo_Warszawa",null,"mazowieckie","Warszawa","Warszawa"]
["01-749","mazowieckie","mazo_Warszawa",null,"mazowieckie","Warszawa","Warszawa"]
["01-755","mazowieckie","mazo_Warszawa",null,"mazowieckie","Warszawa","Warszawa"]
["01-756","mazowieckie","mazo_Warszawa",null,"mazowieckie","Warszawa","Warszawa"]
["01-769","mazowieckie","mazo_Warszawa",null,"mazowieckie","Warszawa","Warszawa"]
["01-770","mazowieckie","mazo_Warszawa",null,"mazowieckie","Warszawa","Warszawa"]
["01-771","mazowieckie","mazo_Warszawa",null,"mazowieckie","Warszawa","Warszawa"]
["01-772","mazowieckie","mazo_Warszawa",null,"mazowieckie","Warszawa","Warszawa"]
["01-773","mazowieckie","mazo_Warszawa",null,"mazowieckie","Warszawa","Warszawa"]
["01-779","mazowieckie","mazo_Warszawa",null,"mazowieckie","Warszawa","Warszawa"]
["01-780","mazowieckie","mazo_Warszawa",null,"mazowieckie","Warszawa","Warszawa"]
["01-783","mazowieckie","mazo_Warszawa",null,"mazowieckie","Warszawa","Warszawa"]
["01-784","mazowieckie","mazo_Warszawa",null,"mazowieckie","Warszawa","Warszawa"]
["01-785","mazowieckie","mazo_Warszawa",null,"mazowieckie","Warszawa","Warszawa"]
["01-786","mazowieckie","mazo_Warszawa",null,"mazowieckie","Warszawa","Warszawa"]
["01-787","mazowieckie","mazo_Warszawa",null,"mazowieckie","Warszawa","Warszawa"]
["01-792","mazowieckie","mazo_Warszawa",null,"mazowieckie","Warszawa","Warszawa"]
["01-793","mazowieckie","mazo_Warszawa",null,"mazowieckie","Warszawa","Warszawa"]
["01-794","mazowieckie","mazo_Warszawa",null,"mazowieckie","Warszawa","Warszawa"]
["01-796","mazowieckie","mazo_Warszawa",null,"mazowieckie","Warszawa","Warszawa"]
["01-797","mazowieckie","mazo_Warszawa",null,"mazowieckie","Warszawa","Warszawa"]
["01-798","mazowieckie","mazo_Warszawa",null,"mazowieckie","Warszawa","Warszawa"]
["01-800","mazowieckie","mazo_Warszawa",null,"mazowieckie","Warszawa","Warszawa"]
["01-801","mazowieckie","mazo_Warszawa",null,"mazowieckie","Warszawa","Warszawa"]
["01-802","mazowieckie","mazo_Warszawa",null,"mazowieckie","Warszawa","Warszawa"]
["01-803","mazowieckie","mazo_Warszawa",null,"mazowieckie","Warszawa","Warszawa"]
["01-804","mazowieckie","mazo_Warszawa",null,"mazowieckie","Warszawa","Warszawa"]
["01-805","mazowieckie","mazo_Warszawa",null,"mazowieckie","Warszawa","Warszawa"]
["01-806","mazowieckie","mazo_Warszawa",null,"mazowieckie","Warszawa","Warszawa"]
["01-807","mazowieckie","mazo_Warszawa",null,"mazowieckie","Warszawa","Warszawa"]
["01-808","mazowieckie","mazo_Warszawa",null,"mazowieckie","Warszawa","Warszawa"]
["01-809","mazowieckie","mazo_Warszawa",null,"mazowieckie","Warszawa","Warszawa"]
["01-810","mazowieckie","mazo_Warszawa",null,"mazowieckie","Warszawa","Warszawa"]
["01-811","mazowieckie","mazo_Warszawa",null,"mazowieckie","Warszawa","Warszawa"]
["01-812","mazowieckie","mazo_Warszawa",null,"mazowieckie","Warszawa","Warszawa"]
["01-813","mazowieckie","mazo_Warszawa",null,"mazowieckie","Warszawa","Warszawa"]
["01-815","mazowieckie","mazo_Warszawa",null,"mazowieckie","Warszawa","Warszawa"]
["01-817","mazowieckie","mazo_Warszawa",null,"mazowieckie","Warszawa","Warszawa"]
["01-818","mazowieckie","mazo_Warszawa",null,"mazowieckie","Warszawa","Warszawa"]
["01-819","mazowieckie","mazo_Warszawa",null,"mazowieckie","Warszawa","Warszawa"]
["01-820","mazowieckie","mazo_Warszawa",null,"mazowieckie","Warszawa","Warszawa"]
["01-821","mazowieckie","mazo_Warszawa",null,"mazowieckie","Warszawa","Warszawa"]
["01-822","mazowieckie","mazo_Warszawa",null,"mazowieckie","Warszawa","Warszawa"]
["01-823","mazowieckie","mazo_Warszawa",null,"mazowieckie","Warszawa","Warszawa"]
["01-824","mazowieckie","mazo_Warszawa",null,"mazowieckie","Warszawa","Warszawa"]
["01-825","mazowieckie","mazo_Warszawa",null,"mazowieckie","Warszawa","Warszawa"]
["01-826","mazowieckie","mazo_Warszawa",null,"mazowieckie","Warszawa","Warszawa"]
["01-827","mazowieckie","mazo_Warszawa",null,"mazowieckie","Warszawa","Warszawa"]
["01-828","mazowieckie","mazo_Warszawa",null,"mazowieckie","Warszawa","Warszawa"]
["01-829","mazowieckie","mazo_Warszawa",null,"mazowieckie","Warszawa","Warszawa"]
["01-830","mazowieckie","mazo_Warszawa",null,"mazowieckie","Warszawa","Warszawa"]
["01-831","mazowieckie","mazo_Warszawa",null,"mazowieckie","Warszawa","Warszawa"]
["01-832","mazowieckie","mazo_Warszawa",null,"mazowieckie","Warszawa","Warszawa"]
["01-833","mazowieckie","mazo_Warszawa",null,"mazowieckie","Warszawa","Warszawa"]
["01-834","mazowieckie","mazo_Warszawa",null,"mazowieckie","Warszawa","Warszawa"]
["01-835","mazowieckie","mazo_Warszawa",null,"mazowieckie","Warszawa","Warszawa"]
["01-836","mazowieckie","mazo_Warszawa",null,"mazowieckie","Warszawa","Warszawa"]
["01-837","mazowieckie","mazo_Warszawa",null,"mazowieckie","Warszawa","Warszawa"]
["01-838","mazowieckie","mazo_Warszawa",null,"mazowieckie","Warszawa","Warszawa"]
["01-839","mazowieckie","mazo_Warszawa",null,"mazowieckie","Warszawa","Warszawa"]
["01-840","mazowieckie","mazo_Warszawa",null,"mazowieckie","Warszawa","Warszawa"]
["01-841","mazowieckie","mazo_Warszawa",null,"mazowieckie","Warszawa","Warszawa"]
["01-842","mazowieckie","mazo_Warszawa",null,"mazowieckie","Warszawa","Warszawa"]
["01-843","mazowieckie","mazo_Warszawa",null,"mazowieckie","Warszawa","Warszawa"]
["01-844","mazowieckie","mazo_Warszawa",null,"mazowieckie","Warszawa","Warszawa"]
["01-845","mazowieckie","mazo_Warszawa",null,"mazowieckie","Warszawa","Warszawa"]
["01-846","mazowieckie","mazo_Warszawa",null,"mazowieckie","Warszawa","Warszawa"]
["01-847","mazowieckie","mazo_Warszawa",null,"mazowieckie","Warszawa","Warszawa"]
["01-848","mazowieckie","mazo_Warszawa",null,"mazowieckie","Warszawa","Warszawa"]
["01-849","mazowieckie","mazo_Warszawa",null,"mazowieckie","Warszawa","Warszawa"]
["01-850","mazowieckie","mazo_Warszawa",null,"mazowieckie","Warszawa","Warszawa"]
["01-851","mazowieckie","mazo_Warszawa",null,"mazowieckie","Warszawa","Warszawa"]
["01-852","mazowieckie","mazo_Warszawa",null,"mazowieckie","Warszawa","Warszawa"]
["01-853","mazowieckie","mazo_Warszawa",null,"mazowieckie","Warszawa","Warszawa"]
["01-854","mazowieckie","mazo_Warszawa",null,"mazowieckie","Warszawa","Warszawa"]
["01-855","mazowieckie","mazo_Warszawa",null,"mazowieckie","Warszawa","Warszawa"]
["01-856","mazowieckie","mazo_Warszawa",null,"mazowieckie","Warszawa","Warszawa"]
["01-857","mazowieckie","mazo_Warszawa",null,"mazowieckie","Warszawa","Warszawa"]
["01-858","mazowieckie","mazo_Warszawa",null,"mazowieckie","Warszawa","Warszawa"]
["01-859","mazowieckie","mazo_Warszawa",null,"mazowieckie","Warszawa","Warszawa"]
["01-860","mazowieckie","mazo_Warszawa",null,"mazowieckie","Warszawa","Warszawa"]
["01-861","mazowieckie","mazo_Warszawa",null,"mazowieckie","Warszawa","Warszawa"]
["01-862","mazowieckie","mazo_Warszawa",null,"mazowieckie","Warszawa","Warszawa"]
["01-863","mazowieckie","mazo_Warszawa",null,"mazowieckie","Warszawa","Warszawa"]
["01-864","mazowieckie","mazo_Warszawa",null,"mazowieckie","Warszawa","Warszawa"]
["01-865","mazowieckie","mazo_Warszawa",null,"mazowieckie","Warszawa","Warszawa"]
["01-866","mazowieckie","mazo_Warszawa",null,"mazowieckie","Warszawa","Warszawa"]
["01-867","mazowieckie","mazo_Warszawa",null,"mazowieckie","Warszawa","Warszawa"]
["01-868","mazowieckie","mazo_Warszawa",null,"mazowieckie","Warszawa","Warszawa"]
["01-869","mazowieckie","mazo_Warszawa",null,"mazowieckie","Warszawa","Warszawa"]
["01-870","mazowieckie","mazo_Warszawa",null,"mazowieckie","Warszawa","Warszawa"]
["01-871","mazowieckie","mazo_Warszawa",null,"mazowieckie","Warszawa","Warszawa"]
["01-872","mazowieckie","mazo_Warszawa",null,"mazowieckie","Warszawa","Warszawa"]
["01-873","mazowieckie","mazo_Warszawa",null,"mazowieckie","Warszawa","Warszawa"]
["01-874","mazowieckie","mazo_Warszawa",null,"mazowieckie","Warszawa","Warszawa"]
["01-875","mazowieckie","mazo_Warszawa",null,"mazowieckie","Warszawa","Warszawa"]
["01-876","mazowieckie","mazo_Warszawa",null,"mazowieckie","Warszawa","Warszawa"]
["01-877","mazowieckie","mazo_Warszawa",null,"mazowieckie","Warszawa","Warszawa"]
["01-880","mazowieckie","mazo_Warszawa",null,"mazowieckie","Warszawa","Warszawa"]
["01-881","mazowieckie","mazo_Warszawa",null,"mazowieckie","Warszawa","Warszawa"]
["01-882","mazowieckie","mazo_Warszawa",null,"mazowieckie","Warszawa","Warszawa"]
["01-883","mazowieckie","mazo_Warszawa",null,"mazowieckie","Warszawa","Warszawa"]
["01-884","mazowieckie","mazo_Warszawa",null,"mazowieckie","Warszawa","Warszawa"]
["01-885","mazowieckie","mazo_Warszawa",null,"mazowieckie","Warszawa","Warszawa"]
["01-886","mazowieckie","mazo_Warszawa",null,"mazowieckie","Warszawa","Warszawa"]
["01-887","mazowieckie","mazo_Warszawa",null,"mazowieckie","Warszawa","Warszawa"]
["01-888","mazowieckie","mazo_Warszawa",null,"mazowieckie","Warszawa","Warszawa"]
["01-890","mazowieckie","mazo_Warszawa",null,"mazowieckie","Warszawa","Warszawa"]
["01-891","mazowieckie","mazo_Warszawa",null,"mazowieckie","Warszawa","Warszawa"]
["01-892","mazowieckie","mazo_Warszawa",null,"mazowieckie","Warszawa","Warszawa"]
["01-893","mazowieckie","mazo_Warszawa",null,"mazowieckie","Warszawa","Warszawa"]
["01-900","mazowieckie","mazo_Warszawa",null,"mazowieckie","Warszawa","Warszawa"]
["01-903","mazowieckie","mazo_Warszawa",null,"mazowieckie","Warszawa","Warszawa"]
["01-904","mazowieckie","mazo_Warszawa",null,"mazowieckie","Warszawa","Warszawa"]
["01-905","mazowieckie","mazo_Warszawa",null,"mazowieckie","Warszawa","Warszawa"]
["01-906","mazowieckie","mazo_Warszawa",null,"mazowieckie","Warszawa","Warszawa"]
["01-908","mazowieckie","mazo_Warszawa",null,"mazowieckie","Warszawa","Warszawa"]
["01-909","mazowieckie","mazo_Warszawa",null,"mazowieckie","Warszawa","Warszawa"]
["01-910","mazowieckie","mazo_Warszawa",null,"mazowieckie","Warszawa","Warszawa"]
["01-911","mazowieckie","mazo_Warszawa",null,"mazowieckie","Warszawa","Warszawa"]
["01-912","mazowieckie","mazo_Warszawa",null,"mazowieckie","Warszawa","Warszawa"]
["01-913","mazowieckie","mazo_Warszawa",null,"mazowieckie","Warszawa","Warszawa"]
["01-914","mazowieckie","mazo_Warszawa",null,"mazowieckie","Warszawa","Warszawa"]
["01-915","mazowieckie","mazo_Warszawa",null,"mazowieckie","Warszawa","Warszawa"]
["01-916","mazowieckie","mazo_Warszawa",null,"mazowieckie","Warszawa","Warszawa"]
["01-917","mazowieckie","mazo_Warszawa",null,"mazowieckie","Warszawa","Warszawa"]
["01-918","mazowieckie","mazo_Warszawa",null,"mazowieckie","Warszawa","Warszawa"]
["01-919","mazowieckie","mazo_Warszawa",null,"mazowieckie","Warszawa","Warszawa"]
["01-920","mazowieckie","mazo_Warszawa",null,"mazowieckie","Warszawa","Warszawa"]
["01-921","mazowieckie","mazo_Warszawa",null,"mazowieckie","Warszawa","Warszawa"]
["01-922","mazowieckie","mazo_Warszawa",null,"mazowieckie","Warszawa","Warszawa"]
["01-923","mazowieckie","mazo_Warszawa",null,"mazowieckie","Warszawa","Warszawa"]
["01-924","mazowieckie","mazo_Warszawa",null,"mazowieckie","Warszawa","Warszawa"]
["01-925","mazowieckie","mazo_Warszawa",null,"mazowieckie","Warszawa","Warszawa"]
["01-926","mazowieckie","mazo_Warszawa",null,"mazowieckie","Warszawa","Warszawa"]
["01-927","mazowieckie","mazo_Warszawa",null,"mazowieckie","Warszawa","Warszawa"]
["01-928","mazowieckie","mazo_Warszawa",null,"mazowieckie","Warszawa","Warszawa"]
["01-929","mazowieckie","mazo_Warszawa",null,"mazowieckie","Warszawa","Warszawa"]
["01-930","mazowieckie","mazo_Warszawa",null,"mazowieckie","Warszawa","Warszawa"]
["01-931","mazowieckie","mazo_Warszawa",null,"mazowieckie","Warszawa","Warszawa"]
["01-932","mazowieckie","mazo_Warszawa",null,"mazowieckie","Warszawa","Warszawa"]
["01-934","mazowieckie","mazo_Warszawa",null,"mazowieckie","Warszawa","Warszawa"]
["01-935","mazowieckie","mazo_Warszawa",null,"mazowieckie","Warszawa","Warszawa"]
["01-936","mazowieckie","mazo_Warszawa",null,"mazowieckie","Warszawa","Warszawa"]
["01-937","mazowieckie","mazo_Warszawa",null,"mazowieckie","Warszawa","Warszawa"]
["01-938","mazowieckie","mazo_Warszawa",null,"mazowieckie","Warszawa","Warszawa"]
["01-939","mazowieckie","mazo_Warszawa",null,"mazowieckie","Warszawa","Warszawa"]
["01-940","mazowieckie","mazo_Warszawa",null,"mazowieckie","Warszawa","Warszawa"]
["01-941","mazowieckie","mazo_Warszawa",null,"mazowieckie","Warszawa","Warszawa"]
["01-942","mazowieckie","mazo_Warszawa",null,"mazowieckie","Warszawa","Warszawa"]
["01-943","mazowieckie","mazo_Warszawa",null,"mazowieckie","Warszawa","Warszawa"]
["01-944","mazowieckie","mazo_Warszawa",null,"mazowieckie","Warszawa","Warszawa"]
["01-945","mazowieckie","mazo_Warszawa",null,"mazowieckie","Warszawa","Warszawa"]
["01-946","mazowieckie","mazo_Warszawa",null,"mazowieckie","Warszawa","Warszawa"]
["01-947","mazowieckie","mazo_Warszawa",null,"mazowieckie","Warszawa","Warszawa"]
["01-948","mazowieckie","mazo_Warszawa",null,"mazowieckie","Warszawa","Warszawa"]
["01-949","mazowieckie","mazo_Warszawa",null,"mazowieckie","Warszawa","Warszawa"]
["01-950","mazowieckie","mazo_Warszawa",null,"mazowieckie","Warszawa","Warszawa"]
["01-951","mazowieckie","mazo_Warszawa",null,"mazowieckie","Warszawa","Warszawa"]
["01-952","mazowieckie","mazo_Warszawa",null,"mazowieckie","Warszawa","Warszawa"]
["01-953","mazowieckie","mazo_Warszawa",null,"mazowieckie","Warszawa","Warszawa"]
["01-954","mazowieckie","mazo_Warszawa",null,"mazowieckie","Warszawa","Warszawa"]
["01-956","mazowieckie","mazo_Warszawa",null,"mazowieckie","Warszawa","Warszawa"]
["01-957","mazowieckie","mazo_Warszawa",null,"mazowieckie","Warszawa","Warszawa"]
["01-958","mazowieckie","mazo_Warszawa",null,"mazowieckie","Warszawa","Warszawa"]
["01-960","mazowieckie","mazo_Warszawa",null,"mazowieckie","Warszawa","Warszawa"]
["01-961","mazowieckie","mazo_Warszawa",null,"mazowieckie","Warszawa","Warszawa"]
["01-962","mazowieckie","mazo_Warszawa",null,"mazowieckie","Warszawa","Warszawa"]
["01-963","mazowieckie","mazo_Warszawa",null,"mazowieckie","Warszawa","Warszawa"]
["01-964","mazowieckie","mazo_Warszawa",null,"mazowieckie","Warszawa","Warszawa"]
["01-966","mazowieckie","mazo_Warszawa",null,"mazowieckie","Warszawa","Warszawa"]
["01-968","mazowieckie","mazo_Warszawa",null,"mazowieckie","Warszawa","Warszawa"]
["01-969","mazowieckie","mazo_Warszawa",null,"mazowieckie","Warszawa","Warszawa"]
["01-970","mazowieckie","mazo_Warszawa",null,"mazowieckie","Warszawa","Warszawa"]
["01-971","mazowieckie","mazo_Warszawa",null,"mazowieckie","Warszawa","Warszawa"]
["01-972","mazowieckie","mazo_Warszawa",null,"mazowieckie","Warszawa","Warszawa"]
["01-973","mazowieckie","mazo_Warszawa",null,"mazowieckie","Warszawa","Warszawa"]
["01-974","mazowieckie","mazo_Warszawa",null,"mazowieckie","Warszawa","Warszawa"]
["01-975","mazowieckie","mazo_Warszawa",null,"mazowieckie","Warszawa","Warszawa"]
["01-976","mazowieckie","mazo_Warszawa",null,"mazowieckie","Warszawa","Warszawa"]
["01-977","mazowieckie","mazo_Warszawa",null,"mazowieckie","Warszawa","Warszawa"]
["01-978","mazowieckie","mazo_Warszawa",null,"mazowieckie","Warszawa","Warszawa"]
["01-979","mazowieckie","mazo_Warszawa",null,"mazowieckie","Warszawa","Warszawa"]
["01-980","mazowieckie","mazo_Warszawa",null,"mazowieckie","Warszawa","Warszawa"]
["01-981","mazowieckie","mazo_Warszawa",null,"mazowieckie","Warszawa","Warszawa"]
["01-982","mazowieckie","mazo_Warszawa",null,"mazowieckie","Warszawa","Warszawa"]
["01-983","mazowieckie","mazo_Warszawa",null,"mazowieckie","Warszawa","Warszawa"]
["01-985","mazowieckie","mazo_Warszawa",null,"mazowieckie","Warszawa","Warszawa"]
["01-986","mazowieckie","mazo_Warszawa",null,"mazowieckie","Warszawa","Warszawa"]
["01-987","mazowieckie","mazo_Warszawa",null,"mazowieckie","Warszawa","Warszawa"]
["01-988","mazowieckie","mazo_Warszawa",null,"mazowieckie","Warszawa","Warszawa"]
["01-989","mazowieckie","mazo_Warszawa",null,"mazowieckie","Warszawa","Warszawa"]
["01-990","mazowieckie","mazo_Warszawa",null,"mazowieckie","Warszawa","Warszawa"]
["01-991","mazowieckie","mazo_Warszawa",null,"mazowieckie","Warszawa","Warszawa"]
["01-992","mazowieckie","mazo_Warszawa",null,"mazowieckie","Warszawa","Warszawa"]
["01-993","mazowieckie","mazo_Warszawa",null,"mazowieckie","Warszawa","Warszawa"]
["01-994","mazowieckie","mazo_Warszawa",null,"mazowieckie","Warszawa","Warszawa"]
["01-995","mazowieckie","mazo_Warszawa",null,"mazowieckie","Warszawa","Warszawa"]
["01-999","mazowieckie","mazo_Warszawa",null,"mazowieckie","Warszawa","Warszawa"]
["02-001","mazowieckie","mazo_Warszawa",null,"mazowieckie","Warszawa","Warszawa"]
["02-002","mazowieckie","mazo_Warszawa",null,"mazowieckie","Warszawa","Warszawa"]
["02-004","mazowieckie","mazo_Warszawa",null,"mazowieckie","Warszawa","Warszawa"]
["02-005","mazowieckie","mazo_Warszawa",null,"mazowieckie","Warszawa","Warszawa"]
["02-006","mazowieckie","mazo_Warszawa",null,"mazowieckie","Warszawa","Warszawa"]
["02-007","mazowieckie","mazo_Warszawa",null,"mazowieckie","Warszawa","Warszawa"]
["02-008","mazowieckie","mazo_Warszawa",null,"mazowieckie","Warszawa","Warszawa"]
["02-009","mazowieckie","mazo_Warszawa",null,"mazowieckie","Warszawa","Warszawa"]
["02-010","mazowieckie","mazo_Warszawa",null,"mazowieckie","Warszawa","Warszawa"]
["02-011","mazowieckie","mazo_Warszawa",null,"mazowieckie","Warszawa","Warszawa"]
["02-012","mazowieckie","mazo_Warszawa",null,"mazowieckie","Warszawa","Warszawa"]
["02-013","mazowieckie","mazo_Warszawa",null,"mazowieckie","Warszawa","Warszawa"]
["02-014","mazowieckie","mazo_Warszawa",null,"mazowieckie","Warszawa","Warszawa"]
["02-015","mazowieckie","mazo_Warszawa",null,"mazowieckie","Warszawa","Warszawa"]
["02-017","mazowieckie","mazo_Warszawa",null,"mazowieckie","Warszawa","Warszawa"]
["02-018","mazowieckie","mazo_Warszawa",null,"mazowieckie","Warszawa","Warszawa"]
["02-019","mazowieckie","mazo_Warszawa",null,"mazowieckie","Warszawa","Warszawa"]
["02-020","mazowieckie","mazo_Warszawa",null,"mazowieckie","Warszawa","Warszawa"]
["02-021","mazowieckie","mazo_Warszawa",null,"mazowieckie","Warszawa","Warszawa"]
["02-022","mazowieckie","mazo_Warszawa",null,"mazowieckie","Warszawa","Warszawa"]
["02-023","mazowieckie","mazo_Warszawa",null,"mazowieckie","Warszawa","Warszawa"]
["02-024","mazowieckie","mazo_Warszawa",null,"mazowieckie","Warszawa","Warszawa"]
["02-025","mazowieckie","mazo_Warszawa",null,"mazowieckie","Warszawa","Warszawa"]
["02-026","mazowieckie","mazo_Warszawa",null,"mazowieckie","Warszawa","Warszawa"]
["02-027","mazowieckie","mazo_Warszawa",null,"mazowieckie","Warszawa","Warszawa"]
["02-028","mazowieckie","mazo_Warszawa",null,"mazowieckie","Warszawa","Warszawa"]
["02-029","mazowieckie","mazo_Warszawa",null,"mazowieckie","Warszawa","Warszawa"]
["02-030","mazowieckie","mazo_Warszawa",null,"mazowieckie","Warszawa","Warszawa"]
["02-031","mazowieckie","mazo_Warszawa",null,"mazowieckie","Warszawa","Warszawa"]
["02-032","mazowieckie","mazo_Warszawa",null,"mazowieckie","Warszawa","Warszawa"]
["02-033","mazowieckie","mazo_Warszawa",null,"mazowieckie","Warszawa","Warszawa"]
["02-034","mazowieckie","mazo_Warszawa",null,"mazowieckie","Warszawa","Warszawa"]
["02-035","mazowieckie","mazo_Warszawa",null,"mazowieckie","Warszawa","Warszawa"]
["02-036","mazowieckie","mazo_Warszawa",null,"mazowieckie","Warszawa","Warszawa"]
["02-038","mazowieckie","mazo_Warszawa",null,"mazowieckie","Warszawa","Warszawa"]
["02-040","mazowieckie","mazo_Warszawa",null,"mazowieckie","Warszawa","Warszawa"]
["02-041","mazowieckie","mazo_Warszawa",null,"mazowieckie","Warszawa","Warszawa"]
["02-042","mazowieckie","mazo_Warszawa",null,"mazowieckie","Warszawa","Warszawa"]
["02-044","mazowieckie","mazo_Warszawa",null,"mazowieckie","Warszawa","Warszawa"]
["02-045","mazowieckie","mazo_Warszawa",null,"mazowieckie","Warszawa","Warszawa"]
["02-046","mazowieckie","mazo_Warszawa",null,"mazowieckie","Warszawa","Warszawa"]
["02-047","mazowieckie","mazo_Warszawa",null,"mazowieckie","Warszawa","Warszawa"]
["02-048","mazowieckie","mazo_Warszawa",null,"mazowieckie","Warszawa","Warszawa"]
["02-049","mazowieckie","mazo_Warszawa",null,"mazowieckie","Warszawa","Warszawa"]
["02-050","mazowieckie","mazo_Warszawa",null,"mazowieckie","Warszawa","Warszawa"]
["02-051","mazowieckie","mazo_Warszawa",null,"mazowieckie","Warszawa","Warszawa"]
["02-052","mazowieckie","mazo_Warszawa",null,"mazowieckie","Warszawa","Warszawa"]
["02-053","mazowieckie","mazo_Warszawa",null,"mazowieckie","Warszawa","Warszawa"]
["02-054","mazowieckie","mazo_Warszawa",null,"mazowieckie","Warszawa","Warszawa"]
["02-055","mazowieckie","mazo_Warszawa",null,"mazowieckie","Warszawa","Warszawa"]
["02-056","mazowieckie","mazo_Warszawa",null,"mazowieckie","Warszawa","Warszawa"]
["02-057","mazowieckie","mazo_Warszawa",null,"mazowieckie","Warszawa","Warszawa"]
["02-059","mazowieckie","mazo_Warszawa",null,"mazowieckie","Warszawa","Warszawa"]
["02-061","mazowieckie","mazo_Warszawa",null,"mazowieckie","Warszawa","Warszawa"]
["02-062","mazowieckie","mazo_Warszawa",null,"mazowieckie","Warszawa","Warszawa"]
["02-063","mazowieckie","mazo_Warszawa",null,"mazowieckie","Warszawa","Warszawa"]
["02-064","mazowieckie","mazo_Warszawa",null,"mazowieckie","Warszawa","Warszawa"]
["02-065","mazowieckie","mazo_Warszawa",null,"mazowieckie","Warszawa","Warszawa"]
["02-066","mazowieckie","mazo_Warszawa",null,"mazowieckie","Warszawa","Warszawa"]
["02-067","mazowieckie","mazo_Warszawa",null,"mazowieckie","Warszawa","Warszawa"]
["02-068","mazowieckie","mazo_Warszawa",null,"mazowieckie","Warszawa","Warszawa"]
["02-069","mazowieckie","mazo_Warszawa",null,"mazowieckie","Warszawa","Warszawa"]
["02-070","mazowieckie","mazo_Warszawa",null,"mazowieckie","Warszawa","Warszawa"]
["02-071","mazowieckie","mazo_Warszawa",null,"mazowieckie","Warszawa","Warszawa"]
["02-072","mazowieckie","mazo_Warszawa",null,"mazowieckie","Warszawa","Warszawa"]
["02-073","mazowieckie","mazo_Warszawa",null,"mazowieckie","Warszawa","Warszawa"]
["02-074","mazowieckie","mazo_Warszawa",null,"mazowieckie","Warszawa","Warszawa"]
["02-075","mazowieckie","mazo_Warszawa",null,"mazowieckie","Warszawa","Warszawa"]
["02-078","mazowieckie","mazo_Warszawa",null,"mazowieckie","Warszawa","Warszawa"]
["02-079","mazowieckie","mazo_Warszawa",null,"mazowieckie","Warszawa","Warszawa"]
["02-080","mazowieckie","mazo_Warszawa",null,"mazowieckie","Warszawa","Warszawa"]
["02-081","mazowieckie","mazo_Warszawa",null,"mazowieckie","Warszawa","Warszawa"]
["02-082","mazowieckie","mazo_Warszawa",null,"mazowieckie","Warszawa","Warszawa"]
["02-083","mazowieckie","mazo_Warszawa",null,"mazowieckie","Warszawa","Warszawa"]
["02-084","mazowieckie","mazo_Warszawa",null,"mazowieckie","Warszawa","Warszawa"]
["02-085","mazowieckie","mazo_Warszawa",null,"mazowieckie","Warszawa","Warszawa"]
["02-086","mazowieckie","mazo_Warszawa",null,"mazowieckie","Warszawa","Warszawa"]
["02-087","mazowieckie","mazo_Warszawa",null,"mazowieckie","Warszawa","Warszawa"]
["02-089","mazowieckie","mazo_Warszawa",null,"mazowieckie","Warszawa","Warszawa"]
["02-090","mazowieckie","mazo_Warszawa",null,"mazowieckie","Warszawa","Warszawa"]
["02-091","mazowieckie","mazo_Warszawa",null,"mazowieckie","Warszawa","Warszawa"]
["02-092","mazowieckie","mazo_Warszawa",null,"mazowieckie","Warszawa","Warszawa"]
["02-093","mazowieckie","mazo_Warszawa",null,"mazowieckie","Warszawa","Warszawa"]
["02-094","mazowieckie","mazo_Warszawa",null,"mazowieckie","Warszawa","Warszawa"]
["02-095","mazowieckie","mazo_Warszawa",null,"mazowieckie","Warszawa","Warszawa"]
["02-096","mazowieckie","mazo_Warszawa",null,"mazowieckie","Warszawa","Warszawa"]
["02-097","mazowieckie","mazo_Warszawa",null,"mazowieckie","Warszawa","Warszawa"]
["02-098","mazowieckie","mazo_Warszawa",null,"mazowieckie","Warszawa","Warszawa"]
["02-100","mazowieckie","mazo_Warszawa",null,"mazowieckie","Warszawa","Warszawa"]
["02-101","mazowieckie","mazo_Warszawa",null,"mazowieckie","Warszawa","Warszawa"]
["02-102","mazowieckie","mazo_Warszawa",null,"mazowieckie","Warszawa","Warszawa"]
["02-103","mazowieckie","mazo_Warszawa",null,"mazowieckie","Warszawa","Warszawa"]
["02-104","mazowieckie","mazo_Warszawa",null,"mazowieckie","Warszawa","Warszawa"]
["02-105","mazowieckie","mazo_Warszawa",null,"mazowieckie","Warszawa","Warszawa"]
["02-106","mazowieckie","mazo_Warszawa",null,"mazowieckie","Warszawa","Warszawa"]
["02-107","mazowieckie","mazo_Warszawa",null,"mazowieckie","Warszawa","Warszawa"]
["02-108","mazowieckie","mazo_Warszawa",null,"mazowieckie","Warszawa","Warszawa"]
["02-109","mazowieckie","mazo_Warszawa",null,"mazowieckie","Warszawa","Warszawa"]
["02-110","mazowieckie","mazo_Warszawa",null,"mazowieckie","Warszawa","Warszawa"]
["02-111","mazowieckie","mazo_Warszawa",null,"mazowieckie","Warszawa","Warszawa"]
["02-112","mazowieckie","mazo_Warszawa",null,"mazowieckie","Warszawa","Warszawa"]
["02-114","mazowieckie","mazo_Warszawa",null,"mazowieckie","Warszawa","Warszawa"]
["02-115","mazowieckie","mazo_Warszawa",null,"mazowieckie","Warszawa","Warszawa"]
["02-116","mazowieckie","mazo_Warszawa",null,"mazowieckie","Warszawa","Warszawa"]
["02-117","mazowieckie","mazo_Warszawa",null,"mazowieckie","Warszawa","Warszawa"]
["02-118","mazowieckie","mazo_Warszawa",null,"mazowieckie","Warszawa","Warszawa"]
["02-119","mazowieckie","mazo_Warszawa",null,"mazowieckie","Warszawa","Warszawa"]
["02-120","mazowieckie","mazo_Warszawa",null,"mazowieckie","Warszawa","Warszawa"]
["02-121","mazowieckie","mazo_Warszawa",null,"mazowieckie","Warszawa","Warszawa"]
["02-122","mazowieckie","mazo_Warszawa",null,"mazowieckie","Warszawa","Warszawa"]
["02-123","mazowieckie","mazo_Warszawa",null,"mazowieckie","Warszawa","Warszawa"]
["02-124","mazowieckie","mazo_Warszawa",null,"mazowieckie","Warszawa","Warszawa"]
["02-126","mazowieckie","mazo_Warszawa",null,"mazowieckie","Warszawa","Warszawa"]
["02-127","mazowieckie","mazo_Warszawa",null,"mazowieckie","Warszawa","Warszawa"]
["02-128","mazowieckie","mazo_Warszawa",null,"mazowieckie","Warszawa","Warszawa"]
["02-129","mazowieckie","mazo_Warszawa",null,"mazowieckie","Warszawa","Warszawa"]
["02-130","mazowieckie","mazo_Warszawa",null,"mazowieckie","Warszawa","Warszawa"]
["02-131","mazowieckie","mazo_Warszawa",null,"mazowieckie","Warszawa","Warszawa"]
["02-132","mazowieckie","mazo_Warszawa",null,"mazowieckie","Warszawa","Warszawa"]
["02-133","mazowieckie","mazo_Warszawa",null,"mazowieckie","Warszawa","Warszawa"]
["02-134","mazowieckie","mazo_Warszawa",null,"mazowieckie","Warszawa","Warszawa"]
["02-135","mazowieckie","mazo_Warszawa",null,"mazowieckie","Warszawa","Warszawa"]
["02-136","mazowieckie","mazo_Warszawa",null,"mazowieckie","Warszawa","Warszawa"]
["02-137","mazowieckie","mazo_Warszawa",null,"mazowieckie","Warszawa","Warszawa"]
["02-138","mazowieckie","mazo_Warszawa",null,"mazowieckie","Warszawa","Warszawa"]
["02-139","mazowieckie","mazo_Warszawa",null,"mazowieckie","Warszawa","Warszawa"]
["02-140","mazowieckie","mazo_Warszawa",null,"mazowieckie","Warszawa","Warszawa"]
["02-141","mazowieckie","mazo_Warszawa",null,"mazowieckie","Warszawa","Warszawa"]
["02-142","mazowieckie","mazo_Warszawa",null,"mazowieckie","Warszawa","Warszawa"]
["02-143","mazowieckie","mazo_Warszawa",null,"mazowieckie","Warszawa","Warszawa"]
["02-144","mazowieckie","mazo_Warszawa",null,"mazowieckie","Warszawa","Warszawa"]
["02-145","mazowieckie","mazo_Warszawa",null,"mazowieckie","Warszawa","Warszawa"]
["02-146","mazowieckie","mazo_Warszawa",null,"mazowieckie","Warszawa","Warszawa"]
["02-147","mazowieckie","mazo_Warszawa",null,"mazowieckie","Warszawa","Warszawa"]
["02-148","mazowieckie","mazo_Warszawa",null,"mazowieckie","Warszawa","Warszawa"]
["02-149","mazowieckie","mazo_Warszawa",null,"mazowieckie","Warszawa","Warszawa"]
["02-150","mazowieckie","mazo_Warszawa",null,"mazowieckie","Warszawa","Warszawa"]
["02-151","mazowieckie","mazo_Warszawa",null,"mazowieckie","Warszawa","Warszawa"]
["02-152","mazowieckie","mazo_Warszawa",null,"mazowieckie","Warszawa","Warszawa"]
["02-153","mazowieckie","mazo_Warszawa",null,"mazowieckie","Warszawa","Warszawa"]
["02-154","mazowieckie","mazo_Warszawa",null,"mazowieckie","Warszawa","Warszawa"]
["02-155","mazowieckie","mazo_Warszawa",null,"mazowieckie","Warszawa","Warszawa"]
["02-156","mazowieckie","mazo_Warszawa",null,"mazowieckie","Warszawa","Warszawa"]
["02-157","mazowieckie","mazo_Warszawa",null,"mazowieckie","Warszawa","Warszawa"]
["02-158","mazowieckie","mazo_Warszawa",null,"mazowieckie","Warszawa","Warszawa"]
["02-159","mazowieckie","mazo_Warszawa",null,"mazowieckie","Warszawa","Warszawa"]
["02-160","mazowieckie","mazo_Warszawa",null,"mazowieckie","Warszawa","Warszawa"]
["02-161","mazowieckie","mazo_Warszawa",null,"mazowieckie","Warszawa","Warszawa"]
["02-162","mazowieckie","mazo_Warszawa",null,"mazowieckie","Warszawa","Warszawa"]
["02-163","mazowieckie","mazo_Warszawa",null,"mazowieckie","Warszawa","Warszawa"]
["02-164","mazowieckie","mazo_Warszawa",null,"mazowieckie","Warszawa","Warszawa"]
["02-165","mazowieckie","mazo_Warszawa",null,"mazowieckie","Warszawa","Warszawa"]
["02-166","mazowieckie","mazo_Warszawa",null,"mazowieckie","Warszawa","Warszawa"]
["02-168","mazowieckie","mazo_Warszawa",null,"mazowieckie","Warszawa","Warszawa"]
["02-169","mazowieckie","mazo_Warszawa",null,"mazowieckie","Warszawa","Warszawa"]
["02-170","mazowieckie","mazo_Warszawa",null,"mazowieckie","Warszawa","Warszawa"]
["02-172","mazowieckie","mazo_Warszawa",null,"mazowieckie","Warszawa","Warszawa"]
["02-173","mazowieckie","mazo_Warszawa",null,"mazowieckie","Warszawa","Warszawa"]
["02-174","mazowieckie","mazo_Warszawa",null,"mazowieckie","Warszawa","Warszawa"]
["02-175","mazowieckie","mazo_Warszawa",null,"mazowieckie","Warszawa","Warszawa"]
["02-176","mazowieckie","mazo_Warszawa",null,"mazowieckie","Warszawa","Warszawa"]
["02-177","mazowieckie","mazo_Warszawa",null,"mazowieckie","Warszawa","Warszawa"]
["02-178","mazowieckie","mazo_Warszawa",null,"mazowieckie","Warszawa","Warszawa"]
["02-179","mazowieckie","mazo_Warszawa",null,"mazowieckie","Warszawa","Warszawa"]
["02-180","mazowieckie","mazo_Warszawa",null,"mazowieckie","Warszawa","Warszawa"]
["02-181","mazowieckie","mazo_Warszawa",null,"mazowieckie","Warszawa","Warszawa"]
["02-182","mazowieckie","mazo_Warszawa",null,"mazowieckie","Warszawa","Warszawa"]
["02-183","mazowieckie","mazo_Warszawa",null,"mazowieckie","Warszawa","Warszawa"]
["02-184","mazowieckie","mazo_Warszawa",null,"mazowieckie","Warszawa","Warszawa"]
["02-186","mazowieckie","mazo_Warszawa",null,"mazowieckie","Warszawa","Warszawa"]
["02-187","mazowieckie","mazo_Warszawa",null,"mazowieckie","Warszawa","Warszawa"]
["02-188","mazowieckie","mazo_Warszawa",null,"mazowieckie","Warszawa","Warszawa"]
["02-189","mazowieckie","mazo_Warszawa",null,"mazowieckie","Warszawa","Warszawa"]
["02-190","mazowieckie","mazo_Warszawa",null,"mazowieckie","Warszawa","Warszawa"]
["02-191","mazowieckie","mazo_Warszawa",null,"mazowieckie","Warszawa","Warszawa"]
["02-192","mazowieckie","mazo_Warszawa",null,"mazowieckie","Warszawa","Warszawa"]
["02-194","mazowieckie","mazo_Warszawa",null,"mazowieckie","Warszawa","Warszawa"]
["02-195","mazowieckie","mazo_Warszawa",null,"mazowieckie","Warszawa","Warszawa"]
["02-196","mazowieckie","mazo_Warszawa",null,"mazowieckie","Warszawa","Warszawa"]
["02-197","mazowieckie","mazo_Warszawa",null,"mazowieckie","Warszawa","Warszawa"]
["02-198","mazowieckie","mazo_Warszawa",null,"mazowieckie","Warszawa","Warszawa"]
["02-200","mazowieckie","mazo_Warszawa",null,"mazowieckie","Warszawa","Warszawa"]
["02-201","mazowieckie","mazo_Warszawa",null,"mazowieckie","Warszawa","Warszawa"]
["02-202","mazowieckie","mazo_Warszawa",null,"mazowieckie","Warszawa","Warszawa"]
["02-203","mazowieckie","mazo_Warszawa",null,"mazowieckie","Warszawa","Warszawa"]
["02-204","mazowieckie","mazo_Warszawa",null,"mazowieckie","Warszawa","Warszawa"]
["02-205","mazowieckie","mazo_Warszawa",null,"mazowieckie","Warszawa","Warszawa"]
["02-206","mazowieckie","mazo_Warszawa",null,"mazowieckie","Warszawa","Warszawa"]
["02-207","mazowieckie","mazo_Warszawa",null,"mazowieckie","Warszawa","Warszawa"]
["02-208","mazowieckie","mazo_Warszawa",null,"mazowieckie","Warszawa","Warszawa"]
["02-209","mazowieckie","mazo_Warszawa",null,"mazowieckie","Warszawa","Warszawa"]
["02-210","mazowieckie","mazo_Warszawa",null,"mazowieckie","Warszawa","Warszawa"]
["02-211","mazowieckie","mazo_Warszawa",null,"mazowieckie","Warszawa","Warszawa"]
["02-212","mazowieckie","mazo_Warszawa",null,"mazowieckie","Warszawa","Warszawa"]
["02-213","mazowieckie","mazo_Warszawa",null,"mazowieckie","Warszawa","Warszawa"]
["02-214","mazowieckie","mazo_Warszawa",null,"mazowieckie","Warszawa","Warszawa"]
["02-215","mazowieckie","mazo_Warszawa",null,"mazowieckie","Warszawa","Warszawa"]
["02-216","mazowieckie","mazo_Warszawa",null,"mazowieckie","Warszawa","Warszawa"]
["02-217","mazowieckie","mazo_Warszawa",null,"mazowieckie","Warszawa","Warszawa"]
["02-218","mazowieckie","mazo_Warszawa",null,"mazowieckie","Warszawa","Warszawa"]
["02-219","mazowieckie","mazo_Warszawa",null,"mazowieckie","Warszawa","Warszawa"]
["02-220","mazowieckie","mazo_Warszawa",null,"mazowieckie","Warszawa","Warszawa"]
["02-221","mazowieckie","mazo_Warszawa",null,"mazowieckie","Warszawa","Warszawa"]
["02-222","mazowieckie","mazo_Warszawa",null,"mazowieckie","Warszawa","Warszawa"]
["02-223","mazowieckie","mazo_Warszawa",null,"mazowieckie","Warszawa","Warszawa"]
["02-224","mazowieckie","mazo_Warszawa",null,"mazowieckie","Warszawa","Warszawa"]
["02-225","mazowieckie","mazo_Warszawa",null,"mazowieckie","Warszawa","Warszawa"]
["02-226","mazowieckie","mazo_Warszawa",null,"mazowieckie","Warszawa","Warszawa"]
["02-227","mazowieckie","mazo_Warszawa",null,"mazowieckie","Warszawa","Warszawa"]
["02-228","mazowieckie","mazo_Warszawa",null,"mazowieckie","Warszawa","Warszawa"]
["02-229","mazowieckie","mazo_Warszawa",null,"mazowieckie","Warszawa","Warszawa"]
["02-230","mazowieckie","mazo_Warszawa",null,"mazowieckie","Warszawa","Warszawa"]
["02-231","mazowieckie","mazo_Warszawa",null,"mazowieckie","Warszawa","Warszawa"]
["02-232","mazowieckie","mazo_Warszawa",null,"mazowieckie","Warszawa","Warszawa"]
["02-233","mazowieckie","mazo_Warszawa",null,"mazowieckie","Warszawa","Warszawa"]
["02-234","mazowieckie","mazo_Warszawa",null,"mazowieckie","Warszawa","Warszawa"]
["02-235","mazowieckie","mazo_Warszawa",null,"mazowieckie","Warszawa","Warszawa"]
["02-236","mazowieckie","mazo_Warszawa",null,"mazowieckie","Warszawa","Warszawa"]
["02-237","mazowieckie","mazo_Warszawa",null,"mazowieckie","Warszawa","Warszawa"]
["02-238","mazowieckie","mazo_Warszawa",null,"mazowieckie","Warszawa","Warszawa"]
["02-239","mazowieckie","mazo_Warszawa",null,"mazowieckie","Warszawa","Warszawa"]
["02-240","mazowieckie","mazo_Warszawa",null,"mazowieckie","Warszawa","Warszawa"]
["02-241","mazowieckie","mazo_Warszawa",null,"mazowieckie","Warszawa","Warszawa"]
["02-242","mazowieckie","mazo_Warszawa",null,"mazowieckie","Warszawa","Warszawa"]
["02-243","mazowieckie","mazo_Warszawa",null,"mazowieckie","Warszawa","Warszawa"]
["02-244","mazowieckie","mazo_Warszawa",null,"mazowieckie","Warszawa","Warszawa"]
["02-246","mazowieckie","mazo_Warszawa",null,"mazowieckie","Warszawa","Warszawa"]
["02-247","mazowieckie","mazo_Warszawa",null,"mazowieckie","Warszawa","Warszawa"]
["02-248","mazowieckie","mazo_Warszawa",null,"mazowieckie","Warszawa","Warszawa"]
["02-249","mazowieckie","mazo_Warszawa",null,"mazowieckie","Warszawa","Warszawa"]
["02-250","mazowieckie","mazo_Warszawa",null,"mazowieckie","Warszawa","Warszawa"]
["02-251","mazowieckie","mazo_Warszawa",null,"mazowieckie","Warszawa","Warszawa"]
["02-252","mazowieckie","mazo_Warszawa",null,"mazowieckie","Warszawa","Warszawa"]
["02-253","mazowieckie","mazo_Warszawa",null,"mazowieckie","Warszawa","Warszawa"]
["02-254","mazowieckie","mazo_Warszawa",null,"mazowieckie","Warszawa","Warszawa"]
["02-255","mazowieckie","mazo_Warszawa",null,"mazowieckie","Warszawa","Warszawa"]
["02-256","mazowieckie","mazo_Warszawa",null,"mazowieckie","Warszawa","Warszawa"]
["02-257","mazowieckie","mazo_Warszawa",null,"mazowieckie","Warszawa","Warszawa"]
["02-258","mazowieckie","mazo_Warszawa",null,"mazowieckie","Warszawa","Warszawa"]
["02-259","mazowieckie","mazo_Warszawa",null,"mazowieckie","Warszawa","Warszawa"]
["02-260","mazowieckie","mazo_Warszawa",null,"mazowieckie","Warszawa","Warszawa"]
["02-261","mazowieckie","mazo_Warszawa",null,"mazowieckie","Warszawa","Warszawa"]
["02-262","mazowieckie","mazo_Warszawa",null,"mazowieckie","Warszawa","Warszawa"]
["02-263","mazowieckie","mazo_Warszawa",null,"mazowieckie","Warszawa","Warszawa"]
["02-264","mazowieckie","mazo_Warszawa",null,"mazowieckie","Warszawa","Warszawa"]
["02-265","mazowieckie","mazo_Warszawa",null,"mazowieckie","Warszawa","Warszawa"]
["02-266","mazowieckie","mazo_Warszawa",null,"mazowieckie","Warszawa","Warszawa"]
["02-267","mazowieckie","mazo_Warszawa",null,"mazowieckie","Warszawa","Warszawa"]
["02-268","mazowieckie","mazo_Warszawa",null,"mazowieckie","Warszawa","Warszawa"]
["02-269","mazowieckie","mazo_Warszawa",null,"mazowieckie","Warszawa","Warszawa"]
["02-270","mazowieckie","mazo_Warszawa",null,"mazowieckie","Warszawa","Warszawa"]
["02-271","mazowieckie","mazo_Warszawa",null,"mazowieckie","Warszawa","Warszawa"]
["02-272","mazowieckie","mazo_Warszawa",null,"mazowieckie","Warszawa","Warszawa"]
["02-273","mazowieckie","mazo_Warszawa",null,"mazowieckie","Warszawa","Warszawa"]
["02-274","mazowieckie","mazo_Warszawa",null,"mazowieckie","Warszawa","Warszawa"]
["02-275","mazowieckie","mazo_Warszawa",null,"mazowieckie","Warszawa","Warszawa"]
["02-276","mazowieckie","mazo_Warszawa",null,"mazowieckie","Warszawa","Warszawa"]
["02-277","mazowieckie","mazo_Warszawa",null,"mazowieckie","Warszawa","Warszawa"]
["02-278","mazowieckie","mazo_Warszawa",null,"mazowieckie","Warszawa","Warszawa"]
["02-279","mazowieckie","mazo_Warszawa",null,"mazowieckie","Warszawa","Warszawa"]
["02-280","mazowieckie","mazo_Warszawa",null,"mazowieckie","Warszawa","Warszawa"]
["02-281","mazowieckie","mazo_Warszawa",null,"mazowieckie","Warszawa","Warszawa"]
["02-282","mazowieckie","mazo_Warszawa",null,"mazowieckie","Warszawa","Warszawa"]
["02-283","mazowieckie","mazo_Warszawa",null,"mazowieckie","Warszawa","Warszawa"]
["02-284","mazowieckie","mazo_Warszawa",null,"mazowieckie","Warszawa","Warszawa"]
["02-285","mazowieckie","mazo_Warszawa",null,"mazowieckie","Warszawa","Warszawa"]
["02-286","mazowieckie","mazo_Warszawa",null,"mazowieckie","Warszawa","Warszawa"]
["02-287","mazowieckie","mazo_Warszawa",null,"mazowieckie","Warszawa","Warszawa"]
["02-288","mazowieckie","mazo_Warszawa",null,"mazowieckie","Warszawa","Warszawa"]
["02-290","mazowieckie","mazo_Warszawa",null,"mazowieckie","Warszawa","Warszawa"]
["02-291","mazowieckie","mazo_Warszawa",null,"mazowieckie","Warszawa","Warszawa"]
["02-292","mazowieckie","mazo_Warszawa",null,"mazowieckie","Warszawa","Warszawa"]
["02-293","mazowieckie","mazo_Warszawa",null,"mazowieckie","Warszawa","Warszawa"]
["02-294","mazowieckie","mazo_Warszawa",null,"mazowieckie","Warszawa","Warszawa"]
["02-295","mazowieckie","mazo_Warszawa",null,"mazowieckie","Warszawa","Warszawa"]
["02-296","mazowieckie","mazo_Warszawa",null,"mazowieckie","Warszawa","Warszawa"]
["02-298","mazowieckie","mazo_Warszawa",null,"mazowieckie","Warszawa","Warszawa"]
["02-299","mazowieckie","mazo_Warszawa",null,"mazowieckie","Warszawa","Warszawa"]
["02-301","mazowieckie","mazo_Warszawa",null,"mazowieckie","Warszawa","Warszawa"]
["02-302","mazowieckie","mazo_Warszawa",null,"mazowieckie","Warszawa","Warszawa"]
["02-303","mazowieckie","mazo_Warszawa",null,"mazowieckie","Warszawa","Warszawa"]
["02-304","mazowieckie","mazo_Warszawa",null,"mazowieckie","Warszawa","Warszawa"]
["02-305","mazowieckie","mazo_Warszawa",null,"mazowieckie","Warszawa","Warszawa"]
["02-306","mazowieckie","mazo_Warszawa",null,"mazowieckie","Warszawa","Warszawa"]
["02-307","mazowieckie","mazo_Warszawa",null,"mazowieckie","Warszawa","Warszawa"]
["02-308","mazowieckie","mazo_Warszawa",null,"mazowieckie","Warszawa","Warszawa"]
["02-309","mazowieckie","mazo_Warszawa",null,"mazowieckie","Warszawa","Warszawa"]
["02-310","mazowieckie","mazo_Warszawa",null,"mazowieckie","Warszawa","Warszawa"]
["02-311","mazowieckie","mazo_Warszawa",null,"mazowieckie","Warszawa","Warszawa"]
["02-312","mazowieckie","mazo_Warszawa",null,"mazowieckie","Warszawa","Warszawa"]
["02-313","mazowieckie","mazo_Warszawa",null,"mazowieckie","Warszawa","Warszawa"]
["02-314","mazowieckie","mazo_Warszawa",null,"mazowieckie","Warszawa","Warszawa"]
["02-315","mazowieckie","mazo_Warszawa",null,"mazowieckie","Warszawa","Warszawa"]
["02-316","mazowieckie","mazo_Warszawa",null,"mazowieckie","Warszawa","Warszawa"]
["02-317","mazowieckie","mazo_Warszawa",null,"mazowieckie","Warszawa","Warszawa"]
["02-318","mazowieckie","mazo_Warszawa",null,"mazowieckie","Warszawa","Warszawa"]
["02-319","mazowieckie","mazo_Warszawa",null,"mazowieckie","Warszawa","Warszawa"]
["02-320","mazowieckie","mazo_Warszawa",null,"mazowieckie","Warszawa","Warszawa"]
["02-321","mazowieckie","mazo_Warszawa",null,"mazowieckie","Warszawa","Warszawa"]
["02-322","mazowieckie","mazo_Warszawa",null,"mazowieckie","Warszawa","Warszawa"]
["02-323","mazowieckie","mazo_Warszawa",null,"mazowieckie","Warszawa","Warszawa"]
["02-324","mazowieckie","mazo_Warszawa",null,"mazowieckie","Warszawa","Warszawa"]
["02-325","mazowieckie","mazo_Warszawa",null,"mazowieckie","Warszawa","Warszawa"]
["02-326","mazowieckie","mazo_Warszawa",null,"mazowieckie","Warszawa","Warszawa"]
["02-327","mazowieckie","mazo_Warszawa",null,"mazowieckie","Warszawa","Warszawa"]
["02-334","mazowieckie","mazo_Warszawa",null,"mazowieckie","Warszawa","Warszawa"]
["02-335","mazowieckie","mazo_Warszawa",null,"mazowieckie","Warszawa","Warszawa"]
["02-336","mazowieckie","mazo_Warszawa",null,"mazowieckie","Warszawa","Warszawa"]
["02-337","mazowieckie","mazo_Warszawa",null,"mazowieckie","Warszawa","Warszawa"]
["02-338","mazowieckie","mazo_Warszawa",null,"mazowieckie","Warszawa","Warszawa"]
["02-339","mazowieckie","mazo_Warszawa",null,"mazowieckie","Warszawa","Warszawa"]
["02-340","mazowieckie","mazo_Warszawa",null,"mazowieckie","Warszawa","Warszawa"]
["02-341","mazowieckie","mazo_Warszawa",null,"mazowieckie","Warszawa","Warszawa"]
["02-342","mazowieckie","mazo_Warszawa",null,"mazowieckie","Warszawa","Warszawa"]
["02-343","mazowieckie","mazo_Warszawa",null,"mazowieckie","Warszawa","Warszawa"]
["02-344","mazowieckie","mazo_Warszawa",null,"mazowieckie","Warszawa","Warszawa"]
["02-345","mazowieckie","mazo_Warszawa",null,"mazowieckie","Warszawa","Warszawa"]
["02-346","mazowieckie","mazo_Warszawa",null,"mazowieckie","Warszawa","Warszawa"]
["02-347","mazowieckie","mazo_Warszawa",null,"mazowieckie","Warszawa","Warszawa"]
["02-348","mazowieckie","mazo_Warszawa",null,"mazowieckie","Warszawa","Warszawa"]
["02-349","mazowieckie","mazo_Warszawa",null,"mazowieckie","Warszawa","Warszawa"]
["02-350","mazowieckie","mazo_Warszawa",null,"mazowieckie","Warszawa","Warszawa"]
["02-351","mazowieckie","mazo_Warszawa",null,"mazowieckie","Warszawa","Warszawa"]
["02-352","mazowieckie","mazo_Warszawa",null,"mazowieckie","Warszawa","Warszawa"]
["02-353","mazowieckie","mazo_Warszawa",null,"mazowieckie","Warszawa","Warszawa"]
["02-354","mazowieckie","mazo_Warszawa",null,"mazowieckie","Warszawa","Warszawa"]
["02-356","mazowieckie","mazo_Warszawa",null,"mazowieckie","Warszawa","Warszawa"]
["02-359","mazowieckie","mazo_Warszawa",null,"mazowieckie","Warszawa","Warszawa"]
["02-360","mazowieckie","mazo_Warszawa",null,"mazowieckie","Warszawa","Warszawa"]
["02-361","mazowieckie","mazo_Warszawa",null,"mazowieckie","Warszawa","Warszawa"]
["02-362","mazowieckie","mazo_Warszawa",null,"mazowieckie","Warszawa","Warszawa"]
["02-363","mazowieckie","mazo_Warszawa",null,"mazowieckie","Warszawa","Warszawa"]
["02-364","mazowieckie","mazo_Warszawa",null,"mazowieckie","Warszawa","Warszawa"]
["02-365","mazowieckie","mazo_Warszawa",null,"mazowieckie","Warszawa","Warszawa"]
["02-366","mazowieckie","mazo_Warszawa",null,"mazowieckie","Warszawa","Warszawa"]
["02-367","mazowieckie","mazo_Warszawa",null,"mazowieckie","Warszawa","Warszawa"]
["02-368","mazowieckie","mazo_Warszawa",null,"mazowieckie","Warszawa","Warszawa"]
["02-369","mazowieckie","mazo_Warszawa",null,"mazowieckie","Warszawa","Warszawa"]
["02-370","mazowieckie","mazo_Warszawa",null,"mazowieckie","Warszawa","Warszawa"]
["02-371","mazowieckie","mazo_Warszawa",null,"mazowieckie","Warszawa","Warszawa"]
["02-372","mazowieckie","mazo_Warszawa",null,"mazowieckie","Warszawa","Warszawa"]
["02-373","mazowieckie","mazo_Warszawa",null,"mazowieckie","Warszawa","Warszawa"]
["02-374","mazowieckie","mazo_Warszawa",null,"mazowieckie","Warszawa","Warszawa"]
["02-375","mazowieckie","mazo_Warszawa",null,"mazowieckie","Warszawa","Warszawa"]
["02-376","mazowieckie","mazo_Warszawa",null,"mazowieckie","Warszawa","Warszawa"]
["02-377","mazowieckie","mazo_Warszawa",null,"mazowieckie","Warszawa","Warszawa"]
["02-378","mazowieckie","mazo_Warszawa",null,"mazowieckie","Warszawa","Warszawa"]
["02-379","mazowieckie","mazo_Warszawa",null,"mazowieckie","Warszawa","Warszawa"]
["02-380","mazowieckie","mazo_Warszawa",null,"mazowieckie","Warszawa","Warszawa"]
["02-381","mazowieckie","mazo_Warszawa",null,"mazowieckie","Warszawa","Warszawa"]
["02-382","mazowieckie","mazo_Warszawa",null,"mazowieckie","Warszawa","Warszawa"]
["02-383","mazowieckie","mazo_Warszawa",null,"mazowieckie","Warszawa","Warszawa"]
["02-384","mazowieckie","mazo_Warszawa",null,"mazowieckie","Warszawa","Warszawa"]
["02-385","mazowieckie","mazo_Warszawa",null,"mazowieckie","Warszawa","Warszawa"]
["02-386","mazowieckie","mazo_Warszawa",null,"mazowieckie","Warszawa","Warszawa"]
["02-387","mazowieckie","mazo_Warszawa",null,"mazowieckie","Warszawa","Warszawa"]
["02-388","mazowieckie","mazo_Warszawa",null,"mazowieckie","Warszawa","Warszawa"]
["02-389","mazowieckie","mazo_Warszawa",null,"mazowieckie","Warszawa","Warszawa"]
["02-390","mazowieckie","mazo_Warszawa",null,"mazowieckie","Warszawa","Warszawa"]
["02-391","mazowieckie","mazo_Warszawa",null,"mazowieckie","Warszawa","Warszawa"]
["02-392","mazowieckie","mazo_Warszawa",null,"mazowieckie","Warszawa","Warszawa"]
["02-393","mazowieckie","mazo_Warszawa",null,"mazowieckie","Warszawa","Warszawa"]
["02-394","mazowieckie","mazo_Warszawa",null,"mazowieckie","Warszawa","Warszawa"]
["02-395","mazowieckie","mazo_Warszawa",null,"mazowieckie","Warszawa","Warszawa"]
["02-396","mazowieckie","mazo_Warszawa",null,"mazowieckie","Warszawa","Warszawa"]
["02-397","mazowieckie","mazo_Warszawa",null,"mazowieckie","Warszawa","Warszawa"]
["02-398","mazowieckie","mazo_Warszawa",null,"mazowieckie","Warszawa","Warszawa"]
["02-400","mazowieckie","mazo_Warszawa",null,"mazowieckie","Warszawa","Warszawa"]
["02-401","mazowieckie","mazo_Warszawa",null,"mazowieckie","Warszawa","Warszawa"]
["02-402","mazowieckie","mazo_Warszawa",null,"mazowieckie","Warszawa","Warszawa"]
["02-403","mazowieckie","mazo_Warszawa",null,"mazowieckie","Warszawa","Warszawa"]
["02-404","mazowieckie","mazo_Warszawa",null,"mazowieckie","Warszawa","Warszawa"]
["02-405","mazowieckie","mazo_Warszawa",null,"mazowieckie","Warszawa","Warszawa"]
["02-406","mazowieckie","mazo_Warszawa",null,"mazowieckie","Warszawa","Warszawa"]
["02-407","mazowieckie","mazo_Warszawa",null,"mazowieckie","Warszawa","Warszawa"]
["02-408","mazowieckie","mazo_Warszawa",null,"mazowieckie","Warszawa","Warszawa"]
["02-409","mazowieckie","mazo_Warszawa",null,"mazowieckie","Warszawa","Warszawa"]
["02-410","mazowieckie","mazo_Warszawa",null,"mazowieckie","Warszawa","Warszawa"]
["02-411","mazowieckie","mazo_Warszawa",null,"mazowieckie","Warszawa","Warszawa"]
["02-412","mazowieckie","mazo_Warszawa",null,"mazowieckie","Warszawa","Warszawa"]
["02-413","mazowieckie","mazo_Warszawa",null,"mazowieckie","Warszawa","Warszawa"]
["02-414","mazowieckie","mazo_Warszawa",null,"mazowieckie","Warszawa","Warszawa"]
["02-415","mazowieckie","mazo_Warszawa",null,"mazowieckie","Warszawa","Warszawa"]
["02-416","mazowieckie","mazo_Warszawa",null,"mazowieckie","Warszawa","Warszawa"]
["02-417","mazowieckie","mazo_Warszawa",null,"mazowieckie","Warszawa","Warszawa"]
["02-419","mazowieckie","mazo_Warszawa",null,"mazowieckie","Warszawa","Warszawa"]
["02-421","mazowieckie","mazo_Warszawa",null,"mazowieckie","Warszawa","Warszawa"]
["02-422","mazowieckie","mazo_Warszawa",null,"mazowieckie","Warszawa","Warszawa"]
["02-423","mazowieckie","mazo_Warszawa",null,"mazowieckie","Warszawa","Warszawa"]
["02-424","mazowieckie","mazo_Warszawa",null,"mazowieckie","Warszawa","Warszawa"]
["02-425","mazowieckie","mazo_Warszawa",null,"mazowieckie","Warszawa","Warszawa"]
["02-426","mazowieckie","mazo_Warszawa",null,"mazowieckie","Warszawa","Warszawa"]
["02-427","mazowieckie","mazo_Warszawa",null,"mazowieckie","Warszawa","Warszawa"]
["02-428","mazowieckie","mazo_Warszawa",null,"mazowieckie","Warszawa","Warszawa"]
["02-430","mazowieckie","mazo_Warszawa",null,"mazowieckie","Warszawa","Warszawa"]
["02-431","mazowieckie","mazo_Warszawa",null,"mazowieckie","Warszawa","Warszawa"]
["02-432","mazowieckie","mazo_Warszawa",null,"mazowieckie","Warszawa","Warszawa"]
["02-433","mazowieckie","mazo_Warszawa",null,"mazowieckie","Warszawa","Warszawa"]
["02-434","mazowieckie","mazo_Warszawa",null,"mazowieckie","Warszawa","Warszawa"]
["02-435","mazowieckie","mazo_Warszawa",null,"mazowieckie","Warszawa","Warszawa"]
["02-436","mazowieckie","mazo_Warszawa",null,"mazowieckie","Warszawa","Warszawa"]
["02-437","mazowieckie","mazo_Warszawa",null,"mazowieckie","Warszawa","Warszawa"]
["02-438","mazowieckie","mazo_Warszawa",null,"mazowieckie","Warszawa","Warszawa"]
["02-439","mazowieckie","mazo_Warszawa",null,"mazowieckie","Warszawa","Warszawa"]
["02-440","mazowieckie","mazo_Warszawa",null,"mazowieckie","Warszawa","Warszawa"]
["02-441","mazowieckie","mazo_Warszawa",null,"mazowieckie","Warszawa","Warszawa"]
["02-442","mazowieckie","mazo_Warszawa",null,"mazowieckie","Warszawa","Warszawa"]
["02-443","mazowieckie","mazo_Warszawa",null,"mazowieckie","Warszawa","Warszawa"]
["02-445","mazowieckie","mazo_Warszawa",null,"mazowieckie","Warszawa","Warszawa"]
["02-446","mazowieckie","mazo_Warszawa",null,"mazowieckie","Warszawa","Warszawa"]
["02-447","mazowieckie","mazo_Warszawa",null,"mazowieckie","Warszawa","Warszawa"]
["02-448","mazowieckie","mazo_Warszawa",null,"mazowieckie","Warszawa","Warszawa"]
["02-449","mazowieckie","mazo_Warszawa",null,"mazowieckie","Warszawa","Warszawa"]
["02-450","mazowieckie","mazo_Warszawa",null,"mazowieckie","Warszawa","Warszawa"]
["02-451","mazowieckie","mazo_Warszawa",null,"mazowieckie","Warszawa","Warszawa"]
["02-452","mazowieckie","mazo_Warszawa",null,"mazowieckie","Warszawa","Warszawa"]
["02-453","mazowieckie","mazo_Warszawa",null,"mazowieckie","Warszawa","Warszawa"]
["02-454","mazowieckie","mazo_Warszawa",null,"mazowieckie","Warszawa","Warszawa"]
["02-455","mazowieckie","mazo_Warszawa",null,"mazowieckie","Warszawa","Warszawa"]
["02-456","mazowieckie","mazo_Warszawa",null,"mazowieckie","Warszawa","Warszawa"]
["02-457","mazowieckie","mazo_Warszawa",null,"mazowieckie","Warszawa","Warszawa"]
["02-458","mazowieckie","mazo_Warszawa",null,"mazowieckie","Warszawa","Warszawa"]
["02-459","mazowieckie","mazo_Warszawa",null,"mazowieckie","Warszawa","Warszawa"]
["02-460","mazowieckie","mazo_Warszawa",null,"mazowieckie","Warszawa","Warszawa"]
["02-461","mazowieckie","mazo_Warszawa",null,"mazowieckie","Warszawa","Warszawa"]
["02-462","mazowieckie","mazo_Warszawa",null,"mazowieckie","Warszawa","Warszawa"]
["02-463","mazowieckie","mazo_Warszawa",null,"mazowieckie","Warszawa","Warszawa"]
["02-464","mazowieckie","mazo_Warszawa",null,"mazowieckie","Warszawa","Warszawa"]
["02-465","mazowieckie","mazo_Warszawa",null,"mazowieckie","Warszawa","Warszawa"]
["02-466","mazowieckie","mazo_Warszawa",null,"mazowieckie","Warszawa","Warszawa"]
["02-467","mazowieckie","mazo_Warszawa",null,"mazowieckie","Warszawa","Warszawa"]
["02-468","mazowieckie","mazo_Warszawa",null,"mazowieckie","Warszawa","Warszawa"]
["02-469","mazowieckie","mazo_Warszawa",null,"mazowieckie","Warszawa","Warszawa"]
["02-470","mazowieckie","mazo_Warszawa",null,"mazowieckie","Warszawa","Warszawa"]
["02-471","mazowieckie","mazo_Warszawa",null,"mazowieckie","Warszawa","Warszawa"]
["02-472","mazowieckie","mazo_Warszawa",null,"mazowieckie","Warszawa","Warszawa"]
["02-473","mazowieckie","mazo_Warszawa",null,"mazowieckie","Warszawa","Warszawa"]
["02-474","mazowieckie","mazo_Warszawa",null,"mazowieckie","Warszawa","Warszawa"]
["02-477","mazowieckie","mazo_Warszawa",null,"mazowieckie","Warszawa","Warszawa"]
["02-479","mazowieckie","mazo_Warszawa",null,"mazowieckie","Warszawa","Warszawa"]
["02-480","mazowieckie","mazo_Warszawa",null,"mazowieckie","Warszawa","Warszawa"]
["02-481","mazowieckie","mazo_Warszawa",null,"mazowieckie","Warszawa","Warszawa"]
["02-482","mazowieckie","mazo_Warszawa",null,"mazowieckie","Warszawa","Warszawa"]
["02-483","mazowieckie","mazo_Warszawa",null,"mazowieckie","Warszawa","Warszawa"]
["02-484","mazowieckie","mazo_Warszawa",null,"mazowieckie","Warszawa","Warszawa"]
["02-485","mazowieckie","mazo_Warszawa",null,"mazowieckie","Warszawa","Warszawa"]
["02-486","mazowieckie","mazo_Warszawa",null,"mazowieckie","Warszawa","Warszawa"]
["02-487","mazowieckie","mazo_Warszawa",null,"mazowieckie","Warszawa","Warszawa"]
["02-488","mazowieckie","mazo_Warszawa",null,"mazowieckie","Warszawa","Warszawa"]
["02-489","mazowieckie","mazo_Warszawa",null,"mazowieckie","Warszawa","Warszawa"]
["02-490","mazowieckie","mazo_Warszawa",null,"mazowieckie","Warszawa","Warszawa"]
["02-491","mazowieckie","mazo_Warszawa",null,"mazowieckie","Warszawa","Warszawa"]
["02-492","mazowieckie","mazo_Warszawa",null,"mazowieckie","Warszawa","Warszawa"]
["02-493","mazowieckie","mazo_Warszawa",null,"mazowieckie","Warszawa","Warszawa"]
["02-494","mazowieckie","mazo_Warszawa",null,"mazowieckie","Warszawa","Warszawa"]
["02-495","mazowieckie","mazo_Warszawa",null,"mazowieckie","Warszawa","Warszawa"]
["02-496","mazowieckie","mazo_Warszawa",null,"mazowieckie","Warszawa","Warszawa"]
["02-497","mazowieckie","mazo_Warszawa",null,"mazowieckie","Warszawa","Warszawa"]
["02-498","mazowieckie","mazo_Warszawa",null,"mazowieckie","Warszawa","Warszawa"]
["02-501","mazowieckie","mazo_Warszawa",null,"mazowieckie","Warszawa","Warszawa"]
["02-502","mazowieckie","mazo_Warszawa",null,"mazowieckie","Warszawa","Warszawa"]
["02-503","mazowieckie","mazo_Warszawa",null,"mazowieckie","Warszawa","Warszawa"]
["02-504","mazowieckie","mazo_Warszawa",null,"mazowieckie","Warszawa","Warszawa"]
["02-505","mazowieckie","mazo_Warszawa",null,"mazowieckie","Warszawa","Warszawa"]
["02-506","mazowieckie","mazo_Warszawa",null,"mazowieckie","Warszawa","Warszawa"]
["02-507","mazowieckie","mazo_Warszawa",null,"mazowieckie","Warszawa","Warszawa"]
["02-508","mazowieckie","mazo_Warszawa",null,"mazowieckie","Warszawa","Warszawa"]
["02-509","mazowieckie","mazo_Warszawa",null,"mazowieckie","Warszawa","Warszawa"]
["02-510","mazowieckie","mazo_Warszawa",null,"mazowieckie","Warszawa","Warszawa"]
["02-511","mazowieckie","mazo_Warszawa",null,"mazowieckie","Warszawa","Warszawa"]
["02-512","mazowieckie","mazo_Warszawa",null,"mazowieckie","Warszawa","Warszawa"]
["02-513","mazowieckie","mazo_Warszawa",null,"mazowieckie","Warszawa","Warszawa"]
["02-514","mazowieckie","mazo_Warszawa",null,"mazowieckie","Warszawa","Warszawa"]
["02-515","mazowieckie","mazo_Warszawa",null,"mazowieckie","Warszawa","Warszawa"]
["02-516","mazowieckie","mazo_Warszawa",null,"mazowieckie","Warszawa","Warszawa"]
["02-517","mazowieckie","mazo_Warszawa",null,"mazowieckie","Warszawa","Warszawa"]
["02-518","mazowieckie","mazo_Warszawa",null,"mazowieckie","Warszawa","Warszawa"]
["02-519","mazowieckie","mazo_Warszawa",null,"mazowieckie","Warszawa","Warszawa"]
["02-520","mazowieckie","mazo_Warszawa",null,"mazowieckie","Warszawa","Warszawa"]
["02-521","mazowieckie","mazo_Warszawa",null,"mazowieckie","Warszawa","Warszawa"]
["02-522","mazowieckie","mazo_Warszawa",null,"mazowieckie","Warszawa","Warszawa"]
["02-523","mazowieckie","mazo_Warszawa",null,"mazowieckie","Warszawa","Warszawa"]
["02-524","mazowieckie","mazo_Warszawa",null,"mazowieckie","Warszawa","Warszawa"]
["02-525","mazowieckie","mazo_Warszawa",null,"mazowieckie","Warszawa","Warszawa"]
["02-526","mazowieckie","mazo_Warszawa",null,"mazowieckie","Warszawa","Warszawa"]
["02-527","mazowieckie","mazo_Warszawa",null,"mazowieckie","Warszawa","Warszawa"]
["02-528","mazowieckie","mazo_Warszawa",null,"mazowieckie","Warszawa","Warszawa"]
["02-529","mazowieckie","mazo_Warszawa",null,"mazowieckie","Warszawa","Warszawa"]
["02-530","mazowieckie","mazo_Warszawa",null,"mazowieckie","Warszawa","Warszawa"]
["02-531","mazowieckie","mazo_Warszawa",null,"mazowieckie","Warszawa","Warszawa"]
["02-532","mazowieckie","mazo_Warszawa",null,"mazowieckie","Warszawa","Warszawa"]
["02-533","mazowieckie","mazo_Warszawa",null,"mazowieckie","Warszawa","Warszawa"]
["02-534","mazowieckie","mazo_Warszawa",null,"mazowieckie","Warszawa","Warszawa"]
["02-535","mazowieckie","mazo_Warszawa",null,"mazowieckie","Warszawa","Warszawa"]
["02-536","mazowieckie","mazo_Warszawa",null,"mazowieckie","Warszawa","Warszawa"]
["02-537","mazowieckie","mazo_Warszawa",null,"mazowieckie","Warszawa","Warszawa"]
["02-538","mazowieckie","mazo_Warszawa",null,"mazowieckie","Warszawa","Warszawa"]
["02-539","mazowieckie","mazo_Warszawa",null,"mazowieckie","Warszawa","Warszawa"]
["02-540","mazowieckie","mazo_Warszawa",null,"mazowieckie","Warszawa","Warszawa"]
["02-541","mazowieckie","mazo_Warszawa",null,"mazowieckie","Warszawa","Warszawa"]
["02-543","mazowieckie","mazo_Warszawa",null,"mazowieckie","Warszawa","Warszawa"]
["02-544","mazowieckie","mazo_Warszawa",null,"mazowieckie","Warszawa","Warszawa"]
["02-545","mazowieckie","mazo_Warszawa",null,"mazowieckie","Warszawa","Warszawa"]
["02-546","mazowieckie","mazo_Warszawa",null,"mazowieckie","Warszawa","Warszawa"]
["02-547","mazowieckie","mazo_Warszawa",null,"mazowieckie","Warszawa","Warszawa"]
["02-548","mazowieckie","mazo_Warszawa",null,"mazowieckie","Warszawa","Warszawa"]
["02-549","mazowieckie","mazo_Warszawa",null,"mazowieckie","Warszawa","Warszawa"]
["02-550","mazowieckie","mazo_Warszawa",null,"mazowieckie","Warszawa","Warszawa"]
["02-551","mazowieckie","mazo_Warszawa",null,"mazowieckie","Warszawa","Warszawa"]
["02-552","mazowieckie","mazo_Warszawa",null,"mazowieckie","Warszawa","Warszawa"]
["02-553","mazowieckie","mazo_Warszawa",null,"mazowieckie","Warszawa","Warszawa"]
["02-554","mazowieckie","mazo_Warszawa",null,"mazowieckie","Warszawa","Warszawa"]
["02-555","mazowieckie","mazo_Warszawa",null,"mazowieckie","Warszawa","Warszawa"]
["02-556","mazowieckie","mazo_Warszawa",null,"mazowieckie","Warszawa","Warszawa"]
["02-557","mazowieckie","mazo_Warszawa",null,"mazowieckie","Warszawa","Warszawa"]
["02-558","mazowieckie","mazo_Warszawa",null,"mazowieckie","Warszawa","Warszawa"]
["02-559","mazowieckie","mazo_Warszawa",null,"mazowieckie","Warszawa","Warszawa"]
["02-560","mazowieckie","mazo_Warszawa",null,"mazowieckie","Warszawa","Warszawa"]
["02-561","mazowieckie","mazo_Warszawa",null,"mazowieckie","Warszawa","Warszawa"]
["02-562","mazowieckie","mazo_Warszawa",null,"mazowieckie","Warszawa","Warszawa"]
["02-563","mazowieckie","mazo_Warszawa",null,"mazowieckie","Warszawa","Warszawa"]
["02-564","mazowieckie","mazo_Warszawa",null,"mazowieckie","Warszawa","Warszawa"]
["02-566","mazowieckie","mazo_Warszawa",null,"mazowieckie","Warszawa","Warszawa"]
["02-567","mazowieckie","mazo_Warszawa",null,"mazowieckie","Warszawa","Warszawa"]
["02-568","mazowieckie","mazo_Warszawa",null,"mazowieckie","Warszawa","Warszawa"]
["02-569","mazowieckie","mazo_Warszawa",null,"mazowieckie","Warszawa","Warszawa"]
["02-570","mazowieckie","mazo_Warszawa",null,"mazowieckie","Warszawa","Warszawa"]
["02-571","mazowieckie","mazo_Warszawa",null,"mazowieckie","Warszawa","Warszawa"]
["02-572","mazowieckie","mazo_Warszawa",null,"mazowieckie","Warszawa","Warszawa"]
["02-574","mazowieckie","mazo_Warszawa",null,"mazowieckie","Warszawa","Warszawa"]
["02-575","mazowieckie","mazo_Warszawa",null,"mazowieckie","Warszawa","Warszawa"]
["02-577","mazowieckie","mazo_Warszawa",null,"mazowieckie","Warszawa","Warszawa"]
["02-578","mazowieckie","mazo_Warszawa",null,"mazowieckie","Warszawa","Warszawa"]
["02-579","mazowieckie","mazo_Warszawa",null,"mazowieckie","Warszawa","Warszawa"]
["02-581","mazowieckie","mazo_Warszawa",null,"mazowieckie","Warszawa","Warszawa"]
["02-582","mazowieckie","mazo_Warszawa",null,"mazowieckie","Warszawa","Warszawa"]
["02-583","mazowieckie","mazo_Warszawa",null,"mazowieckie","Warszawa","Warszawa"]
["02-584","mazowieckie","mazo_Warszawa",null,"mazowieckie","Warszawa","Warszawa"]
["02-585","mazowieckie","mazo_Warszawa",null,"mazowieckie","Warszawa","Warszawa"]
["02-586","mazowieckie","mazo_Warszawa",null,"mazowieckie","Warszawa","Warszawa"]
["02-587","mazowieckie","mazo_Warszawa",null,"mazowieckie","Warszawa","Warszawa"]
["02-588","mazowieckie","mazo_Warszawa",null,"mazowieckie","Warszawa","Warszawa"]
["02-589","mazowieckie","mazo_Warszawa",null,"mazowieckie","Warszawa","Warszawa"]
["02-590","mazowieckie","mazo_Warszawa",null,"mazowieckie","Warszawa","Warszawa"]
["02-591","mazowieckie","mazo_Warszawa",null,"mazowieckie","Warszawa","Warszawa"]
["02-592","mazowieckie","mazo_Warszawa",null,"mazowieckie","Warszawa","Warszawa"]
["02-593","mazowieckie","mazo_Warszawa",null,"mazowieckie","Warszawa","Warszawa"]
["02-594","mazowieckie","mazo_Warszawa",null,"mazowieckie","Warszawa","Warszawa"]
["02-595","mazowieckie","mazo_Warszawa",null,"mazowieckie","Warszawa","Warszawa"]
["02-598","mazowieckie","mazo_Warszawa",null,"mazowieckie","Warszawa","Warszawa"]
["02-600","mazowieckie","mazo_Warszawa",null,"mazowieckie","Warszawa","Warszawa"]
["02-601","mazowieckie","mazo_Warszawa",null,"mazowieckie","Warszawa","Warszawa"]
["02-602","mazowieckie","mazo_Warszawa",null,"mazowieckie","Warszawa","Warszawa"]
["02-603","mazowieckie","mazo_Warszawa",null,"mazowieckie","Warszawa","Warszawa"]
["02-604","mazowieckie","mazo_Warszawa",null,"mazowieckie","Warszawa","Warszawa"]
["02-605","mazowieckie","mazo_Warszawa",null,"mazowieckie","Warszawa","Warszawa"]
["02-606","mazowieckie","mazo_Warszawa",null,"mazowieckie","Warszawa","Warszawa"]
["02-607","mazowieckie","mazo_Warszawa",null,"mazowieckie","Warszawa","Warszawa"]
["02-608","mazowieckie","mazo_Warszawa",null,"mazowieckie","Warszawa","Warszawa"]
["02-609","mazowieckie","mazo_Warszawa",null,"mazowieckie","Warszawa","Warszawa"]
["02-610","mazowieckie","mazo_Warszawa",null,"mazowieckie","Warszawa","Warszawa"]
["02-611","mazowieckie","mazo_Warszawa",null,"mazowieckie","Warszawa","Warszawa"]
["02-612","mazowieckie","mazo_Warszawa",null,"mazowieckie","Warszawa","Warszawa"]
["02-613","mazowieckie","mazo_Warszawa",null,"mazowieckie","Warszawa","Warszawa"]
["02-614","mazowieckie","mazo_Warszawa",null,"mazowieckie","Warszawa","Warszawa"]
["02-615","mazowieckie","mazo_Warszawa",null,"mazowieckie","Warszawa","Warszawa"]
["02-616","mazowieckie","mazo_Warszawa",null,"mazowieckie","Warszawa","Warszawa"]
["02-617","mazowieckie","mazo_Warszawa",null,"mazowieckie","Warszawa","Warszawa"]
["02-618","mazowieckie","mazo_Warszawa",null,"mazowieckie","Warszawa","Warszawa"]
["02-619","mazowieckie","mazo_Warszawa",null,"mazowieckie","Warszawa","Warszawa"]
["02-620","mazowieckie","mazo_Warszawa",null,"mazowieckie","Warszawa","Warszawa"]
["02-621","mazowieckie","mazo_Warszawa",null,"mazowieckie","Warszawa","Warszawa"]
["02-622","mazowieckie","mazo_Warszawa",null,"mazowieckie","Warszawa","Warszawa"]
["02-624","mazowieckie","mazo_Warszawa",null,"mazowieckie","Warszawa","Warszawa"]
["02-625","mazowieckie","mazo_Warszawa",null,"mazowieckie","Warszawa","Warszawa"]
["02-626","mazowieckie","mazo_Warszawa",null,"mazowieckie","Warszawa","Warszawa"]
["02-627","mazowieckie","mazo_Warszawa",null,"mazowieckie","Warszawa","Warszawa"]
["02-628","mazowieckie","mazo_Warszawa",null,"mazowieckie","Warszawa","Warszawa"]
["02-629","mazowieckie","mazo_Warszawa",null,"mazowieckie","Warszawa","Warszawa"]
["02-630","mazowieckie","mazo_Warszawa",null,"mazowieckie","Warszawa","Warszawa"]
["02-631","mazowieckie","mazo_Warszawa",null,"mazowieckie","Warszawa","Warszawa"]
["02-632","mazowieckie","mazo_Warszawa",null,"mazowieckie","Warszawa","Warszawa"]
["02-633","mazowieckie","mazo_Warszawa",null,"mazowieckie","Warszawa","Warszawa"]
["02-634","mazowieckie","mazo_Warszawa",null,"mazowieckie","Warszawa","Warszawa"]
["02-635","mazowieckie","mazo_Warszawa",null,"mazowieckie","Warszawa","Warszawa"]
["02-636","mazowieckie","mazo_Warszawa",null,"mazowieckie","Warszawa","Warszawa"]
["02-637","mazowieckie","mazo_Warszawa",null,"mazowieckie","Warszawa","Warszawa"]
["02-638","mazowieckie","mazo_Warszawa",null,"mazowieckie","Warszawa","Warszawa"]
["02-639","mazowieckie","mazo_Warszawa",null,"mazowieckie","Warszawa","Warszawa"]
["02-640","mazowieckie","mazo_Warszawa",null,"mazowieckie","Warszawa","Warszawa"]
["02-641","mazowieckie","mazo_Warszawa",null,"mazowieckie","Warszawa","Warszawa"]
["02-642","mazowieckie","mazo_Warszawa",null,"mazowieckie","Warszawa","Warszawa"]
["02-643","mazowieckie","mazo_Warszawa",null,"mazowieckie","Warszawa","Warszawa"]
["02-644","mazowieckie","mazo_Warszawa",null,"mazowieckie","Warszawa","Warszawa"]
["02-645","mazowieckie","mazo_Warszawa",null,"mazowieckie","Warszawa","Warszawa"]
["02-646","mazowieckie","mazo_Warszawa",null,"mazowieckie","Warszawa","Warszawa"]
["02-647","mazowieckie","mazo_Warszawa",null,"mazowieckie","Warszawa","Warszawa"]
["02-648","mazowieckie","mazo_Warszawa",null,"mazowieckie","Warszawa","Warszawa"]
["02-649","mazowieckie","mazo_Warszawa",null,"mazowieckie","Warszawa","Warszawa"]
["02-650","mazowieckie","mazo_Warszawa",null,"mazowieckie","Warszawa","Warszawa"]
["02-651","mazowieckie","mazo_Warszawa",null,"mazowieckie","Warszawa","Warszawa"]
["02-652","mazowieckie","mazo_Warszawa",null,"mazowieckie","Warszawa","Warszawa"]
["02-653","mazowieckie","mazo_Warszawa",null,"mazowieckie","Warszawa","Warszawa"]
["02-654","mazowieckie","mazo_Warszawa",null,"mazowieckie","Warszawa","Warszawa"]
["02-655","mazowieckie","mazo_Warszawa",null,"mazowieckie","Warszawa","Warszawa"]
["02-656","mazowieckie","mazo_Warszawa",null,"mazowieckie","Warszawa","Warszawa"]
["02-657","mazowieckie","mazo_Warszawa",null,"mazowieckie","Warszawa","Warszawa"]
["02-658","mazowieckie","mazo_Warszawa",null,"mazowieckie","Warszawa","Warszawa"]
["02-659","mazowieckie","mazo_Warszawa",null,"mazowieckie","Warszawa","Warszawa"]
["02-660","mazowieckie","mazo_Warszawa",null,"mazowieckie","Warszawa","Warszawa"]
["02-661","mazowieckie","mazo_Warszawa",null,"mazowieckie","Warszawa","Warszawa"]
["02-662","mazowieckie","mazo_Warszawa",null,"mazowieckie","Warszawa","Warszawa"]
["02-663","mazowieckie","mazo_Warszawa",null,"mazowieckie","Warszawa","Warszawa"]
["02-664","mazowieckie","mazo_Warszawa",null,"mazowieckie","Warszawa","Warszawa"]
["02-665","mazowieckie","mazo_Warszawa",null,"mazowieckie","Warszawa","Warszawa"]
["02-666","mazowieckie","mazo_Warszawa",null,"mazowieckie","Warszawa","Warszawa"]
["02-668","mazowieckie","mazo_Warszawa",null,"mazowieckie","Warszawa","Warszawa"]
["02-669","mazowieckie","mazo_Warszawa",null,"mazowieckie","Warszawa","Warszawa"]
["02-670","mazowieckie","mazo_Warszawa",null,"mazowieckie","Warszawa","Warszawa"]
["02-671","mazowieckie","mazo_Warszawa",null,"mazowieckie","Warszawa","Warszawa"]
["02-672","mazowieckie","mazo_Warszawa",null,"mazowieckie","Warszawa","Warszawa"]
["02-673","mazowieckie","mazo_Warszawa",null,"mazowieckie","Warszawa","Warszawa"]
["02-674","mazowieckie","mazo_Warszawa",null,"mazowieckie","Warszawa","Warszawa"]
["02-675","mazowieckie","mazo_Warszawa",null,"mazowieckie","Warszawa","Warszawa"]
["02-676","mazowieckie","mazo_Warszawa",null,"mazowieckie","Warszawa","Warszawa"]
["02-677","mazowieckie","mazo_Warszawa",null,"mazowieckie","Warszawa","Warszawa"]
["02-678","mazowieckie","mazo_Warszawa",null,"mazowieckie","Warszawa","Warszawa"]
["02-679","mazowieckie","mazo_Warszawa",null,"mazowieckie","Warszawa","Warszawa"]
["02-680","mazowieckie","mazo_Warszawa",null,"mazowieckie","Warszawa","Warszawa"]
["02-681","mazowieckie","mazo_Warszawa",null,"mazowieckie","Warszawa","Warszawa"]
["02-682","mazowieckie","mazo_Warszawa",null,"mazowieckie","Warszawa","Warszawa"]
["02-683","mazowieckie","mazo_Warszawa",null,"mazowieckie","Warszawa","Warszawa"]
["02-684","mazowieckie","mazo_Warszawa",null,"mazowieckie","Warszawa","Warszawa"]
["02-685","mazowieckie","mazo_Warszawa",null,"mazowieckie","Warszawa","Warszawa"]
["02-690","mazowieckie","mazo_Warszawa",null,"mazowieckie","Warszawa","Warszawa"]
["02-691","mazowieckie","mazo_Warszawa",null,"mazowieckie","Warszawa","Warszawa"]
["02-692","mazowieckie","mazo_Warszawa",null,"mazowieckie","Warszawa","Warszawa"]
["02-693","mazowieckie","mazo_Warszawa",null,"mazowieckie","Warszawa","Warszawa"]
["02-694","mazowieckie","mazo_Warszawa",null,"mazowieckie","Warszawa","Warszawa"]
["02-695","mazowieckie","mazo_Warszawa",null,"mazowieckie","Warszawa","Warszawa"]
["02-696","mazowieckie","mazo_Warszawa",null,"mazowieckie","Warszawa","Warszawa"]
["02-697","mazowieckie","mazo_Warszawa",null,"mazowieckie","Warszawa","Warszawa"]
["02-698","mazowieckie","mazo_Warszawa",null,"mazowieckie","Warszawa","Warszawa"]
["02-699","mazowieckie","mazo_Warszawa",null,"mazowieckie","Warszawa","Warszawa"]
["02-700","mazowieckie","mazo_Warszawa",null,"mazowieckie","Warszawa","Warszawa"]
["02-701","mazowieckie","mazo_Warszawa",null,"mazowieckie","Warszawa","Warszawa"]
["02-702","mazowieckie","mazo_Warszawa",null,"mazowieckie","Warszawa","Warszawa"]
["02-703","mazowieckie","mazo_Warszawa",null,"mazowieckie","Warszawa","Warszawa"]
["02-704","mazowieckie","mazo_Warszawa",null,"mazowieckie","Warszawa","Warszawa"]
["02-705","mazowieckie","mazo_Warszawa",null,"mazowieckie","Warszawa","Warszawa"]
["02-707","mazowieckie","mazo_Warszawa",null,"mazowieckie","Warszawa","Warszawa"]
["02-708","mazowieckie","mazo_Warszawa",null,"mazowieckie","Warszawa","Warszawa"]
["02-709","mazowieckie","mazo_Warszawa",null,"mazowieckie","Warszawa","Warszawa"]
["02-710","mazowieckie","mazo_Warszawa",null,"mazowieckie","Warszawa","Warszawa"]
["02-711","mazowieckie","mazo_Warszawa",null,"mazowieckie","Warszawa","Warszawa"]
["02-712","mazowieckie","mazo_Warszawa",null,"mazowieckie","Warszawa","Warszawa"]
["02-713","mazowieckie","mazo_Warszawa",null,"mazowieckie","Warszawa","Warszawa"]
["02-714","mazowieckie","mazo_Warszawa",null,"mazowieckie","Warszawa","Warszawa"]
["02-715","mazowieckie","mazo_Warszawa",null,"mazowieckie","Warszawa","Warszawa"]
["02-716","mazowieckie","mazo_Warszawa",null,"mazowieckie","Warszawa","Warszawa"]
["02-717","mazowieckie","mazo_Warszawa",null,"mazowieckie","Warszawa","Warszawa"]
["02-718","mazowieckie","mazo_Warszawa",null,"mazowieckie","Warszawa","Warszawa"]
["02-720","mazowieckie","mazo_Warszawa",null,"mazowieckie","Warszawa","Warszawa"]
["02-722","mazowieckie","mazo_Warszawa",null,"mazowieckie","Warszawa","Warszawa"]
["02-724","mazowieckie","mazo_Warszawa",null,"mazowieckie","Warszawa","Warszawa"]
["02-725","mazowieckie","mazo_Warszawa",null,"mazowieckie","Warszawa","Warszawa"]
["02-726","mazowieckie","mazo_Warszawa",null,"mazowieckie","Warszawa","Warszawa"]
["02-727","mazowieckie","mazo_Warszawa",null,"mazowieckie","Warszawa","Warszawa"]
["02-728","mazowieckie","mazo_Warszawa",null,"mazowieckie","Warszawa","Warszawa"]
["02-729","mazowieckie","mazo_Warszawa",null,"mazowieckie","Warszawa","Warszawa"]
["02-730","mazowieckie","mazo_Warszawa",null,"mazowieckie","Warszawa","Warszawa"]
["02-732","mazowieckie","mazo_Warszawa",null,"mazowieckie","Warszawa","Warszawa"]
["02-733","mazowieckie","mazo_Warszawa",null,"mazowieckie","Warszawa","Warszawa"]
["02-735","mazowieckie","mazo_Warszawa",null,"mazowieckie","Warszawa","Warszawa"]
["02-736","mazowieckie","mazo_Warszawa",null,"mazowieckie","Warszawa","Warszawa"]
["02-737","mazowieckie","mazo_Warszawa",null,"mazowieckie","Warszawa","Warszawa"]
["02-738","mazowieckie","mazo_Warszawa",null,"mazowieckie","Warszawa","Warszawa"]
["02-739","mazowieckie","mazo_Warszawa",null,"mazowieckie","Warszawa","Warszawa"]
["02-740","mazowieckie","mazo_Warszawa",null,"mazowieckie","Warszawa","Warszawa"]
["02-741","mazowieckie","mazo_Warszawa",null,"mazowieckie","Warszawa","Warszawa"]
["02-743","mazowieckie","mazo_Warszawa",null,"mazowieckie","Warszawa","Warszawa"]
["02-744","mazowieckie","mazo_Warszawa",null,"mazowieckie","Warszawa","Warszawa"]
["02-745","mazowieckie","mazo_Warszawa",null,"mazowieckie","Warszawa","Warszawa"]
["02-746","mazowieckie","mazo_Warszawa",null,"mazowieckie","Warszawa","Warszawa"]
["02-747","mazowieckie","mazo_Warszawa",null,"mazowieckie","Warszawa","Warszawa"]
["02-748","mazowieckie","mazo_Warszawa",null,"mazowieckie","Warszawa","Warszawa"]
["02-749","mazowieckie","mazo_Warszawa",null,"mazowieckie","Warszawa","Warszawa"]
["02-750","mazowieckie","mazo_Warszawa",null,"mazowieckie","Warszawa","Warszawa"]
["02-751","mazowieckie","mazo_Warszawa",null,"mazowieckie","Warszawa","Warszawa"]
["02-752","mazowieckie","mazo_Warszawa",null,"mazowieckie","Warszawa","Warszawa"]
["02-755","mazowieckie","mazo_Warszawa",null,"mazowieckie","Warszawa","Warszawa"]
["02-756","mazowieckie","mazo_Warszawa",null,"mazowieckie","Warszawa","Warszawa"]
["02-757","mazowieckie","mazo_Warszawa",null,"mazowieckie","Warszawa","Warszawa"]
["02-758","mazowieckie","mazo_Warszawa",null,"mazowieckie","Warszawa","Warszawa"]
["02-759","mazowieckie","mazo_Warszawa",null,"mazowieckie","Warszawa","Warszawa"]
["02-760","mazowieckie","mazo_Warszawa",null,"mazowieckie","Warszawa","Warszawa"]
["02-761","mazowieckie","mazo_Warszawa",null,"mazowieckie","Warszawa","Warszawa"]
["02-762","mazowieckie","mazo_Warszawa",null,"mazowieckie","Warszawa","Warszawa"]
["02-763","mazowieckie","mazo_Warszawa",null,"mazowieckie","Warszawa","Warszawa"]
["02-764","mazowieckie","mazo_Warszawa",null,"mazowieckie","Warszawa","Warszawa"]
["02-765","mazowieckie","mazo_Warszawa",null,"mazowieckie","Warszawa","Warszawa"]
["02-766","mazowieckie","mazo_Warszawa",null,"mazowieckie","Warszawa","Warszawa"]
["02-767","mazowieckie","mazo_Warszawa",null,"mazowieckie","Warszawa","Warszawa"]
["02-768","mazowieckie","mazo_Warszawa",null,"mazowieckie","Warszawa","Warszawa"]
["02-769","mazowieckie","mazo_Warszawa",null,"mazowieckie","Warszawa","Warszawa"]
["02-770","mazowieckie","mazo_Warszawa",null,"mazowieckie","Warszawa","Warszawa"]
["02-775","mazowieckie","mazo_Warszawa",null,"mazowieckie","Warszawa","Warszawa"]
["02-776","mazowieckie","mazo_Warszawa",null,"mazowieckie","Warszawa","Warszawa"]
["02-777","mazowieckie","mazo_Warszawa",null,"mazowieckie","Warszawa","Warszawa"]
["02-778","mazowieckie","mazo_Warszawa",null,"mazowieckie","Warszawa","Warszawa"]
["02-780","mazowieckie","mazo_Warszawa",null,"mazowieckie","Warszawa","Warszawa"]
["02-781","mazowieckie","mazo_Warszawa",null,"mazowieckie","Warszawa","Warszawa"]
["02-782","mazowieckie","mazo_Warszawa",null,"mazowieckie","Warszawa","Warszawa"]
["02-783","mazowieckie","mazo_Warszawa",null,"mazowieckie","Warszawa","Warszawa"]
["02-784","mazowieckie","mazo_Warszawa",null,"mazowieckie","Warszawa","Warszawa"]
["02-785","mazowieckie","mazo_Warszawa",null,"mazowieckie","Warszawa","Warszawa"]
["02-786","mazowieckie","mazo_Warszawa",null,"mazowieckie","Warszawa","Warszawa"]
["02-787","mazowieckie","mazo_Warszawa",null,"mazowieckie","Warszawa","Warszawa"]
["02-788","mazowieckie","mazo_Warszawa",null,"mazowieckie","Warszawa","Warszawa"]
["02-790","mazowieckie","mazo_Warszawa",null,"mazowieckie","Warszawa","Warszawa"]
["02-791","mazowieckie","mazo_Warszawa",null,"mazowieckie","Warszawa","Warszawa"]
["02-792","mazowieckie","mazo_Warszawa",null,"mazowieckie","Warszawa","Warszawa"]
["02-793","mazowieckie","mazo_Warszawa",null,"mazowieckie","Warszawa","Warszawa"]
["02-794","mazowieckie","mazo_Warszawa",null,"mazowieckie","Warszawa","Warszawa"]
["02-795","mazowieckie","mazo_Warszawa",null,"mazowieckie","Warszawa","Warszawa"]
["02-796","mazowieckie","mazo_Warszawa",null,"mazowieckie","Warszawa","Warszawa"]
["02-797","mazowieckie","mazo_Warszawa",null,"mazowieckie","Warszawa","Warszawa"]
["02-798","mazowieckie","mazo_Warszawa",null,"mazowieckie","Warszawa","Warszawa"]
["02-799","mazowieckie","mazo_Warszawa",null,"mazowieckie","Warszawa","Warszawa"]
["02-800","mazowieckie","mazo_Warszawa",null,"mazowieckie","Warszawa","Warszawa"]
["02-801","mazowieckie","mazo_Warszawa",null,"mazowieckie","Warszawa","Warszawa"]
["02-802","mazowieckie","mazo_Warszawa",null,"mazowieckie","Warszawa","Warszawa"]
["02-803","mazowieckie","mazo_Warszawa",null,"mazowieckie","Warszawa","Warszawa"]
["02-804","mazowieckie","mazo_Warszawa",null,"mazowieckie","Warszawa","Warszawa"]
["02-805","mazowieckie","mazo_Warszawa",null,"mazowieckie","Warszawa","Warszawa"]
["02-806","mazowieckie","mazo_Warszawa",null,"mazowieckie","Warszawa","Warszawa"]
["02-807","mazowieckie","mazo_Warszawa",null,"mazowieckie","Warszawa","Warszawa"]
["02-808","mazowieckie","mazo_Warszawa",null,"mazowieckie","Warszawa","Warszawa"]
["02-809","mazowieckie","mazo_Warszawa",null,"mazowieckie","Warszawa","Warszawa"]
["02-811","mazowieckie","mazo_Warszawa",null,"mazowieckie","Warszawa","Warszawa"]
["02-812","mazowieckie","mazo_Warszawa",null,"mazowieckie","Warszawa","Warszawa"]
["02-814","mazowieckie","mazo_Warszawa",null,"mazowieckie","Warszawa","Warszawa"]
["02-815","mazowieckie","mazo_Warszawa",null,"mazowieckie","Warszawa","Warszawa"]
["02-816","mazowieckie","mazo_Warszawa",null,"mazowieckie","Warszawa","Warszawa"]
["02-817","mazowieckie","mazo_Warszawa",null,"mazowieckie","Warszawa","Warszawa"]
["02-818","mazowieckie","mazo_Warszawa",null,"mazowieckie","Warszawa","Warszawa"]
["02-819","mazowieckie","mazo_Warszawa",null,"mazowieckie","Warszawa","Warszawa"]
["02-820","mazowieckie","mazo_Warszawa",null,"mazowieckie","Warszawa","Warszawa"]
["02-821","mazowieckie","mazo_Warszawa",null,"mazowieckie","Warszawa","Warszawa"]
["02-822","mazowieckie","mazo_Warszawa",null,"mazowieckie","Warszawa","Warszawa"]
["02-823","mazowieckie","mazo_Warszawa",null,"mazowieckie","Warszawa","Warszawa"]
["02-824","mazowieckie","mazo_Warszawa",null,"mazowieckie","Warszawa","Warszawa"]
["02-825","mazowieckie","mazo_Warszawa",null,"mazowieckie","Warszawa","Warszawa"]
["02-826","mazowieckie","mazo_Warszawa",null,"mazowieckie","Warszawa","Warszawa"]
["02-827","mazowieckie","mazo_Warszawa",null,"mazowieckie","Warszawa","Warszawa"]
["02-828","mazowieckie","mazo_Warszawa",null,"mazowieckie","Warszawa","Warszawa"]
["02-829","mazowieckie","mazo_Warszawa",null,"mazowieckie","Warszawa","Warszawa"]
["02-830","mazowieckie","mazo_Warszawa",null,"mazowieckie","Warszawa","Warszawa"]
["02-831","mazowieckie","mazo_Warszawa",null,"mazowieckie","Warszawa","Warszawa"]
["02-832","mazowieckie","mazo_Warszawa",null,"mazowieckie","Warszawa","Warszawa"]
["02-833","mazowieckie","mazo_Warszawa",null,"mazowieckie","Warszawa","Warszawa"]
["02-834","mazowieckie","mazo_Warszawa",null,"mazowieckie","Warszawa","Warszawa"]
["02-835","mazowieckie","mazo_Warszawa",null,"mazowieckie","Warszawa","Warszawa"]
["02-836","mazowieckie","mazo_Warszawa",null,"mazowieckie","Warszawa","Warszawa"]
["02-837","mazowieckie","mazo_Warszawa",null,"mazowieckie","Warszawa","Warszawa"]
["02-838","mazowieckie","mazo_Warszawa",null,"mazowieckie","Warszawa","Warszawa"]
["02-840","mazowieckie","mazo_Warszawa",null,"mazowieckie","Warszawa","Warszawa"]
["02-841","mazowieckie","mazo_Warszawa",null,"mazowieckie","Warszawa","Warszawa"]
["02-842","mazowieckie","mazo_Warszawa",null,"mazowieckie","Warszawa","Warszawa"]
["02-843","mazowieckie","mazo_Warszawa",null,"mazowieckie","Warszawa","Warszawa"]
["02-844","mazowieckie","mazo_Warszawa",null,"mazowieckie","Warszawa","Warszawa"]
["02-845","mazowieckie","mazo_Warszawa",null,"mazowieckie","Warszawa","Warszawa"]
["02-846","mazowieckie","mazo_Warszawa",null,"mazowieckie","Warszawa","Warszawa"]
["02-847","mazowieckie","mazo_Warszawa",null,"mazowieckie","Warszawa","Warszawa"]
["02-849","mazowieckie","mazo_Warszawa",null,"mazowieckie","Warszawa","Warszawa"]
["02-850","mazowieckie","mazo_Warszawa",null,"mazowieckie","Warszawa","Warszawa"]
["02-851","mazowieckie","mazo_Warszawa",null,"mazowieckie","Warszawa","Warszawa"]
["02-852","mazowieckie","mazo_Warszawa",null,"mazowieckie","Warszawa","Warszawa"]
["02-853","mazowieckie","mazo_Warszawa",null,"mazowieckie","Warszawa","Warszawa"]
["02-854","mazowieckie","mazo_Warszawa",null,"mazowieckie","Warszawa","Warszawa"]
["02-855","mazowieckie","mazo_Warszawa",null,"mazowieckie","Warszawa","Warszawa"]
["02-856","mazowieckie","mazo_Warszawa",null,"mazowieckie","Warszawa","Warszawa"]
["02-857","mazowieckie","mazo_Warszawa",null,"mazowieckie","Warszawa","Warszawa"]
["02-858","mazowieckie","mazo_Warszawa",null,"mazowieckie","Warszawa","Warszawa"]
["02-859","mazowieckie","mazo_Warszawa",null,"mazowieckie","Warszawa","Warszawa"]
["02-860","mazowieckie","mazo_Warszawa",null,"mazowieckie","Warszawa","Warszawa"]
["02-862","mazowieckie","mazo_Warszawa",null,"mazowieckie","Warszawa","Warszawa"]
["02-863","mazowieckie","mazo_Warszawa",null,"mazowieckie","Warszawa","Warszawa"]
["02-867","mazowieckie","mazo_Warszawa",null,"mazowieckie","Warszawa","Warszawa"]
["02-868","mazowieckie","mazo_Warszawa",null,"mazowieckie","Warszawa","Warszawa"]
["02-869","mazowieckie","mazo_Warszawa",null,"mazowieckie","Warszawa","Warszawa"]
["02-870","mazowieckie","mazo_Warszawa",null,"mazowieckie","Warszawa","Warszawa"]
["02-871","mazowieckie","mazo_Warszawa",null,"mazowieckie","Warszawa","Warszawa"]
["02-872","mazowieckie","mazo_Warszawa",null,"mazowieckie","Warszawa","Warszawa"]
["02-873","mazowieckie","mazo_Warszawa",null,"mazowieckie","Warszawa","Warszawa"]
["02-874","mazowieckie","mazo_Warszawa",null,"mazowieckie","Warszawa","Warszawa"]
["02-875","mazowieckie","mazo_Warszawa",null,"mazowieckie","Warszawa","Warszawa"]
["02-876","mazowieckie","mazo_Warszawa",null,"mazowieckie","Warszawa","Warszawa"]
["02-877","mazowieckie","mazo_Warszawa",null,"mazowieckie","Warszawa","Warszawa"]
["02-878","mazowieckie","mazo_Warszawa",null,"mazowieckie","Warszawa","Warszawa"]
["02-879","mazowieckie","mazo_Warszawa",null,"mazowieckie","Warszawa","Warszawa"]
["02-881","mazowieckie","mazo_Warszawa",null,"mazowieckie","Warszawa","Warszawa"]
["02-882","mazowieckie","mazo_Warszawa",null,"mazowieckie","Warszawa","Warszawa"]
["02-884","mazowieckie","mazo_Warszawa",null,"mazowieckie","Warszawa","Warszawa"]
["02-885","mazowieckie","mazo_Warszawa",null,"mazowieckie","Warszawa","Warszawa"]
["02-886","mazowieckie","mazo_Warszawa",null,"mazowieckie","Warszawa","Warszawa"]
["02-887","mazowieckie","mazo_Warszawa",null,"mazowieckie","Warszawa","Warszawa"]
["02-888","mazowieckie","mazo_Warszawa",null,"mazowieckie","Warszawa","Warszawa"]
["02-889","mazowieckie","mazo_Warszawa",null,"mazowieckie","Warszawa","Warszawa"]
["02-890","mazowieckie","mazo_Warszawa",null,"mazowieckie","Warszawa","Warszawa"]
["02-891","mazowieckie","mazo_Warszawa",null,"mazowieckie","Warszawa","Warszawa"]
["02-892","mazowieckie","mazo_Warszawa",null,"mazowieckie","Warszawa","Warszawa"]
["02-893","mazowieckie","mazo_Warszawa",null,"mazowieckie","Warszawa","Warszawa"]
["02-900","mazowieckie","mazo_Warszawa",null,"mazowieckie","Warszawa","Warszawa"]
["02-901","mazowieckie","mazo_Warszawa",null,"mazowieckie","Warszawa","Warszawa"]
["02-902","mazowieckie","mazo_Warszawa",null,"mazowieckie","Warszawa","Warszawa"]
["02-903","mazowieckie","mazo_Warszawa",null,"mazowieckie","Warszawa","Warszawa"]
["02-904","mazowieckie","mazo_Warszawa",null,"mazowieckie","Warszawa","Warszawa"]
["02-905","mazowieckie","mazo_Warszawa",null,"mazowieckie","Warszawa","Warszawa"]
["02-906","mazowieckie","mazo_Warszawa",null,"mazowieckie","Warszawa","Warszawa"]
["02-907","mazowieckie","mazo_Warszawa",null,"mazowieckie","Warszawa","Warszawa"]
["02-908","mazowieckie","mazo_Warszawa",null,"mazowieckie","Warszawa","Warszawa"]
["02-909","mazowieckie","mazo_Warszawa",null,"mazowieckie","Warszawa","Warszawa"]
["02-910","mazowieckie","mazo_Warszawa",null,"mazowieckie","Warszawa","Warszawa"]
["02-911","mazowieckie","mazo_Warszawa",null,"mazowieckie","Warszawa","Warszawa"]
["02-912","mazowieckie","mazo_Warszawa",null,"mazowieckie","Warszawa","Warszawa"]
["02-913","mazowieckie","mazo_Warszawa",null,"mazowieckie","Warszawa","Warszawa"]
["02-914","mazowieckie","mazo_Warszawa",null,"mazowieckie","Warszawa","Warszawa"]
["02-915","mazowieckie","mazo_Warszawa",null,"mazowieckie","Warszawa","Warszawa"]
["02-916","mazowieckie","mazo_Warszawa",null,"mazowieckie","Warszawa","Warszawa"]
["02-917","mazowieckie","mazo_Warszawa",null,"mazowieckie","Warszawa","Warszawa"]
["02-918","mazowieckie","mazo_Warszawa",null,"mazowieckie","Warszawa","Warszawa"]
["02-919","mazowieckie","mazo_Warszawa",null,"mazowieckie","Warszawa","Warszawa"]
["02-920","mazowieckie","mazo_Warszawa",null,"mazowieckie","Warszawa","Warszawa"]
["02-921","mazowieckie","mazo_Warszawa",null,"mazowieckie","Warszawa","Warszawa"]
["02-922","mazowieckie","mazo_Warszawa",null,"mazowieckie","Warszawa","Warszawa"]
["02-923","mazowieckie","mazo_Warszawa",null,"mazowieckie","Warszawa","Warszawa"]
["02-924","mazowieckie","mazo_Warszawa",null,"mazowieckie","Warszawa","Warszawa"]
["02-925","mazowieckie","mazo_Warszawa",null,"mazowieckie","Warszawa","Warszawa"]
["02-926","mazowieckie","mazo_Warszawa",null,"mazowieckie","Warszawa","Warszawa"]
["02-927","mazowieckie","mazo_Warszawa",null,"mazowieckie","Warszawa","Warszawa"]
["02-928","mazowieckie","mazo_Warszawa",null,"mazowieckie","Warszawa","Warszawa"]
["02-929","mazowieckie","mazo_Warszawa",null,"mazowieckie","Warszawa","Warszawa"]
["02-930","mazowieckie","mazo_Warszawa",null,"mazowieckie","Warszawa","Warszawa"]
["02-931","mazowieckie","mazo_Warszawa",null,"mazowieckie","Warszawa","Warszawa"]
["02-932","mazowieckie","mazo_Warszawa",null,"mazowieckie","Warszawa","Warszawa"]
["02-933","mazowieckie","mazo_Warszawa",null,"mazowieckie","Warszawa","Warszawa"]
["02-934","mazowieckie","mazo_Warszawa",null,"mazowieckie","Warszawa","Warszawa"]
["02-935","mazowieckie","mazo_Warszawa",null,"mazowieckie","Warszawa","Warszawa"]
["02-936","mazowieckie","mazo_Warszawa",null,"mazowieckie","Warszawa","Warszawa"]
["02-937","mazowieckie","mazo_Warszawa",null,"mazowieckie","Warszawa","Warszawa"]
["02-938","mazowieckie","mazo_Warszawa",null,"mazowieckie","Warszawa","Warszawa"]
["02-939","mazowieckie","mazo_Warszawa",null,"mazowieckie","Warszawa","Warszawa"]
["02-940","mazowieckie","mazo_Warszawa",null,"mazowieckie","Warszawa","Warszawa"]
["02-941","mazowieckie","mazo_Warszawa",null,"mazowieckie","Warszawa","Warszawa"]
["02-942","mazowieckie","mazo_Warszawa",null,"mazowieckie","Warszawa","Warszawa"]
["02-943","mazowieckie","mazo_Warszawa",null,"mazowieckie","Warszawa","Warszawa"]
["02-944","mazowieckie","mazo_Warszawa",null,"mazowieckie","Warszawa","Warszawa"]
["02-945","mazowieckie","mazo_Warszawa",null,"mazowieckie","Warszawa","Warszawa"]
["02-946","mazowieckie","mazo_Warszawa",null,"mazowieckie","Warszawa","Warszawa"]
["02-947","mazowieckie","mazo_Warszawa",null,"mazowieckie","Warszawa","Warszawa"]
["02-948","mazowieckie","mazo_Warszawa",null,"mazowieckie","Warszawa","Warszawa"]
["02-949","mazowieckie","mazo_Warszawa",null,"mazowieckie","Warszawa","Warszawa"]
["02-950","mazowieckie","mazo_Warszawa",null,"mazowieckie","Warszawa","Warszawa"]
["02-951","mazowieckie","mazo_Warszawa",null,"mazowieckie","Warszawa","Warszawa"]
["02-952","mazowieckie","mazo_Warszawa",null,"mazowieckie","Warszawa","Warszawa"]
["02-953","mazowieckie","mazo_Warszawa",null,"mazowieckie","Warszawa","Warszawa"]
["02-954","mazowieckie","mazo_Warszawa",null,"mazowieckie","Warszawa","Warszawa"]
["02-955","mazowieckie","mazo_Warszawa",null,"mazowieckie","Warszawa","Warszawa"]
["02-956","mazowieckie","mazo_Warszawa",null,"mazowieckie","Warszawa","Warszawa"]
["02-957","mazowieckie","mazo_Warszawa",null,"mazowieckie","Warszawa","Warszawa"]
["02-958","mazowieckie","mazo_Warszawa",null,"mazowieckie","Warszawa","Warszawa"]
["02-959","mazowieckie","mazo_Warszawa",null,"mazowieckie","Warszawa","Warszawa"]
["02-960","mazowieckie","mazo_Warszawa",null,"mazowieckie","Warszawa","Warszawa"]
["02-961","mazowieckie","mazo_Warszawa",null,"mazowieckie","Warszawa","Warszawa"]
["02-962","mazowieckie","mazo_Warszawa",null,"mazowieckie","Warszawa","Warszawa"]
["02-963","mazowieckie","mazo_Warszawa",null,"mazowieckie","Warszawa","Warszawa"]
["02-964","mazowieckie","mazo_Warszawa",null,"mazowieckie","Warszawa","Warszawa"]
["02-965","mazowieckie","mazo_Warszawa",null,"mazowieckie","Warszawa","Warszawa"]
["02-966","mazowieckie","mazo_Warszawa",null,"mazowieckie","Warszawa","Warszawa"]
["02-967","mazowieckie","mazo_Warszawa",null,"mazowieckie","Warszawa","Warszawa"]
["02-968","mazowieckie","mazo_Warszawa",null,"mazowieckie","Warszawa","Warszawa"]
["02-969","mazowieckie","mazo_Warszawa",null,"mazowieckie","Warszawa","Warszawa"]
["02-970","mazowieckie","mazo_Warszawa",null,"mazowieckie","Warszawa","Warszawa"]
["02-971","mazowieckie","mazo_Warszawa",null,"mazowieckie","Warszawa","Warszawa"]
["02-972","mazowieckie","mazo_Warszawa",null,"mazowieckie","Warszawa","Warszawa"]
["02-973","mazowieckie","mazo_Warszawa",null,"mazowieckie","Warszawa","Warszawa"]
["02-975","mazowieckie","mazo_Warszawa",null,"mazowieckie","Warszawa","Warszawa"]
["02-977","mazowieckie","mazo_Warszawa",null,"mazowieckie","Warszawa","Warszawa"]
["02-978","mazowieckie","mazo_Warszawa",null,"mazowieckie","Warszawa","Warszawa"]
["02-979","mazowieckie","mazo_Warszawa",null,"mazowieckie","Warszawa","Warszawa"]
["02-980","mazowieckie","mazo_Warszawa",null,"mazowieckie","Warszawa","Warszawa"]
["02-981","mazowieckie","mazo_Warszawa",null,"mazowieckie","Warszawa","Warszawa"]
["02-982","mazowieckie","mazo_Warszawa",null,"mazowieckie","Warszawa","Warszawa"]
["02-983","mazowieckie","mazo_Warszawa",null,"mazowieckie","Warszawa","Warszawa"]
["02-984","mazowieckie","mazo_Warszawa",null,"mazowieckie","Warszawa","Warszawa"]
["02-985","mazowieckie","mazo_Warszawa",null,"mazowieckie","Warszawa","Warszawa"]
["02-986","mazowieckie","mazo_Warszawa",null,"mazowieckie","Warszawa","Warszawa"]
["02-987","mazowieckie","mazo_Warszawa",null,"mazowieckie","Warszawa","Warszawa"]
["02-988","mazowieckie","mazo_Warszawa",null,"mazowieckie","Warszawa","Warszawa"]
["02-989","mazowieckie","mazo_Warszawa",null,"mazowieckie","Warszawa","Warszawa"]
["02-990","mazowieckie","mazo_Warszawa",null,"mazowieckie","Warszawa","Warszawa"]
["02-991","mazowieckie","mazo_Warszawa",null,"mazowieckie","Warszawa","Warszawa"]
["02-992","mazowieckie","mazo_Warszawa",null,"mazowieckie","Warszawa","Warszawa"]
["02-993","mazowieckie","mazo_Warszawa",null,"mazowieckie","Warszawa","Warszawa"]
["02-994","mazowieckie","mazo_Warszawa",null,"mazowieckie","Warszawa","Warszawa"]
["02-995","mazowieckie","mazo_Warszawa",null,"mazowieckie","Warszawa","Warszawa"]
["02-996","mazowieckie","mazo_Warszawa",null,"mazowieckie","Warszawa","Warszawa"]
["02-997","mazowieckie","mazo_Warszawa",null,"mazowieckie","Warszawa","Warszawa"]
["02-998","mazowieckie","mazo_Warszawa",null,"mazowieckie","Warszawa","Warszawa"]
["02-999","mazowieckie","mazo_Warszawa",null,"mazowieckie","Warszawa","Warszawa"]
["03-001","mazowieckie","mazo_Warszawa",null,"mazowieckie","Warszawa","Warszawa"]
["03-002","mazowieckie","mazo_Warszawa",null,"mazowieckie","Warszawa","Warszawa"]
["03-003","mazowieckie","mazo_Warszawa",null,"mazowieckie","Warszawa","Warszawa"]
["03-004","mazowieckie","mazo_Warszawa",null,"mazowieckie","Warszawa","Warszawa"]
["03-005","mazowieckie","mazo_Warszawa",null,"mazowieckie","Warszawa","Warszawa"]
["03-007","mazowieckie","mazo_Warszawa",null,"mazowieckie","Warszawa","Warszawa"]
["03-008","mazowieckie","mazo_Warszawa",null,"mazowieckie","Warszawa","Warszawa"]
["03-009","mazowieckie","mazo_Warszawa",null,"mazowieckie","Warszawa","Warszawa"]
["03-011","mazowieckie","mazo_Warszawa",null,"mazowieckie","Warszawa","Warszawa"]
["03-012","mazowieckie","mazo_Warszawa",null,"mazowieckie","Warszawa","Warszawa"]
["03-013","mazowieckie","mazo_Warszawa",null,"mazowieckie","Warszawa","Warszawa"]
["03-015","mazowieckie","mazo_Warszawa",null,"mazowieckie","Warszawa","Warszawa"]
["03-016","mazowieckie","mazo_Warszawa",null,"mazowieckie","Warszawa","Warszawa"]
["03-017","mazowieckie","mazo_Warszawa",null,"mazowieckie","Warszawa","Warszawa"]
["03-018","mazowieckie","mazo_Warszawa",null,"mazowieckie","Warszawa","Warszawa"]
["03-019","mazowieckie","mazo_Warszawa",null,"mazowieckie","Warszawa","Warszawa"]
["03-020","mazowieckie","mazo_Warszawa",null,"mazowieckie","Warszawa","Warszawa"]
["03-021","mazowieckie","mazo_Warszawa",null,"mazowieckie","Warszawa","Warszawa"]
["03-022","mazowieckie","mazo_Warszawa",null,"mazowieckie","Warszawa","Warszawa"]
["03-023","mazowieckie","mazo_Warszawa",null,"mazowieckie","Warszawa","Warszawa"]
["03-024","mazowieckie","mazo_Warszawa",null,"mazowieckie","Warszawa","Warszawa"]
["03-025","mazowieckie","mazo_Warszawa",null,"mazowieckie","Warszawa","Warszawa"]
["03-026","mazowieckie","mazo_Warszawa",null,"mazowieckie","Warszawa","Warszawa"]
["03-028","mazowieckie","mazo_Warszawa",null,"mazowieckie","Warszawa","Warszawa"]
["03-029","mazowieckie","mazo_Warszawa",null,"mazowieckie","Warszawa","Warszawa"]
["03-030","mazowieckie","mazo_Warszawa",null,"mazowieckie","Warszawa","Warszawa"]
["03-031","mazowieckie","mazo_Warszawa",null,"mazowieckie","Warszawa","Warszawa"]
["03-032","mazowieckie","mazo_Warszawa",null,"mazowieckie","Warszawa","Warszawa"]
["03-033","mazowieckie","mazo_Warszawa",null,"mazowieckie","Warszawa","Warszawa"]
["03-034","mazowieckie","mazo_Warszawa",null,"mazowieckie","Warszawa","Warszawa"]
["03-035","mazowieckie","mazo_Warszawa",null,"mazowieckie","Warszawa","Warszawa"]
["03-036","mazowieckie","mazo_Warszawa",null,"mazowieckie","Warszawa","Warszawa"]
["03-037","mazowieckie","mazo_Warszawa",null,"mazowieckie","Warszawa","Warszawa"]
["03-041","mazowieckie","mazo_Warszawa",null,"mazowieckie","Warszawa","Warszawa"]
["03-042","mazowieckie","mazo_Warszawa",null,"mazowieckie","Warszawa","Warszawa"]
["03-043","mazowieckie","mazo_Warszawa",null,"mazowieckie","Warszawa","Warszawa"]
["03-044","mazowieckie","mazo_Warszawa",null,"mazowieckie","Warszawa","Warszawa"]
["03-046","mazowieckie","mazo_Warszawa",null,"mazowieckie","Warszawa","Warszawa"]
["03-050","mazowieckie","mazo_Warszawa",null,"mazowieckie","Warszawa","Warszawa"]
["03-051","mazowieckie","mazo_Warszawa",null,"mazowieckie","Warszawa","Warszawa"]
["03-052","mazowieckie","mazo_Warszawa",null,"mazowieckie","Warszawa","Warszawa"]
["03-053","mazowieckie","mazo_Warszawa",null,"mazowieckie","Warszawa","Warszawa"]
["03-054","mazowieckie","mazo_Warszawa",null,"mazowieckie","Warszawa","Warszawa"]
["03-055","mazowieckie","mazo_Warszawa",null,"mazowieckie","Warszawa","Warszawa"]
["03-059","mazowieckie","mazo_Warszawa",null,"mazowieckie","Warszawa","Warszawa"]
["03-061","mazowieckie","mazo_Warszawa",null,"mazowieckie","Warszawa","Warszawa"]
["03-062","mazowieckie","mazo_Warszawa",null,"mazowieckie","Warszawa","Warszawa"]
["03-063","mazowieckie","mazo_Warszawa",null,"mazowieckie","Warszawa","Warszawa"]
["03-064","mazowieckie","mazo_Warszawa",null,"mazowieckie","Warszawa","Warszawa"]
["03-068","mazowieckie","mazo_Warszawa",null,"mazowieckie","Warszawa","Warszawa"]
["03-069","mazowieckie","mazo_Warszawa",null,"mazowieckie","Warszawa","Warszawa"]
["03-071","mazowieckie","mazo_Warszawa",null,"mazowieckie","Warszawa","Warszawa"]
["03-074","mazowieckie","mazo_Warszawa",null,"mazowieckie","Warszawa","Warszawa"]
["03-075","mazowieckie","mazo_Warszawa",null,"mazowieckie","Warszawa","Warszawa"]
["03-076","mazowieckie","mazo_Warszawa",null,"mazowieckie","Warszawa","Warszawa"]
["03-077","mazowieckie","mazo_Warszawa",null,"mazowieckie","Warszawa","Warszawa"]
["03-079","mazowieckie","mazo_Warszawa",null,"mazowieckie","Warszawa","Warszawa"]
["03-081","mazowieckie","mazo_Warszawa",null,"mazowieckie","Warszawa","Warszawa"]
["03-082","mazowieckie","mazo_Warszawa",null,"mazowieckie","Warszawa","Warszawa"]
["03-083","mazowieckie","mazo_Warszawa",null,"mazowieckie","Warszawa","Warszawa"]
["03-085","mazowieckie","mazo_Warszawa",null,"mazowieckie","Warszawa","Warszawa"]
["03-087","mazowieckie","mazo_Warszawa",null,"mazowieckie","Warszawa","Warszawa"]
["03-088","mazowieckie","mazo_Warszawa",null,"mazowieckie","Warszawa","Warszawa"]
["03-089","mazowieckie","mazo_Warszawa",null,"mazowieckie","Warszawa","Warszawa"]
["03-090","mazowieckie","mazo_Warszawa",null,"mazowieckie","Warszawa","Warszawa"]
["03-092","mazowieckie","mazo_Warszawa",null,"mazowieckie","Warszawa","Warszawa"]
["03-093","mazowieckie","mazo_Warszawa",null,"mazowieckie","Warszawa","Warszawa"]
["03-100","mazowieckie","mazo_Warszawa",null,"mazowieckie","Warszawa","Warszawa"]
["03-101","mazowieckie","mazo_Warszawa",null,"mazowieckie","Warszawa","Warszawa"]
["03-102","mazowieckie","mazo_Warszawa",null,"mazowieckie","Warszawa","Warszawa"]
["03-103","mazowieckie","mazo_Warszawa",null,"mazowieckie","Warszawa","Warszawa"]
["03-104","mazowieckie","mazo_Warszawa",null,"mazowieckie","Warszawa","Warszawa"]
["03-105","mazowieckie","mazo_Warszawa",null,"mazowieckie","Warszawa","Warszawa"]
["03-106","mazowieckie","mazo_Warszawa",null,"mazowieckie","Warszawa","Warszawa"]
["03-107","mazowieckie","mazo_Warszawa",null,"mazowieckie","Warszawa","Warszawa"]
["03-108","mazowieckie","mazo_Warszawa",null,"mazowieckie","Warszawa","Warszawa"]
["03-109","mazowieckie","mazo_Warszawa",null,"mazowieckie","Warszawa","Warszawa"]
["03-110","mazowieckie","mazo_Warszawa",null,"mazowieckie","Warszawa","Warszawa"]
["03-111","mazowieckie","mazo_Warszawa",null,"mazowieckie","Warszawa","Warszawa"]
["03-112","mazowieckie","mazo_Warszawa",null,"mazowieckie","Warszawa","Warszawa"]
["03-113","mazowieckie","mazo_Warszawa",null,"mazowieckie","Warszawa","Warszawa"]
["03-114","mazowieckie","mazo_Warszawa",null,"mazowieckie","Warszawa","Warszawa"]
["03-115","mazowieckie","mazo_Warszawa",null,"mazowieckie","Warszawa","Warszawa"]
["03-116","mazowieckie","mazo_Warszawa",null,"mazowieckie","Warszawa","Warszawa"]
["03-117","mazowieckie","mazo_Warszawa",null,"mazowieckie","Warszawa","Warszawa"]
["03-118","mazowieckie","mazo_Warszawa",null,"mazowieckie","Warszawa","Warszawa"]
["03-119","mazowieckie","mazo_Warszawa",null,"mazowieckie","Warszawa","Warszawa"]
["03-120","mazowieckie","mazo_Warszawa",null,"mazowieckie","Warszawa","Warszawa"]
["03-122","mazowieckie","mazo_Warszawa",null,"mazowieckie","Warszawa","Warszawa"]
["03-123","mazowieckie","mazo_Warszawa",null,"mazowieckie","Warszawa","Warszawa"]
["03-124","mazowieckie","mazo_Warszawa",null,"mazowieckie","Warszawa","Warszawa"]
["03-125","mazowieckie","mazo_Warszawa",null,"mazowieckie","Warszawa","Warszawa"]
["03-126","mazowieckie","mazo_Warszawa",null,"mazowieckie","Warszawa","Warszawa"]
["03-127","mazowieckie","mazo_Warszawa",null,"mazowieckie","Warszawa","Warszawa"]
["03-128","mazowieckie","mazo_Warszawa",null,"mazowieckie","Warszawa","Warszawa"]
["03-129","mazowieckie","mazo_Warszawa",null,"mazowieckie","Warszawa","Warszawa"]
["03-130","mazowieckie","mazo_Warszawa",null,"mazowieckie","Warszawa","Warszawa"]
["03-131","mazowieckie","mazo_Warszawa",null,"mazowieckie","Warszawa","Warszawa"]
["03-133","mazowieckie","mazo_Warszawa",null,"mazowieckie","Warszawa","Warszawa"]
["03-134","mazowieckie","mazo_Warszawa",null,"mazowieckie","Warszawa","Warszawa"]
["03-135","mazowieckie","mazo_Warszawa",null,"mazowieckie","Warszawa","Warszawa"]
["03-136","mazowieckie","mazo_Warszawa",null,"mazowieckie","Warszawa","Warszawa"]
["03-137","mazowieckie","mazo_Warszawa",null,"mazowieckie","Warszawa","Warszawa"]
["03-138","mazowieckie","mazo_Warszawa",null,"mazowieckie","Warszawa","Warszawa"]
["03-139","mazowieckie","mazo_Warszawa",null,"mazowieckie","Warszawa","Warszawa"]
["03-140","mazowieckie","mazo_Warszawa",null,"mazowieckie","Warszawa","Warszawa"]
["03-141","mazowieckie","mazo_Warszawa",null,"mazowieckie","Warszawa","Warszawa"]
["03-142","mazowieckie","mazo_Warszawa",null,"mazowieckie","Warszawa","Warszawa"]
["03-143","mazowieckie","mazo_Warszawa",null,"mazowieckie","Warszawa","Warszawa"]
["03-144","mazowieckie","mazo_Warszawa",null,"mazowieckie","Warszawa","Warszawa"]
["03-145","mazowieckie","mazo_Warszawa",null,"mazowieckie","Warszawa","Warszawa"]
["03-146","mazowieckie","mazo_Warszawa",null,"mazowieckie","Warszawa","Warszawa"]
["03-147","mazowieckie","mazo_Warszawa",null,"mazowieckie","Warszawa","Warszawa"]
["03-148","mazowieckie","mazo_Warszawa",null,"mazowieckie","Warszawa","Warszawa"]
["03-149","mazowieckie","mazo_Warszawa",null,"mazowieckie","Warszawa","Warszawa"]
["03-151","mazowieckie","mazo_Warszawa",null,"mazowieckie","Warszawa","Warszawa"]
["03-152","mazowieckie","mazo_Warszawa",null,"mazowieckie","Warszawa","Warszawa"]
["03-153","mazowieckie","mazo_Warszawa",null,"mazowieckie","Warszawa","Warszawa"]
["03-154","mazowieckie","mazo_Warszawa",null,"mazowieckie","Warszawa","Warszawa"]
["03-155","mazowieckie","mazo_Warszawa",null,"mazowieckie","Warszawa","Warszawa"]
["03-156","mazowieckie","mazo_Warszawa",null,"mazowieckie","Warszawa","Warszawa"]
["03-157","mazowieckie","mazo_Warszawa",null,"mazowieckie","Warszawa","Warszawa"]
["03-158","mazowieckie","mazo_Warszawa",null,"mazowieckie","Warszawa","Warszawa"]
["03-159","mazowieckie","mazo_Warszawa",null,"mazowieckie","Warszawa","Warszawa"]
["03-160","mazowieckie","mazo_Warszawa",null,"mazowieckie","Warszawa","Warszawa"]
["03-161","mazowieckie","mazo_Warszawa",null,"mazowieckie","Warszawa","Warszawa"]
["03-162","mazowieckie","mazo_Warszawa",null,"mazowieckie","Warszawa","Warszawa"]
["03-163","mazowieckie","mazo_Warszawa",null,"mazowieckie","Warszawa","Warszawa"]
["03-164","mazowieckie","mazo_Warszawa",null,"mazowieckie","Warszawa","Warszawa"]
["03-165","mazowieckie","mazo_Warszawa",null,"mazowieckie","Warszawa","Warszawa"]
["03-166","mazowieckie","mazo_Warszawa",null,"mazowieckie","Warszawa","Warszawa"]
["03-167","mazowieckie","mazo_Warszawa",null,"mazowieckie","Warszawa","Warszawa"]
["03-168","mazowieckie","mazo_Warszawa",null,"mazowieckie","Warszawa","Warszawa"]
["03-170","mazowieckie","mazo_Warszawa",null,"mazowieckie","Warszawa","Warszawa"]
["03-171","mazowieckie","mazo_Warszawa",null,"mazowieckie","Warszawa","Warszawa"]
["03-172","mazowieckie","mazo_Warszawa",null,"mazowieckie","Warszawa","Warszawa"]
["03-173","mazowieckie","mazo_Warszawa",null,"mazowieckie","Warszawa","Warszawa"]
["03-174","mazowieckie","mazo_Warszawa",null,"mazowieckie","Warszawa","Warszawa"]
["03-175","mazowieckie","mazo_Warszawa",null,"mazowieckie","Warszawa","Warszawa"]
["03-176","mazowieckie","mazo_Warszawa",null,"mazowieckie","Warszawa","Warszawa"]
["03-178","mazowieckie","mazo_Warszawa",null,"mazowieckie","Warszawa","Warszawa"]
["03-179","mazowieckie","mazo_Warszawa",null,"mazowieckie","Warszawa","Warszawa"]
["03-180","mazowieckie","mazo_Warszawa",null,"mazowieckie","Warszawa","Warszawa"]
["03-181","mazowieckie","mazo_Warszawa",null,"mazowieckie","Warszawa","Warszawa"]
["03-182","mazowieckie","mazo_Warszawa",null,"mazowieckie","Warszawa","Warszawa"]
["03-183","mazowieckie","mazo_Warszawa",null,"mazowieckie","Warszawa","Warszawa"]
["03-184","mazowieckie","mazo_Warszawa",null,"mazowieckie","Warszawa","Warszawa"]
["03-185","mazowieckie","mazo_Warszawa",null,"mazowieckie","Warszawa","Warszawa"]
["03-186","mazowieckie","mazo_Warszawa",null,"mazowieckie","Warszawa","Warszawa"]
["03-187","mazowieckie","mazo_Warszawa",null,"mazowieckie","Warszawa","Warszawa"]
["03-188","mazowieckie","mazo_Warszawa",null,"mazowieckie","Warszawa","Warszawa"]
["03-189","mazowieckie","mazo_Warszawa",null,"mazowieckie","Warszawa","Warszawa"]
["03-190","mazowieckie","mazo_Warszawa",null,"mazowieckie","Warszawa","Warszawa"]
["03-191","mazowieckie","mazo_Warszawa",null,"mazowieckie","Warszawa","Warszawa"]
["03-192","mazowieckie","mazo_Warszawa",null,"mazowieckie","Warszawa","Warszawa"]
["03-193","mazowieckie","mazo_Warszawa",null,"mazowieckie","Warszawa","Warszawa"]
["03-194","mazowieckie","mazo_Warszawa",null,"mazowieckie","Warszawa","Warszawa"]
["03-195","mazowieckie","mazo_Warszawa",null,"mazowieckie","Warszawa","Warszawa"]
["03-196","mazowieckie","mazo_Warszawa",null,"mazowieckie","Warszawa","Warszawa"]
["03-197","mazowieckie","mazo_Warszawa",null,"mazowieckie","Warszawa","Warszawa"]
["03-198","mazowieckie","mazo_Warszawa",null,"mazowieckie","Warszawa","Warszawa"]
["03-199","mazowieckie","mazo_Warszawa",null,"mazowieckie","Warszawa","Warszawa"]
["03-200","mazowieckie","mazo_Warszawa",null,"mazowieckie","Warszawa","Warszawa"]
["03-201","mazowieckie","mazo_Warszawa",null,"mazowieckie","Warszawa","Warszawa"]
["03-202","mazowieckie","mazo_Warszawa",null,"mazowieckie","Warszawa","Warszawa"]
["03-203","mazowieckie","mazo_Warszawa",null,"mazowieckie","Warszawa","Warszawa"]
["03-204","mazowieckie","mazo_Warszawa",null,"mazowieckie","Warszawa","Warszawa"]
["03-206","mazowieckie","mazo_Warszawa",null,"mazowieckie","Warszawa","Warszawa"]
["03-207","mazowieckie","mazo_Warszawa",null,"mazowieckie","Warszawa","Warszawa"]
["03-208","mazowieckie","mazo_Warszawa",null,"mazowieckie","Warszawa","Warszawa"]
["03-209","mazowieckie","mazo_Warszawa",null,"mazowieckie","Warszawa","Warszawa"]
["03-213","mazowieckie","mazo_Warszawa",null,"mazowieckie","Warszawa","Warszawa"]
["03-214","mazowieckie","mazo_Warszawa",null,"mazowieckie","Warszawa","Warszawa"]
["03-215","mazowieckie","mazo_Warszawa",null,"mazowieckie","Warszawa","Warszawa"]
["03-216","mazowieckie","mazo_Warszawa",null,"mazowieckie","Warszawa","Warszawa"]
["03-219","mazowieckie","mazo_Warszawa",null,"mazowieckie","Warszawa","Warszawa"]
["03-226","mazowieckie","mazo_Warszawa",null,"mazowieckie","Warszawa","Warszawa"]
["03-228","mazowieckie","mazo_Warszawa",null,"mazowieckie","Warszawa","Warszawa"]
["03-230","mazowieckie","mazo_Warszawa",null,"mazowieckie","Warszawa","Warszawa"]
["03-231","mazowieckie","mazo_Warszawa",null,"mazowieckie","Warszawa","Warszawa"]
["03-233","mazowieckie","mazo_Warszawa",null,"mazowieckie","Warszawa","Warszawa"]
["03-236","mazowieckie","mazo_Warszawa",null,"mazowieckie","Warszawa","Warszawa"]
["03-237","mazowieckie","mazo_Warszawa",null,"mazowieckie","Warszawa","Warszawa"]
["03-238","mazowieckie","mazo_Warszawa",null,"mazowieckie","Warszawa","Warszawa"]
["03-241","mazowieckie","mazo_Warszawa",null,"mazowieckie","Warszawa","Warszawa"]
["03-242","mazowieckie","mazo_Warszawa",null,"mazowieckie","Warszawa","Warszawa"]
["03-243","mazowieckie","mazo_Warszawa",null,"mazowieckie","Warszawa","Warszawa"]
["03-244","mazowieckie","mazo_Warszawa",null,"mazowieckie","Warszawa","Warszawa"]
["03-246","mazowieckie","mazo_Warszawa",null,"mazowieckie","Warszawa","Warszawa"]
["03-249","mazowieckie","mazo_Warszawa",null,"mazowieckie","Warszawa","Warszawa"]
["03-251","mazowieckie","mazo_Warszawa",null,"mazowieckie","Warszawa","Warszawa"]
["03-252","mazowieckie","mazo_Warszawa",null,"mazowieckie","Warszawa","Warszawa"]
["03-253","mazowieckie","mazo_Warszawa",null,"mazowieckie","Warszawa","Warszawa"]
["03-254","mazowieckie","mazo_Warszawa",null,"mazowieckie","Warszawa","Warszawa"]
["03-255","mazowieckie","mazo_Warszawa",null,"mazowieckie","Warszawa","Warszawa"]
["03-256","mazowieckie","mazo_Warszawa",null,"mazowieckie","Warszawa","Warszawa"]
["03-257","mazowieckie","mazo_Warszawa",null,"mazowieckie","Warszawa","Warszawa"]
["03-259","mazowieckie","mazo_Warszawa",null,"mazowieckie","Warszawa","Warszawa"]
["03-260","mazowieckie","mazo_Warszawa",null,"mazowieckie","Warszawa","Warszawa"]
["03-262","mazowieckie","mazo_Warszawa",null,"mazowieckie","Warszawa","Warszawa"]
["03-264","mazowieckie","mazo_Warszawa",null,"mazowieckie","Warszawa","Warszawa"]
["03-265","mazowieckie","mazo_Warszawa",null,"mazowieckie","Warszawa","Warszawa"]
["03-266","mazowieckie","mazo_Warszawa",null,"mazowieckie","Warszawa","Warszawa"]
["03-267","mazowieckie","mazo_Warszawa",null,"mazowieckie","Warszawa","Warszawa"]
["03-270","mazowieckie","mazo_Warszawa",null,"mazowieckie","Warszawa","Warszawa"]
["03-272","mazowieckie","mazo_Warszawa",null,"mazowieckie","Warszawa","Warszawa"]
["03-274","mazowieckie","mazo_Warszawa",null,"mazowieckie","Warszawa","Warszawa"]
["03-276","mazowieckie","mazo_Warszawa",null,"mazowieckie","Warszawa","Warszawa"]
["03-279","mazowieckie","mazo_Warszawa",null,"mazowieckie","Warszawa","Warszawa"]
["03-281","mazowieckie","mazo_Warszawa",null,"mazowieckie","Warszawa","Warszawa"]
["03-283","mazowieckie","mazo_Warszawa",null,"mazowieckie","Warszawa","Warszawa"]
["03-284","mazowieckie","mazo_Warszawa",null,"mazowieckie","Warszawa","Warszawa"]
["03-285","mazowieckie","mazo_Warszawa",null,"mazowieckie","Warszawa","Warszawa"]
["03-286","mazowieckie","mazo_Warszawa",null,"mazowieckie","Warszawa","Warszawa"]
["03-287","mazowieckie","mazo_Warszawa",null,"mazowieckie","Warszawa","Warszawa"]
["03-288","mazowieckie","mazo_Warszawa",null,"mazowieckie","Warszawa","Warszawa"]
["03-289","mazowieckie","mazo_Warszawa",null,"mazowieckie","Warszawa","Warszawa"]
["03-290","mazowieckie","mazo_Warszawa",null,"mazowieckie","Warszawa","Warszawa"]
["03-291","mazowieckie","mazo_Warszawa",null,"mazowieckie","Warszawa","Warszawa"]
["03-294","mazowieckie","mazo_Warszawa",null,"mazowieckie","Warszawa","Warszawa"]
["03-295","mazowieckie","mazo_Warszawa",null,"mazowieckie","Warszawa","Warszawa"]
["03-299","mazowieckie","mazo_Warszawa",null,"mazowieckie","Warszawa","Warszawa"]
["03-301","mazowieckie","mazo_Warszawa",null,"mazowieckie","Warszawa","Warszawa"]
["03-302","mazowieckie","mazo_Warszawa",null,"mazowieckie","Warszawa","Warszawa"]
["03-303","mazowieckie","mazo_Warszawa",null,"mazowieckie","Warszawa","Warszawa"]
["03-305","mazowieckie","mazo_Warszawa",null,"mazowieckie","Warszawa","Warszawa"]
["03-307","mazowieckie","mazo_Warszawa",null,"mazowieckie","Warszawa","Warszawa"]
["03-308","mazowieckie","mazo_Warszawa",null,"mazowieckie","Warszawa","Warszawa"]
["03-309","mazowieckie","mazo_Warszawa",null,"mazowieckie","Warszawa","Warszawa"]
["03-310","mazowieckie","mazo_Warszawa",null,"mazowieckie","Warszawa","Warszawa"]
["03-315","mazowieckie","mazo_Warszawa",null,"mazowieckie","Warszawa","Warszawa"]
["03-316","mazowieckie","mazo_Warszawa",null,"mazowieckie","Warszawa","Warszawa"]
["03-317","mazowieckie","mazo_Warszawa",null,"mazowieckie","Warszawa","Warszawa"]
["03-318","mazowieckie","mazo_Warszawa",null,"mazowieckie","Warszawa","Warszawa"]
["03-320","mazowieckie","mazo_Warszawa",null,"mazowieckie","Warszawa","Warszawa"]
["03-321","mazowieckie","mazo_Warszawa",null,"mazowieckie","Warszawa","Warszawa"]
["03-322","mazowieckie","mazo_Warszawa",null,"mazowieckie","Warszawa","Warszawa"]
["03-324","mazowieckie","mazo_Warszawa",null,"mazowieckie","Warszawa","Warszawa"]
["03-325","mazowieckie","mazo_Warszawa",null,"mazowieckie","Warszawa","Warszawa"]
["03-329","mazowieckie","mazo_Warszawa",null,"mazowieckie","Warszawa","Warszawa"]
["03-331","mazowieckie","mazo_Warszawa",null,"mazowieckie","Warszawa","Warszawa"]
["03-332","mazowieckie","mazo_Warszawa",null,"mazowieckie","Warszawa","Warszawa"]
["03-333","mazowieckie","mazo_Warszawa",null,"mazowieckie","Warszawa","Warszawa"]
["03-334","mazowieckie","mazo_Warszawa",null,"mazowieckie","Warszawa","Warszawa"]
["03-335","mazowieckie","mazo_Warszawa",null,"mazowieckie","Warszawa","Warszawa"]
["03-337","mazowieckie","mazo_Warszawa",null,"mazowieckie","Warszawa","Warszawa"]
["03-338","mazowieckie","mazo_Warszawa",null,"mazowieckie","Warszawa","Warszawa"]
["03-340","mazowieckie","mazo_Warszawa",null,"mazowieckie","Warszawa","Warszawa"]
["03-341","mazowieckie","mazo_Warszawa",null,"mazowieckie","Warszawa","Warszawa"]
["03-343","mazowieckie","mazo_Warszawa",null,"mazowieckie","Warszawa","Warszawa"]
["03-345","mazowieckie","mazo_Warszawa",null,"mazowieckie","Warszawa","Warszawa"]
["03-347","mazowieckie","mazo_Warszawa",null,"mazowieckie","Warszawa","Warszawa"]
["03-349","mazowieckie","mazo_Warszawa",null,"mazowieckie","Warszawa","Warszawa"]
["03-350","mazowieckie","mazo_Warszawa",null,"mazowieckie","Warszawa","Warszawa"]
["03-351","mazowieckie","mazo_Warszawa",null,"mazowieckie","Warszawa","Warszawa"]
["03-352","mazowieckie","mazo_Warszawa",null,"mazowieckie","Warszawa","Warszawa"]
["03-353","mazowieckie","mazo_Warszawa",null,"mazowieckie","Warszawa","Warszawa"]
["03-355","mazowieckie","mazo_Warszawa",null,"mazowieckie","Warszawa","Warszawa"]
["03-356","mazowieckie","mazo_Warszawa",null,"mazowieckie","Warszawa","Warszawa"]
["03-357","mazowieckie","mazo_Warszawa",null,"mazowieckie","Warszawa","Warszawa"]
["03-358","mazowieckie","mazo_Warszawa",null,"mazowieckie","Warszawa","Warszawa"]
["03-359","mazowieckie","mazo_Warszawa",null,"mazowieckie","Warszawa","Warszawa"]
["03-360","mazowieckie","mazo_Warszawa",null,"mazowieckie","Warszawa","Warszawa"]
["03-361","mazowieckie","mazo_Warszawa",null,"mazowieckie","Warszawa","Warszawa"]
["03-362","mazowieckie","mazo_Warszawa",null,"mazowieckie","Warszawa","Warszawa"]
["03-363","mazowieckie","mazo_Warszawa",null,"mazowieckie","Warszawa","Warszawa"]
["03-365","mazowieckie","mazo_Warszawa",null,"mazowieckie","Warszawa","Warszawa"]
["03-368","mazowieckie","mazo_Warszawa",null,"mazowieckie","Warszawa","Warszawa"]
["03-369","mazowieckie","mazo_Warszawa",null,"mazowieckie","Warszawa","Warszawa"]
["03-370","mazowieckie","mazo_Warszawa",null,"mazowieckie","Warszawa","Warszawa"]
["03-371","mazowieckie","mazo_Warszawa",null,"mazowieckie","Warszawa","Warszawa"]
["03-372","mazowieckie","mazo_Warszawa",null,"mazowieckie","Warszawa","Warszawa"]
["03-374","mazowieckie","mazo_Warszawa",null,"mazowieckie","Warszawa","Warszawa"]
["03-375","mazowieckie","mazo_Warszawa",null,"mazowieckie","Warszawa","Warszawa"]
["03-376","mazowieckie","mazo_Warszawa",null,"mazowieckie","Warszawa","Warszawa"]
["03-377","mazowieckie","mazo_Warszawa",null,"mazowieckie","Warszawa","Warszawa"]
["03-378","mazowieckie","mazo_Warszawa",null,"mazowieckie","Warszawa","Warszawa"]
["03-379","mazowieckie","mazo_Warszawa",null,"mazowieckie","Warszawa","Warszawa"]
["03-380","mazowieckie","mazo_Warszawa",null,"mazowieckie","Warszawa","Warszawa"]
["03-381","mazowieckie","mazo_Warszawa",null,"mazowieckie","Warszawa","Warszawa"]
["03-382","mazowieckie","mazo_Warszawa",null,"mazowieckie","Warszawa","Warszawa"]
["03-383","mazowieckie","mazo_Warszawa",null,"mazowieckie","Warszawa","Warszawa"]
["03-384","mazowieckie","mazo_Warszawa",null,"mazowieckie","Warszawa","Warszawa"]
["03-385","mazowieckie","mazo_Warszawa",null,"mazowieckie","Warszawa","Warszawa"]
["03-388","mazowieckie","mazo_Warszawa",null,"mazowieckie","Warszawa","Warszawa"]
["03-390","mazowieckie","mazo_Warszawa",null,"mazowieckie","Warszawa","Warszawa"]
["03-391","mazowieckie","mazo_Warszawa",null,"mazowieckie","Warszawa","Warszawa"]
["03-392","mazowieckie","mazo_Warszawa",null,"mazowieckie","Warszawa","Warszawa"]
["03-393","mazowieckie","mazo_Warszawa",null,"mazowieckie","Warszawa","Warszawa"]
["03-394","mazowieckie","mazo_Warszawa",null,"mazowieckie","Warszawa","Warszawa"]
["03-395","mazowieckie","mazo_Warszawa",null,"mazowieckie","Warszawa","Warszawa"]
["03-396","mazowieckie","mazo_Warszawa",null,"mazowieckie","Warszawa","Warszawa"]
["03-397","mazowieckie","mazo_Warszawa",null,"mazowieckie","Warszawa","Warszawa"]
["03-401","mazowieckie","mazo_Warszawa",null,"mazowieckie","Warszawa","Warszawa"]
["03-402","mazowieckie","mazo_Warszawa",null,"mazowieckie","Warszawa","Warszawa"]
["03-403","mazowieckie","mazo_Warszawa",null,"mazowieckie","Warszawa","Warszawa"]
["03-404","mazowieckie","mazo_Warszawa",null,"mazowieckie","Warszawa","Warszawa"]
["03-405","mazowieckie","mazo_Warszawa",null,"mazowieckie","Warszawa","Warszawa"]
["03-406","mazowieckie","mazo_Warszawa",null,"mazowieckie","Warszawa","Warszawa"]
["03-407","mazowieckie","mazo_Warszawa",null,"mazowieckie","Warszawa","Warszawa"]
["03-408","mazowieckie","mazo_Warszawa",null,"mazowieckie","Warszawa","Warszawa"]
["03-409","mazowieckie","mazo_Warszawa",null,"mazowieckie","Warszawa","Warszawa"]
["03-410","mazowieckie","mazo_Warszawa",null,"mazowieckie","Warszawa","Warszawa"]
["03-411","mazowieckie","mazo_Warszawa",null,"mazowieckie","Warszawa","Warszawa"]
["03-412","mazowieckie","mazo_Warszawa",null,"mazowieckie","Warszawa","Warszawa"]
["03-414","mazowieckie","mazo_Warszawa",null,"mazowieckie","Warszawa","Warszawa"]
["03-415","mazowieckie","mazo_Warszawa",null,"mazowieckie","Warszawa","Warszawa"]
["03-416","mazowieckie","mazo_Warszawa",null,"mazowieckie","Warszawa","Warszawa"]
["03-417","mazowieckie","mazo_Warszawa",null,"mazowieckie","Warszawa","Warszawa"]
["03-418","mazowieckie","mazo_Warszawa",null,"mazowieckie","Warszawa","Warszawa"]
["03-419","mazowieckie","mazo_Warszawa",null,"mazowieckie","Warszawa","Warszawa"]
["03-420","mazowieckie","mazo_Warszawa",null,"mazowieckie","Warszawa","Warszawa"]
["03-421","mazowieckie","mazo_Warszawa",null,"mazowieckie","Warszawa","Warszawa"]
["03-422","mazowieckie","mazo_Warszawa",null,"mazowieckie","Warszawa","Warszawa"]
["03-423","mazowieckie","mazo_Warszawa",null,"mazowieckie","Warszawa","Warszawa"]
["03-424","mazowieckie","mazo_Warszawa",null,"mazowieckie","Warszawa","Warszawa"]
["03-425","mazowieckie","mazo_Warszawa",null,"mazowieckie","Warszawa","Warszawa"]
["03-426","mazowieckie","mazo_Warszawa",null,"mazowieckie","Warszawa","Warszawa"]
["03-427","mazowieckie","mazo_Warszawa",null,"mazowieckie","Warszawa","Warszawa"]
["03-428","mazowieckie","mazo_Warszawa",null,"mazowieckie","Warszawa","Warszawa"]
["03-429","mazowieckie","mazo_Warszawa",null,"mazowieckie","Warszawa","Warszawa"]
["03-430","mazowieckie","mazo_Warszawa",null,"mazowieckie","Warszawa","Warszawa"]
["03-431","mazowieckie","mazo_Warszawa",null,"mazowieckie","Warszawa","Warszawa"]
["03-432","mazowieckie","mazo_Warszawa",null,"mazowieckie","Warszawa","Warszawa"]
["03-433","mazowieckie","mazo_Warszawa",null,"mazowieckie","Warszawa","Warszawa"]
["03-435","mazowieckie","mazo_Warszawa",null,"mazowieckie","Warszawa","Warszawa"]
["03-436","mazowieckie","mazo_Warszawa",null,"mazowieckie","Warszawa","Warszawa"]
["03-437","mazowieckie","mazo_Warszawa",null,"mazowieckie","Warszawa","Warszawa"]
["03-438","mazowieckie","mazo_Warszawa",null,"mazowieckie","Warszawa","Warszawa"]
["03-439","mazowieckie","mazo_Warszawa",null,"mazowieckie","Warszawa","Warszawa"]
["03-440","mazowieckie","mazo_Warszawa",null,"mazowieckie","Warszawa","Warszawa"]
["03-441","mazowieckie","mazo_Warszawa",null,"mazowieckie","Warszawa","Warszawa"]
["03-442","mazowieckie","mazo_Warszawa",null,"mazowieckie","Warszawa","Warszawa"]
["03-443","mazowieckie","mazo_Warszawa",null,"mazowieckie","Warszawa","Warszawa"]
["03-444","mazowieckie","mazo_Warszawa",null,"mazowieckie","Warszawa","Warszawa"]
["03-445","mazowieckie","mazo_Warszawa",null,"mazowieckie","Warszawa","Warszawa"]
["03-446","mazowieckie","mazo_Warszawa",null,"mazowieckie","Warszawa","Warszawa"]
["03-447","mazowieckie","mazo_Warszawa",null,"mazowieckie","Warszawa","Warszawa"]
["03-448","mazowieckie","mazo_Warszawa",null,"mazowieckie","Warszawa","Warszawa"]
["03-450","mazowieckie","mazo_Warszawa",null,"mazowieckie","Warszawa","Warszawa"]
["03-451","mazowieckie","mazo_Warszawa",null,"mazowieckie","Warszawa","Warszawa"]
["03-452","mazowieckie","mazo_Warszawa",null,"mazowieckie","Warszawa","Warszawa"]
["03-453","mazowieckie","mazo_Warszawa",null,"mazowieckie","Warszawa","Warszawa"]
["03-454","mazowieckie","mazo_Warszawa",null,"mazowieckie","Warszawa","Warszawa"]
["03-455","mazowieckie","mazo_Warszawa",null,"mazowieckie","Warszawa","Warszawa"]
["03-456","mazowieckie","mazo_Warszawa",null,"mazowieckie","Warszawa","Warszawa"]
["03-458","mazowieckie","mazo_Warszawa",null,"mazowieckie","Warszawa","Warszawa"]
["03-459","mazowieckie","mazo_Warszawa",null,"mazowieckie","Warszawa","Warszawa"]
["03-460","mazowieckie","mazo_Warszawa",null,"mazowieckie","Warszawa","Warszawa"]
["03-461","mazowieckie","mazo_Warszawa",null,"mazowieckie","Warszawa","Warszawa"]
["03-462","mazowieckie","mazo_Warszawa",null,"mazowieckie","Warszawa","Warszawa"]
["03-463","mazowieckie","mazo_Warszawa",null,"mazowieckie","Warszawa","Warszawa"]
["03-464","mazowieckie","mazo_Warszawa",null,"mazowieckie","Warszawa","Warszawa"]
["03-465","mazowieckie","mazo_Warszawa",null,"mazowieckie","Warszawa","Warszawa"]
["03-468","mazowieckie","mazo_Warszawa",null,"mazowieckie","Warszawa","Warszawa"]
["03-469","mazowieckie","mazo_Warszawa",null,"mazowieckie","Warszawa","Warszawa"]
["03-470","mazowieckie","mazo_Warszawa",null,"mazowieckie","Warszawa","Warszawa"]
["03-471","mazowieckie","mazo_Warszawa",null,"mazowieckie","Warszawa","Warszawa"]
["03-472","mazowieckie","mazo_Warszawa",null,"mazowieckie","Warszawa","Warszawa"]
["03-473","mazowieckie","mazo_Warszawa",null,"mazowieckie","Warszawa","Warszawa"]
["03-474","mazowieckie","mazo_Warszawa",null,"mazowieckie","Warszawa","Warszawa"]
["03-475","mazowieckie","mazo_Warszawa",null,"mazowieckie","Warszawa","Warszawa"]
["03-476","mazowieckie","mazo_Warszawa",null,"mazowieckie","Warszawa","Warszawa"]
["03-477","mazowieckie","mazo_Warszawa",null,"mazowieckie","Warszawa","Warszawa"]
["03-478","mazowieckie","mazo_Warszawa",null,"mazowieckie","Warszawa","Warszawa"]
["03-480","mazowieckie","mazo_Warszawa",null,"mazowieckie","Warszawa","Warszawa"]
["03-481","mazowieckie","mazo_Warszawa",null,"mazowieckie","Warszawa","Warszawa"]
["03-482","mazowieckie","mazo_Warszawa",null,"mazowieckie","Warszawa","Warszawa"]
["03-483","mazowieckie","mazo_Warszawa",null,"mazowieckie","Warszawa","Warszawa"]
["03-484","mazowieckie","mazo_Warszawa",null,"mazowieckie","Warszawa","Warszawa"]
["03-485","mazowieckie","mazo_Warszawa",null,"mazowieckie","Warszawa","Warszawa"]
["03-486","mazowieckie","mazo_Warszawa",null,"mazowieckie","Warszawa","Warszawa"]
["03-488","mazowieckie","mazo_Warszawa",null,"mazowieckie","Warszawa","Warszawa"]
["03-489","mazowieckie","mazo_Warszawa",null,"mazowieckie","Warszawa","Warszawa"]
["03-490","mazowieckie","mazo_Warszawa",null,"mazowieckie","Warszawa","Warszawa"]
["03-501","mazowieckie","mazo_Warszawa",null,"mazowieckie","Warszawa","Warszawa"]
["03-502","mazowieckie","mazo_Warszawa",null,"mazowieckie","Warszawa","Warszawa"]
["03-503","mazowieckie","mazo_Warszawa",null,"mazowieckie","Warszawa","Warszawa"]
["03-504","mazowieckie","mazo_Warszawa",null,"mazowieckie","Warszawa","Warszawa"]
["03-505","mazowieckie","mazo_Warszawa",null,"mazowieckie","Warszawa","Warszawa"]
["03-506","mazowieckie","mazo_Warszawa",null,"mazowieckie","Warszawa","Warszawa"]
["03-507","mazowieckie","mazo_Warszawa",null,"mazowieckie","Warszawa","Warszawa"]
["03-509","mazowieckie","mazo_Warszawa",null,"mazowieckie","Warszawa","Warszawa"]
["03-510","mazowieckie","mazo_Warszawa",null,"mazowieckie","Warszawa","Warszawa"]
["03-511","mazowieckie","mazo_Warszawa",null,"mazowieckie","Warszawa","Warszawa"]
["03-512","mazowieckie","mazo_Warszawa",null,"mazowieckie","Warszawa","Warszawa"]
["03-514","mazowieckie","mazo_Warszawa",null,"mazowieckie","Warszawa","Warszawa"]
["03-515","mazowieckie","mazo_Warszawa",null,"mazowieckie","Warszawa","Warszawa"]
["03-516","mazowieckie","mazo_Warszawa",null,"mazowieckie","Warszawa","Warszawa"]
["03-517","mazowieckie","mazo_Warszawa",null,"mazowieckie","Warszawa","Warszawa"]
["03-518","mazowieckie","mazo_Warszawa",null,"mazowieckie","Warszawa","Warszawa"]
["03-519","mazowieckie","mazo_Warszawa",null,"mazowieckie","Warszawa","Warszawa"]
["03-521","mazowieckie","mazo_Warszawa",null,"mazowieckie","Warszawa","Warszawa"]
["03-522","mazowieckie","mazo_Warszawa",null,"mazowieckie","Warszawa","Warszawa"]
["03-523","mazowieckie","mazo_Warszawa",null,"mazowieckie","Warszawa","Warszawa"]
["03-524","mazowieckie","mazo_Warszawa",null,"mazowieckie","Warszawa","Warszawa"]
["03-525","mazowieckie","mazo_Warszawa",null,"mazowieckie","Warszawa","Warszawa"]
["03-526","mazowieckie","mazo_Warszawa",null,"mazowieckie","Warszawa","Warszawa"]
["03-527","mazowieckie","mazo_Warszawa",null,"mazowieckie","Warszawa","Warszawa"]
["03-528","mazowieckie","mazo_Warszawa",null,"mazowieckie","Warszawa","Warszawa"]
["03-529","mazowieckie","mazo_Warszawa",null,"mazowieckie","Warszawa","Warszawa"]
["03-530","mazowieckie","mazo_Warszawa",null,"mazowieckie","Warszawa","Warszawa"]
["03-531","mazowieckie","mazo_Warszawa",null,"mazowieckie","Warszawa","Warszawa"]
["03-532","mazowieckie","mazo_Warszawa",null,"mazowieckie","Warszawa","Warszawa"]
["03-533","mazowieckie","mazo_Warszawa",null,"mazowieckie","Warszawa","Warszawa"]
["03-534","mazowieckie","mazo_Warszawa",null,"mazowieckie","Warszawa","Warszawa"]
["03-535","mazowieckie","mazo_Warszawa",null,"mazowieckie","Warszawa","Warszawa"]
["03-536","mazowieckie","mazo_Warszawa",null,"mazowieckie","Warszawa","Warszawa"]
["03-538","mazowieckie","mazo_Warszawa",null,"mazowieckie","Warszawa","Warszawa"]
["03-539","mazowieckie","mazo_Warszawa",null,"mazowieckie","Warszawa","Warszawa"]
["03-540","mazowieckie","mazo_Warszawa",null,"mazowieckie","Warszawa","Warszawa"]
["03-541","mazowieckie","mazo_Warszawa",null,"mazowieckie","Warszawa","Warszawa"]
["03-542","mazowieckie","mazo_Warszawa",null,"mazowieckie","Warszawa","Warszawa"]
["03-543","mazowieckie","mazo_Warszawa",null,"mazowieckie","Warszawa","Warszawa"]
["03-544","mazowieckie","mazo_Warszawa",null,"mazowieckie","Warszawa","Warszawa"]
["03-545","mazowieckie","mazo_Warszawa",null,"mazowieckie","Warszawa","Warszawa"]
["03-546","mazowieckie","mazo_Warszawa",null,"mazowieckie","Warszawa","Warszawa"]
["03-547","mazowieckie","mazo_Warszawa",null,"mazowieckie","Warszawa","Warszawa"]
["03-548","mazowieckie","mazo_Warszawa",null,"mazowieckie","Warszawa","Warszawa"]
["03-549","mazowieckie","mazo_Warszawa",null,"mazowieckie","Warszawa","Warszawa"]
["03-550","mazowieckie","mazo_Warszawa",null,"mazowieckie","Warszawa","Warszawa"]
["03-551","mazowieckie","mazo_Warszawa",null,"mazowieckie","Warszawa","Warszawa"]
["03-552","mazowieckie","mazo_Warszawa",null,"mazowieckie","Warszawa","Warszawa"]
["03-553","mazowieckie","mazo_Warszawa",null,"mazowieckie","Warszawa","Warszawa"]
["03-554","mazowieckie","mazo_Warszawa",null,"mazowieckie","Warszawa","Warszawa"]
["03-556","mazowieckie","mazo_Warszawa",null,"mazowieckie","Warszawa","Warszawa"]
["03-557","mazowieckie","mazo_Warszawa",null,"mazowieckie","Warszawa","Warszawa"]
["03-558","mazowieckie","mazo_Warszawa",null,"mazowieckie","Warszawa","Warszawa"]
["03-560","mazowieckie","mazo_Warszawa",null,"mazowieckie","Warszawa","Warszawa"]
["03-561","mazowieckie","mazo_Warszawa",null,"mazowieckie","Warszawa","Warszawa"]
["03-562","mazowieckie","mazo_Warszawa",null,"mazowieckie","Warszawa","Warszawa"]
["03-563","mazowieckie","mazo_Warszawa",null,"mazowieckie","Warszawa","Warszawa"]
["03-564","mazowieckie","mazo_Warszawa",null,"mazowieckie","Warszawa","Warszawa"]
["03-565","mazowieckie","mazo_Warszawa",null,"mazowieckie","Warszawa","Warszawa"]
["03-566","mazowieckie","mazo_Warszawa",null,"mazowieckie","Warszawa","Warszawa"]
["03-567","mazowieckie","mazo_Warszawa",null,"mazowieckie","Warszawa","Warszawa"]
["03-569","mazowieckie","mazo_Warszawa",null,"mazowieckie","Warszawa","Warszawa"]
["03-571","mazowieckie","mazo_Warszawa",null,"mazowieckie","Warszawa","Warszawa"]
["03-572","mazowieckie","mazo_Warszawa",null,"mazowieckie","Warszawa","Warszawa"]
["03-573","mazowieckie","mazo_Warszawa",null,"mazowieckie","Warszawa","Warszawa"]
["03-574","mazowieckie","mazo_Warszawa",null,"mazowieckie","Warszawa","Warszawa"]
["03-575","mazowieckie","mazo_Warszawa",null,"mazowieckie","Warszawa","Warszawa"]
["03-576","mazowieckie","mazo_Warszawa",null,"mazowieckie","Warszawa","Warszawa"]
["03-577","mazowieckie","mazo_Warszawa",null,"mazowieckie","Warszawa","Warszawa"]
["03-578","mazowieckie","mazo_Warszawa",null,"mazowieckie","Warszawa","Warszawa"]
["03-579","mazowieckie","mazo_Warszawa",null,"mazowieckie","Warszawa","Warszawa"]
["03-580","mazowieckie","mazo_Warszawa",null,"mazowieckie","Warszawa","Warszawa"]
["03-581","mazowieckie","mazo_Warszawa",null,"mazowieckie","Warszawa","Warszawa"]
["03-582","mazowieckie","mazo_Warszawa",null,"mazowieckie","Warszawa","Warszawa"]
["03-583","mazowieckie","mazo_Warszawa",null,"mazowieckie","Warszawa","Warszawa"]
["03-584","mazowieckie","mazo_Warszawa",null,"mazowieckie","Warszawa","Warszawa"]
["03-585","mazowieckie","mazo_Warszawa",null,"mazowieckie","Warszawa","Warszawa"]
["03-586","mazowieckie","mazo_Warszawa",null,"mazowieckie","Warszawa","Warszawa"]
["03-587","mazowieckie","mazo_Warszawa",null,"mazowieckie","Warszawa","Warszawa"]
["03-588","mazowieckie","mazo_Warszawa",null,"mazowieckie","Warszawa","Warszawa"]
["03-589","mazowieckie","mazo_Warszawa",null,"mazowieckie","Warszawa","Warszawa"]
["03-590","mazowieckie","mazo_Warszawa",null,"mazowieckie","Warszawa","Warszawa"]
["03-592","mazowieckie","mazo_Warszawa",null,"mazowieckie","Warszawa","Warszawa"]
["03-593","mazowieckie","mazo_Warszawa",null,"mazowieckie","Warszawa","Warszawa"]
["03-594","mazowieckie","mazo_Warszawa",null,"mazowieckie","Warszawa","Warszawa"]
["03-595","mazowieckie","mazo_Warszawa",null,"mazowieckie","Warszawa","Warszawa"]
["03-596","mazowieckie","mazo_Warszawa",null,"mazowieckie","Warszawa","Warszawa"]
["03-597","mazowieckie","mazo_Warszawa",null,"mazowieckie","Warszawa","Warszawa"]
["03-598","mazowieckie","mazo_Warszawa",null,"mazowieckie","Warszawa","Warszawa"]
["03-599","mazowieckie","mazo_Warszawa",null,"mazowieckie","Warszawa","Warszawa"]
["03-601","mazowieckie","mazo_Warszawa",null,"mazowieckie","Warszawa","Warszawa"]
["03-602","mazowieckie","mazo_Warszawa",null,"mazowieckie","Warszawa","Warszawa"]
["03-603","mazowieckie","mazo_Warszawa",null,"mazowieckie","Warszawa","Warszawa"]
["03-604","mazowieckie","mazo_Warszawa",null,"mazowieckie","Warszawa","Warszawa"]
["03-605","mazowieckie","mazo_Warszawa",null,"mazowieckie","Warszawa","Warszawa"]
["03-606","mazowieckie","mazo_Warszawa",null,"mazowieckie","Warszawa","Warszawa"]
["03-607","mazowieckie","mazo_Warszawa",null,"mazowieckie","Warszawa","Warszawa"]
["03-608","mazowieckie","mazo_Warszawa",null,"mazowieckie","Warszawa","Warszawa"]
["03-609","mazowieckie","mazo_Warszawa",null,"mazowieckie","Warszawa","Warszawa"]
["03-610","mazowieckie","mazo_Warszawa",null,"mazowieckie","Warszawa","Warszawa"]
["03-611","mazowieckie","mazo_Warszawa",null,"mazowieckie","Warszawa","Warszawa"]
["03-612","mazowieckie","mazo_Warszawa",null,"mazowieckie","Warszawa","Warszawa"]
["03-613","mazowieckie","mazo_Warszawa",null,"mazowieckie","Warszawa","Warszawa"]
["03-614","mazowieckie","mazo_Warszawa",null,"mazowieckie","Warszawa","Warszawa"]
["03-616","mazowieckie","mazo_Warszawa",null,"mazowieckie","Warszawa","Warszawa"]
["03-617","mazowieckie","mazo_Warszawa",null,"mazowieckie","Warszawa","Warszawa"]
["03-618","mazowieckie","mazo_Warszawa",null,"mazowieckie","Warszawa","Warszawa"]
["03-619","mazowieckie","mazo_Warszawa",null,"mazowieckie","Warszawa","Warszawa"]
["03-620","mazowieckie","mazo_Warszawa",null,"mazowieckie","Warszawa","Warszawa"]
["03-621","mazowieckie","mazo_Warszawa",null,"mazowieckie","Warszawa","Warszawa"]
["03-622","mazowieckie","mazo_Warszawa",null,"mazowieckie","Warszawa","Warszawa"]
["03-623","mazowieckie","mazo_Warszawa",null,"mazowieckie","Warszawa","Warszawa"]
["03-624","mazowieckie","mazo_Warszawa",null,"mazowieckie","Warszawa","Warszawa"]
["03-625","mazowieckie","mazo_Warszawa",null,"mazowieckie","Warszawa","Warszawa"]
["03-626","mazowieckie","mazo_Warszawa",null,"mazowieckie","Warszawa","Warszawa"]
["03-627","mazowieckie","mazo_Warszawa",null,"mazowieckie","Warszawa","Warszawa"]
["03-628","mazowieckie","mazo_Warszawa",null,"mazowieckie","Warszawa","Warszawa"]
["03-629","mazowieckie","mazo_Warszawa",null,"mazowieckie","Warszawa","Warszawa"]
["03-630","mazowieckie","mazo_Warszawa",null,"mazowieckie","Warszawa","Warszawa"]
["03-631","mazowieckie","mazo_Warszawa",null,"mazowieckie","Warszawa","Warszawa"]
["03-632","mazowieckie","mazo_Warszawa",null,"mazowieckie","Warszawa","Warszawa"]
["03-633","mazowieckie","mazo_Warszawa",null,"mazowieckie","Warszawa","Warszawa"]
["03-634","mazowieckie","mazo_Warszawa",null,"mazowieckie","Warszawa","Warszawa"]
["03-636","mazowieckie","mazo_Warszawa",null,"mazowieckie","Warszawa","Warszawa"]
["03-637","mazowieckie","mazo_Warszawa",null,"mazowieckie","Warszawa","Warszawa"]
["03-638","mazowieckie","mazo_Warszawa",null,"mazowieckie","Warszawa","Warszawa"]
["03-639","mazowieckie","mazo_Warszawa",null,"mazowieckie","Warszawa","Warszawa"]
["03-640","mazowieckie","mazo_Warszawa",null,"mazowieckie","Warszawa","Warszawa"]
["03-641","mazowieckie","mazo_Warszawa",null,"mazowieckie","Warszawa","Warszawa"]
["03-642","mazowieckie","mazo_Warszawa",null,"mazowieckie","Warszawa","Warszawa"]
["03-643","mazowieckie","mazo_Warszawa",null,"mazowieckie","Warszawa","Warszawa"]
["03-644","mazowieckie","mazo_Warszawa",null,"mazowieckie","Warszawa","Warszawa"]
["03-645","mazowieckie","mazo_Warszawa",null,"mazowieckie","Warszawa","Warszawa"]
["03-646","mazowieckie","mazo_Warszawa",null,"mazowieckie","Warszawa","Warszawa"]
["03-647","mazowieckie","mazo_Warszawa",null,"mazowieckie","Warszawa","Warszawa"]
["03-648","mazowieckie","mazo_Warszawa",null,"mazowieckie","Warszawa","Warszawa"]
["03-649","mazowieckie","mazo_Warszawa",null,"mazowieckie","Warszawa","Warszawa"]
["03-650","mazowieckie","mazo_Warszawa",null,"mazowieckie","Warszawa","Warszawa"]
["03-652","mazowieckie","mazo_Warszawa",null,"mazowieckie","Warszawa","Warszawa"]
["03-653","mazowieckie","mazo_Warszawa",null,"mazowieckie","Warszawa","Warszawa"]
["03-654","mazowieckie","mazo_Warszawa",null,"mazowieckie","Warszawa","Warszawa"]
["03-655","mazowieckie","mazo_Warszawa",null,"mazowieckie","Warszawa","Warszawa"]
["03-656","mazowieckie","mazo_Warszawa",null,"mazowieckie","Warszawa","Warszawa"]
["03-657","mazowieckie","mazo_Warszawa",null,"mazowieckie","Warszawa","Warszawa"]
["03-658","mazowieckie","mazo_Warszawa",null,"mazowieckie","Warszawa","Warszawa"]
["03-659","mazowieckie","mazo_Warszawa",null,"mazowieckie","Warszawa","Warszawa"]
["03-660","mazowieckie","mazo_Warszawa",null,"mazowieckie","Warszawa","Warszawa"]
["03-661","mazowieckie","mazo_Warszawa",null,"mazowieckie","Warszawa","Warszawa"]
["03-662","mazowieckie","mazo_Warszawa",null,"mazowieckie","Warszawa","Warszawa"]
["03-663","mazowieckie","mazo_Warszawa",null,"mazowieckie","Warszawa","Warszawa"]
["03-664","mazowieckie","mazo_Warszawa",null,"mazowieckie","Warszawa","Warszawa"]
["03-665","mazowieckie","mazo_Warszawa",null,"mazowieckie","Warszawa","Warszawa"]
["03-666","mazowieckie","mazo_Warszawa",null,"mazowieckie","Warszawa","Warszawa"]
["03-667","mazowieckie","mazo_Warszawa",null,"mazowieckie","Warszawa","Warszawa"]
["03-668","mazowieckie","mazo_Warszawa",null,"mazowieckie","Warszawa","Warszawa"]
["03-671","mazowieckie","mazo_Warszawa",null,"mazowieckie","Warszawa","Warszawa"]
["03-672","mazowieckie","mazo_Warszawa",null,"mazowieckie","Warszawa","Warszawa"]
["03-673","mazowieckie","mazo_Warszawa",null,"mazowieckie","Warszawa","Warszawa"]
["03-674","mazowieckie","mazo_Warszawa",null,"mazowieckie","Warszawa","Warszawa"]
["03-675","mazowieckie","mazo_Warszawa",null,"mazowieckie","Warszawa","Warszawa"]
["03-676","mazowieckie","mazo_Warszawa",null,"mazowieckie","Warszawa","Warszawa"]
["03-677","mazowieckie","mazo_Warszawa",null,"mazowieckie","Warszawa","Warszawa"]
["03-678","mazowieckie","mazo_Warszawa",null,"mazowieckie","Warszawa","Warszawa"]
["03-679","mazowieckie","mazo_Warszawa",null,"mazowieckie","Warszawa","Warszawa"]
["03-680","mazowieckie","mazo_Warszawa",null,"mazowieckie","Warszawa","Warszawa"]
["03-681","mazowieckie","mazo_Warszawa",null,"mazowieckie","Warszawa","Warszawa"]
["03-682","mazowieckie","mazo_Warszawa",null,"mazowieckie","Warszawa","Warszawa"]
["03-683","mazowieckie","mazo_Warszawa",null,"mazowieckie","Warszawa","Warszawa"]
["03-684","mazowieckie","mazo_Warszawa",null,"mazowieckie","Warszawa","Warszawa"]
["03-685","mazowieckie","mazo_Warszawa",null,"mazowieckie","Warszawa","Warszawa"]
["03-686","mazowieckie","mazo_Warszawa",null,"mazowieckie","Warszawa","Warszawa"]
["03-687","mazowieckie","mazo_Warszawa",null,"mazowieckie","Warszawa","Warszawa"]
["03-688","mazowieckie","mazo_Warszawa",null,"mazowieckie","Warszawa","Warszawa"]
["03-689","mazowieckie","mazo_Warszawa",null,"mazowieckie","Warszawa","Warszawa"]
["03-690","mazowieckie","mazo_Warszawa",null,"mazowieckie","Warszawa","Warszawa"]
["03-691","mazowieckie","mazo_Warszawa",null,"mazowieckie","Warszawa","Warszawa"]
["03-692","mazowieckie","mazo_Warszawa",null,"mazowieckie","Warszawa","Warszawa"]
["03-693","mazowieckie","mazo_Warszawa",null,"mazowieckie","Warszawa","Warszawa"]
["03-694","mazowieckie","mazo_Warszawa",null,"mazowieckie","Warszawa","Warszawa"]
["03-695","mazowieckie","mazo_Warszawa",null,"mazowieckie","Warszawa","Warszawa"]
["03-696","mazowieckie","mazo_Warszawa",null,"mazowieckie","Warszawa","Warszawa"]
["03-697","mazowieckie","mazo_Warszawa",null,"mazowieckie","Warszawa","Warszawa"]
["03-698","mazowieckie","mazo_Warszawa",null,"mazowieckie","Warszawa","Warszawa"]
["03-699","mazowieckie","mazo_Warszawa",null,"mazowieckie","Warszawa","Warszawa"]
["03-700","mazowieckie","mazo_Warszawa",null,"mazowieckie","Warszawa","Warszawa"]
["03-701","mazowieckie","mazo_Warszawa",null,"mazowieckie","Warszawa","Warszawa"]
["03-703","mazowieckie","mazo_Warszawa",null,"mazowieckie","Warszawa","Warszawa"]
["03-704","mazowieckie","mazo_Warszawa",null,"mazowieckie","Warszawa","Warszawa"]
["03-705","mazowieckie","mazo_Warszawa",null,"mazowieckie","Warszawa","Warszawa"]
["03-707","mazowieckie","mazo_Warszawa",null,"mazowieckie","Warszawa","Warszawa"]
["03-708","mazowieckie","mazo_Warszawa",null,"mazowieckie","Warszawa","Warszawa"]
["03-709","mazowieckie","mazo_Warszawa",null,"mazowieckie","Warszawa","Warszawa"]
["03-710","mazowieckie","mazo_Warszawa",null,"mazowieckie","Warszawa","Warszawa"]
["03-711","mazowieckie","mazo_Warszawa",null,"mazowieckie","Warszawa","Warszawa"]
["03-712","mazowieckie","mazo_Warszawa",null,"mazowieckie","Warszawa","Warszawa"]
["03-713","mazowieckie","mazo_Warszawa",null,"mazowieckie","Warszawa","Warszawa"]
["03-714","mazowieckie","mazo_Warszawa",null,"mazowieckie","Warszawa","Warszawa"]
["03-715","mazowieckie","mazo_Warszawa",null,"mazowieckie","Warszawa","Warszawa"]
["03-716","mazowieckie","mazo_Warszawa",null,"mazowieckie","Warszawa","Warszawa"]
["03-717","mazowieckie","mazo_Warszawa",null,"mazowieckie","Warszawa","Warszawa"]
["03-718","mazowieckie","mazo_Warszawa",null,"mazowieckie","Warszawa","Warszawa"]
["03-719","mazowieckie","mazo_Warszawa",null,"mazowieckie","Warszawa","Warszawa"]
["03-720","mazowieckie","mazo_Warszawa",null,"mazowieckie","Warszawa","Warszawa"]
["03-721","mazowieckie","mazo_Warszawa",null,"mazowieckie","Warszawa","Warszawa"]
["03-722","mazowieckie","mazo_Warszawa",null,"mazowieckie","Warszawa","Warszawa"]
["03-724","mazowieckie","mazo_Warszawa",null,"mazowieckie","Warszawa","Warszawa"]
["03-725","mazowieckie","mazo_Warszawa",null,"mazowieckie","Warszawa","Warszawa"]
["03-726","mazowieckie","mazo_Warszawa",null,"mazowieckie","Warszawa","Warszawa"]
["03-727","mazowieckie","mazo_Warszawa",null,"mazowieckie","Warszawa","Warszawa"]
["03-728","mazowieckie","mazo_Warszawa",null,"mazowieckie","Warszawa","Warszawa"]
["03-729","mazowieckie","mazo_Warszawa",null,"mazowieckie","Warszawa","Warszawa"]
["03-730","mazowieckie","mazo_Warszawa",null,"mazowieckie","Warszawa","Warszawa"]
["03-731","mazowieckie","mazo_Warszawa",null,"mazowieckie","Warszawa","Warszawa"]
["03-732","mazowieckie","mazo_Warszawa",null,"mazowieckie","Warszawa","Warszawa"]
["03-733","mazowieckie","mazo_Warszawa",null,"mazowieckie","Warszawa","Warszawa"]
["03-734","mazowieckie","mazo_Warszawa",null,"mazowieckie","Warszawa","Warszawa"]
["03-735","mazowieckie","mazo_Warszawa",null,"mazowieckie","Warszawa","Warszawa"]
["03-736","mazowieckie","mazo_Warszawa",null,"mazowieckie","Warszawa","Warszawa"]
["03-737","mazowieckie","mazo_Warszawa",null,"mazowieckie","Warszawa","Warszawa"]
["03-738","mazowieckie","mazo_Warszawa",null,"mazowieckie","Warszawa","Warszawa"]
["03-739","mazowieckie","mazo_Warszawa",null,"mazowieckie","Warszawa","Warszawa"]
["03-740","mazowieckie","mazo_Warszawa",null,"mazowieckie","Warszawa","Warszawa"]
["03-741","mazowieckie","mazo_Warszawa",null,"mazowieckie","Warszawa","Warszawa"]
["03-742","mazowieckie","mazo_Warszawa",null,"mazowieckie","Warszawa","Warszawa"]
["03-743","mazowieckie","mazo_Warszawa",null,"mazowieckie","Warszawa","Warszawa"]
["03-744","mazowieckie","mazo_Warszawa",null,"mazowieckie","Warszawa","Warszawa"]
["03-745","mazowieckie","mazo_Warszawa",null,"mazowieckie","Warszawa","Warszawa"]
["03-746","mazowieckie","mazo_Warszawa",null,"mazowieckie","Warszawa","Warszawa"]
["03-747","mazowieckie","mazo_Warszawa",null,"mazowieckie","Warszawa","Warszawa"]
["03-748","mazowieckie","mazo_Warszawa",null,"mazowieckie","Warszawa","Warszawa"]
["03-749","mazowieckie","mazo_Warszawa",null,"mazowieckie","Warszawa","Warszawa"]
["03-750","mazowieckie","mazo_Warszawa",null,"mazowieckie","Warszawa","Warszawa"]
["03-751","mazowieckie","mazo_Warszawa",null,"mazowieckie","Warszawa","Warszawa"]
["03-752","mazowieckie","mazo_Warszawa",null,"mazowieckie","Warszawa","Warszawa"]
["03-753","mazowieckie","mazo_Warszawa",null,"mazowieckie","Warszawa","Warszawa"]
["03-754","mazowieckie","mazo_Warszawa",null,"mazowieckie","Warszawa","Warszawa"]
["03-755","mazowieckie","mazo_Warszawa",null,"mazowieckie","Warszawa","Warszawa"]
["03-756","mazowieckie","mazo_Warszawa",null,"mazowieckie","Warszawa","Warszawa"]
["03-757","mazowieckie","mazo_Warszawa",null,"mazowieckie","Warszawa","Warszawa"]
["03-758","mazowieckie","mazo_Warszawa",null,"mazowieckie","Warszawa","Warszawa"]
["03-759","mazowieckie","mazo_Warszawa",null,"mazowieckie","Warszawa","Warszawa"]
["03-761","mazowieckie","mazo_Warszawa",null,"mazowieckie","Warszawa","Warszawa"]
["03-762","mazowieckie","mazo_Warszawa",null,"mazowieckie","Warszawa","Warszawa"]
["03-763","mazowieckie","mazo_Warszawa",null,"mazowieckie","Warszawa","Warszawa"]
["03-764","mazowieckie","mazo_Warszawa",null,"mazowieckie","Warszawa","Warszawa"]
["03-766","mazowieckie","mazo_Warszawa",null,"mazowieckie","Warszawa","Warszawa"]
["03-767","mazowieckie","mazo_Warszawa",null,"mazowieckie","Warszawa","Warszawa"]
["03-768","mazowieckie","mazo_Warszawa",null,"mazowieckie","Warszawa","Warszawa"]
["03-769","mazowieckie","mazo_Warszawa",null,"mazowieckie","Warszawa","Warszawa"]
["03-770","mazowieckie","mazo_Warszawa",null,"mazowieckie","Warszawa","Warszawa"]
["03-771","mazowieckie","mazo_Warszawa",null,"mazowieckie","Warszawa","Warszawa"]
["03-772","mazowieckie","mazo_Warszawa",null,"mazowieckie","Warszawa","Warszawa"]
["03-774","mazowieckie","mazo_Warszawa",null,"mazowieckie","Warszawa","Warszawa"]
["03-775","mazowieckie","mazo_Warszawa",null,"mazowieckie","Warszawa","Warszawa"]
["03-778","mazowieckie","mazo_Warszawa",null,"mazowieckie","Warszawa","Warszawa"]
["03-779","mazowieckie","mazo_Warszawa",null,"mazowieckie","Warszawa","Warszawa"]
["03-780","mazowieckie","mazo_Warszawa",null,"mazowieckie","Warszawa","Warszawa"]
["03-781","mazowieckie","mazo_Warszawa",null,"mazowieckie","Warszawa","Warszawa"]
["03-782","mazowieckie","mazo_Warszawa",null,"mazowieckie","Warszawa","Warszawa"]
["03-784","mazowieckie","mazo_Warszawa",null,"mazowieckie","Warszawa","Warszawa"]
["03-785","mazowieckie","mazo_Warszawa",null,"mazowieckie","Warszawa","Warszawa"]
["03-786","mazowieckie","mazo_Warszawa",null,"mazowieckie","Warszawa","Warszawa"]
["03-787","mazowieckie","mazo_Warszawa",null,"mazowieckie","Warszawa","Warszawa"]
["03-788","mazowieckie","mazo_Warszawa",null,"mazowieckie","Warszawa","Warszawa"]
["03-789","mazowieckie","mazo_Warszawa",null,"mazowieckie","Warszawa","Warszawa"]
["03-790","mazowieckie","mazo_Warszawa",null,"mazowieckie","Warszawa","Warszawa"]
["03-791","mazowieckie","mazo_Warszawa",null,"mazowieckie","Warszawa","Warszawa"]
["03-792","mazowieckie","mazo_Warszawa",null,"mazowieckie","Warszawa","Warszawa"]
["03-793","mazowieckie","mazo_Warszawa",null,"mazowieckie","Warszawa","Warszawa"]
["03-794","mazowieckie","mazo_Warszawa",null,"mazowieckie","Warszawa","Warszawa"]
["03-795","mazowieckie","mazo_Warszawa",null,"mazowieckie","Warszawa","Warszawa"]
["03-796","mazowieckie","mazo_Warszawa",null,"mazowieckie","Warszawa","Warszawa"]
["03-797","mazowieckie","mazo_Warszawa",null,"mazowieckie","Warszawa","Warszawa"]
["03-798","mazowieckie","mazo_Warszawa",null,"mazowieckie","Warszawa","Warszawa"]
["03-799","mazowieckie","mazo_Warszawa",null,"mazowieckie","Warszawa","Warszawa"]
["03-801","mazowieckie","mazo_Warszawa",null,"mazowieckie","Warszawa","Warszawa"]
["03-802","mazowieckie","mazo_Warszawa",null,"mazowieckie","Warszawa","Warszawa"]
["03-803","mazowieckie","mazo_Warszawa",null,"mazowieckie","Warszawa","Warszawa"]
["03-804","mazowieckie","mazo_Warszawa",null,"mazowieckie","Warszawa","Warszawa"]
["03-805","mazowieckie","mazo_Warszawa",null,"mazowieckie","Warszawa","Warszawa"]
["03-806","mazowieckie","mazo_Warszawa",null,"mazowieckie","Warszawa","Warszawa"]
["03-807","mazowieckie","mazo_Warszawa",null,"mazowieckie","Warszawa","Warszawa"]
["03-808","mazowieckie","mazo_Warszawa",null,"mazowieckie","Warszawa","Warszawa"]
["03-809","mazowieckie","mazo_Warszawa",null,"mazowieckie","Warszawa","Warszawa"]
["03-810","mazowieckie","mazo_Warszawa",null,"mazowieckie","Warszawa","Warszawa"]
["03-811","mazowieckie","mazo_Warszawa",null,"mazowieckie","Warszawa","Warszawa"]
["03-812","mazowieckie","mazo_Warszawa",null,"mazowieckie","Warszawa","Warszawa"]
["03-813","mazowieckie","mazo_Warszawa",null,"mazowieckie","Warszawa","Warszawa"]
["03-814","mazowieckie","mazo_Warszawa",null,"mazowieckie","Warszawa","Warszawa"]
["03-815","mazowieckie","mazo_Warszawa",null,"mazowieckie","Warszawa","Warszawa"]
["03-816","mazowieckie","mazo_Warszawa",null,"mazowieckie","Warszawa","Warszawa"]
["03-821","mazowieckie","mazo_Warszawa",null,"mazowieckie","Warszawa","Warszawa"]
["03-822","mazowieckie","mazo_Warszawa",null,"mazowieckie","Warszawa","Warszawa"]
["03-823","mazowieckie","mazo_Warszawa",null,"mazowieckie","Warszawa","Warszawa"]
["03-824","mazowieckie","mazo_Warszawa",null,"mazowieckie","Warszawa","Warszawa"]
["03-825","mazowieckie","mazo_Warszawa",null,"mazowieckie","Warszawa","Warszawa"]
["03-826","mazowieckie","mazo_Warszawa",null,"mazowieckie","Warszawa","Warszawa"]
["03-828","mazowieckie","mazo_Warszawa",null,"mazowieckie","Warszawa","Warszawa"]
["03-829","mazowieckie","mazo_Warszawa",null,"mazowieckie","Warszawa","Warszawa"]
["03-831","mazowieckie","mazo_Warszawa",null,"mazowieckie","Warszawa","Warszawa"]
["03-832","mazowieckie","mazo_Warszawa",null,"mazowieckie","Warszawa","Warszawa"]
["03-833","mazowieckie","mazo_Warszawa",null,"mazowieckie","Warszawa","Warszawa"]
["03-834","mazowieckie","mazo_Warszawa",null,"mazowieckie","Warszawa","Warszawa"]
["03-835","mazowieckie","mazo_Warszawa",null,"mazowieckie","Warszawa","Warszawa"]
["03-836","mazowieckie","mazo_Warszawa",null,"mazowieckie","Warszawa","Warszawa"]
["03-838","mazowieckie","mazo_Warszawa",null,"mazowieckie","Warszawa","Warszawa"]
["03-839","mazowieckie","mazo_Warszawa",null,"mazowieckie","Warszawa","Warszawa"]
["03-840","mazowieckie","mazo_Warszawa",null,"mazowieckie","Warszawa","Warszawa"]
["03-841","mazowieckie","mazo_Warszawa",null,"mazowieckie","Warszawa","Warszawa"]
["03-842","mazowieckie","mazo_Warszawa",null,"mazowieckie","Warszawa","Warszawa"]
["03-844","mazowieckie","mazo_Warszawa",null,"mazowieckie","Warszawa","Warszawa"]
["03-846","mazowieckie","mazo_Warszawa",null,"mazowieckie","Warszawa","Warszawa"]
["03-847","mazowieckie","mazo_Warszawa",null,"mazowieckie","Warszawa","Warszawa"]
["03-849","mazowieckie","mazo_Warszawa",null,"mazowieckie","Warszawa","Warszawa"]
["03-866","mazowieckie","mazo_Warszawa",null,"mazowieckie","Warszawa","Warszawa"]
["03-867","mazowieckie","mazo_Warszawa",null,"mazowieckie","Warszawa","Warszawa"]
["03-868","mazowieckie","mazo_Warszawa",null,"mazowieckie","Warszawa","Warszawa"]
["03-869","mazowieckie","mazo_Warszawa",null,"mazowieckie","Warszawa","Warszawa"]
["03-870","mazowieckie","mazo_Warszawa",null,"mazowieckie","Warszawa","Warszawa"]
["03-871","mazowieckie","mazo_Warszawa",null,"mazowieckie","Warszawa","Warszawa"]
["03-872","mazowieckie","mazo_Warszawa",null,"mazowieckie","Warszawa","Warszawa"]
["03-873","mazowieckie","mazo_Warszawa",null,"mazowieckie","Warszawa","Warszawa"]
["03-874","mazowieckie","mazo_Warszawa",null,"mazowieckie","Warszawa","Warszawa"]
["03-875","mazowieckie","mazo_Warszawa",null,"mazowieckie","Warszawa","Warszawa"]
["03-876","mazowieckie","mazo_Warszawa",null,"mazowieckie","Warszawa","Warszawa"]
["03-877","mazowieckie","mazo_Warszawa",null,"mazowieckie","Warszawa","Warszawa"]
["03-878","mazowieckie","mazo_Warszawa",null,"mazowieckie","Warszawa","Warszawa"]
["03-879","mazowieckie","mazo_Warszawa",null,"mazowieckie","Warszawa","Warszawa"]
["03-885","mazowieckie","mazo_Warszawa",null,"mazowieckie","Warszawa","Warszawa"]
["03-886","mazowieckie","mazo_Warszawa",null,"mazowieckie","Warszawa","Warszawa"]
["03-887","mazowieckie","mazo_Warszawa",null,"mazowieckie","Warszawa","Warszawa"]
["03-888","mazowieckie","mazo_Warszawa",null,"mazowieckie","Warszawa","Warszawa"]
["03-889","mazowieckie","mazo_Warszawa",null,"mazowieckie","Warszawa","Warszawa"]
["03-890","mazowieckie","mazo_Warszawa",null,"mazowieckie","Warszawa","Warszawa"]
["03-891","mazowieckie","mazo_Warszawa",null,"mazowieckie","Warszawa","Warszawa"]
["03-892","mazowieckie","mazo_Warszawa",null,"mazowieckie","Warszawa","Warszawa"]
["03-893","mazowieckie","mazo_Warszawa",null,"mazowieckie","Warszawa","Warszawa"]
["03-900","mazowieckie","mazo_Warszawa",null,"mazowieckie","Warszawa","Warszawa"]
["03-901","mazowieckie","mazo_Warszawa",null,"mazowieckie","Warszawa","Warszawa"]
["03-902","mazowieckie","mazo_Warszawa",null,"mazowieckie","Warszawa","Warszawa"]
["03-903","mazowieckie","mazo_Warszawa",null,"mazowieckie","Warszawa","Warszawa"]
["03-904","mazowieckie","mazo_Warszawa",null,"mazowieckie","Warszawa","Warszawa"]
["03-905","mazowieckie","mazo_Warszawa",null,"mazowieckie","Warszawa","Warszawa"]
["03-906","mazowieckie","mazo_Warszawa",null,"mazowieckie","Warszawa","Warszawa"]
["03-907","mazowieckie","mazo_Warszawa",null,"mazowieckie","Warszawa","Warszawa"]
["03-908","mazowieckie","mazo_Warszawa",null,"mazowieckie","Warszawa","Warszawa"]
["03-909","mazowieckie","mazo_Warszawa",null,"mazowieckie","Warszawa","Warszawa"]
["03-910","mazowieckie","mazo_Warszawa",null,"mazowieckie","Warszawa","Warszawa"]
["03-911","mazowieckie","mazo_Warszawa",null,"mazowieckie","Warszawa","Warszawa"]
["03-912","mazowieckie","mazo_Warszawa",null,"mazowieckie","Warszawa","Warszawa"]
["03-913","mazowieckie","mazo_Warszawa",null,"mazowieckie","Warszawa","Warszawa"]
["03-914","mazowieckie","mazo_Warszawa",null,"mazowieckie","Warszawa","Warszawa"]
["03-915","mazowieckie","mazo_Warszawa",null,"mazowieckie","Warszawa","Warszawa"]
["03-916","mazowieckie","mazo_Warszawa",null,"mazowieckie","Warszawa","Warszawa"]
["03-917","mazowieckie","mazo_Warszawa",null,"mazowieckie","Warszawa","Warszawa"]
["03-918","mazowieckie","mazo_Warszawa",null,"mazowieckie","Warszawa","Warszawa"]
["03-919","mazowieckie","mazo_Warszawa",null,"mazowieckie","Warszawa","Warszawa"]
["03-920","mazowieckie","mazo_Warszawa",null,"mazowieckie","Warszawa","Warszawa"]
["03-921","mazowieckie","mazo_Warszawa",null,"mazowieckie","Warszawa","Warszawa"]
["03-922","mazowieckie","mazo_Warszawa",null,"mazowieckie","Warszawa","Warszawa"]
["03-923","mazowieckie","mazo_Warszawa",null,"mazowieckie","Warszawa","Warszawa"]
["03-924","mazowieckie","mazo_Warszawa",null,"mazowieckie","Warszawa","Warszawa"]
["03-925","mazowieckie","mazo_Warszawa",null,"mazowieckie","Warszawa","Warszawa"]
["03-926","mazowieckie","mazo_Warszawa",null,"mazowieckie","Warszawa","Warszawa"]
["03-927","mazowieckie","mazo_Warszawa",null,"mazowieckie","Warszawa","Warszawa"]
["03-928","mazowieckie","mazo_Warszawa",null,"mazowieckie","Warszawa","Warszawa"]
["03-929","mazowieckie","mazo_Warszawa",null,"mazowieckie","Warszawa","Warszawa"]
["03-930","mazowieckie","mazo_Warszawa",null,"mazowieckie","Warszawa","Warszawa"]
["03-931","mazowieckie","mazo_Warszawa",null,"mazowieckie","Warszawa","Warszawa"]
["03-932","mazowieckie","mazo_Warszawa",null,"mazowieckie","Warszawa","Warszawa"]
["03-933","mazowieckie","mazo_Warszawa",null,"mazowieckie","Warszawa","Warszawa"]
["03-934","mazowieckie","mazo_Warszawa",null,"mazowieckie","Warszawa","Warszawa"]
["03-935","mazowieckie","mazo_Warszawa",null,"mazowieckie","Warszawa","Warszawa"]
["03-936","mazowieckie","mazo_Warszawa",null,"mazowieckie","Warszawa","Warszawa"]
["03-937","mazowieckie","mazo_Warszawa",null,"mazowieckie","Warszawa","Warszawa"]
["03-938","mazowieckie","mazo_Warszawa",null,"mazowieckie","Warszawa","Warszawa"]
["03-939","mazowieckie","mazo_Warszawa",null,"mazowieckie","Warszawa","Warszawa"]
["03-940","mazowieckie","mazo_Warszawa",null,"mazowieckie","Warszawa","Warszawa"]
["03-941","mazowieckie","mazo_Warszawa",null,"mazowieckie","Warszawa","Warszawa"]
["03-942","mazowieckie","mazo_Warszawa",null,"mazowieckie","Warszawa","Warszawa"]
["03-943","mazowieckie","mazo_Warszawa",null,"mazowieckie","Warszawa","Warszawa"]
["03-944","mazowieckie","mazo_Warszawa",null,"mazowieckie","Warszawa","Warszawa"]
["03-945","mazowieckie","mazo_Warszawa",null,"mazowieckie","Warszawa","Warszawa"]
["03-946","mazowieckie","mazo_Warszawa",null,"mazowieckie","Warszawa","Warszawa"]
["03-947","mazowieckie","mazo_Warszawa",null,"mazowieckie","Warszawa","Warszawa"]
["03-948","mazowieckie","mazo_Warszawa",null,"mazowieckie","Warszawa","Warszawa"]
["03-949","mazowieckie","mazo_Warszawa",null,"mazowieckie","Warszawa","Warszawa"]
["03-952","mazowieckie","mazo_Warszawa",null,"mazowieckie","Warszawa","Warszawa"]
["03-953","mazowieckie","mazo_Warszawa",null,"mazowieckie","Warszawa","Warszawa"]
["03-954","mazowieckie","mazo_Warszawa",null,"mazowieckie","Warszawa","Warszawa"]
["03-955","mazowieckie","mazo_Warszawa",null,"mazowieckie","Warszawa","Warszawa"]
["03-956","mazowieckie","mazo_Warszawa",null,"mazowieckie","Warszawa","Warszawa"]
["03-957","mazowieckie","mazo_Warszawa",null,"mazowieckie","Warszawa","Warszawa"]
["03-963","mazowieckie","mazo_Warszawa",null,"mazowieckie","Warszawa","Warszawa"]
["03-964","mazowieckie","mazo_Warszawa",null,"mazowieckie","Warszawa","Warszawa"]
["03-965","mazowieckie","mazo_Warszawa",null,"mazowieckie","Warszawa","Warszawa"]
["03-966","mazowieckie","mazo_Warszawa",null,"mazowieckie","Warszawa","Warszawa"]
["03-967","mazowieckie","mazo_Warszawa",null,"mazowieckie","Warszawa","Warszawa"]
["03-968","mazowieckie","mazo_Warszawa",null,"mazowieckie","Warszawa","Warszawa"]
["03-969","mazowieckie","mazo_Warszawa",null,"mazowieckie","Warszawa","Warszawa"]
["03-970","mazowieckie","mazo_Warszawa",null,"mazowieckie","Warszawa","Warszawa"]
["03-971","mazowieckie","mazo_Warszawa",null,"mazowieckie","Warszawa","Warszawa"]
["03-972","mazowieckie","mazo_Warszawa",null,"mazowieckie","Warszawa","Warszawa"]
["03-973","mazowieckie","mazo_Warszawa",null,"mazowieckie","Warszawa","Warszawa"]
["03-974","mazowieckie","mazo_Warszawa",null,"mazowieckie","Warszawa","Warszawa"]
["03-975","mazowieckie","mazo_Warszawa",null,"mazowieckie","Warszawa","Warszawa"]
["03-976","mazowieckie","mazo_Warszawa",null,"mazowieckie","Warszawa","Warszawa"]
["03-977","mazowieckie","mazo_Warszawa",null,"mazowieckie","Warszawa","Warszawa"]
["03-978","mazowieckie","mazo_Warszawa",null,"mazowieckie","Warszawa","Warszawa"]
["03-979","mazowieckie","mazo_Warszawa",null,"mazowieckie","Warszawa","Warszawa"]
["03-980","mazowieckie","mazo_Warszawa",null,"mazowieckie","Warszawa","Warszawa"]
["03-982","mazowieckie","mazo_Warszawa",null,"mazowieckie","Warszawa","Warszawa"]
["03-983","mazowieckie","mazo_Warszawa",null,"mazowieckie","Warszawa","Warszawa"]
["03-984","mazowieckie","mazo_Warszawa",null,"mazowieckie","Warszawa","Warszawa"]
["03-985","mazowieckie","mazo_Warszawa",null,"mazowieckie","Warszawa","Warszawa"]
["03-986","mazowieckie","mazo_Warszawa",null,"mazowieckie","Warszawa","Warszawa"]
["03-987","mazowieckie","mazo_Warszawa",null,"mazowieckie","Warszawa","Warszawa"]
["03-988","mazowieckie","mazo_Warszawa",null,"mazowieckie","Warszawa","Warszawa"]
["03-989","mazowieckie","mazo_Warszawa",null,"mazowieckie","Warszawa","Warszawa"]
["03-990","mazowieckie","mazo_Warszawa",null,"mazowieckie","Warszawa","Warszawa"]
["03-991","mazowieckie","mazo_Warszawa",null,"mazowieckie","Warszawa","Warszawa"]
["03-992","mazowieckie","mazo_Warszawa",null,"mazowieckie","Warszawa","Warszawa"]
["03-993","mazowieckie","mazo_Warszawa",null,"mazowieckie","Warszawa","Warszawa"]
["03-994","mazowieckie","mazo_Warszawa",null,"mazowieckie","Warszawa","Warszawa"]
["03-995","mazowieckie","mazo_Warszawa",null,"mazowieckie","Warszawa","Warszawa"]
["03-996","mazowieckie","mazo_Warszawa",null,"mazowieckie","Warszawa","Warszawa"]
["03-998","mazowieckie","mazo_Warszawa",null,"mazowieckie","Warszawa","Warszawa"]
["04-001","mazowieckie","mazo_Warszawa",null,"mazowieckie","Warszawa","Warszawa"]
["04-002","mazowieckie","mazo_Warszawa",null,"mazowieckie","Warszawa","Warszawa"]
["04-003","mazowieckie","mazo_Warszawa",null,"mazowieckie","Warszawa","Warszawa"]
["04-004","mazowieckie","mazo_Warszawa",null,"mazowieckie","Warszawa","Warszawa"]
["04-005","mazowieckie","mazo_Warszawa",null,"mazowieckie","Warszawa","Warszawa"]
["04-007","mazowieckie","mazo_Warszawa",null,"mazowieckie","Warszawa","Warszawa"]
["04-008","mazowieckie","mazo_Warszawa",null,"mazowieckie","Warszawa","Warszawa"]
["04-009","mazowieckie","mazo_Warszawa",null,"mazowieckie","Warszawa","Warszawa"]
["04-010","mazowieckie","mazo_Warszawa",null,"mazowieckie","Warszawa","Warszawa"]
["04-011","mazowieckie","mazo_Warszawa",null,"mazowieckie","Warszawa","Warszawa"]
["04-013","mazowieckie","mazo_Warszawa",null,"mazowieckie","Warszawa","Warszawa"]
["04-014","mazowieckie","mazo_Warszawa",null,"mazowieckie","Warszawa","Warszawa"]
["04-015","mazowieckie","mazo_Warszawa",null,"mazowieckie","Warszawa","Warszawa"]
["04-016","mazowieckie","mazo_Warszawa",null,"mazowieckie","Warszawa","Warszawa"]
["04-017","mazowieckie","mazo_Warszawa",null,"mazowieckie","Warszawa","Warszawa"]
["04-019","mazowieckie","mazo_Warszawa",null,"mazowieckie","Warszawa","Warszawa"]
["04-020","mazowieckie","mazo_Warszawa",null,"mazowieckie","Warszawa","Warszawa"]
["04-022","mazowieckie","mazo_Warszawa",null,"mazowieckie","Warszawa","Warszawa"]
["04-023","mazowieckie","mazo_Warszawa",null,"mazowieckie","Warszawa","Warszawa"]
["04-024","mazowieckie","mazo_Warszawa",null,"mazowieckie","Warszawa","Warszawa"]
["04-025","mazowieckie","mazo_Warszawa",null,"mazowieckie","Warszawa","Warszawa"]
["04-026","mazowieckie","mazo_Warszawa",null,"mazowieckie","Warszawa","Warszawa"]
["04-027","mazowieckie","mazo_Warszawa",null,"mazowieckie","Warszawa","Warszawa"]
["04-028","mazowieckie","mazo_Warszawa",null,"mazowieckie","Warszawa","Warszawa"]
["04-029","mazowieckie","mazo_Warszawa",null,"mazowieckie","Warszawa","Warszawa"]
["04-030","mazowieckie","mazo_Warszawa",null,"mazowieckie","Warszawa","Warszawa"]
["04-031","mazowieckie","mazo_Warszawa",null,"mazowieckie","Warszawa","Warszawa"]
["04-032","mazowieckie","mazo_Warszawa",null,"mazowieckie","Warszawa","Warszawa"]
["04-033","mazowieckie","mazo_Warszawa",null,"mazowieckie","Warszawa","Warszawa"]
["04-034","mazowieckie","mazo_Warszawa",null,"mazowieckie","Warszawa","Warszawa"]
["04-035","mazowieckie","mazo_Warszawa",null,"mazowieckie","Warszawa","Warszawa"]
["04-036","mazowieckie","mazo_Warszawa",null,"mazowieckie","Warszawa","Warszawa"]
["04-038","mazowieckie","mazo_Warszawa",null,"mazowieckie","Warszawa","Warszawa"]
["04-039","mazowieckie","mazo_Warszawa",null,"mazowieckie","Warszawa","Warszawa"]
["04-040","mazowieckie","mazo_Warszawa",null,"mazowieckie","Warszawa","Warszawa"]
["04-041","mazowieckie","mazo_Warszawa",null,"mazowieckie","Warszawa","Warszawa"]
["04-042","mazowieckie","mazo_Warszawa",null,"mazowieckie","Warszawa","Warszawa"]
["04-043","mazowieckie","mazo_Warszawa",null,"mazowieckie","Warszawa","Warszawa"]
["04-044","mazowieckie","mazo_Warszawa",null,"mazowieckie","Warszawa","Warszawa"]
["04-045","mazowieckie","mazo_Warszawa",null,"mazowieckie","Warszawa","Warszawa"]
["04-046","mazowieckie","mazo_Warszawa",null,"mazowieckie","Warszawa","Warszawa"]
["04-047","mazowieckie","mazo_Warszawa",null,"mazowieckie","Warszawa","Warszawa"]
["04-048","mazowieckie","mazo_Warszawa",null,"mazowieckie","Warszawa","Warszawa"]
["04-049","mazowieckie","mazo_Warszawa",null,"mazowieckie","Warszawa","Warszawa"]
["04-050","mazowieckie","mazo_Warszawa",null,"mazowieckie","Warszawa","Warszawa"]
["04-051","mazowieckie","mazo_Warszawa",null,"mazowieckie","Warszawa","Warszawa"]
["04-052","mazowieckie","mazo_Warszawa",null,"mazowieckie","Warszawa","Warszawa"]
["04-053","mazowieckie","mazo_Warszawa",null,"mazowieckie","Warszawa","Warszawa"]
["04-055","mazowieckie","mazo_Warszawa",null,"mazowieckie","Warszawa","Warszawa"]
["04-057","mazowieckie","mazo_Warszawa",null,"mazowieckie","Warszawa","Warszawa"]
["04-058","mazowieckie","mazo_Warszawa",null,"mazowieckie","Warszawa","Warszawa"]
["04-059","mazowieckie","mazo_Warszawa",null,"mazowieckie","Warszawa","Warszawa"]
["04-060","mazowieckie","mazo_Warszawa",null,"mazowieckie","Warszawa","Warszawa"]
["04-062","mazowieckie","mazo_Warszawa",null,"mazowieckie","Warszawa","Warszawa"]
["04-063","mazowieckie","mazo_Warszawa",null,"mazowieckie","Warszawa","Warszawa"]
["04-064","mazowieckie","mazo_Warszawa",null,"mazowieckie","Warszawa","Warszawa"]
["04-065","mazowieckie","mazo_Warszawa",null,"mazowieckie","Warszawa","Warszawa"]
["04-066","mazowieckie","mazo_Warszawa",null,"mazowieckie","Warszawa","Warszawa"]
["04-067","mazowieckie","mazo_Warszawa",null,"mazowieckie","Warszawa","Warszawa"]
["04-068","mazowieckie","mazo_Warszawa",null,"mazowieckie","Warszawa","Warszawa"]
["04-069","mazowieckie","mazo_Warszawa",null,"mazowieckie","Warszawa","Warszawa"]
["04-072","mazowieckie","mazo_Warszawa",null,"mazowieckie","Warszawa","Warszawa"]
["04-073","mazowieckie","mazo_Warszawa",null,"mazowieckie","Warszawa","Warszawa"]
["04-074","mazowieckie","mazo_Warszawa",null,"mazowieckie","Warszawa","Warszawa"]
["04-076","mazowieckie","mazo_Warszawa",null,"mazowieckie","Warszawa","Warszawa"]
["04-077","mazowieckie","mazo_Warszawa",null,"mazowieckie","Warszawa","Warszawa"]
["04-078","mazowieckie","mazo_Warszawa",null,"mazowieckie","Warszawa","Warszawa"]
["04-079","mazowieckie","mazo_Warszawa",null,"mazowieckie","Warszawa","Warszawa"]
["04-080","mazowieckie","mazo_Warszawa",null,"mazowieckie","Warszawa","Warszawa"]
["04-081","mazowieckie","mazo_Warszawa",null,"mazowieckie","Warszawa","Warszawa"]
["04-082","mazowieckie","mazo_Warszawa",null,"mazowieckie","Warszawa","Warszawa"]
["04-083","mazowieckie","mazo_Warszawa",null,"mazowieckie","Warszawa","Warszawa"]
["04-085","mazowieckie","mazo_Warszawa",null,"mazowieckie","Warszawa","Warszawa"]
["04-086","mazowieckie","mazo_Warszawa",null,"mazowieckie","Warszawa","Warszawa"]
["04-087","mazowieckie","mazo_Warszawa",null,"mazowieckie","Warszawa","Warszawa"]
["04-088","mazowieckie","mazo_Warszawa",null,"mazowieckie","Warszawa","Warszawa"]
["04-089","mazowieckie","mazo_Warszawa",null,"mazowieckie","Warszawa","Warszawa"]
["04-090","mazowieckie","mazo_Warszawa",null,"mazowieckie","Warszawa","Warszawa"]
["04-091","mazowieckie","mazo_Warszawa",null,"mazowieckie","Warszawa","Warszawa"]
["04-092","mazowieckie","mazo_Warszawa",null,"mazowieckie","Warszawa","Warszawa"]
["04-101","mazowieckie","mazo_Warszawa",null,"mazowieckie","Warszawa","Warszawa"]
["04-102","mazowieckie","mazo_Warszawa",null,"mazowieckie","Warszawa","Warszawa"]
["04-105","mazowieckie","mazo_Warszawa",null,"mazowieckie","Warszawa","Warszawa"]
["04-106","mazowieckie","mazo_Warszawa",null,"mazowieckie","Warszawa","Warszawa"]
["04-109","mazowieckie","mazo_Warszawa",null,"mazowieckie","Warszawa","Warszawa"]
["04-110","mazowieckie","mazo_Warszawa",null,"mazowieckie","Warszawa","Warszawa"]
["04-111","mazowieckie","mazo_Warszawa",null,"mazowieckie","Warszawa","Warszawa"]
["04-112","mazowieckie","mazo_Warszawa",null,"mazowieckie","Warszawa","Warszawa"]
["04-113","mazowieckie","mazo_Warszawa",null,"mazowieckie","Warszawa","Warszawa"]
["04-116","mazowieckie","mazo_Warszawa",null,"mazowieckie","Warszawa","Warszawa"]
["04-118","mazowieckie","mazo_Warszawa",null,"mazowieckie","Warszawa","Warszawa"]
["04-119","mazowieckie","mazo_Warszawa",null,"mazowieckie","Warszawa","Warszawa"]
["04-120","mazowieckie","mazo_Warszawa",null,"mazowieckie","Warszawa","Warszawa"]
["04-121","mazowieckie","mazo_Warszawa",null,"mazowieckie","Warszawa","Warszawa"]
["04-123","mazowieckie","mazo_Warszawa",null,"mazowieckie","Warszawa","Warszawa"]
["04-124","mazowieckie","mazo_Warszawa",null,"mazowieckie","Warszawa","Warszawa"]
["04-125","mazowieckie","mazo_Warszawa",null,"mazowieckie","Warszawa","Warszawa"]
["04-127","mazowieckie","mazo_Warszawa",null,"mazowieckie","Warszawa","Warszawa"]
["04-128","mazowieckie","mazo_Warszawa",null,"mazowieckie","Warszawa","Warszawa"]
["04-129","mazowieckie","mazo_Warszawa",null,"mazowieckie","Warszawa","Warszawa"]
["04-131","mazowieckie","mazo_Warszawa",null,"mazowieckie","Warszawa","Warszawa"]
["04-133","mazowieckie","mazo_Warszawa",null,"mazowieckie","Warszawa","Warszawa"]
["04-134","mazowieckie","mazo_Warszawa",null,"mazowieckie","Warszawa","Warszawa"]
["04-136","mazowieckie","mazo_Warszawa",null,"mazowieckie","Warszawa","Warszawa"]
["04-137","mazowieckie","mazo_Warszawa",null,"mazowieckie","Warszawa","Warszawa"]
["04-138","mazowieckie","mazo_Warszawa",null,"mazowieckie","Warszawa","Warszawa"]
["04-139","mazowieckie","mazo_Warszawa",null,"mazowieckie","Warszawa","Warszawa"]
["04-141","mazowieckie","mazo_Warszawa",null,"mazowieckie","Warszawa","Warszawa"]
["04-142","mazowieckie","mazo_Warszawa",null,"mazowieckie","Warszawa","Warszawa"]
["04-143","mazowieckie","mazo_Warszawa",null,"mazowieckie","Warszawa","Warszawa"]
["04-144","mazowieckie","mazo_Warszawa",null,"mazowieckie","Warszawa","Warszawa"]
["04-145","mazowieckie","mazo_Warszawa",null,"mazowieckie","Warszawa","Warszawa"]
["04-146","mazowieckie","mazo_Warszawa",null,"mazowieckie","Warszawa","Warszawa"]
["04-147","mazowieckie","mazo_Warszawa",null,"mazowieckie","Warszawa","Warszawa"]
["04-148","mazowieckie","mazo_Warszawa",null,"mazowieckie","Warszawa","Warszawa"]
["04-149","mazowieckie","mazo_Warszawa",null,"mazowieckie","Warszawa","Warszawa"]
["04-151","mazowieckie","mazo_Warszawa",null,"mazowieckie","Warszawa","Warszawa"]
["04-152","mazowieckie","mazo_Warszawa",null,"mazowieckie","Warszawa","Warszawa"]
["04-154","mazowieckie","mazo_Warszawa",null,"mazowieckie","Warszawa","Warszawa"]
["04-155","mazowieckie","mazo_Warszawa",null,"mazowieckie","Warszawa","Warszawa"]
["04-156","mazowieckie","mazo_Warszawa",null,"mazowieckie","Warszawa","Warszawa"]
["04-157","mazowieckie","mazo_Warszawa",null,"mazowieckie","Warszawa","Warszawa"]
["04-158","mazowieckie","mazo_Warszawa",null,"mazowieckie","Warszawa","Warszawa"]
["04-160","mazowieckie","mazo_Warszawa",null,"mazowieckie","Warszawa","Warszawa"]
["04-161","mazowieckie","mazo_Warszawa",null,"mazowieckie","Warszawa","Warszawa"]
["04-163","mazowieckie","mazo_Warszawa",null,"mazowieckie","Warszawa","Warszawa"]
["04-164","mazowieckie","mazo_Warszawa",null,"mazowieckie","Warszawa","Warszawa"]
["04-167","mazowieckie","mazo_Warszawa",null,"mazowieckie","Warszawa","Warszawa"]
["04-169","mazowieckie","mazo_Warszawa",null,"mazowieckie","Warszawa","Warszawa"]
["04-170","mazowieckie","mazo_Warszawa",null,"mazowieckie","Warszawa","Warszawa"]
["04-171","mazowieckie","mazo_Warszawa",null,"mazowieckie","Warszawa","Warszawa"]
["04-172","mazowieckie","mazo_Warszawa",null,"mazowieckie","Warszawa","Warszawa"]
["04-173","mazowieckie","mazo_Warszawa",null,"mazowieckie","Warszawa","Warszawa"]
["04-174","mazowieckie","mazo_Warszawa",null,"mazowieckie","Warszawa","Warszawa"]
["04-175","mazowieckie","mazo_Warszawa",null,"mazowieckie","Warszawa","Warszawa"]
["04-180","mazowieckie","mazo_Warszawa",null,"mazowieckie","Warszawa","Warszawa"]
["04-183","mazowieckie","mazo_Warszawa",null,"mazowieckie","Warszawa","Warszawa"]
["04-185","mazowieckie","mazo_Warszawa",null,"mazowieckie","Warszawa","Warszawa"]
["04-186","mazowieckie","mazo_Warszawa",null,"mazowieckie","Warszawa","Warszawa"]
["04-187","mazowieckie","mazo_Warszawa",null,"mazowieckie","Warszawa","Warszawa"]
["04-188","mazowieckie","mazo_Warszawa",null,"mazowieckie","Warszawa","Warszawa"]
["04-189","mazowieckie","mazo_Warszawa",null,"mazowieckie","Warszawa","Warszawa"]
["04-190","mazowieckie","mazo_Warszawa",null,"mazowieckie","Warszawa","Warszawa"]
["04-191","mazowieckie","mazo_Warszawa",null,"mazowieckie","Warszawa","Warszawa"]
["04-192","mazowieckie","mazo_Warszawa",null,"mazowieckie","Warszawa","Warszawa"]
["04-193","mazowieckie","mazo_Warszawa",null,"mazowieckie","Warszawa","Warszawa"]
["04-194","mazowieckie","mazo_Warszawa",null,"mazowieckie","Warszawa","Warszawa"]
["04-196","mazowieckie","mazo_Warszawa",null,"mazowieckie","Warszawa","Warszawa"]
["04-202","mazowieckie","mazo_Warszawa",null,"mazowieckie","Warszawa","Warszawa"]
["04-203","mazowieckie","mazo_Warszawa",null,"mazowieckie","Warszawa","Warszawa"]
["04-204","mazowieckie","mazo_Warszawa",null,"mazowieckie","Warszawa","Warszawa"]
["04-205","mazowieckie","mazo_Warszawa",null,"mazowieckie","Warszawa","Warszawa"]
["04-206","mazowieckie","mazo_Warszawa",null,"mazowieckie","Warszawa","Warszawa"]
["04-207","mazowieckie","mazo_Warszawa",null,"mazowieckie","Warszawa","Warszawa"]
["04-208","mazowieckie","mazo_Warszawa",null,"mazowieckie","Warszawa","Warszawa"]
["04-210","mazowieckie","mazo_Warszawa",null,"mazowieckie","Warszawa","Warszawa"]
["04-211","mazowieckie","mazo_Warszawa",null,"mazowieckie","Warszawa","Warszawa"]
["04-212","mazowieckie","mazo_Warszawa",null,"mazowieckie","Warszawa","Warszawa"]
["04-213","mazowieckie","mazo_Warszawa",null,"mazowieckie","Warszawa","Warszawa"]
["04-214","mazowieckie","mazo_Warszawa",null,"mazowieckie","Warszawa","Warszawa"]
["04-215","mazowieckie","mazo_Warszawa",null,"mazowieckie","Warszawa","Warszawa"]
["04-216","mazowieckie","mazo_Warszawa",null,"mazowieckie","Warszawa","Warszawa"]
["04-217","mazowieckie","mazo_Warszawa",null,"mazowieckie","Warszawa","Warszawa"]
["04-218","mazowieckie","mazo_Warszawa",null,"mazowieckie","Warszawa","Warszawa"]
["04-219","mazowieckie","mazo_Warszawa",null,"mazowieckie","Warszawa","Warszawa"]
["04-221","mazowieckie","mazo_Warszawa",null,"mazowieckie","Warszawa","Warszawa"]
["04-222","mazowieckie","mazo_Warszawa",null,"mazowieckie","Warszawa","Warszawa"]
["04-223","mazowieckie","mazo_Warszawa",null,"mazowieckie","Warszawa","Warszawa"]
["04-224","mazowieckie","mazo_Warszawa",null,"mazowieckie","Warszawa","Warszawa"]
["04-226","mazowieckie","mazo_Warszawa",null,"mazowieckie","Warszawa","Warszawa"]
["04-227","mazowieckie","mazo_Warszawa",null,"mazowieckie","Warszawa","Warszawa"]
["04-228","mazowieckie","mazo_Warszawa",null,"mazowieckie","Warszawa","Warszawa"]
["04-230","mazowieckie","mazo_Warszawa",null,"mazowieckie","Warszawa","Warszawa"]
["04-231","mazowieckie","mazo_Warszawa",null,"mazowieckie","Warszawa","Warszawa"]
["04-232","mazowieckie","mazo_Warszawa",null,"mazowieckie","Warszawa","Warszawa"]
["04-233","mazowieckie","mazo_Warszawa",null,"mazowieckie","Warszawa","Warszawa"]
["04-234","mazowieckie","mazo_Warszawa",null,"mazowieckie","Warszawa","Warszawa"]
["04-235","mazowieckie","mazo_Warszawa",null,"mazowieckie","Warszawa","Warszawa"]
["04-237","mazowieckie","mazo_Warszawa",null,"mazowieckie","Warszawa","Warszawa"]
["04-238","mazowieckie","mazo_Warszawa",null,"mazowieckie","Warszawa","Warszawa"]
["04-239","mazowieckie","mazo_Warszawa",null,"mazowieckie","Warszawa","Warszawa"]
["04-240","mazowieckie","mazo_Warszawa",null,"mazowieckie","Warszawa","Warszawa"]
["04-241","mazowieckie","mazo_Warszawa",null,"mazowieckie","Warszawa","Warszawa"]
["04-242","mazowieckie","mazo_Warszawa",null,"mazowieckie","Warszawa","Warszawa"]
["04-243","mazowieckie","mazo_Warszawa",null,"mazowieckie","Warszawa","Warszawa"]
["04-244","mazowieckie","mazo_Warszawa",null,"mazowieckie","Warszawa","Warszawa"]
["04-246","mazowieckie","mazo_Warszawa",null,"mazowieckie","Warszawa","Warszawa"]
["04-247","mazowieckie","mazo_Warszawa",null,"mazowieckie","Warszawa","Warszawa"]
["04-248","mazowieckie","mazo_Warszawa",null,"mazowieckie","Warszawa","Warszawa"]
["04-252","mazowieckie","mazo_Warszawa",null,"mazowieckie","Warszawa","Warszawa"]
["04-253","mazowieckie","mazo_Warszawa",null,"mazowieckie","Warszawa","Warszawa"]
["04-254","mazowieckie","mazo_Warszawa",null,"mazowieckie","Warszawa","Warszawa"]
["04-255","mazowieckie","mazo_Warszawa",null,"mazowieckie","Warszawa","Warszawa"]
["04-256","mazowieckie","mazo_Warszawa",null,"mazowieckie","Warszawa","Warszawa"]
["04-257","mazowieckie","mazo_Warszawa",null,"mazowieckie","Warszawa","Warszawa"]
["04-258","mazowieckie","mazo_Warszawa",null,"mazowieckie","Warszawa","Warszawa"]
["04-259","mazowieckie","mazo_Warszawa",null,"mazowieckie","Warszawa","Warszawa"]
["04-260","mazowieckie","mazo_Warszawa",null,"mazowieckie","Warszawa","Warszawa"]
["04-261","mazowieckie","mazo_Warszawa",null,"mazowieckie","Warszawa","Warszawa"]
["04-262","mazowieckie","mazo_Warszawa",null,"mazowieckie","Warszawa","Warszawa"]
["04-263","mazowieckie","mazo_Warszawa",null,"mazowieckie","Warszawa","Warszawa"]
["04-266","mazowieckie","mazo_Warszawa",null,"mazowieckie","Warszawa","Warszawa"]
["04-267","mazowieckie","mazo_Warszawa",null,"mazowieckie","Warszawa","Warszawa"]
["04-268","mazowieckie","mazo_Warszawa",null,"mazowieckie","Warszawa","Warszawa"]
["04-269","mazowieckie","mazo_Warszawa",null,"mazowieckie","Warszawa","Warszawa"]
["04-270","mazowieckie","mazo_Warszawa",null,"mazowieckie","Warszawa","Warszawa"]
["04-271","mazowieckie","mazo_Warszawa",null,"mazowieckie","Warszawa","Warszawa"]
["04-272","mazowieckie","mazo_Warszawa",null,"mazowieckie","Warszawa","Warszawa"]
["04-273","mazowieckie","mazo_Warszawa",null,"mazowieckie","Warszawa","Warszawa"]
["04-274","mazowieckie","mazo_Warszawa",null,"mazowieckie","Warszawa","Warszawa"]
["04-275","mazowieckie","mazo_Warszawa",null,"mazowieckie","Warszawa","Warszawa"]
["04-276","mazowieckie","mazo_Warszawa",null,"mazowieckie","Warszawa","Warszawa"]
["04-277","mazowieckie","mazo_Warszawa",null,"mazowieckie","Warszawa","Warszawa"]
["04-278","mazowieckie","mazo_Warszawa",null,"mazowieckie","Warszawa","Warszawa"]
["04-280","mazowieckie","mazo_Warszawa",null,"mazowieckie","Warszawa","Warszawa"]
["04-281","mazowieckie","mazo_Warszawa",null,"mazowieckie","Warszawa","Warszawa"]
["04-282","mazowieckie","mazo_Warszawa",null,"mazowieckie","Warszawa","Warszawa"]
["04-283","mazowieckie","mazo_Warszawa",null,"mazowieckie","Warszawa","Warszawa"]
["04-284","mazowieckie","mazo_Warszawa",null,"mazowieckie","Warszawa","Warszawa"]
["04-285","mazowieckie","mazo_Warszawa",null,"mazowieckie","Warszawa","Warszawa"]
["04-287","mazowieckie","mazo_Warszawa",null,"mazowieckie","Warszawa","Warszawa"]
["04-288","mazowieckie","mazo_Warszawa",null,"mazowieckie","Warszawa","Warszawa"]
["04-289","mazowieckie","mazo_Warszawa",null,"mazowieckie","Warszawa","Warszawa"]
["04-290","mazowieckie","mazo_Warszawa",null,"mazowieckie","Warszawa","Warszawa"]
["04-291","mazowieckie","mazo_Warszawa",null,"mazowieckie","Warszawa","Warszawa"]
["04-292","mazowieckie","mazo_Warszawa",null,"mazowieckie","Warszawa","Warszawa"]
["04-293","mazowieckie","mazo_Warszawa",null,"mazowieckie","Warszawa","Warszawa"]
["04-294","mazowieckie","mazo_Warszawa",null,"mazowieckie","Warszawa","Warszawa"]
["04-301","mazowieckie","mazo_Warszawa",null,"mazowieckie","Warszawa","Warszawa"]
["04-302","mazowieckie","mazo_Warszawa",null,"mazowieckie","Warszawa","Warszawa"]
["04-303","mazowieckie","mazo_Warszawa",null,"mazowieckie","Warszawa","Warszawa"]
["04-304","mazowieckie","mazo_Warszawa",null,"mazowieckie","Warszawa","Warszawa"]
["04-305","mazowieckie","mazo_Warszawa",null,"mazowieckie","Warszawa","Warszawa"]
["04-306","mazowieckie","mazo_Warszawa",null,"mazowieckie","Warszawa","Warszawa"]
["04-307","mazowieckie","mazo_Warszawa",null,"mazowieckie","Warszawa","Warszawa"]
["04-308","mazowieckie","mazo_Warszawa",null,"mazowieckie","Warszawa","Warszawa"]
["04-309","mazowieckie","mazo_Warszawa",null,"mazowieckie","Warszawa","Warszawa"]
["04-310","mazowieckie","mazo_Warszawa",null,"mazowieckie","Warszawa","Warszawa"]
["04-311","mazowieckie","mazo_Warszawa",null,"mazowieckie","Warszawa","Warszawa"]
["04-312","mazowieckie","mazo_Warszawa",null,"mazowieckie","Warszawa","Warszawa"]
["04-313","mazowieckie","mazo_Warszawa",null,"mazowieckie","Warszawa","Warszawa"]
["04-314","mazowieckie","mazo_Warszawa",null,"mazowieckie","Warszawa","Warszawa"]
["04-316","mazowieckie","mazo_Warszawa",null,"mazowieckie","Warszawa","Warszawa"]
["04-317","mazowieckie","mazo_Warszawa",null,"mazowieckie","Warszawa","Warszawa"]
["04-319","mazowieckie","mazo_Warszawa",null,"mazowieckie","Warszawa","Warszawa"]
["04-320","mazowieckie","mazo_Warszawa",null,"mazowieckie","Warszawa","Warszawa"]
["04-321","mazowieckie","mazo_Warszawa",null,"mazowieckie","Warszawa","Warszawa"]
["04-322","mazowieckie","mazo_Warszawa",null,"mazowieckie","Warszawa","Warszawa"]
["04-323","mazowieckie","mazo_Warszawa",null,"mazowieckie","Warszawa","Warszawa"]
["04-324","mazowieckie","mazo_Warszawa",null,"mazowieckie","Warszawa","Warszawa"]
["04-325","mazowieckie","mazo_Warszawa",null,"mazowieckie","Warszawa","Warszawa"]
["04-326","mazowieckie","mazo_Warszawa",null,"mazowieckie","Warszawa","Warszawa"]
["04-327","mazowieckie","mazo_Warszawa",null,"mazowieckie","Warszawa","Warszawa"]
["04-328","mazowieckie","mazo_Warszawa",null,"mazowieckie","Warszawa","Warszawa"]
["04-329","mazowieckie","mazo_Warszawa",null,"mazowieckie","Warszawa","Warszawa"]
["04-330","mazowieckie","mazo_Warszawa",null,"mazowieckie","Warszawa","Warszawa"]
["04-331","mazowieckie","mazo_Warszawa",null,"mazowieckie","Warszawa","Warszawa"]
["04-332","mazowieckie","mazo_Warszawa",null,"mazowieckie","Warszawa","Warszawa"]
["04-333","mazowieckie","mazo_Warszawa",null,"mazowieckie","Warszawa","Warszawa"]
["04-334","mazowieckie","mazo_Warszawa",null,"mazowieckie","Warszawa","Warszawa"]
["04-335","mazowieckie","mazo_Warszawa",null,"mazowieckie","Warszawa","Warszawa"]
["04-336","mazowieckie","mazo_Warszawa",null,"mazowieckie","Warszawa","Warszawa"]
["04-337","mazowieckie","mazo_Warszawa",null,"mazowieckie","Warszawa","Warszawa"]
["04-338","mazowieckie","mazo_Warszawa",null,"mazowieckie","Warszawa","Warszawa"]
["04-339","mazowieckie","mazo_Warszawa",null,"mazowieckie","Warszawa","Warszawa"]
["04-340","mazowieckie","mazo_Warszawa",null,"mazowieckie","Warszawa","Warszawa"]
["04-341","mazowieckie","mazo_Warszawa",null,"mazowieckie","Warszawa","Warszawa"]
["04-342","mazowieckie","mazo_Warszawa",null,"mazowieckie","Warszawa","Warszawa"]
["04-343","mazowieckie","mazo_Warszawa",null,"mazowieckie","Warszawa","Warszawa"]
["04-344","mazowieckie","mazo_Warszawa",null,"mazowieckie","Warszawa","Warszawa"]
["04-345","mazowieckie","mazo_Warszawa",null,"mazowieckie","Warszawa","Warszawa"]
["04-346","mazowieckie","mazo_Warszawa",null,"mazowieckie","Warszawa","Warszawa"]
["04-347","mazowieckie","mazo_Warszawa",null,"mazowieckie","Warszawa","Warszawa"]
["04-348","mazowieckie","mazo_Warszawa",null,"mazowieckie","Warszawa","Warszawa"]
["04-349","mazowieckie","mazo_Warszawa",null,"mazowieckie","Warszawa","Warszawa"]
["04-350","mazowieckie","mazo_Warszawa",null,"mazowieckie","Warszawa","Warszawa"]
["04-351","mazowieckie","mazo_Warszawa",null,"mazowieckie","Warszawa","Warszawa"]
["04-352","mazowieckie","mazo_Warszawa",null,"mazowieckie","Warszawa","Warszawa"]
["04-353","mazowieckie","mazo_Warszawa",null,"mazowieckie","Warszawa","Warszawa"]
["04-354","mazowieckie","mazo_Warszawa",null,"mazowieckie","Warszawa","Warszawa"]
["04-355","mazowieckie","mazo_Warszawa",null,"mazowieckie","Warszawa","Warszawa"]
["04-356","mazowieckie","mazo_Warszawa",null,"mazowieckie","Warszawa","Warszawa"]
["04-357","mazowieckie","mazo_Warszawa",null,"mazowieckie","Warszawa","Warszawa"]
["04-358","mazowieckie","mazo_Warszawa",null,"mazowieckie","Warszawa","Warszawa"]
["04-359","mazowieckie","mazo_Warszawa",null,"mazowieckie","Warszawa","Warszawa"]
["04-360","mazowieckie","mazo_Warszawa",null,"mazowieckie","Warszawa","Warszawa"]
["04-361","mazowieckie","mazo_Warszawa",null,"mazowieckie","Warszawa","Warszawa"]
["04-362","mazowieckie","mazo_Warszawa",null,"mazowieckie","Warszawa","Warszawa"]
["04-363","mazowieckie","mazo_Warszawa",null,"mazowieckie","Warszawa","Warszawa"]
["04-364","mazowieckie","mazo_Warszawa",null,"mazowieckie","Warszawa","Warszawa"]
["04-365","mazowieckie","mazo_Warszawa",null,"mazowieckie","Warszawa","Warszawa"]
["04-366","mazowieckie","mazo_Warszawa",null,"mazowieckie","Warszawa","Warszawa"]
["04-367","mazowieckie","mazo_Warszawa",null,"mazowieckie","Warszawa","Warszawa"]
["04-368","mazowieckie","mazo_Warszawa",null,"mazowieckie","Warszawa","Warszawa"]
["04-369","mazowieckie","mazo_Warszawa",null,"mazowieckie","Warszawa","Warszawa"]
["04-370","mazowieckie","mazo_Warszawa",null,"mazowieckie","Warszawa","Warszawa"]
["04-371","mazowieckie","mazo_Warszawa",null,"mazowieckie","Warszawa","Warszawa"]
["04-372","mazowieckie","mazo_Warszawa",null,"mazowieckie","Warszawa","Warszawa"]
["04-373","mazowieckie","mazo_Warszawa",null,"mazowieckie","Warszawa","Warszawa"]
["04-375","mazowieckie","mazo_Warszawa",null,"mazowieckie","Warszawa","Warszawa"]
["04-376","mazowieckie","mazo_Warszawa",null,"mazowieckie","Warszawa","Warszawa"]
["04-377","mazowieckie","mazo_Warszawa",null,"mazowieckie","Warszawa","Warszawa"]
["04-378","mazowieckie","mazo_Warszawa",null,"mazowieckie","Warszawa","Warszawa"]
["04-379","mazowieckie","mazo_Warszawa",null,"mazowieckie","Warszawa","Warszawa"]
["04-380","mazowieckie","mazo_Warszawa",null,"mazowieckie","Warszawa","Warszawa"]
["04-381","mazowieckie","mazo_Warszawa",null,"mazowieckie","Warszawa","Warszawa"]
["04-382","mazowieckie","mazo_Warszawa",null,"mazowieckie","Warszawa","Warszawa"]
["04-384","mazowieckie","mazo_Warszawa",null,"mazowieckie","Warszawa","Warszawa"]
["04-385","mazowieckie","mazo_Warszawa",null,"mazowieckie","Warszawa","Warszawa"]
["04-386","mazowieckie","mazo_Warszawa",null,"mazowieckie","Warszawa","Warszawa"]
["04-387","mazowieckie","mazo_Warszawa",null,"mazowieckie","Warszawa","Warszawa"]
["04-388","mazowieckie","mazo_Warszawa",null,"mazowieckie","Warszawa","Warszawa"]
["04-389","mazowieckie","mazo_Warszawa",null,"mazowieckie","Warszawa","Warszawa"]
["04-390","mazowieckie","mazo_Warszawa",null,"mazowieckie","Warszawa","Warszawa"]
["04-391","mazowieckie","mazo_Warszawa",null,"mazowieckie","Warszawa","Warszawa"]
["04-392","mazowieckie","mazo_Warszawa",null,"mazowieckie","Warszawa","Warszawa"]
["04-393","mazowieckie","mazo_Warszawa",null,"mazowieckie","Warszawa","Warszawa"]
["04-394","mazowieckie","mazo_Warszawa",null,"mazowieckie","Warszawa","Warszawa"]
["04-395","mazowieckie","mazo_Warszawa",null,"mazowieckie","Warszawa","Warszawa"]
["04-396","mazowieckie","mazo_Warszawa",null,"mazowieckie","Warszawa","Warszawa"]
["04-397","mazowieckie","mazo_Warszawa",null,"mazowieckie","Warszawa","Warszawa"]
["04-398","mazowieckie","mazo_Warszawa",null,"mazowieckie","Warszawa","Warszawa"]
["04-400","mazowieckie","mazo_Warszawa",null,"mazowieckie","Warszawa","Warszawa"]
["04-401","mazowieckie","mazo_Warszawa",null,"mazowieckie","Warszawa","Warszawa"]
["04-402","mazowieckie","mazo_Warszawa",null,"mazowieckie","Warszawa","Warszawa"]
["04-403","mazowieckie","mazo_Warszawa",null,"mazowieckie","Warszawa","Warszawa"]
["04-404","mazowieckie","mazo_Warszawa",null,"mazowieckie","Warszawa","Warszawa"]
["04-406","mazowieckie","mazo_Warszawa",null,"mazowieckie","Warszawa","Warszawa"]
["04-407","mazowieckie","mazo_Warszawa",null,"mazowieckie","Warszawa","Warszawa"]
["04-408","mazowieckie","mazo_Warszawa",null,"mazowieckie","Warszawa","Warszawa"]
["04-409","mazowieckie","mazo_Warszawa",null,"mazowieckie","Warszawa","Warszawa"]
["04-410","mazowieckie","mazo_Warszawa",null,"mazowieckie","Warszawa","Warszawa"]
["04-412","mazowieckie","mazo_Warszawa",null,"mazowieckie","Warszawa","Warszawa"]
["04-413","mazowieckie","mazo_Warszawa",null,"mazowieckie","Warszawa","Warszawa"]
["04-414","mazowieckie","mazo_Warszawa",null,"mazowieckie","Warszawa","Warszawa"]
["04-416","mazowieckie","mazo_Warszawa",null,"mazowieckie","Warszawa","Warszawa"]
["04-417","mazowieckie","mazo_Warszawa",null,"mazowieckie","Warszawa","Warszawa"]
["04-418","mazowieckie","mazo_Warszawa",null,"mazowieckie","Warszawa","Warszawa"]
["04-419","mazowieckie","mazo_Warszawa",null,"mazowieckie","Warszawa","Warszawa"]
["04-420","mazowieckie","mazo_Warszawa",null,"mazowieckie","Warszawa","Warszawa"]
["04-421","mazowieckie","mazo_Warszawa",null,"mazowieckie","Warszawa","Warszawa"]
["04-423","mazowieckie","mazo_Warszawa",null,"mazowieckie","Warszawa","Warszawa"]
["04-424","mazowieckie","mazo_Warszawa",null,"mazowieckie","Warszawa","Warszawa"]
["04-425","mazowieckie","mazo_Warszawa",null,"mazowieckie","Warszawa","Warszawa"]
["04-426","mazowieckie","mazo_Warszawa",null,"mazowieckie","Warszawa","Warszawa"]
["04-428","mazowieckie","mazo_Warszawa",null,"mazowieckie","Warszawa","Warszawa"]
["04-429","mazowieckie","mazo_Warszawa",null,"mazowieckie","Warszawa","Warszawa"]
["04-430","mazowieckie","mazo_Warszawa",null,"mazowieckie","Warszawa","Warszawa"]
["04-431","mazowieckie","mazo_Warszawa",null,"mazowieckie","Warszawa","Warszawa"]
["04-432","mazowieckie","mazo_Warszawa",null,"mazowieckie","Warszawa","Warszawa"]
["04-434","mazowieckie","mazo_Warszawa",null,"mazowieckie","Warszawa","Warszawa"]
["04-435","mazowieckie","mazo_Warszawa",null,"mazowieckie","Warszawa","Warszawa"]
["04-436","mazowieckie","mazo_Warszawa",null,"mazowieckie","Warszawa","Warszawa"]
["04-437","mazowieckie","mazo_Warszawa",null,"mazowieckie","Warszawa","Warszawa"]
["04-438","mazowieckie","mazo_Warszawa",null,"mazowieckie","Warszawa","Warszawa"]
["04-439","mazowieckie","mazo_Warszawa",null,"mazowieckie","Warszawa","Warszawa"]
["04-440","mazowieckie","mazo_Warszawa",null,"mazowieckie","Warszawa","Warszawa"]
["04-441","mazowieckie","mazo_Warszawa",null,"mazowieckie","Warszawa","Warszawa"]
["04-443","mazowieckie","mazo_Warszawa",null,"mazowieckie","Warszawa","Warszawa"]
["04-444","mazowieckie","mazo_Warszawa",null,"mazowieckie","Warszawa","Warszawa"]
["04-445","mazowieckie","mazo_Warszawa",null,"mazowieckie","Warszawa","Warszawa"]
["04-446","mazowieckie","mazo_Warszawa",null,"mazowieckie","Warszawa","Warszawa"]
["04-447","mazowieckie","mazo_Warszawa",null,"mazowieckie","Warszawa","Warszawa"]
["04-448","mazowieckie","mazo_Warszawa",null,"mazowieckie","Warszawa","Warszawa"]
["04-450","mazowieckie","mazo_Warszawa",null,"mazowieckie","Warszawa","Warszawa"]
["04-451","mazowieckie","mazo_Warszawa",null,"mazowieckie","Warszawa","Warszawa"]
["04-452","mazowieckie","mazo_Warszawa",null,"mazowieckie","Warszawa","Warszawa"]
["04-453","mazowieckie","mazo_Warszawa",null,"mazowieckie","Warszawa","Warszawa"]
["04-454","mazowieckie","mazo_Warszawa",null,"mazowieckie","Warszawa","Warszawa"]
["04-455","mazowieckie","mazo_Warszawa",null,"mazowieckie","Warszawa","Warszawa"]
["04-457","mazowieckie","mazo_Warszawa",null,"mazowieckie","Warszawa","Warszawa"]
["04-458","mazowieckie","mazo_Warszawa",null,"mazowieckie","Warszawa","Warszawa"]
["04-459","mazowieckie","mazo_Warszawa",null,"mazowieckie","Warszawa","Warszawa"]
["04-460","mazowieckie","mazo_Warszawa",null,"mazowieckie","Warszawa","Warszawa"]
["04-461","mazowieckie","mazo_Warszawa",null,"mazowieckie","Warszawa","Warszawa"]
["04-462","mazowieckie","mazo_Warszawa",null,"mazowieckie","Warszawa","Warszawa"]
["04-463","mazowieckie","mazo_Warszawa",null,"mazowieckie","Warszawa","Warszawa"]
["04-464","mazowieckie","mazo_Warszawa",null,"mazowieckie","Warszawa","Warszawa"]
["04-465","mazowieckie","mazo_Warszawa",null,"mazowieckie","Warszawa","Warszawa"]
["04-466","mazowieckie","mazo_Warszawa",null,"mazowieckie","Warszawa","Warszawa"]
["04-467","mazowieckie","mazo_Warszawa",null,"mazowieckie","Warszawa","Warszawa"]
["04-468","mazowieckie","mazo_Warszawa",null,"mazowieckie","Warszawa","Warszawa"]
["04-470","mazowieckie","mazo_Warszawa",null,"mazowieckie","Warszawa","Warszawa"]
["04-471","mazowieckie","mazo_Warszawa",null,"mazowieckie","Warszawa","Warszawa"]
["04-473","mazowieckie","mazo_Warszawa",null,"mazowieckie","Warszawa","Warszawa"]
["04-474","mazowieckie","mazo_Warszawa",null,"mazowieckie","Warszawa","Warszawa"]
["04-475","mazowieckie","mazo_Warszawa",null,"mazowieckie","Warszawa","Warszawa"]
["04-476","mazowieckie","mazo_Warszawa",null,"mazowieckie","Warszawa","Warszawa"]
["04-478","mazowieckie","mazo_Warszawa",null,"mazowieckie","Warszawa","Warszawa"]
["04-479","mazowieckie","mazo_Warszawa",null,"mazowieckie","Warszawa","Warszawa"]
["04-480","mazowieckie","mazo_Warszawa",null,"mazowieckie","Warszawa","Warszawa"]
["04-481","mazowieckie","mazo_Warszawa",null,"mazowieckie","Warszawa","Warszawa"]
["04-482","mazowieckie","mazo_Warszawa",null,"mazowieckie","Warszawa","Warszawa"]
["04-483","mazowieckie","mazo_Warszawa",null,"mazowieckie","Warszawa","Warszawa"]
["04-484","mazowieckie","mazo_Warszawa",null,"mazowieckie","Warszawa","Warszawa"]
["04-485","mazowieckie","mazo_Warszawa",null,"mazowieckie","Warszawa","Warszawa"]
["04-487","mazowieckie","mazo_Warszawa",null,"mazowieckie","Warszawa","Warszawa"]
["04-488","mazowieckie","mazo_Warszawa",null,"mazowieckie","Warszawa","Warszawa"]
["04-489","mazowieckie","mazo_Warszawa",null,"mazowieckie","Warszawa","Warszawa"]
["04-491","mazowieckie","mazo_Warszawa",null,"mazowieckie","Warszawa","Warszawa"]
["04-492","mazowieckie","mazo_Warszawa",null,"mazowieckie","Warszawa","Warszawa"]
["04-493","mazowieckie","mazo_Warszawa",null,"mazowieckie","Warszawa","Warszawa"]
["04-494","mazowieckie","mazo_Warszawa",null,"mazowieckie","Warszawa","Warszawa"]
["04-495","mazowieckie","mazo_Warszawa",null,"mazowieckie","Warszawa","Warszawa"]
["04-497","mazowieckie","mazo_Warszawa",null,"mazowieckie","Warszawa","Warszawa"]
["04-498","mazowieckie","mazo_Warszawa",null,"mazowieckie","Warszawa","Warszawa"]
["04-501","mazowieckie","mazo_Warszawa",null,"mazowieckie","Warszawa","Warszawa"]
["04-502","mazowieckie","mazo_Warszawa",null,"mazowieckie","Warszawa","Warszawa"]
["04-504","mazowieckie","mazo_Warszawa",null,"mazowieckie","Warszawa","Warszawa"]
["04-505","mazowieckie","mazo_Warszawa",null,"mazowieckie","Warszawa","Warszawa"]
["04-506","mazowieckie","mazo_Warszawa",null,"mazowieckie","Warszawa","Warszawa"]
["04-507","mazowieckie","mazo_Warszawa",null,"mazowieckie","Warszawa","Warszawa"]
["04-508","mazowieckie","mazo_Warszawa",null,"mazowieckie","Warszawa","Warszawa"]
["04-509","mazowieckie","mazo_Warszawa",null,"mazowieckie","Warszawa","Warszawa"]
["04-510","mazowieckie","mazo_Warszawa",null,"mazowieckie","Warszawa","Warszawa"]
["04-511","mazowieckie","mazo_Warszawa",null,"mazowieckie","Warszawa","Warszawa"]
["04-512","mazowieckie","mazo_Warszawa",null,"mazowieckie","Warszawa","Warszawa"]
["04-513","mazowieckie","mazo_Warszawa",null,"mazowieckie","Warszawa","Warszawa"]
["04-514","mazowieckie","mazo_Warszawa",null,"mazowieckie","Warszawa","Warszawa"]
["04-515","mazowieckie","mazo_Warszawa",null,"mazowieckie","Warszawa","Warszawa"]
["04-516","mazowieckie","mazo_Warszawa",null,"mazowieckie","Warszawa","Warszawa"]
["04-517","mazowieckie","mazo_Warszawa",null,"mazowieckie","Warszawa","Warszawa"]
["04-519","mazowieckie","mazo_Warszawa",null,"mazowieckie","Warszawa","Warszawa"]
["04-520","mazowieckie","mazo_Warszawa",null,"mazowieckie","Warszawa","Warszawa"]
["04-521","mazowieckie","mazo_Warszawa",null,"mazowieckie","Warszawa","Warszawa"]
["04-522","mazowieckie","mazo_Warszawa",null,"mazowieckie","Warszawa","Warszawa"]
["04-523","mazowieckie","mazo_Warszawa",null,"mazowieckie","Warszawa","Warszawa"]
["04-524","mazowieckie","mazo_Warszawa",null,"mazowieckie","Warszawa","Warszawa"]
["04-525","mazowieckie","mazo_Warszawa",null,"mazowieckie","Warszawa","Warszawa"]
["04-526","mazowieckie","mazo_Warszawa",null,"mazowieckie","Warszawa","Warszawa"]
["04-528","mazowieckie","mazo_Warszawa",null,"mazowieckie","Warszawa","Warszawa"]
["04-529","mazowieckie","mazo_Warszawa",null,"mazowieckie","Warszawa","Warszawa"]
["04-530","mazowieckie","mazo_Warszawa",null,"mazowieckie","Warszawa","Warszawa"]
["04-532","mazowieckie","mazo_Warszawa",null,"mazowieckie","Warszawa","Warszawa"]
["04-533","mazowieckie","mazo_Warszawa",null,"mazowieckie","Warszawa","Warszawa"]
["04-534","mazowieckie","mazo_Warszawa",null,"mazowieckie","Warszawa","Warszawa"]
["04-535","mazowieckie","mazo_Warszawa",null,"mazowieckie","Warszawa","Warszawa"]
["04-536","mazowieckie","mazo_Warszawa",null,"mazowieckie","Warszawa","Warszawa"]
["04-537","mazowieckie","mazo_Warszawa",null,"mazowieckie","Warszawa","Warszawa"]
["04-538","mazowieckie","mazo_Warszawa",null,"mazowieckie","Warszawa","Warszawa"]
["04-539","mazowieckie","mazo_Warszawa",null,"mazowieckie","Warszawa","Warszawa"]
["04-540","mazowieckie","mazo_Warszawa",null,"mazowieckie","Warszawa","Warszawa"]
["04-541","mazowieckie","mazo_Warszawa",null,"mazowieckie","Warszawa","Warszawa"]
["04-542","mazowieckie","mazo_Warszawa",null,"mazowieckie","Warszawa","Warszawa"]
["04-543","mazowieckie","mazo_Warszawa",null,"mazowieckie","Warszawa","Warszawa"]
["04-544","mazowieckie","mazo_Warszawa",null,"mazowieckie","Warszawa","Warszawa"]
["04-545","mazowieckie","mazo_Warszawa",null,"mazowieckie","Warszawa","Warszawa"]
["04-547","mazowieckie","mazo_Warszawa",null,"mazowieckie","Warszawa","Warszawa"]
["04-549","mazowieckie","mazo_Warszawa",null,"mazowieckie","Warszawa","Warszawa"]
["04-550","mazowieckie","mazo_Warszawa",null,"mazowieckie","Warszawa","Warszawa"]
["04-551","mazowieckie","mazo_Warszawa",null,"mazowieckie","Warszawa","Warszawa"]
["04-552","mazowieckie","mazo_Warszawa",null,"mazowieckie","Warszawa","Warszawa"]
["04-555","mazowieckie","mazo_Warszawa",null,"mazowieckie","Warszawa","Warszawa"]
["04-556","mazowieckie","mazo_Warszawa",null,"mazowieckie","Warszawa","Warszawa"]
["04-557","mazowieckie","mazo_Warszawa",null,"mazowieckie","Warszawa","Warszawa"]
["04-558","mazowieckie","mazo_Warszawa",null,"mazowieckie","Warszawa","Warszawa"]
["04-559","mazowieckie","mazo_Warszawa",null,"mazowieckie","Warszawa","Warszawa"]
["04-560","mazowieckie","mazo_Warszawa",null,"mazowieckie","Warszawa","Warszawa"]
["04-561","mazowieckie","mazo_Warszawa",null,"mazowieckie","Warszawa","Warszawa"]
["04-562","mazowieckie","mazo_Warszawa",null,"mazowieckie","Warszawa","Warszawa"]
["04-563","mazowieckie","mazo_Warszawa",null,"mazowieckie","Warszawa","Warszawa"]
["04-564","mazowieckie","mazo_Warszawa",null,"mazowieckie","Warszawa","Warszawa"]
["04-565","mazowieckie","mazo_Warszawa",null,"mazowieckie","Warszawa","Warszawa"]
["04-566","mazowieckie","mazo_Warszawa",null,"mazowieckie","Warszawa","Warszawa"]
["04-567","mazowieckie","mazo_Warszawa",null,"mazowieckie","Warszawa","Warszawa"]
["04-568","mazowieckie","mazo_Warszawa",null,"mazowieckie","Warszawa","Warszawa"]
["04-569","mazowieckie","mazo_Warszawa",null,"mazowieckie","Warszawa","Warszawa"]
["04-570","mazowieckie","mazo_Warszawa",null,"mazowieckie","Warszawa","Warszawa"]
["04-601","mazowieckie","mazo_Warszawa",null,"mazowieckie","Warszawa","Warszawa"]
["04-602","mazowieckie","mazo_Warszawa",null,"mazowieckie","Warszawa","Warszawa"]
["04-603","mazowieckie","mazo_Warszawa",null,"mazowieckie","Warszawa","Warszawa"]
["04-604","mazowieckie","mazo_Warszawa",null,"mazowieckie","Warszawa","Warszawa"]
["04-605","mazowieckie","mazo_Warszawa",null,"mazowieckie","Warszawa","Warszawa"]
["04-606","mazowieckie","mazo_Warszawa",null,"mazowieckie","Warszawa","Warszawa"]
["04-607","mazowieckie","mazo_Warszawa",null,"mazowieckie","Warszawa","Warszawa"]
["04-608","mazowieckie","mazo_Warszawa",null,"mazowieckie","Warszawa","Warszawa"]
["04-609","mazowieckie","mazo_Warszawa",null,"mazowieckie","Warszawa","Warszawa"]
["04-610","mazowieckie","mazo_Warszawa",null,"mazowieckie","Warszawa","Warszawa"]
["04-611","mazowieckie","mazo_Warszawa",null,"mazowieckie","Warszawa","Warszawa"]
["04-612","mazowieckie","mazo_Warszawa",null,"mazowieckie","Warszawa","Warszawa"]
["04-613","mazowieckie","mazo_Warszawa",null,"mazowieckie","Warszawa","Warszawa"]
["04-614","mazowieckie","mazo_Warszawa",null,"mazowieckie","Warszawa","Warszawa"]
["04-615","mazowieckie","mazo_Warszawa",null,"mazowieckie","Warszawa","Warszawa"]
["04-616","mazowieckie","mazo_Warszawa",null,"mazowieckie","Warszawa","Warszawa"]
["04-617","mazowieckie","mazo_Warszawa",null,"mazowieckie","Warszawa","Warszawa"]
["04-618","mazowieckie","mazo_Warszawa",null,"mazowieckie","Warszawa","Warszawa"]
["04-619","mazowieckie","mazo_Warszawa",null,"mazowieckie","Warszawa","Warszawa"]
["04-620","mazowieckie","mazo_Warszawa",null,"mazowieckie","Warszawa","Warszawa"]
["04-621","mazowieckie","mazo_Warszawa",null,"mazowieckie","Warszawa","Warszawa"]
["04-622","mazowieckie","mazo_Warszawa",null,"mazowieckie","Warszawa","Warszawa"]
["04-623","mazowieckie","mazo_Warszawa",null,"mazowieckie","Warszawa","Warszawa"]
["04-624","mazowieckie","mazo_Warszawa",null,"mazowieckie","Warszawa","Warszawa"]
["04-625","mazowieckie","mazo_Warszawa",null,"mazowieckie","Warszawa","Warszawa"]
["04-626","mazowieckie","mazo_Warszawa",null,"mazowieckie","Warszawa","Warszawa"]
["04-627","mazowieckie","mazo_Warszawa",null,"mazowieckie","Warszawa","Warszawa"]
["04-628","mazowieckie","mazo_Warszawa",null,"mazowieckie","Warszawa","Warszawa"]
["04-629","mazowieckie","mazo_Warszawa",null,"mazowieckie","Warszawa","Warszawa"]
["04-630","mazowieckie","mazo_Warszawa",null,"mazowieckie","Warszawa","Warszawa"]
["04-632","mazowieckie","mazo_Warszawa",null,"mazowieckie","Warszawa","Warszawa"]
["04-633","mazowieckie","mazo_Warszawa",null,"mazowieckie","Warszawa","Warszawa"]
["04-634","mazowieckie","mazo_Warszawa",null,"mazowieckie","Warszawa","Warszawa"]
["04-635","mazowieckie","mazo_Warszawa",null,"mazowieckie","Warszawa","Warszawa"]
["04-636","mazowieckie","mazo_Warszawa",null,"mazowieckie","Warszawa","Warszawa"]
["04-637","mazowieckie","mazo_Warszawa",null,"mazowieckie","Warszawa","Warszawa"]
["04-638","mazowieckie","mazo_Warszawa",null,"mazowieckie","Warszawa","Warszawa"]
["04-639","mazowieckie","mazo_Warszawa",null,"mazowieckie","Warszawa","Warszawa"]
["04-640","mazowieckie","mazo_Warszawa",null,"mazowieckie","Warszawa","Warszawa"]
["04-641","mazowieckie","mazo_Warszawa",null,"mazowieckie","Warszawa","Warszawa"]
["04-642","mazowieckie","mazo_Warszawa",null,"mazowieckie","Warszawa","Warszawa"]
["04-643","mazowieckie","mazo_Warszawa",null,"mazowieckie","Warszawa","Warszawa"]
["04-644","mazowieckie","mazo_Warszawa",null,"mazowieckie","Warszawa","Warszawa"]
["04-645","mazowieckie","mazo_Warszawa",null,"mazowieckie","Warszawa","Warszawa"]
["04-647","mazowieckie","mazo_Warszawa",null,"mazowieckie","Warszawa","Warszawa"]
["04-648","mazowieckie","mazo_Warszawa",null,"mazowieckie","Warszawa","Warszawa"]
["04-649","mazowieckie","mazo_Warszawa",null,"mazowieckie","Warszawa","Warszawa"]
["04-650","mazowieckie","mazo_Warszawa",null,"mazowieckie","Warszawa","Warszawa"]
["04-651","mazowieckie","mazo_Warszawa",null,"mazowieckie","Warszawa","Warszawa"]
["04-652","mazowieckie","mazo_Warszawa",null,"mazowieckie","Warszawa","Warszawa"]
["04-653","mazowieckie","mazo_Warszawa",null,"mazowieckie","Warszawa","Warszawa"]
["04-654","mazowieckie","mazo_Warszawa",null,"mazowieckie","Warszawa","Warszawa"]
["04-655","mazowieckie","mazo_Warszawa",null,"mazowieckie","Warszawa","Warszawa"]
["04-656","mazowieckie","mazo_Warszawa",null,"mazowieckie","Warszawa","Warszawa"]
["04-657","mazowieckie","mazo_Warszawa",null,"mazowieckie","Warszawa","Warszawa"]
["04-658","mazowieckie","mazo_Warszawa",null,"mazowieckie","Warszawa","Warszawa"]
["04-659","mazowieckie","mazo_Warszawa",null,"mazowieckie","Warszawa","Warszawa"]
["04-660","mazowieckie","mazo_Warszawa",null,"mazowieckie","Warszawa","Warszawa"]
["04-661","mazowieckie","mazo_Warszawa",null,"mazowieckie","Warszawa","Warszawa"]
["04-662","mazowieckie","mazo_Warszawa",null,"mazowieckie","Warszawa","Warszawa"]
["04-663","mazowieckie","mazo_Warszawa",null,"mazowieckie","Warszawa","Warszawa"]
["04-664","mazowieckie","mazo_Warszawa",null,"mazowieckie","Warszawa","Warszawa"]
["04-665","mazowieckie","mazo_Warszawa",null,"mazowieckie","Warszawa","Warszawa"]
["04-666","mazowieckie","mazo_Warszawa",null,"mazowieckie","Warszawa","Warszawa"]
["04-667","mazowieckie","mazo_Warszawa",null,"mazowieckie","Warszawa","Warszawa"]
["04-668","mazowieckie","mazo_Warszawa",null,"mazowieckie","Warszawa","Warszawa"]
["04-669","mazowieckie","mazo_Warszawa",null,"mazowieckie","Warszawa","Warszawa"]
["04-671","mazowieckie","mazo_Warszawa",null,"mazowieckie","Warszawa","Warszawa"]
["04-672","mazowieckie","mazo_Warszawa",null,"mazowieckie","Warszawa","Warszawa"]
["04-673","mazowieckie","mazo_Warszawa",null,"mazowieckie","Warszawa","Warszawa"]
["04-674","mazowieckie","mazo_Warszawa",null,"mazowieckie","Warszawa","Warszawa"]
["04-675","mazowieckie","mazo_Warszawa",null,"mazowieckie","Warszawa","Warszawa"]
["04-676","mazowieckie","mazo_Warszawa",null,"mazowieckie","Warszawa","Warszawa"]
["04-678","mazowieckie","mazo_Warszawa",null,"mazowieckie","Warszawa","Warszawa"]
["04-679","mazowieckie","mazo_Warszawa",null,"mazowieckie","Warszawa","Warszawa"]
["04-680","mazowieckie","mazo_Warszawa",null,"mazowieckie","Warszawa","Warszawa"]
["04-681","mazowieckie","mazo_Warszawa",null,"mazowieckie","Warszawa","Warszawa"]
["04-682","mazowieckie","mazo_Warszawa",null,"mazowieckie","Warszawa","Warszawa"]
["04-683","mazowieckie","mazo_Warszawa",null,"mazowieckie","Warszawa","Warszawa"]
["04-684","mazowieckie","mazo_Warszawa",null,"mazowieckie","Warszawa","Warszawa"]
["04-685","mazowieckie","mazo_Warszawa",null,"mazowieckie","Warszawa","Warszawa"]
["04-686","mazowieckie","mazo_Warszawa",null,"mazowieckie","Warszawa","Warszawa"]
["04-687","mazowieckie","mazo_Warszawa",null,"mazowieckie","Warszawa","Warszawa"]
["04-688","mazowieckie","mazo_Warszawa",null,"mazowieckie","Warszawa","Warszawa"]
["04-689","mazowieckie","mazo_Warszawa",null,"mazowieckie","Warszawa","Warszawa"]
["04-690","mazowieckie","mazo_Warszawa",null,"mazowieckie","Warszawa","Warszawa"]
["04-691","mazowieckie","mazo_Warszawa",null,"mazowieckie","Warszawa","Warszawa"]
["04-692","mazowieckie","mazo_Warszawa",null,"mazowieckie","Warszawa","Warszawa"]
["04-693","mazowieckie","mazo_Warszawa",null,"mazowieckie","Warszawa","Warszawa"]
["04-694","mazowieckie","mazo_Warszawa",null,"mazowieckie","Warszawa","Warszawa"]
["04-695","mazowieckie","mazo_Warszawa",null,"mazowieckie","Warszawa","Warszawa"]
["04-696","mazowieckie","mazo_Warszawa",null,"mazowieckie","Warszawa","Warszawa"]
["04-697","mazowieckie","mazo_Warszawa",null,"mazowieckie","Warszawa","Warszawa"]
["04-701","mazowieckie","mazo_Warszawa",null,"mazowieckie","Warszawa","Warszawa"]
["04-702","mazowieckie","mazo_Warszawa",null,"mazowieckie","Warszawa","Warszawa"]
["04-703","mazowieckie","mazo_Warszawa",null,"mazowieckie","Warszawa","Warszawa"]
["04-704","mazowieckie","mazo_Warszawa",null,"mazowieckie","Warszawa","Warszawa"]
["04-705","mazowieckie","mazo_Warszawa",null,"mazowieckie","Warszawa","Warszawa"]
["04-707","mazowieckie","mazo_Warszawa",null,"mazowieckie","Warszawa","Warszawa"]
["04-708","mazowieckie","mazo_Warszawa",null,"mazowieckie","Warszawa","Warszawa"]
["04-709","mazowieckie","mazo_Warszawa",null,"mazowieckie","Warszawa","Warszawa"]
["04-710","mazowieckie","mazo_Warszawa",null,"mazowieckie","Warszawa","Warszawa"]
["04-711","mazowieckie","mazo_Warszawa",null,"mazowieckie","Warszawa","Warszawa"]
["04-712","mazowieckie","mazo_Warszawa",null,"mazowieckie","Warszawa","Warszawa"]
["04-713","mazowieckie","mazo_Warszawa",null,"mazowieckie","Warszawa","Warszawa"]
["04-714","mazowieckie","mazo_Warszawa",null,"mazowieckie","Warszawa","Warszawa"]
["04-715","mazowieckie","mazo_Warszawa",null,"mazowieckie","Warszawa","Warszawa"]
["04-716","mazowieckie","mazo_Warszawa",null,"mazowieckie","Warszawa","Warszawa"]
["04-717","mazowieckie","mazo_Warszawa",null,"mazowieckie","Warszawa","Warszawa"]
["04-718","mazowieckie","mazo_Warszawa",null,"mazowieckie","Warszawa","Warszawa"]
["04-719","mazowieckie","mazo_Warszawa",null,"mazowieckie","Warszawa","Warszawa"]
["04-720","mazowieckie","mazo_Warszawa",null,"mazowieckie","Warszawa","Warszawa"]
["04-721","mazowieckie","mazo_Warszawa",null,"mazowieckie","Warszawa","Warszawa"]
["04-722","mazowieckie","mazo_Warszawa",null,"mazowieckie","Warszawa","Warszawa"]
["04-723","mazowieckie","mazo_Warszawa",null,"mazowieckie","Warszawa","Warszawa"]
["04-724","mazowieckie","mazo_Warszawa",null,"mazowieckie","Warszawa","Warszawa"]
["04-725","mazowieckie","mazo_Warszawa",null,"mazowieckie","Warszawa","Warszawa"]
["04-726","mazowieckie","mazo_Warszawa",null,"mazowieckie","Warszawa","Warszawa"]
["04-727","mazowieckie","mazo_Warszawa",null,"mazowieckie","Warszawa","Warszawa"]
["04-728","mazowieckie","mazo_Warszawa",null,"mazowieckie","Warszawa","Warszawa"]
["04-729","mazowieckie","mazo_Warszawa",null,"mazowieckie","Warszawa","Warszawa"]
["04-730","mazowieckie","mazo_Warszawa",null,"mazowieckie","Warszawa","Warszawa"]
["04-731","mazowieckie","mazo_Warszawa",null,"mazowieckie","Warszawa","Warszawa"]
["04-732","mazowieckie","mazo_Warszawa",null,"mazowieckie","Warszawa","Warszawa"]
["04-733","mazowieckie","mazo_Warszawa",null,"mazowieckie","Warszawa","Warszawa"]
["04-734","mazowieckie","mazo_Warszawa",null,"mazowieckie","Warszawa","Warszawa"]
["04-735","mazowieckie","mazo_Warszawa",null,"mazowieckie","Warszawa","Warszawa"]
["04-736","mazowieckie","mazo_Warszawa",null,"mazowieckie","Warszawa","Warszawa"]
["04-737","mazowieckie","mazo_Warszawa",null,"mazowieckie","Warszawa","Warszawa"]
["04-738","mazowieckie","mazo_Warszawa",null,"mazowieckie","Warszawa","Warszawa"]
["04-739","mazowieckie","mazo_Warszawa",null,"mazowieckie","Warszawa","Warszawa"]
["04-740","mazowieckie","mazo_Warszawa",null,"mazowieckie","Warszawa","Warszawa"]
["04-741","mazowieckie","mazo_Warszawa",null,"mazowieckie","Warszawa","Warszawa"]
["04-742","mazowieckie","mazo_Warszawa",null,"mazowieckie","Warszawa","Warszawa"]
["04-743","mazowieckie","mazo_Warszawa",null,"mazowieckie","Warszawa","Warszawa"]
["04-744","mazowieckie","mazo_Warszawa",null,"mazowieckie","Warszawa","Warszawa"]
["04-745","mazowieckie","mazo_Warszawa",null,"mazowieckie","Warszawa","Warszawa"]
["04-746","mazowieckie","mazo_Warszawa",null,"mazowieckie","Warszawa","Warszawa"]
["04-747","mazowieckie","mazo_Warszawa",null,"mazowieckie","Warszawa","Warszawa"]
["04-748","mazowieckie","mazo_Warszawa",null,"mazowieckie","Warszawa","Warszawa"]
["04-749","mazowieckie","mazo_Warszawa",null,"mazowieckie","Warszawa","Warszawa"]
["04-750","mazowieckie","mazo_Warszawa",null,"mazowieckie","Warszawa","Warszawa"]
["04-751","mazowieckie","mazo_Warszawa",null,"mazowieckie","Warszawa","Warszawa"]
["04-752","mazowieckie","mazo_Warszawa",null,"mazowieckie","Warszawa","Warszawa"]
["04-754","mazowieckie","mazo_Warszawa",null,"mazowieckie","Warszawa","Warszawa"]
["04-755","mazowieckie","mazo_Warszawa",null,"mazowieckie","Warszawa","Warszawa"]
["04-756","mazowieckie","mazo_Warszawa",null,"mazowieckie","Warszawa","Warszawa"]
["04-757","mazowieckie","mazo_Warszawa",null,"mazowieckie","Warszawa","Warszawa"]
["04-758","mazowieckie","mazo_Warszawa",null,"mazowieckie","Warszawa","Warszawa"]
["04-760","mazowieckie","mazo_Warszawa",null,"mazowieckie","Warszawa","Warszawa"]
["04-761","mazowieckie","mazo_Warszawa",null,"mazowieckie","Warszawa","Warszawa"]
["04-762","mazowieckie","mazo_Warszawa",null,"mazowieckie","Warszawa","Warszawa"]
["04-763","mazowieckie","mazo_Warszawa",null,"mazowieckie","Warszawa","Warszawa"]
["04-764","mazowieckie","mazo_Warszawa",null,"mazowieckie","Warszawa","Warszawa"]
["04-765","mazowieckie","mazo_Warszawa",null,"mazowieckie","Warszawa","Warszawa"]
["04-766","mazowieckie","mazo_Warszawa",null,"mazowieckie","Warszawa","Warszawa"]
["04-767","mazowieckie","mazo_Warszawa",null,"mazowieckie","Warszawa","Warszawa"]
["04-768","mazowieckie","mazo_Warszawa",null,"mazowieckie","Warszawa","Warszawa"]
["04-769","mazowieckie","mazo_Warszawa",null,"mazowieckie","Warszawa","Warszawa"]
["04-770","mazowieckie","mazo_Warszawa",null,"mazowieckie","Warszawa","Warszawa"]
["04-771","mazowieckie","mazo_Warszawa",null,"mazowieckie","Warszawa","Warszawa"]
["04-772","mazowieckie","mazo_Warszawa",null,"mazowieckie","Warszawa","Warszawa"]
["04-773","mazowieckie","mazo_Warszawa",null,"mazowieckie","Warszawa","Warszawa"]
["04-774","mazowieckie","mazo_Warszawa",null,"mazowieckie","Warszawa","Warszawa"]
["04-775","mazowieckie","mazo_Warszawa",null,"mazowieckie","Warszawa","Warszawa"]
["04-776","mazowieckie","mazo_Warszawa",null,"mazowieckie","Warszawa","Warszawa"]
["04-778","mazowieckie","mazo_Warszawa",null,"mazowieckie","Warszawa","Warszawa"]
["04-779","mazowieckie","mazo_Warszawa",null,"mazowieckie","Warszawa","Warszawa"]
["04-780","mazowieckie","mazo_Warszawa",null,"mazowieckie","Warszawa","Warszawa"]
["04-781","mazowieckie","mazo_Warszawa",null,"mazowieckie","Warszawa","Warszawa"]
["04-782","mazowieckie","mazo_Warszawa",null,"mazowieckie","Warszawa","Warszawa"]
["04-783","mazowieckie","mazo_Warszawa",null,"mazowieckie","Warszawa","Warszawa"]
["04-784","mazowieckie","mazo_Warszawa",null,"mazowieckie","Warszawa","Warszawa"]
["04-785","mazowieckie","mazo_Warszawa",null,"mazowieckie","Warszawa","Warszawa"]
["04-786","mazowieckie","mazo_Warszawa",null,"mazowieckie","Warszawa","Warszawa"]
["04-787","mazowieckie","mazo_Warszawa",null,"mazowieckie","Warszawa","Warszawa"]
["04-788","mazowieckie","mazo_Warszawa",null,"mazowieckie","Warszawa","Warszawa"]
["04-789","mazowieckie","mazo_Warszawa",null,"mazowieckie","Warszawa","Warszawa"]
["04-790","mazowieckie","mazo_Warszawa",null,"mazowieckie","Warszawa","Warszawa"]
["04-791","mazowieckie","mazo_Warszawa",null,"mazowieckie","Warszawa","Warszawa"]
["04-792","mazowieckie","mazo_Warszawa",null,"mazowieckie","Warszawa","Warszawa"]
["04-793","mazowieckie","mazo_Warszawa",null,"mazowieckie","Warszawa","Warszawa"]
["04-794","mazowieckie","mazo_Warszawa",null,"mazowieckie","Warszawa","Warszawa"]
["04-795","mazowieckie","mazo_Warszawa",null,"mazowieckie","Warszawa","Warszawa"]
["04-796","mazowieckie","mazo_Warszawa",null,"mazowieckie","Warszawa","Warszawa"]
["04-797","mazowieckie","mazo_Warszawa",null,"mazowieckie","Warszawa","Warszawa"]
["04-798","mazowieckie","mazo_Warszawa",null,"mazowieckie","Warszawa","Warszawa"]
["04-801","mazowieckie","mazo_Warszawa",null,"mazowieckie","Warszawa","Warszawa"]
["04-802","mazowieckie","mazo_Warszawa",null,"mazowieckie","Warszawa","Warszawa"]
["04-803","mazowieckie","mazo_Warszawa",null,"mazowieckie","Warszawa","Warszawa"]
["04-804","mazowieckie","mazo_Warszawa",null,"mazowieckie","Warszawa","Warszawa"]
["04-805","mazowieckie","mazo_Warszawa",null,"mazowieckie","Warszawa","Warszawa"]
["04-806","mazowieckie","mazo_Warszawa",null,"mazowieckie","Warszawa","Warszawa"]
["04-807","mazowieckie","mazo_Warszawa",null,"mazowieckie","Warszawa","Warszawa"]
["04-808","mazowieckie","mazo_Warszawa",null,"mazowieckie","Warszawa","Warszawa"]
["04-809","mazowieckie","mazo_Warszawa",null,"mazowieckie","Warszawa","Warszawa"]
["04-810","mazowieckie","mazo_Warszawa",null,"mazowieckie","Warszawa","Warszawa"]
["04-811","mazowieckie","mazo_Warszawa",null,"mazowieckie","Warszawa","Warszawa"]
["04-812","mazowieckie","mazo_Warszawa",null,"mazowieckie","Warszawa","Warszawa"]
["04-813","mazowieckie","mazo_Warszawa",null,"mazowieckie","Warszawa","Warszawa"]
["04-814","mazowieckie","mazo_Warszawa",null,"mazowieckie","Warszawa","Warszawa"]
["04-815","mazowieckie","mazo_Warszawa",null,"mazowieckie","Warszawa","Warszawa"]
["04-816","mazowieckie","mazo_Warszawa",null,"mazowieckie","Warszawa","Warszawa"]
["04-817","mazowieckie","mazo_Warszawa",null,"mazowieckie","Warszawa","Warszawa"]
["04-818","mazowieckie","mazo_Warszawa",null,"mazowieckie","Warszawa","Warszawa"]
["04-819","mazowieckie","mazo_Warszawa",null,"mazowieckie","Warszawa","Warszawa"]
["04-820","mazowieckie","mazo_Warszawa",null,"mazowieckie","Warszawa","Warszawa"]
["04-822","mazowieckie","mazo_Warszawa",null,"mazowieckie","Warszawa","Warszawa"]
["04-823","mazowieckie","mazo_Warszawa",null,"mazowieckie","Warszawa","Warszawa"]
["04-824","mazowieckie","mazo_Warszawa",null,"mazowieckie","Warszawa","Warszawa"]
["04-825","mazowieckie","mazo_Warszawa",null,"mazowieckie","Warszawa","Warszawa"]
["04-826","mazowieckie","mazo_Warszawa",null,"mazowieckie","Warszawa","Warszawa"]
["04-827","mazowieckie","mazo_Warszawa",null,"mazowieckie","Warszawa","Warszawa"]
["04-828","mazowieckie","mazo_Warszawa",null,"mazowieckie","Warszawa","Warszawa"]
["04-829","mazowieckie","mazo_Warszawa",null,"mazowieckie","Warszawa","Warszawa"]
["04-830","mazowieckie","mazo_Warszawa",null,"mazowieckie","Warszawa","Warszawa"]
["04-831","mazowieckie","mazo_Warszawa",null,"mazowieckie","Warszawa","Warszawa"]
["04-832","mazowieckie","mazo_Warszawa",null,"mazowieckie","Warszawa","Warszawa"]
["04-833","mazowieckie","mazo_Warszawa",null,"mazowieckie","Warszawa","Warszawa"]
["04-834","mazowieckie","mazo_Warszawa",null,"mazowieckie","Warszawa","Warszawa"]
["04-835","mazowieckie","mazo_Warszawa",null,"mazowieckie","Warszawa","Warszawa"]
["04-836","mazowieckie","mazo_Warszawa",null,"mazowieckie","Warszawa","Warszawa"]
["04-837","mazowieckie","mazo_Warszawa",null,"mazowieckie","Warszawa","Warszawa"]
["04-838","mazowieckie","mazo_Warszawa",null,"mazowieckie","Warszawa","Warszawa"]
["04-839","mazowieckie","mazo_Warszawa",null,"mazowieckie","Warszawa","Warszawa"]
["04-840","mazowieckie","mazo_Warszawa",null,"mazowieckie","Warszawa","Warszawa"]
["04-841","mazowieckie","mazo_Warszawa",null,"mazowieckie","Warszawa","Warszawa"]
["04-842","mazowieckie","mazo_Warszawa",null,"mazowieckie","Warszawa","Warszawa"]
["04-843","mazowieckie","mazo_Warszawa",null,"mazowieckie","Warszawa","Warszawa"]
["04-844","mazowieckie","mazo_Warszawa",null,"mazowieckie","Warszawa","Warszawa"]
["04-845","mazowieckie","mazo_Warszawa",null,"mazowieckie","Warszawa","Warszawa"]
["04-846","mazowieckie","mazo_Warszawa",null,"mazowieckie","Warszawa","Warszawa"]
["04-847","mazowieckie","mazo_Warszawa",null,"mazowieckie","Warszawa","Warszawa"]
["04-848","mazowieckie","mazo_Warszawa",null,"mazowieckie","Warszawa","Warszawa"]
["04-849","mazowieckie","mazo_Warszawa",null,"mazowieckie","Warszawa","Warszawa"]
["04-850","mazowieckie","mazo_Warszawa",null,"mazowieckie","Warszawa","Warszawa"]
["04-851","mazowieckie","mazo_Warszawa",null,"mazowieckie","Warszawa","Warszawa"]
["04-852","mazowieckie","mazo_Warszawa",null,"mazowieckie","Warszawa","Warszawa"]
["04-853","mazowieckie","mazo_Warszawa",null,"mazowieckie","Warszawa","Warszawa"]
["04-854","mazowieckie","mazo_Warszawa",null,"mazowieckie","Warszawa","Warszawa"]
["04-855","mazowieckie","mazo_Warszawa",null,"mazowieckie","Warszawa","Warszawa"]
["04-856","mazowieckie","mazo_Warszawa",null,"mazowieckie","Warszawa","Warszawa"]
["04-857","mazowieckie","mazo_Warszawa",null,"mazowieckie","Warszawa","Warszawa"]
["04-858","mazowieckie","mazo_Warszawa",null,"mazowieckie","Warszawa","Warszawa"]
["04-859","mazowieckie","mazo_Warszawa",null,"mazowieckie","Warszawa","Warszawa"]
["04-860","mazowieckie","mazo_Warszawa",null,"mazowieckie","Warszawa","Warszawa"]
["04-861","mazowieckie","mazo_Warszawa",null,"mazowieckie","Warszawa","Warszawa"]
["04-862","mazowieckie","mazo_Warszawa",null,"mazowieckie","Warszawa","Warszawa"]
["04-863","mazowieckie","mazo_Warszawa",null,"mazowieckie","Warszawa","Warszawa"]
["04-864","mazowieckie","mazo_Warszawa",null,"mazowieckie","Warszawa","Warszawa"]
["04-865","mazowieckie","mazo_Warszawa",null,"mazowieckie","Warszawa","Warszawa"]
["04-866","mazowieckie","mazo_Warszawa",null,"mazowieckie","Warszawa","Warszawa"]
["04-867","mazowieckie","mazo_Warszawa",null,"mazowieckie","Warszawa","Warszawa"]
["04-869","mazowieckie","mazo_Warszawa",null,"mazowieckie","Warszawa","Warszawa"]
["04-870","mazowieckie","mazo_Warszawa",null,"mazowieckie","Warszawa","Warszawa"]
["04-871","mazowieckie","mazo_Warszawa",null,"mazowieckie","Warszawa","Warszawa"]
["04-872","mazowieckie","mazo_Warszawa",null,"mazowieckie","Warszawa","Warszawa"]
["04-874","mazowieckie","mazo_Warszawa",null,"mazowieckie","Warszawa","Warszawa"]
["04-875","mazowieckie","mazo_Warszawa",null,"mazowieckie","Warszawa","Warszawa"]
["04-876","mazowieckie","mazo_Warszawa",null,"mazowieckie","Warszawa","Warszawa"]
["04-877","mazowieckie","mazo_Warszawa",null,"mazowieckie","Warszawa","Warszawa"]
["04-878","mazowieckie","mazo_Warszawa",null,"mazowieckie","Warszawa","Warszawa"]
["04-879","mazowieckie","mazo_Warszawa",null,"mazowieckie","Warszawa","Warszawa"]
["04-880","mazowieckie","mazo_Warszawa",null,"mazowieckie","Warszawa","Warszawa"]
["04-881","mazowieckie","mazo_Warszawa",null,"mazowieckie","Warszawa","Warszawa"]
["04-882","mazowieckie","mazo_Warszawa",null,"mazowieckie","Warszawa","Warszawa"]
["04-883","mazowieckie","mazo_Warszawa",null,"mazowieckie","Warszawa","Warszawa"]
["04-884","mazowieckie","mazo_Warszawa",null,"mazowieckie","Warszawa","Warszawa"]
["04-885","mazowieckie","mazo_Warszawa",null,"mazowieckie","Warszawa","Warszawa"]
["04-886","mazowieckie","mazo_Warszawa",null,"mazowieckie","Warszawa","Warszawa"]
["04-888","mazowieckie","mazo_Warszawa",null,"mazowieckie","Warszawa","Warszawa"]
["04-889","mazowieckie","mazo_Warszawa",null,"mazowieckie","Warszawa","Warszawa"]
["04-890","mazowieckie","mazo_Warszawa",null,"mazowieckie","Warszawa","Warszawa"]
["04-891","mazowieckie","mazo_Warszawa",null,"mazowieckie","Warszawa","Warszawa"]
["04-892","mazowieckie","mazo_Warszawa",null,"mazowieckie","Warszawa","Warszawa"]
["04-893","mazowieckie","mazo_Warszawa",null,"mazowieckie","Warszawa","Warszawa"]
["04-894","mazowieckie","mazo_Warszawa",null,"mazowieckie","Warszawa","Warszawa"]
["04-895","mazowieckie","mazo_Warszawa",null,"mazowieckie","Warszawa","Warszawa"]
["04-896","mazowieckie","mazo_Warszawa",null,"mazowieckie","Warszawa","Warszawa"]
["04-897","mazowieckie","mazo_Warszawa",null,"mazowieckie","Warszawa","Warszawa"]
["04-898","mazowieckie","mazo_Warszawa",null,"mazowieckie","Warszawa","Warszawa"]
["04-900","mazowieckie","mazo_Warszawa",null,"mazowieckie","Warszawa","Warszawa"]
["04-901","mazowieckie","mazo_Warszawa",null,"mazowieckie","Warszawa","Warszawa"]
["04-902","mazowieckie","mazo_Warszawa",null,"mazowieckie","Warszawa","Warszawa"]
["04-903","mazowieckie","mazo_Warszawa",null,"mazowieckie","Warszawa","Warszawa"]
["04-904","mazowieckie","mazo_Warszawa",null,"mazowieckie","Warszawa","Warszawa"]
["04-906","mazowieckie","mazo_Warszawa",null,"mazowieckie","Warszawa","Warszawa"]
["04-907","mazowieckie","mazo_Warszawa",null,"mazowieckie","Warszawa","Warszawa"]
["04-908","mazowieckie","mazo_Warszawa",null,"mazowieckie","Warszawa","Warszawa"]
["04-909","mazowieckie","mazo_Warszawa",null,"mazowieckie","Warszawa","Warszawa"]
["04-910","mazowieckie","mazo_Warszawa",null,"mazowieckie","Warszawa","Warszawa"]
["04-911","mazowieckie","mazo_Warszawa",null,"mazowieckie","Warszawa","Warszawa"]
["04-912","mazowieckie","mazo_Warszawa",null,"mazowieckie","Warszawa","Warszawa"]
["04-913","mazowieckie","mazo_Warszawa",null,"mazowieckie","Warszawa","Warszawa"]
["04-914","mazowieckie","mazo_Warszawa",null,"mazowieckie","Warszawa","Warszawa"]
["04-915","mazowieckie","mazo_Warszawa",null,"mazowieckie","Warszawa","Warszawa"]
["04-916","mazowieckie","mazo_Warszawa",null,"mazowieckie","Warszawa","Warszawa"]
["04-917","mazowieckie","mazo_Warszawa",null,"mazowieckie","Warszawa","Warszawa"]
["04-918","mazowieckie","mazo_Warszawa",null,"mazowieckie","Warszawa","Warszawa"]
["04-919","mazowieckie","mazo_Warszawa",null,"mazowieckie","Warszawa","Warszawa"]
["04-920","mazowieckie","mazo_Warszawa",null,"mazowieckie","Warszawa","Warszawa"]
["04-921","mazowieckie","mazo_Warszawa",null,"mazowieckie","Warszawa","Warszawa"]
["04-922","mazowieckie","mazo_Warszawa",null,"mazowieckie","Warszawa","Warszawa"]
["04-923","mazowieckie","mazo_Warszawa",null,"mazowieckie","Warszawa","Warszawa"]
["04-924","mazowieckie","mazo_Warszawa",null,"mazowieckie","Warszawa","Warszawa"]
["04-925","mazowieckie","mazo_Warszawa",null,"mazowieckie","Warszawa","Warszawa"]
["04-926","mazowieckie","mazo_Warszawa",null,"mazowieckie","Warszawa","Warszawa"]
["04-927","mazowieckie","mazo_Warszawa",null,"mazowieckie","Warszawa","Warszawa"]
["04-928","mazowieckie","mazo_Warszawa",null,"mazowieckie","Warszawa","Warszawa"]
["04-929","mazowieckie","mazo_Warszawa",null,"mazowieckie","Warszawa","Warszawa"]
["04-930","mazowieckie","mazo_Warszawa",null,"mazowieckie","Warszawa","Warszawa"]
["04-931","mazowieckie","mazo_Warszawa",null,"mazowieckie","Warszawa","Warszawa"]
["04-932","mazowieckie","mazo_Warszawa",null,"mazowieckie","Warszawa","Warszawa"]
["04-933","mazowieckie","mazo_Warszawa",null,"mazowieckie","Warszawa","Warszawa"]
["04-934","mazowieckie","mazo_Warszawa",null,"mazowieckie","Warszawa","Warszawa"]
["04-935","mazowieckie","mazo_Warszawa",null,"mazowieckie","Warszawa","Warszawa"]
["04-936","mazowieckie","mazo_Warszawa",null,"mazowieckie","Warszawa","Warszawa"]
["04-937","mazowieckie","mazo_Warszawa",null,"mazowieckie","Warszawa","Warszawa"]
["04-938","mazowieckie","mazo_Warszawa",null,"mazowieckie","Warszawa","Warszawa"]
["04-939","mazowieckie","mazo_Warszawa",null,"mazowieckie","Warszawa","Warszawa"]
["04-940","mazowieckie","mazo_Warszawa",null,"mazowieckie","Warszawa","Warszawa"]
["04-941","mazowieckie","mazo_Warszawa",null,"mazowieckie","Warszawa","Warszawa"]
["04-942","mazowieckie","mazo_Warszawa",null,"mazowieckie","Warszawa","Warszawa"]
["04-943","mazowieckie","mazo_Warszawa",null,"mazowieckie","Warszawa","Warszawa"]
["04-944","mazowieckie","mazo_Warszawa",null,"mazowieckie","Warszawa","Warszawa"]
["04-946","mazowieckie","mazo_Warszawa",null,"mazowieckie","Warszawa","Warszawa"]
["04-947","mazowieckie","mazo_Warszawa",null,"mazowieckie","Warszawa","Warszawa"]
["04-948","mazowieckie","mazo_Warszawa",null,"mazowieckie","Warszawa","Warszawa"]
["04-949","mazowieckie","mazo_Warszawa",null,"mazowieckie","Warszawa","Warszawa"]
["04-950","mazowieckie","mazo_Warszawa",null,"mazowieckie","Warszawa","Warszawa"]
["04-951","mazowieckie","mazo_Warszawa",null,"mazowieckie","Warszawa","Warszawa"]
["04-952","mazowieckie","mazo_Warszawa",null,"mazowieckie","Warszawa","Warszawa"]
["04-953","mazowieckie","mazo_Warszawa",null,"mazowieckie","Warszawa","Warszawa"]
["04-954","mazowieckie","mazo_Warszawa",null,"mazowieckie","Warszawa","Warszawa"]
["04-955","mazowieckie","mazo_Warszawa",null,"mazowieckie","Warszawa","Warszawa"]
["04-956","mazowieckie","mazo_Warszawa",null,"mazowieckie","Warszawa","Warszawa"]
["04-957","mazowieckie","mazo_Warszawa",null,"mazowieckie","Warszawa","Warszawa"]
["04-958","mazowieckie","mazo_Warszawa",null,"mazowieckie","Warszawa","Warszawa"]
["04-959","mazowieckie","mazo_Warszawa",null,"mazowieckie","Warszawa","Warszawa"]
["04-960","mazowieckie","mazo_Warszawa",null,"mazowieckie","Warszawa","Warszawa"]
["04-961","mazowieckie","mazo_Warszawa",null,"mazowieckie","Warszawa","Warszawa"]
["04-962","mazowieckie","mazo_Warszawa",null,"mazowieckie","Warszawa","Warszawa"]
["04-963","mazowieckie","mazo_Warszawa",null,"mazowieckie","Warszawa","Warszawa"]
["04-964","mazowieckie","mazo_Warszawa",null,"mazowieckie","Warszawa","Warszawa"]
["04-965","mazowieckie","mazo_Warszawa",null,"mazowieckie","Warszawa","Warszawa"]
["04-966","mazowieckie","mazo_Warszawa",null,"mazowieckie","Warszawa","Warszawa"]
["04-967","mazowieckie","mazo_Warszawa",null,"mazowieckie","Warszawa","Warszawa"]
["04-968","mazowieckie","mazo_Warszawa",null,"mazowieckie","Warszawa","Warszawa"]
["04-969","mazowieckie","mazo_Warszawa",null,"mazowieckie","Warszawa","Warszawa"]
["04-970","mazowieckie","mazo_Warszawa",null,"mazowieckie","Warszawa","Warszawa"]
["04-971","mazowieckie","mazo_Warszawa",null,"mazowieckie","Warszawa","Warszawa"]
["04-972","mazowieckie","mazo_Warszawa",null,"mazowieckie","Warszawa","Warszawa"]
["04-973","mazowieckie","mazo_Warszawa",null,"mazowieckie","Warszawa","Warszawa"]
["04-974","mazowieckie","mazo_Warszawa",null,"mazowieckie","Warszawa","Warszawa"]
["04-975","mazowieckie","mazo_Warszawa",null,"mazowieckie","Warszawa","Warszawa"]
["04-976","mazowieckie","mazo_Warszawa",null,"mazowieckie","Warszawa","Warszawa"]
["04-977","mazowieckie","mazo_Warszawa",null,"mazowieckie","Warszawa","Warszawa"]
["04-979","mazowieckie","mazo_Warszawa",null,"mazowieckie","Warszawa","Warszawa"]
["04-980","mazowieckie","mazo_Warszawa",null,"mazowieckie","Warszawa","Warszawa"]
["04-981","mazowieckie","mazo_Warszawa",null,"mazowieckie","Warszawa","Warszawa"]
["04-982","mazowieckie","mazo_Warszawa",null,"mazowieckie","Warszawa","Warszawa"]
["04-983","mazowieckie","mazo_Warszawa",null,"mazowieckie","Warszawa","Warszawa"]
["04-984","mazowieckie","mazo_Warszawa",null,"mazowieckie","Warszawa","Warszawa"]
["04-985","mazowieckie","mazo_Warszawa",null,"mazowieckie","Warszawa","Warszawa"]
["04-986","mazowieckie","mazo_Warszawa",null,"mazowieckie","Warszawa","Warszawa"]
["04-987","mazowieckie","mazo_Warszawa",null,"mazowieckie","Warszawa","Warszawa"]
["04-988","mazowieckie","mazo_Warszawa",null,"mazowieckie","Warszawa","Warszawa"]
["04-989","mazowieckie","mazo_Warszawa",null,"mazowieckie","Warszawa","Warszawa"]
["04-990","mazowieckie","mazo_Warszawa",null,"mazowieckie","Warszawa","Warszawa"]
["04-991","mazowieckie","mazo_Warszawa",null,"mazowieckie","Warszawa","Warszawa"]
["04-992","mazowieckie","mazo_Warszawa",null,"mazowieckie","Warszawa","Warszawa"]
["04-993","mazowieckie","mazo_Warszawa",null,"mazowieckie","Warszawa","Warszawa"]
["04-994","mazowieckie","mazo_Warszawa",null,"mazowieckie","Warszawa","Warszawa"]
["04-995","mazowieckie","mazo_Warszawa",null,"mazowieckie","Warszawa","Warszawa"]
["04-996","mazowieckie","mazo_Warszawa",null,"mazowieckie","Warszawa","Warszawa"]
["04-997","mazowieckie","mazo_Warszawa",null,"mazowieckie","Warszawa","Warszawa"]
["04-998","mazowieckie","mazo_Warszawa",null,"mazowieckie","Warszawa","Warszawa"]
["05-070","mazowieckie","mazo_Minsk_Mazowiecki",null,"mazowieckie","miński","Sulejówek"]
["05-071","mazowieckie","mazo_Minsk_Mazowiecki",null,"mazowieckie","miński","Sulejówek"]
["05-072","mazowieckie","mazo_Minsk_Mazowiecki",null,"mazowieckie","miński","Sulejówek"]
["05-074","mazowieckie","mazo_Minsk_Mazowiecki",null,"mazowieckie","miński","Halinów"]
["05-075","mazowieckie","mazo_Warszawa",null,"mazowieckie","Warszawa","Warszawa"]
["05-077","mazowieckie","mazo_Warszawa",null,"mazowieckie","Warszawa","Warszawa"]
["05-079","mazowieckie","mazo_Minsk_Mazowiecki",null,"mazowieckie","miński","Halinów"]
["05-080","mazowieckie","mazo_Ozarow_Mazowiecki",null,"mazowieckie","warszawski zachodni","Izabelin"]
["05-082","mazowieckie","mazo_Ozarow_Mazowiecki",null,"mazowieckie","warszawski zachodni","Stare Babice"]
["05-083","mazowieckie","mazo_Ozarow_Mazowiecki",null,"mazowieckie","warszawski zachodni","Leszno"]
["05-084","mazowieckie","mazo_Ozarow_Mazowiecki",null,"mazowieckie","warszawski zachodni","Leszno"]
["05-085","mazowieckie","mazo_Ozarow_Mazowiecki",null,"mazowieckie","warszawski zachodni","Kampinos"]
["05-088","mazowieckie","mazo_Sochaczew",null,"mazowieckie","sochaczewski","Brochów"]
["05-090","mazowieckie","mazo_Pruszkow",null,"mazowieckie","pruszkowski","Raszyn"]
["05-091","mazowieckie","mazo_Wolomin",null,"mazowieckie","wołomiński","Ząbki"]
["05-092","mazowieckie","mazo_Ozarow_Mazowiecki",null,"mazowieckie","warszawski zachodni","Łomianki"]
["05-093","mazowieckie","mazo_Wolomin",null,"mazowieckie","wołomiński","Ząbki"]
["05-094","mazowieckie","mazo_Pruszkow",null,"mazowieckie","pruszkowski","Raszyn"]
["05-095","mazowieckie","mazo_Wolomin",null,"mazowieckie","wołomiński","Ząbki"]
["05-096","mazowieckie","mazo_Wolomin",null,"mazowieckie","wołomiński","Ząbki"]
["05-097","mazowieckie","mazo_Ozarow_Mazowiecki",null,"mazowieckie","warszawski zachodni","Łomianki"]
["05-098","mazowieckie","mazo_Wolomin",null,"mazowieckie","wołomiński","Ząbki"]
["05-099","mazowieckie","mazo_Wolomin",null,"mazowieckie","wołomiński","Ząbki"]
["05-100","mazowieckie","mazo_Nowy_Dwor_Mazowiecki",null,"mazowieckie","nowodworski","Nowy Dwór Mazowiecki"]
["05-101","mazowieckie","mazo_Nowy_Dwor_Mazowiecki",null,"mazowieckie","nowodworski","Nowy Dwór Mazowiecki"]
["05-102","mazowieckie","mazo_Nowy_Dwor_Mazowiecki",null,"mazowieckie","nowodworski","Nowy Dwór Mazowiecki"]
["05-110","mazowieckie","mazo_Legionowo",null,"mazowieckie","legionowski","Jabłonna"]
["05-118","mazowieckie","mazo_Legionowo",null,"mazowieckie","legionowski","Legionowo"]
["05-119","mazowieckie","mazo_Legionowo",null,"mazowieckie","legionowski","Legionowo"]
["05-120","mazowieckie","mazo_Legionowo",null,"mazowieckie","legionowski","Legionowo"]
["05-121","mazowieckie","mazo_Legionowo",null,"mazowieckie","legionowski","Legionowo"]
["05-122","mazowieckie","mazo_Legionowo",null,"mazowieckie","legionowski","Legionowo"]
["05-123","mazowieckie","mazo_Legionowo",null,"mazowieckie","legionowski","Jabłonna"]
["05-124","mazowieckie","mazo_Legionowo",null,"mazowieckie","legionowski","Wieliszew"]
["05-126","mazowieckie","mazo_Legionowo",null,"mazowieckie","legionowski","Nieporęt"]
["05-127","mazowieckie","mazo_Legionowo",null,"mazowieckie","legionowski","Nieporęt"]
["05-130","mazowieckie","mazo_Legionowo",null,"mazowieckie","legionowski","Nieporęt"]
["05-131","mazowieckie","mazo_Legionowo",null,"mazowieckie","legionowski","Serock"]
["05-135","mazowieckie","mazo_Legionowo",null,"mazowieckie","legionowski","Wieliszew"]
["05-140","mazowieckie","mazo_Legionowo",null,"mazowieckie","legionowski","Serock"]
["05-152","mazowieckie","mazo_Nowy_Dwor_Mazowiecki",null,"mazowieckie","nowodworski","Czosnów"]
["05-155","mazowieckie","mazo_Nowy_Dwor_Mazowiecki",null,"mazowieckie","nowodworski","Leoncin"]
["05-156","mazowieckie","mazo_Nowy_Dwor_Mazowiecki",null,"mazowieckie","nowodworski","Leoncin"]
["05-160","mazowieckie","mazo_Nowy_Dwor_Mazowiecki",null,"mazowieckie","nowodworski","Nowy Dwór Mazowiecki"]
["05-170","mazowieckie","mazo_Nowy_Dwor_Mazowiecki",null,"mazowieckie","nowodworski","Zakroczym"]
["05-180","mazowieckie","mazo_Nowy_Dwor_Mazowiecki",null,"mazowieckie","nowodworski","Pomiechówek"]
["05-190","mazowieckie","mazo_Nowy_Dwor_Mazowiecki",null,"mazowieckie","nowodworski","Nasielsk"]
["05-191","mazowieckie","mazo_Nowy_Dwor_Mazowiecki",null,"mazowieckie","nowodworski","Nasielsk"]
["05-192","mazowieckie","mazo_Plonsk",null,"mazowieckie","płoński","Nowe Miasto"]
["05-200","mazowieckie","mazo_Wolomin",null,"mazowieckie","wołomiński","Wołomin"]
["05-201","mazowieckie","mazo_Wolomin",null,"mazowieckie","wołomiński","Wołomin"]
["05-202","mazowieckie","mazo_Wolomin",null,"mazowieckie","wołomiński","Wołomin"]
["05-203","mazowieckie","mazo_Wolomin",null,"mazowieckie","wołomiński","Wołomin"]
["05-204","mazowieckie","mazo_Wolomin",null,"mazowieckie","wołomiński","Wołomin"]
["05-205","mazowieckie","mazo_Wolomin",null,"mazowieckie","wołomiński","Klembów"]
["05-206","mazowieckie","mazo_Wolomin",null,"mazowieckie","wołomiński","Klembów"]
["05-220","mazowieckie","mazo_Wolomin",null,"mazowieckie","wołomiński","Zielonka"]
["05-221","mazowieckie","mazo_Wolomin",null,"mazowieckie","wołomiński","Zielonka"]
["05-222","mazowieckie","mazo_Wolomin",null,"mazowieckie","wołomiński","Zielonka"]
["05-230","mazowieckie","mazo_Wolomin",null,"mazowieckie","wołomiński","Kobyłka"]
["05-231","mazowieckie","mazo_Wolomin",null,"mazowieckie","wołomiński","Kobyłka"]
["05-232","mazowieckie","mazo_Wolomin",null,"mazowieckie","wołomiński","Kobyłka"]
["05-240","mazowieckie","mazo_Wolomin",null,"mazowieckie","wołomiński","Tłuszcz"]
["05-250","mazowieckie","mazo_Wolomin",null,"mazowieckie","wołomiński","Radzymin"]
["05-251","mazowieckie","mazo_Wolomin",null,"mazowieckie","wołomiński","Radzymin"]
["05-252","mazowieckie","mazo_Wolomin",null,"mazowieckie","wołomiński","Dąbrówka"]
["05-253","mazowieckie","mazo_Wolomin",null,"mazowieckie","wołomiński","Klembów"]
["05-254","mazowieckie","mazo_Wolomin",null,"mazowieckie","wołomiński","Dąbrówka"]
["05-255","mazowieckie","mazo_Wolomin",null,"mazowieckie","wołomiński","Radzymin"]
["05-260","mazowieckie","mazo_Wolomin",null,"mazowieckie","wołomiński","Marki"]
["05-261","mazowieckie","mazo_Wolomin",null,"mazowieckie","wołomiński","Marki"]
["05-270","mazowieckie","mazo_Wolomin",null,"mazowieckie","wołomiński","Marki"]
["05-271","mazowieckie","mazo_Wolomin",null,"mazowieckie","wołomiński","Marki"]
["05-272","mazowieckie","mazo_Wolomin",null,"mazowieckie","wołomiński","Marki"]
["05-280","mazowieckie","mazo_Wolomin",null,"mazowieckie","wołomiński","Jadów"]
["05-281","mazowieckie","mazo_Wolomin",null,"mazowieckie","wołomiński","Jadów"]
["05-282","mazowieckie","mazo_Wolomin",null,"mazowieckie","wołomiński","Strachówka"]
["05-300","mazowieckie","mazo_Minsk_Mazowiecki",null,"mazowieckie","miński","Mińsk Mazowiecki"]
["05-301","mazowieckie","mazo_Minsk_Mazowiecki",null,"mazowieckie","miński","Mińsk Mazowiecki"]
["05-302","mazowieckie","mazo_Minsk_Mazowiecki",null,"mazowieckie","miński","Mińsk Mazowiecki"]
["05-303","mazowieckie","mazo_Minsk_Mazowiecki",null,"mazowieckie","miński","Mińsk Mazowiecki"]
["05-304","mazowieckie","mazo_Minsk_Mazowiecki",null,"mazowieckie","miński","Stanisławów"]
["05-305","mazowieckie","mazo_Minsk_Mazowiecki",null,"mazowieckie","miński","Mińsk Mazowiecki"]
["05-306","mazowieckie","mazo_Minsk_Mazowiecki",null,"mazowieckie","miński","Jakubów"]
["05-307","mazowieckie","mazo_Minsk_Mazowiecki",null,"mazowieckie","miński","Dobre"]
["05-310","mazowieckie","mazo_Minsk_Mazowiecki",null,"mazowieckie","miński","Kałuszyn"]
["05-311","mazowieckie","mazo_Minsk_Mazowiecki",null,"mazowieckie","miński","Dębe Wielkie"]
["05-317","mazowieckie","mazo_Minsk_Mazowiecki",null,"mazowieckie","miński","Mrozy"]
["05-319","mazowieckie","mazo_Minsk_Mazowiecki",null,"mazowieckie","miński","Cegłów"]
["05-320","mazowieckie","mazo_Minsk_Mazowiecki",null,"mazowieckie","miński","Mrozy"]
["05-321","mazowieckie","mazo_Minsk_Mazowiecki",null,"mazowieckie","miński","Mrozy"]
["05-326","mazowieckie","mazo_Wolomin",null,"mazowieckie","wołomiński","Poświętne"]
["05-332","mazowieckie","mazo_Minsk_Mazowiecki",null,"mazowieckie","miński","Siennica"]
["05-334","mazowieckie","mazo_Minsk_Mazowiecki",null,"mazowieckie","miński","Latowicz"]
["05-340","mazowieckie","mazo_Otwock",null,"mazowieckie","otwocki","Kołbiel"]
["05-400","mazowieckie","mazo_Otwock",null,"mazowieckie","otwocki","Otwock"]
["05-401","mazowieckie","mazo_Otwock",null,"mazowieckie","otwocki","Otwock"]
["05-402","mazowieckie","mazo_Otwock",null,"mazowieckie","otwocki","Otwock"]
["05-403","mazowieckie","mazo_Otwock",null,"mazowieckie","otwocki","Otwock"]
["05-408","mazowieckie","mazo_Otwock",null,"mazowieckie","otwocki","Wiązowna"]
["05-410","mazowieckie","mazo_Otwock",null,"mazowieckie","otwocki","Józefów"]
["05-420","mazowieckie","mazo_Otwock",null,"mazowieckie","otwocki","Józefów"]
["05-430","mazowieckie","mazo_Otwock",null,"mazowieckie","otwocki","Celestynów"]
["05-462","mazowieckie","mazo_Otwock",null,"mazowieckie","otwocki","Wiązowna"]
["05-480","mazowieckie","mazo_Otwock",null,"mazowieckie","otwocki","Karczew"]
["05-500","mazowieckie","mazo_Piaseczno",null,"mazowieckie","piaseczyński","Piaseczno"]
["05-501","mazowieckie","mazo_Piaseczno",null,"mazowieckie","piaseczyński","Lesznowola"]
["05-502","mazowieckie","mazo_Piaseczno",null,"mazowieckie","piaseczyński","Piaseczno"]
["05-503","mazowieckie","mazo_Piaseczno",null,"mazowieckie","piaseczyński","Piaseczno"]
["05-504","mazowieckie","mazo_Piaseczno",null,"mazowieckie","piaseczyński","Piaseczno"]
["05-505","mazowieckie","mazo_Piaseczno",null,"mazowieckie","piaseczyński","Prażmów"]
["05-506","mazowieckie","mazo_Piaseczno",null,"mazowieckie","piaseczyński","Lesznowola"]
["05-507","mazowieckie","mazo_Piaseczno",null,"mazowieckie","piaseczyński","Konstancin-Jeziorna"]
["05-508","mazowieckie","mazo_Piaseczno",null,"mazowieckie","piaseczyński","Piaseczno"]
["05-509","mazowieckie","mazo_Piaseczno",null,"mazowieckie","piaseczyński","Piaseczno"]
["05-510","mazowieckie","mazo_Piaseczno",null,"mazowieckie","piaseczyński","Konstancin-Jeziorna"]
["05-511","mazowieckie","mazo_Piaseczno",null,"mazowieckie","piaseczyński","Piaseczno"]
["05-512","mazowieckie","mazo_Piaseczno",null,"mazowieckie","piaseczyński","Piaseczno"]
["05-515","mazowieckie","mazo_Piaseczno",null,"mazowieckie","piaseczyński","Lesznowola"]
["05-520","mazowieckie","mazo_Piaseczno",null,"mazowieckie","piaseczyński","Konstancin-Jeziorna"]
["05-530","mazowieckie","mazo_Piaseczno",null,"mazowieckie","piaseczyński","Góra Kalwaria"]
["05-531","mazowieckie","mazo_Piaseczno",null,"mazowieckie","piaseczyński","Góra Kalwaria"]
["05-532","mazowieckie","mazo_Piaseczno",null,"mazowieckie","piaseczyński","Góra Kalwaria"]
["05-533","mazowieckie","mazo_Piaseczno",null,"mazowieckie","piaseczyński","Góra Kalwaria"]
["05-540","mazowieckie","mazo_Piaseczno",null,"mazowieckie","piaseczyński","Prażmów"]
["05-552","mazowieckie","mazo_Piaseczno",null,"mazowieckie","piaseczyński","Lesznowola"]
["05-553","mazowieckie","mazo_Piaseczno",null,"mazowieckie","piaseczyński","Lesznowola"]
["05-555","mazowieckie","mazo_Piaseczno",null,"mazowieckie","piaseczyński","Tarczyn"]
["05-600","mazowieckie","mazo_Grojec",null,"mazowieckie","grójecki","Grójec"]
["05-601","mazowieckie","mazo_Grojec",null,"mazowieckie","grójecki","Grójec"]
["05-604","mazowieckie","mazo_Grojec",null,"mazowieckie","grójecki","Jasieniec"]
["05-610","mazowieckie","mazo_Grojec",null,"mazowieckie","grójecki","Goszczyn"]
["05-620","mazowieckie","mazo_Grojec",null,"mazowieckie","grójecki","Błędów"]
["05-622","mazowieckie","mazo_Grojec",null,"mazowieckie","grójecki","Belsk Duży"]
["05-640","mazowieckie","mazo_Grojec",null,"mazowieckie","grójecki","Mogielnica"]
["05-650","mazowieckie","mazo_Grojec",null,"mazowieckie","grójecki","Chynów"]
["05-651","mazowieckie","mazo_Grojec",null,"mazowieckie","grójecki","Chynów"]
["05-652","mazowieckie","mazo_Grojec",null,"mazowieckie","grójecki","Pniewy"]
["05-660","mazowieckie","mazo_Grojec",null,"mazowieckie","grójecki","Warka"]
["05-800","mazowieckie","mazo_Pruszkow",null,"mazowieckie","pruszkowski","Pruszków"]
["05-801","mazowieckie","mazo_Pruszkow",null,"mazowieckie","pruszkowski","Pruszków"]
["05-802","mazowieckie","mazo_Pruszkow",null,"mazowieckie","pruszkowski","Pruszków"]
["05-803","mazowieckie","mazo_Pruszkow",null,"mazowieckie","pruszkowski","Pruszków"]
["05-804","mazowieckie","mazo_Pruszkow",null,"mazowieckie","pruszkowski","Pruszków"]
["05-805","mazowieckie","mazo_Pruszkow",null,"mazowieckie","pruszkowski","Brwinów"]
["05-806","mazowieckie","mazo_Pruszkow",null,"mazowieckie","pruszkowski","Michałowice"]
["05-807","mazowieckie","mazo_Grodzisk_Mazowiecki",null,"mazowieckie","grodziski","Podkowa Leśna"]
["05-808","mazowieckie","mazo_Pruszkow",null,"mazowieckie","pruszkowski","Brwinów"]
["05-809","mazowieckie","mazo_Pruszkow",null,"mazowieckie","pruszkowski","Pruszków"]
["05-810","mazowieckie","mazo_Pruszkow",null,"mazowieckie","pruszkowski","Pruszków"]
["05-816","mazowieckie","mazo_Pruszkow",null,"mazowieckie","pruszkowski","Michałowice"]
["05-817","mazowieckie","mazo_Pruszkow",null,"mazowieckie","pruszkowski","Michałowice"]
["05-818","mazowieckie","mazo_Pruszkow",null,"mazowieckie","pruszkowski","Piastów"]
["05-819","mazowieckie","mazo_Pruszkow",null,"mazowieckie","pruszkowski","Piastów"]
["05-820","mazowieckie","mazo_Pruszkow",null,"mazowieckie","pruszkowski","Michałowice"]
["05-822","mazowieckie","mazo_Grodzisk_Mazowiecki",null,"mazowieckie","grodziski","Milanówek"]
["05-823","mazowieckie","mazo_Grodzisk_Mazowiecki",null,"mazowieckie","grodziski","Milanówek"]
["05-824","mazowieckie","mazo_Grodzisk_Mazowiecki",null,"mazowieckie","grodziski","Grodzisk Mazowiecki"]
["05-825","mazowieckie","mazo_Grodzisk_Mazowiecki",null,"mazowieckie","grodziski","Grodzisk Mazowiecki"]
["05-826","mazowieckie","mazo_Grodzisk_Mazowiecki",null,"mazowieckie","grodziski","Grodzisk Mazowiecki"]
["05-827","mazowieckie","mazo_Grodzisk_Mazowiecki",null,"mazowieckie","grodziski","Grodzisk Mazowiecki"]
["05-830","mazowieckie","mazo_Pruszkow",null,"mazowieckie","pruszkowski","Nadarzyn"]
["05-831","mazowieckie","mazo_Pruszkow",null,"mazowieckie","pruszkowski","Nadarzyn"]
["05-840","mazowieckie","mazo_Pruszkow",null,"mazowieckie","pruszkowski","Brwinów"]
["05-841","mazowieckie","mazo_Pruszkow",null,"mazowieckie","pruszkowski","Brwinów"]
["05-842","mazowieckie","mazo_Pruszkow",null,"mazowieckie","pruszkowski","Brwinów"]
["05-850","mazowieckie","mazo_Ozarow_Mazowiecki",null,"mazowieckie","warszawski zachodni","Ożarów Mazowiecki"]
["05-860","mazowieckie","mazo_Ozarow_Mazowiecki",null,"mazowieckie","warszawski zachodni","Ożarów Mazowiecki"]
["05-861","mazowieckie","mazo_Ozarow_Mazowiecki",null,"mazowieckie","warszawski zachodni","Ożarów Mazowiecki"]
["05-870","mazowieckie","mazo_Ozarow_Mazowiecki",null,"mazowieckie","warszawski zachodni","Błonie"]
["05-872","mazowieckie","mazo_Ozarow_Mazowiecki",null,"mazowieckie","warszawski zachodni","Błonie"]
["06-100","mazowieckie","mazo_Pultusk",null,"mazowieckie","pułtuski","Pułtusk"]
["06-101","mazowieckie","mazo_Pultusk",null,"mazowieckie","pułtuski","Pułtusk"]
["06-102","mazowieckie","mazo_Pultusk",null,"mazowieckie","pułtuski","Pułtusk"]
["06-114","mazowieckie","mazo_Pultusk",null,"mazowieckie","pułtuski","Pokrzywnica"]
["06-120","mazowieckie","mazo_Pultusk",null,"mazowieckie","pułtuski","Winnica"]
["06-121","mazowieckie","mazo_Pultusk",null,"mazowieckie","pułtuski","Pokrzywnica"]
["06-123","mazowieckie","mazo_Pultusk",null,"mazowieckie","pułtuski","Świercze"]
["06-124","mazowieckie","mazo_Pultusk",null,"mazowieckie","pułtuski","Gzy"]
["06-126","mazowieckie","mazo_Pultusk",null,"mazowieckie","pułtuski","Gzy"]
["06-141","mazowieckie","mazo_Pultusk",null,"mazowieckie","pułtuski","Winnica"]
["06-150","mazowieckie","mazo_Pultusk",null,"mazowieckie","pułtuski","Świercze"]
["06-200","mazowieckie","mazo_Makow_Mazowiecki",null,"mazowieckie","makowski","Maków Mazowiecki"]
["06-201","mazowieckie","mazo_Makow_Mazowiecki",null,"mazowieckie","makowski","Maków Mazowiecki"]
["06-210","mazowieckie","mazo_Makow_Mazowiecki",null,"mazowieckie","makowski","Płoniawy-Bramura"]
["06-211","mazowieckie","mazo_Makow_Mazowiecki",null,"mazowieckie","makowski","Płoniawy-Bramura"]
["06-212","mazowieckie","mazo_Makow_Mazowiecki",null,"mazowieckie","makowski","Krasnosielc"]
["06-213","mazowieckie","mazo_Makow_Mazowiecki",null,"mazowieckie","makowski","Sypniewo"]
["06-214","mazowieckie","mazo_Makow_Mazowiecki",null,"mazowieckie","makowski","Krasnosielc"]
["06-216","mazowieckie","mazo_Makow_Mazowiecki",null,"mazowieckie","makowski","Sypniewo"]
["06-220","mazowieckie","mazo_Makow_Mazowiecki",null,"mazowieckie","makowski","Szelków"]
["06-225","mazowieckie","mazo_Makow_Mazowiecki",null,"mazowieckie","makowski","Rzewnie"]
["06-230","mazowieckie","mazo_Makow_Mazowiecki",null,"mazowieckie","makowski","Różan"]
["06-231","mazowieckie","mazo_Makow_Mazowiecki",null,"mazowieckie","makowski","Młynarze"]
["06-232","mazowieckie","mazo_Makow_Mazowiecki",null,"mazowieckie","makowski","Czerwonka"]
["06-300","mazowieckie","mazo_Przasnysz",null,"mazowieckie","przasnyski","Przasnysz"]
["06-301","mazowieckie","mazo_Przasnysz",null,"mazowieckie","przasnyski","Przasnysz"]
["06-302","mazowieckie","mazo_Przasnysz",null,"mazowieckie","przasnyski","Przasnysz"]
["06-316","mazowieckie","mazo_Przasnysz",null,"mazowieckie","przasnyski","Krzynowłoga Mała"]
["06-320","mazowieckie","mazo_Ostroleka2",null,"mazowieckie","ostrołęcki","Baranowo"]
["06-323","mazowieckie","mazo_Przasnysz",null,"mazowieckie","przasnyski","Jednorożec"]
["06-330","mazowieckie","mazo_Przasnysz",null,"mazowieckie","przasnyski","Chorzele"]
["06-333","mazowieckie","mazo_Przasnysz",null,"mazowieckie","przasnyski","Chorzele"]
["06-400","mazowieckie","mazo_Ciechanow",null,"mazowieckie","ciechanowski","Ciechanów"]
["06-401","mazowieckie","mazo_Ciechanow",null,"mazowieckie","ciechanowski","Ciechanów"]
["06-402","mazowieckie","mazo_Ciechanow",null,"mazowieckie","ciechanowski","Ciechanów"]
["06-403","mazowieckie","mazo_Ciechanow",null,"mazowieckie","ciechanowski","Regimin"]
["06-404","mazowieckie","mazo_Ciechanow",null,"mazowieckie","ciechanowski","Opinogóra Górna"]
["06-405","mazowieckie","mazo_Przasnysz",null,"mazowieckie","przasnyski","Krasne"]
["06-406","mazowieckie","mazo_Ciechanow",null,"mazowieckie","ciechanowski","Opinogóra Górna"]
["06-407","mazowieckie","mazo_Ciechanow",null,"mazowieckie","ciechanowski","Opinogóra Górna"]
["06-408","mazowieckie","mazo_Przasnysz",null,"mazowieckie","przasnyski","Krasne"]
["06-409","mazowieckie","mazo_Ciechanow",null,"mazowieckie","ciechanowski","Ciechanów"]
["06-410","mazowieckie","mazo_Ciechanow",null,"mazowieckie","ciechanowski","Ciechanów"]
["06-411","mazowieckie","mazo_Przasnysz",null,"mazowieckie","przasnyski","Czernice Borowe"]
["06-413","mazowieckie","mazo_Ciechanow",null,"mazowieckie","ciechanowski","Ciechanów"]
["06-415","mazowieckie","mazo_Przasnysz",null,"mazowieckie","przasnyski","Czernice Borowe"]
["06-420","mazowieckie","mazo_Ciechanow",null,"mazowieckie","ciechanowski","Gołymin-Ośrodek"]
["06-425","mazowieckie","mazo_Makow_Mazowiecki",null,"mazowieckie","makowski","Karniewo"]
["06-430","mazowieckie","mazo_Ciechanow",null,"mazowieckie","ciechanowski","Sońsk"]
["06-440","mazowieckie","mazo_Ciechanow",null,"mazowieckie","ciechanowski","Sońsk"]
["06-445","mazowieckie","mazo_Mlawa",null,"mazowieckie","mławski","Strzegowo"]
["06-450","mazowieckie","mazo_Ciechanow",null,"mazowieckie","ciechanowski","Glinojeck"]
["06-451","mazowieckie","mazo_Ciechanow",null,"mazowieckie","ciechanowski","Regimin"]
["06-452","mazowieckie","mazo_Ciechanow",null,"mazowieckie","ciechanowski","Glinojeck"]
["06-454","mazowieckie","mazo_Ciechanow",null,"mazowieckie","ciechanowski","Ciechanów"]
["06-455","mazowieckie","mazo_Ciechanow",null,"mazowieckie","ciechanowski","Glinojeck"]
["06-456","mazowieckie","mazo_Ciechanow",null,"mazowieckie","ciechanowski","Ojrzeń"]
["06-458","mazowieckie","mazo_Mlawa",null,"mazowieckie","mławski","Strzegowo"]
["06-460","mazowieckie","mazo_Ciechanow",null,"mazowieckie","ciechanowski","Grudusk"]
["06-461","mazowieckie","mazo_Ciechanow",null,"mazowieckie","ciechanowski","Regimin"]
["06-463","mazowieckie","mazo_Ciechanow",null,"mazowieckie","ciechanowski","Grudusk"]
["06-500","mazowieckie","mazo_Mlawa",null,"mazowieckie","mławski","Mława"]
["06-501","mazowieckie","mazo_Mlawa",null,"mazowieckie","mławski","Mława"]
["06-513","mazowieckie","mazo_Mlawa",null,"mazowieckie","mławski","Wieczfnia Kościelna"]
["06-516","mazowieckie","mazo_Mlawa",null,"mazowieckie","mławski","Szydłowo"]
["06-517","mazowieckie","mazo_Mlawa",null,"mazowieckie","mławski","Szydłowo"]
["06-518","mazowieckie","mazo_Mlawa",null,"mazowieckie","mławski","Szydłowo"]
["06-520","mazowieckie","mazo_Mlawa",null,"mazowieckie","mławski","Dzierzgowo"]
["06-521","mazowieckie","mazo_Mlawa",null,"mazowieckie","mławski","Wiśniewo"]
["06-522","mazowieckie","mazo_Mlawa",null,"mazowieckie","mławski","Strzegowo"]
["06-540","mazowieckie","mazo_Mlawa",null,"mazowieckie","mławski","Radzanów"]
["06-541","mazowieckie","mazo_Mlawa",null,"mazowieckie","mławski","Wiśniewo"]
["06-542","mazowieckie","mazo_Mlawa",null,"mazowieckie","mławski","Szreńsk"]
["06-544","mazowieckie","mazo_Mlawa",null,"mazowieckie","mławski","Lipowiec Kościelny"]
["06-545","mazowieckie","mazo_Mlawa",null,"mazowieckie","mławski","Lipowiec Kościelny"]
["06-550","mazowieckie","mazo_Mlawa",null,"mazowieckie","mławski","Szreńsk"]
["06-560","mazowieckie","mazo_Mlawa",null,"mazowieckie","mławski","Stupsk"]
["06-561","mazowieckie","mazo_Mlawa",null,"mazowieckie","mławski","Stupsk"]
["06-562","mazowieckie","mazo_Mlawa",null,"mazowieckie","mławski","Stupsk"]
["07-100","mazowieckie","mazo_Wegrow",null,"mazowieckie","węgrowski","Węgrów"]
["07-102","mazowieckie","mazo_Wegrow",null,"mazowieckie","węgrowski","Liw"]
["07-104","mazowieckie","mazo_Wegrow",null,"mazowieckie","węgrowski","Stoczek"]
["07-106","mazowieckie","mazo_Wegrow",null,"mazowieckie","węgrowski","Miedzna"]
["07-110","mazowieckie","mazo_Wegrow",null,"mazowieckie","węgrowski","Grębków"]
["07-111","mazowieckie","mazo_Wegrow",null,"mazowieckie","węgrowski","Wierzbno"]
["07-120","mazowieckie","mazo_Wegrow",null,"mazowieckie","węgrowski","Korytnica"]
["07-130","mazowieckie","mazo_Wegrow",null,"mazowieckie","węgrowski","Łochów"]
["07-131","mazowieckie","mazo_Wegrow",null,"mazowieckie","węgrowski","Łochów"]
["07-132","mazowieckie","mazo_Wegrow",null,"mazowieckie","węgrowski","Łochów"]
["07-140","mazowieckie","mazo_Wegrow",null,"mazowieckie","węgrowski","Sadowne"]
["07-200","mazowieckie","mazo_Wyszkow",null,"mazowieckie","wyszkowski","Wyszków"]
["07-201","mazowieckie","mazo_Wyszkow",null,"mazowieckie","wyszkowski","Wyszków"]
["07-202","mazowieckie","mazo_Wyszkow",null,"mazowieckie","wyszkowski","Wyszków"]
["07-203","mazowieckie","mazo_Wyszkow",null,"mazowieckie","wyszkowski","Somianka"]
["07-204","mazowieckie","mazo_Wyszkow",null,"mazowieckie","wyszkowski","Somianka"]
["07-205","mazowieckie","mazo_Wyszkow",null,"mazowieckie","wyszkowski","Rząśnik"]
["07-206","mazowieckie","mazo_Wyszkow",null,"mazowieckie","wyszkowski","Somianka"]
["07-207","mazowieckie","mazo_Wyszkow",null,"mazowieckie","wyszkowski","Rząśnik"]
["07-208","mazowieckie","mazo_Wyszkow",null,"mazowieckie","wyszkowski","Wyszków"]
["07-209","mazowieckie","mazo_Wyszkow",null,"mazowieckie","wyszkowski","Wyszków"]
["07-210","mazowieckie","mazo_Wyszkow",null,"mazowieckie","wyszkowski","Długosiodło"]
["07-211","mazowieckie","mazo_Wyszkow",null,"mazowieckie","wyszkowski","Długosiodło"]
["07-214","mazowieckie","mazo_Pultusk",null,"mazowieckie","pułtuski","Zatory"]
["07-215","mazowieckie","mazo_Pultusk",null,"mazowieckie","pułtuski","Obryte"]
["07-217","mazowieckie","mazo_Pultusk",null,"mazowieckie","pułtuski","Zatory"]
["07-220","mazowieckie","mazo_Wyszkow",null,"mazowieckie","wyszkowski","Wyszków"]
["07-221","mazowieckie","mazo_Wyszkow",null,"mazowieckie","wyszkowski","Brańszczyk"]
["07-230","mazowieckie","mazo_Wyszkow",null,"mazowieckie","wyszkowski","Zabrodzie"]
["07-300","mazowieckie","mazo_Ostrow_Mazowiecka",null,"mazowieckie","ostrowski","Ostrów Mazowiecka"]
["07-301","mazowieckie","mazo_Ostrow_Mazowiecka",null,"mazowieckie","ostrowski","Ostrów Mazowiecka"]
["07-302","mazowieckie","mazo_Ostrow_Mazowiecka",null,"mazowieckie","ostrowski","Ostrów Mazowiecka"]
["07-303","mazowieckie","mazo_Ostrow_Mazowiecka",null,"mazowieckie","ostrowski","Stary Lubotyń"]
["07-304","mazowieckie","mazo_Ostrow_Mazowiecka",null,"mazowieckie","ostrowski","Ostrów Mazowiecka"]
["07-305","mazowieckie","mazo_Ostrow_Mazowiecka",null,"mazowieckie","ostrowski","Andrzejewo"]
["07-306","mazowieckie","mazo_Ostrow_Mazowiecka",null,"mazowieckie","ostrowski","Brok"]
["07-308","mazowieckie","mazo_Ostrow_Mazowiecka",null,"mazowieckie","ostrowski","Ostrów Mazowiecka"]
["07-310","mazowieckie","mazo_Ostrow_Mazowiecka",null,"mazowieckie","ostrowski","Ostrów Mazowiecka"]
["07-311","mazowieckie","mazo_Ostrow_Mazowiecka",null,"mazowieckie","ostrowski","Wąsewo"]
["07-319","mazowieckie","mazo_Ostrow_Mazowiecka",null,"mazowieckie","ostrowski","Małkinia Górna"]
["07-320","mazowieckie","mazo_Ostrow_Mazowiecka",null,"mazowieckie","ostrowski","Małkinia Górna"]
["07-321","mazowieckie","mazo_Ostrow_Mazowiecka",null,"mazowieckie","ostrowski","Nur"]
["07-322","mazowieckie","mazo_Ostrow_Mazowiecka",null,"mazowieckie","ostrowski","Nur"]
["07-323","mazowieckie","mazo_Ostrow_Mazowiecka",null,"mazowieckie","ostrowski","Zaręby Kościelne"]
["07-324","mazowieckie","mazo_Ostrow_Mazowiecka",null,"mazowieckie","ostrowski","Szulborze Wielkie"]
["07-325","mazowieckie","mazo_Ostrow_Mazowiecka",null,"mazowieckie","ostrowski","Boguty-Pianki"]
["07-326","mazowieckie","mazo_Ostrow_Mazowiecka",null,"mazowieckie","ostrowski","Nur"]
["07-400","mazowieckie","mazo_Ostroleka",null,"mazowieckie","Ostrołęka","Ostrołęka"]
["07-401","mazowieckie","mazo_Ostroleka",null,"mazowieckie","Ostrołęka","Ostrołęka"]
["07-402","mazowieckie","mazo_Ostroleka2",null,"mazowieckie","ostrołęcki","Lelis"]
["07-403","mazowieckie","mazo_Ostroleka2",null,"mazowieckie","ostrołęcki","Lelis"]
["07-405","mazowieckie","mazo_Ostroleka2",null,"mazowieckie","ostrołęcki","Troszyn"]
["07-407","mazowieckie","mazo_Ostroleka2",null,"mazowieckie","ostrołęcki","Czerwin"]
["07-409","mazowieckie","mazo_Ostroleka",null,"mazowieckie","Ostrołęka","Ostrołęka"]
["07-410","mazowieckie","mazo_Ostroleka",null,"mazowieckie","Ostrołęka","Ostrołęka"]
["07-411","mazowieckie","mazo_Ostroleka2",null,"mazowieckie","ostrołęcki","Rzekuń"]
["07-412","mazowieckie","mazo_Ostroleka",null,"mazowieckie","Ostrołęka","Ostrołęka"]
["07-413","mazowieckie","mazo_Ostroleka",null,"mazowieckie","Ostrołęka","Ostrołęka"]
["07-415","mazowieckie","mazo_Ostroleka2",null,"mazowieckie","ostrołęcki","Olszewo-Borki"]
["07-416","mazowieckie","mazo_Ostroleka2",null,"mazowieckie","ostrołęcki","Olszewo-Borki"]
["07-417","mazowieckie","mazo_Ostroleka",null,"mazowieckie","Ostrołęka","Ostrołęka"]
["07-418","mazowieckie","mazo_Ostroleka2",null,"mazowieckie","ostrołęcki","Olszewo-Borki"]
["07-420","mazowieckie","mazo_Ostroleka2",null,"mazowieckie","ostrołęcki","Kadzidło"]
["07-430","mazowieckie","mazo_Ostroleka2",null,"mazowieckie","ostrołęcki","Myszyniec"]
["07-431","mazowieckie","mazo_Ostroleka2",null,"mazowieckie","ostrołęcki","Czarnia"]
["07-436","mazowieckie","mazo_Ostroleka2",null,"mazowieckie","ostrołęcki","Łyse"]
["07-437","mazowieckie","mazo_Ostroleka2",null,"mazowieckie","ostrołęcki","Łyse"]
["07-438","mazowieckie","mazo_Ostroleka2",null,"mazowieckie","ostrołęcki","Łyse"]
["07-439","mazowieckie","mazo_Ostroleka2",null,"mazowieckie","ostrołęcki","Łyse"]
["07-440","mazowieckie","mazo_Ostroleka2",null,"mazowieckie","ostrołęcki","Goworowo"]
["08-100","mazowieckie","mazo_Siedlce",null,"mazowieckie","Siedlce","Siedlce"]
["08-101","mazowieckie","mazo_Siedlce",null,"mazowieckie","Siedlce","Siedlce"]
["08-102","mazowieckie","mazo_Siedlce",null,"mazowieckie","Siedlce","Siedlce"]
["08-103","mazowieckie","mazo_Siedlce2",null,"mazowieckie","siedlecki","Siedlce"]
["08-104","mazowieckie","mazo_Siedlce2",null,"mazowieckie","siedlecki","Suchożebry"]
["08-105","mazowieckie","mazo_Siedlce2",null,"mazowieckie","siedlecki","Siedlce"]
["08-106","mazowieckie","mazo_Siedlce2",null,"mazowieckie","siedlecki","Zbuczyn"]
["08-107","mazowieckie","mazo_Siedlce2",null,"mazowieckie","siedlecki","Paprotnia"]
["08-108","mazowieckie","mazo_Siedlce2",null,"mazowieckie","siedlecki","Korczew"]
["08-109","mazowieckie","mazo_Siedlce2",null,"mazowieckie","siedlecki","Przesmyki"]
["08-110","mazowieckie","mazo_Siedlce",null,"mazowieckie","Siedlce","Siedlce"]
["08-111","mazowieckie","mazo_Siedlce2",null,"mazowieckie","siedlecki","Zbuczyn"]
["08-112","mazowieckie","mazo_Siedlce2",null,"mazowieckie","siedlecki","Wiśniew"]
["08-113","mazowieckie","mazo_Siedlce2",null,"mazowieckie","siedlecki","Domanice"]
["08-114","mazowieckie","mazo_Siedlce2",null,"mazowieckie","siedlecki","Skórzec"]
["08-116","mazowieckie","mazo_Siedlce2",null,"mazowieckie","siedlecki","Wodynie"]
["08-117","mazowieckie","mazo_Siedlce2",null,"mazowieckie","siedlecki","Wodynie"]
["08-119","mazowieckie","mazo_Siedlce",null,"mazowieckie","Siedlce","Siedlce"]
["08-122","mazowieckie","mazo_Siedlce2",null,"mazowieckie","siedlecki","Kotuń"]
["08-124","mazowieckie","mazo_Siedlce2",null,"mazowieckie","siedlecki","Mokobody"]
["08-125","mazowieckie","mazo_Siedlce2",null,"mazowieckie","siedlecki","Suchożebry"]
["08-130","mazowieckie","mazo_Siedlce2",null,"mazowieckie","siedlecki","Kotuń"]
["08-140","mazowieckie","mazo_Siedlce2",null,"mazowieckie","siedlecki","Mordy"]
["08-200","mazowieckie","mazo_Losice",null,"mazowieckie","łosicki","Łosice"]
["08-205","mazowieckie","mazo_Losice",null,"mazowieckie","łosicki","Stara Kornica"]
["08-206","mazowieckie","mazo_Losice",null,"mazowieckie","łosicki","Huszlew"]
["08-207","mazowieckie","mazo_Losice",null,"mazowieckie","łosicki","Olszanka"]
["08-210","mazowieckie","mazo_Losice",null,"mazowieckie","łosicki","Platerów"]
["08-220","mazowieckie","mazo_Losice",null,"mazowieckie","łosicki","Sarnaki"]
["08-221","mazowieckie","mazo_Losice",null,"mazowieckie","łosicki","Sarnaki"]
["08-300","mazowieckie","mazo_Sokolow_Podlaski",null,"mazowieckie","sokołowski","Sokołów Podlaski"]
["08-301","mazowieckie","mazo_Sokolow_Podlaski",null,"mazowieckie","sokołowski","Sokołów Podlaski"]
["08-304","mazowieckie","mazo_Sokolow_Podlaski",null,"mazowieckie","sokołowski","Jabłonna Lacka"]
["08-307","mazowieckie","mazo_Sokolow_Podlaski",null,"mazowieckie","sokołowski","Repki"]
["08-311","mazowieckie","mazo_Sokolow_Podlaski",null,"mazowieckie","sokołowski","Bielany"]
["08-320","mazowieckie","mazo_Sokolow_Podlaski",null,"mazowieckie","sokołowski","Sterdyń"]
["08-322","mazowieckie","mazo_Sokolow_Podlaski",null,"mazowieckie","sokołowski","Ceranów"]
["08-330","mazowieckie","mazo_Sokolow_Podlaski",null,"mazowieckie","sokołowski","Kosów Lacki"]
["08-331","mazowieckie","mazo_Sokolow_Podlaski",null,"mazowieckie","sokołowski","Sabnie"]
["08-400","mazowieckie","mazo_Garwolin",null,"mazowieckie","garwoliński","Garwolin"]
["08-401","mazowieckie","mazo_Garwolin",null,"mazowieckie","garwoliński","Garwolin"]
["08-404","mazowieckie","mazo_Garwolin",null,"mazowieckie","garwoliński","Górzno"]
["08-410","mazowieckie","mazo_Garwolin",null,"mazowieckie","garwoliński","Garwolin"]
["08-411","mazowieckie","mazo_Garwolin",null,"mazowieckie","garwoliński","Garwolin"]
["08-412","mazowieckie","mazo_Garwolin",null,"mazowieckie","garwoliński","Borowie"]
["08-420","mazowieckie","mazo_Garwolin",null,"mazowieckie","garwoliński","Miastków Kościelny"]
["08-430","mazowieckie","mazo_Garwolin",null,"mazowieckie","garwoliński","Żelechów"]
["08-439","mazowieckie","mazo_Otwock",null,"mazowieckie","otwocki","Osieck"]
["08-440","mazowieckie","mazo_Garwolin",null,"mazowieckie","garwoliński","Pilawa"]
["08-441","mazowieckie","mazo_Garwolin",null,"mazowieckie","garwoliński","Parysów"]
["08-443","mazowieckie","mazo_Otwock",null,"mazowieckie","otwocki","Sobienie-Jeziory"]
["08-445","mazowieckie","mazo_Otwock",null,"mazowieckie","otwocki","Osieck"]
["08-450","mazowieckie","mazo_Garwolin",null,"mazowieckie","garwoliński","Łaskarzew"]
["08-451","mazowieckie","mazo_Garwolin",null,"mazowieckie","garwoliński","Łaskarzew"]
["08-455","mazowieckie","mazo_Garwolin",null,"mazowieckie","garwoliński","Trojanów"]
["08-460","mazowieckie","mazo_Garwolin",null,"mazowieckie","garwoliński","Sobolew"]
["08-470","mazowieckie","mazo_Garwolin",null,"mazowieckie","garwoliński","Wilga"]
["08-480","mazowieckie","mazo_Garwolin",null,"mazowieckie","garwoliński","Maciejowice"]
["08-481","mazowieckie","mazo_Garwolin",null,"mazowieckie","garwoliński","Maciejowice"]
["09-100","mazowieckie","mazo_Plonsk",null,"mazowieckie","płoński","Płońsk"]
["09-101","mazowieckie","mazo_Plonsk",null,"mazowieckie","płoński","Płońsk"]
["09-102","mazowieckie","mazo_Plonsk",null,"mazowieckie","płoński","Płońsk"]
["09-103","mazowieckie","mazo_Plonsk",null,"mazowieckie","płoński","Płońsk"]
["09-104","mazowieckie","mazo_Plonsk",null,"mazowieckie","płoński","Baboszewo"]
["09-105","mazowieckie","mazo_Plonsk",null,"mazowieckie","płoński","Baboszewo"]
["09-110","mazowieckie","mazo_Plonsk",null,"mazowieckie","płoński","Sochocin"]
["09-120","mazowieckie","mazo_Plonsk",null,"mazowieckie","płoński","Nowe Miasto"]
["09-130","mazowieckie","mazo_Plonsk",null,"mazowieckie","płoński","Baboszewo"]
["09-131","mazowieckie","mazo_Plonsk",null,"mazowieckie","płoński","Joniec"]
["09-132","mazowieckie","mazo_Plonsk",null,"mazowieckie","płoński","Baboszewo"]
["09-134","mazowieckie","mazo_Zuromin",null,"mazowieckie","żuromiński","Siemiątkowo"]
["09-135","mazowieckie","mazo_Zuromin",null,"mazowieckie","żuromiński","Siemiątkowo"]
["09-136","mazowieckie","mazo_Plonsk",null,"mazowieckie","płoński","Raciąż"]
["09-138","mazowieckie","mazo_Plonsk",null,"mazowieckie","płoński","Raciąż"]
["09-140","mazowieckie","mazo_Plonsk",null,"mazowieckie","płoński","Raciąż"]
["09-141","mazowieckie","mazo_Plonsk",null,"mazowieckie","płoński","Załuski"]
["09-142","mazowieckie","mazo_Plonsk",null,"mazowieckie","płoński","Załuski"]
["09-145","mazowieckie","mazo_Plonsk",null,"mazowieckie","płoński","Czerwińsk nad Wisłą"]
["09-146","mazowieckie","mazo_Plonsk",null,"mazowieckie","płoński","Czerwińsk nad Wisłą"]
["09-150","mazowieckie","mazo_Plonsk",null,"mazowieckie","płoński","Czerwińsk nad Wisłą"]
["09-151","mazowieckie","mazo_Plonsk",null,"mazowieckie","płoński","Czerwińsk nad Wisłą"]
["09-152","mazowieckie","mazo_Plonsk",null,"mazowieckie","płoński","Naruszewo"]
["09-162","mazowieckie","mazo_Plonsk",null,"mazowieckie","płoński","Naruszewo"]
["09-163","mazowieckie","mazo_Plonsk",null,"mazowieckie","płoński","Dzierzążnia"]
["09-164","mazowieckie","mazo_Plonsk",null,"mazowieckie","płoński","Dzierzążnia"]
["09-166","mazowieckie","mazo_Plonsk",null,"mazowieckie","płoński","Raciąż"]
["09-200","mazowieckie","mazo_Sierpc",null,"mazowieckie","sierpecki","Sierpc"]
["09-201","mazowieckie","mazo_Sierpc",null,"mazowieckie","sierpecki","Sierpc"]
["09-202","mazowieckie","mazo_Sierpc",null,"mazowieckie","sierpecki","Sierpc"]
["09-203","mazowieckie","mazo_Sierpc",null,"mazowieckie","sierpecki","Sierpc"]
["09-204","mazowieckie","mazo_Sierpc",null,"mazowieckie","sierpecki","Rościszewo"]
["09-205","mazowieckie","mazo_Sierpc",null,"mazowieckie","sierpecki","Zawidz"]
["09-206","mazowieckie","mazo_Sierpc",null,"mazowieckie","sierpecki","Zawidz"]
["09-207","mazowieckie","mazo_Sierpc",null,"mazowieckie","sierpecki","Sierpc"]
["09-209","mazowieckie","mazo_Plock2",null,"mazowieckie","płocki","Drobin"]
["09-210","mazowieckie","mazo_Plock2",null,"mazowieckie","płocki","Drobin"]
["09-212","mazowieckie","mazo_Sierpc",null,"mazowieckie","sierpecki","Sierpc"]
["09-213","mazowieckie","mazo_Sierpc",null,"mazowieckie","sierpecki","Gozdowo"]
["09-214","mazowieckie","mazo_Sierpc",null,"mazowieckie","sierpecki","Mochowo"]
["09-215","mazowieckie","mazo_Sierpc",null,"mazowieckie","sierpecki","Mochowo"]
["09-216","mazowieckie","mazo_Sierpc",null,"mazowieckie","sierpecki","Szczutowo"]
["09-226","mazowieckie","mazo_Sierpc",null,"mazowieckie","sierpecki","Zawidz"]
["09-227","mazowieckie","mazo_Sierpc",null,"mazowieckie","sierpecki","Szczutowo"]
["09-228","mazowieckie","mazo_Sierpc",null,"mazowieckie","sierpecki","Mochowo"]
["09-230","mazowieckie","mazo_Plock2",null,"mazowieckie","płocki","Bielsk"]
["09-300","mazowieckie","mazo_Zuromin",null,"mazowieckie","żuromiński","Żuromin"]
["09-303","mazowieckie","mazo_Zuromin",null,"mazowieckie","żuromiński","Lubowidz"]
["09-304","mazowieckie","mazo_Zuromin",null,"mazowieckie","żuromiński","Lubowidz"]
["09-305","mazowieckie","mazo_Zuromin",null,"mazowieckie","żuromiński","Lubowidz"]
["09-310","mazowieckie","mazo_Zuromin",null,"mazowieckie","żuromiński","Kuczbork-Osada"]
["09-311","mazowieckie","mazo_Zuromin",null,"mazowieckie","żuromiński","Kuczbork-Osada"]
["09-312","mazowieckie","mazo_Zuromin",null,"mazowieckie","żuromiński","Kuczbork-Osada"]
["09-315","mazowieckie","mazo_Zuromin",null,"mazowieckie","żuromiński","Żuromin"]
["09-317","mazowieckie","mazo_Zuromin",null,"mazowieckie","żuromiński","Lutocin"]
["09-318","mazowieckie","mazo_Zuromin",null,"mazowieckie","żuromiński","Lutocin"]
["09-320","mazowieckie","mazo_Zuromin",null,"mazowieckie","żuromiński","Bieżuń"]
["09-321","mazowieckie","mazo_Zuromin",null,"mazowieckie","żuromiński","Bieżuń"]
["09-400","mazowieckie","mazo_Plock",null,"mazowieckie","Płock","Płock"]
["09-401","mazowieckie","mazo_Plock",null,"mazowieckie","Płock","Płock"]
["09-402","mazowieckie","mazo_Plock",null,"mazowieckie","Płock","Płock"]
["09-403","mazowieckie","mazo_Plock",null,"mazowieckie","Płock","Płock"]
["09-404","mazowieckie","mazo_Plock",null,"mazowieckie","Płock","Płock"]
["09-405","mazowieckie","mazo_Plock",null,"mazowieckie","Płock","Płock"]
["09-406","mazowieckie","mazo_Plock",null,"mazowieckie","Płock","Płock"]
["09-407","mazowieckie","mazo_Plock",null,"mazowieckie","Płock","Płock"]
["09-408","mazowieckie","mazo_Plock",null,"mazowieckie","Płock","Płock"]
["09-409","mazowieckie","mazo_Plock",null,"mazowieckie","Płock","Płock"]
["09-410","mazowieckie","mazo_Plock",null,"mazowieckie","Płock","Płock"]
["09-411","mazowieckie","mazo_Plock2",null,"mazowieckie","płocki","Stara Biała"]
["09-412","mazowieckie","mazo_Plock2",null,"mazowieckie","płocki","Stara Biała"]
["09-413","mazowieckie","mazo_Plock2",null,"mazowieckie","płocki","Brudzeń Duży"]
["09-414","mazowieckie","mazo_Plock2",null,"mazowieckie","płocki","Brudzeń Duży"]
["09-417","mazowieckie","mazo_Plock",null,"mazowieckie","Płock","Płock"]
["09-418","mazowieckie","mazo_Plock",null,"mazowieckie","Płock","Płock"]
["09-419","mazowieckie","mazo_Plock",null,"mazowieckie","Płock","Płock"]
["09-420","mazowieckie","mazo_Plock",null,"mazowieckie","Płock","Płock"]
["09-421","mazowieckie","mazo_Plock",null,"mazowieckie","Płock","Płock"]
["09-440","mazowieckie","mazo_Plock2",null,"mazowieckie","płocki","Staroźreby"]
["09-442","mazowieckie","mazo_Plock2",null,"mazowieckie","płocki","Radzanowo"]
["09-450","mazowieckie","mazo_Plock2",null,"mazowieckie","płocki","Wyszogród"]
["09-451","mazowieckie","mazo_Plock2",null,"mazowieckie","płocki","Radzanowo"]
["09-452","mazowieckie","mazo_Plock2",null,"mazowieckie","płocki","Bulkowo"]
["09-454","mazowieckie","mazo_Plock2",null,"mazowieckie","płocki","Bulkowo"]
["09-460","mazowieckie","mazo_Plock2",null,"mazowieckie","płocki","Mała Wieś"]
["09-470","mazowieckie","mazo_Plock2",null,"mazowieckie","płocki","Bodzanów"]
["09-471","mazowieckie","mazo_Plock2",null,"mazowieckie","płocki","Bodzanów"]
["09-472","mazowieckie","mazo_Plock2",null,"mazowieckie","płocki","Słupno"]
["09-500","mazowieckie","mazo_Gostynin",null,"mazowieckie","gostyniński","Gostynin"]
["09-501","mazowieckie","mazo_Gostynin",null,"mazowieckie","gostyniński","Gostynin"]
["09-502","mazowieckie","mazo_Gostynin",null,"mazowieckie","gostyniński","Gostynin"]
["09-503","mazowieckie","mazo_Gostynin",null,"mazowieckie","gostyniński","Gostynin"]
["09-504","mazowieckie","mazo_Gostynin",null,"mazowieckie","gostyniński","Gostynin"]
["09-505","mazowieckie","mazo_Plock2",null,"mazowieckie","płocki","Nowy Duninów"]
["09-506","mazowieckie","mazo_Plock2",null,"mazowieckie","płocki","Nowy Duninów"]
["09-520","mazowieckie","mazo_Plock2",null,"mazowieckie","płocki","Łąck"]
["09-522","mazowieckie","mazo_Plock2",null,"mazowieckie","płocki","Gąbin"]
["09-530","mazowieckie","mazo_Plock2",null,"mazowieckie","płocki","Gąbin"]
["09-533","mazowieckie","mazo_Plock2",null,"mazowieckie","płocki","Słubice"]
["09-540","mazowieckie","mazo_Gostynin",null,"mazowieckie","gostyniński","Sanniki"]
["09-541","mazowieckie","mazo_Gostynin",null,"mazowieckie","gostyniński","Pacyna"]
["09-550","mazowieckie","mazo_Gostynin",null,"mazowieckie","gostyniński","Szczawin Kościelny"]
["23-803","mazowieckie","mazo_Bialobrzegi",null,"mazowieckie","białobrzeski","Promna"]
["26-400","mazowieckie","mazo_Przysucha",null,"mazowieckie","przysuski","Przysucha"]
["26-411","mazowieckie","mazo_Przysucha",null,"mazowieckie","przysuski","Rusinów"]
["26-414","mazowieckie","mazo_Przysucha",null,"mazowieckie","przysuski","Potworów"]
["26-415","mazowieckie","mazo_Przysucha",null,"mazowieckie","przysuski","Klwów"]
["26-420","mazowieckie","mazo_Grojec",null,"mazowieckie","grójecki","Nowe Miasto nad Pilicą"]
["26-422","mazowieckie","mazo_Przysucha",null,"mazowieckie","przysuski","Borkowice"]
["26-425","mazowieckie","mazo_Przysucha",null,"mazowieckie","przysuski","Odrzywół"]
["26-432","mazowieckie","mazo_Przysucha",null,"mazowieckie","przysuski","Wieniawa"]
["26-434","mazowieckie","mazo_Przysucha",null,"mazowieckie","przysuski","Gielniów"]
["26-500","mazowieckie","mazo_Szydlowiec",null,"mazowieckie","szydłowiecki","Szydłowiec"]
["26-502","mazowieckie","mazo_Szydlowiec",null,"mazowieckie","szydłowiecki","Jastrząb"]
["26-503","mazowieckie","mazo_Szydlowiec",null,"mazowieckie","szydłowiecki","Mirów"]
["26-505","mazowieckie","mazo_Szydlowiec",null,"mazowieckie","szydłowiecki","Orońsko"]
["26-510","mazowieckie","mazo_Szydlowiec",null,"mazowieckie","szydłowiecki","Chlewiska"]
["26-600","mazowieckie","mazo_Radom",null,"mazowieckie","Radom","Radom"]
["26-601","mazowieckie","mazo_Radom",null,"mazowieckie","Radom","Radom"]
["26-602","mazowieckie","mazo_Radom",null,"mazowieckie","Radom","Radom"]
["26-603","mazowieckie","mazo_Radom",null,"mazowieckie","Radom","Radom"]
["26-604","mazowieckie","mazo_Radom",null,"mazowieckie","Radom","Radom"]
["26-605","mazowieckie","mazo_Radom",null,"mazowieckie","Radom","Radom"]
["26-606","mazowieckie","mazo_Radom",null,"mazowieckie","Radom","Radom"]
["26-607","mazowieckie","mazo_Radom",null,"mazowieckie","Radom","Radom"]
["26-608","mazowieckie","mazo_Radom",null,"mazowieckie","Radom","Radom"]
["26-609","mazowieckie","mazo_Radom",null,"mazowieckie","Radom","Radom"]
["26-610","mazowieckie","mazo_Radom",null,"mazowieckie","Radom","Radom"]
["26-611","mazowieckie","mazo_Radom",null,"mazowieckie","Radom","Radom"]
["26-612","mazowieckie","mazo_Radom",null,"mazowieckie","Radom","Radom"]
["26-613","mazowieckie","mazo_Radom",null,"mazowieckie","Radom","Radom"]
["26-614","mazowieckie","mazo_Radom",null,"mazowieckie","Radom","Radom"]
["26-615","mazowieckie","mazo_Radom",null,"mazowieckie","Radom","Radom"]
["26-616","mazowieckie","mazo_Radom",null,"mazowieckie","Radom","Radom"]
["26-617","mazowieckie","mazo_Radom",null,"mazowieckie","Radom","Radom"]
["26-618","mazowieckie","mazo_Radom",null,"mazowieckie","Radom","Radom"]
["26-619","mazowieckie","mazo_Radom",null,"mazowieckie","Radom","Radom"]
["26-620","mazowieckie","mazo_Radom",null,"mazowieckie","Radom","Radom"]
["26-621","mazowieckie","mazo_Radom",null,"mazowieckie","Radom","Radom"]
["26-622","mazowieckie","mazo_Radom",null,"mazowieckie","Radom","Radom"]
["26-623","mazowieckie","mazo_Radom",null,"mazowieckie","Radom","Radom"]
["26-624","mazowieckie","mazo_Radom2",null,"mazowieckie","radomski","Kowala"]
["26-625","mazowieckie","mazo_Radom2",null,"mazowieckie","radomski","Wolanów"]
["26-626","mazowieckie","mazo_Radom2",null,"mazowieckie","radomski","Skaryszew"]
["26-627","mazowieckie","mazo_Radom",null,"mazowieckie","Radom","Radom"]
["26-629","mazowieckie","mazo_Radom2",null,"mazowieckie","radomski","Zakrzew"]
["26-630","mazowieckie","mazo_Radom2",null,"mazowieckie","radomski","Jedlnia-Letnisko"]
["26-631","mazowieckie","mazo_Radom2",null,"mazowieckie","radomski","Jastrzębia"]
["26-632","mazowieckie","mazo_Przysucha",null,"mazowieckie","przysuski","Wieniawa"]
["26-634","mazowieckie","mazo_Radom2",null,"mazowieckie","radomski","Gózd"]
["26-635","mazowieckie","mazo_Radom2",null,"mazowieckie","radomski","Kowala"]
["26-636","mazowieckie","mazo_Radom",null,"mazowieckie","Radom","Radom"]
["26-640","mazowieckie","mazo_Radom2",null,"mazowieckie","radomski","Skaryszew"]
["26-650","mazowieckie","mazo_Radom2",null,"mazowieckie","radomski","Przytyk"]
["26-652","mazowieckie","mazo_Radom2",null,"mazowieckie","radomski","Zakrzew"]
["26-660","mazowieckie","mazo_Radom2",null,"mazowieckie","radomski","Jedlińsk"]
["26-670","mazowieckie","mazo_Radom2",null,"mazowieckie","radomski","Pionki"]
["26-675","mazowieckie","mazo_Radom2",null,"mazowieckie","radomski","Pionki"]
["26-680","mazowieckie","mazo_Radom2",null,"mazowieckie","radomski","Wierzbica"]
["26-700","mazowieckie","mazo_Zwolen",null,"mazowieckie","zwoleński","Zwoleń"]
["26-704","mazowieckie","mazo_Zwolen",null,"mazowieckie","zwoleński","Przyłęk"]
["26-706","mazowieckie","mazo_Zwolen",null,"mazowieckie","zwoleński","Tczów"]
["26-712","mazowieckie","mazo_Zwolen",null,"mazowieckie","zwoleński","Kazanów"]
["26-713","mazowieckie","mazo_Zwolen",null,"mazowieckie","zwoleński","Kazanów"]
["26-720","mazowieckie","mazo_Zwolen",null,"mazowieckie","zwoleński","Policzna"]
["26-800","mazowieckie","mazo_Bialobrzegi",null,"mazowieckie","białobrzeski","Białobrzegi"]
["26-801","mazowieckie","mazo_Bialobrzegi",null,"mazowieckie","białobrzeski","Promna"]
["26-803","mazowieckie","mazo_Bialobrzegi",null,"mazowieckie","białobrzeski","Promna"]
["26-804","mazowieckie","mazo_Bialobrzegi",null,"mazowieckie","białobrzeski","Stromiec"]
["26-806","mazowieckie","mazo_Bialobrzegi",null,"mazowieckie","białobrzeski","Stara Błotnica"]
["26-807","mazowieckie","mazo_Bialobrzegi",null,"mazowieckie","białobrzeski","Radzanów"]
["26-811","mazowieckie","mazo_Bialobrzegi",null,"mazowieckie","białobrzeski","Wyśmierzyce"]
["26-900","mazowieckie","mazo_Kozienice",null,"mazowieckie","kozienicki","Kozienice"]
["26-901","mazowieckie","mazo_Kozienice",null,"mazowieckie","kozienicki","Kozienice"]
["26-902","mazowieckie","mazo_Kozienice",null,"mazowieckie","kozienicki","Grabów nad Pilicą"]
["26-903","mazowieckie","mazo_Kozienice",null,"mazowieckie","kozienicki","Głowaczów"]
["26-904","mazowieckie","mazo_Kozienice",null,"mazowieckie","kozienicki","Kozienice"]
["26-910","mazowieckie","mazo_Kozienice",null,"mazowieckie","kozienicki","Magnuszew"]
["26-914","mazowieckie","mazo_Kozienice",null,"mazowieckie","kozienicki","Magnuszew"]
["26-920","mazowieckie","mazo_Kozienice",null,"mazowieckie","kozienicki","Gniewoszów"]
["26-921","mazowieckie","mazo_Kozienice",null,"mazowieckie","kozienicki","Sieciechów"]
["26-922","mazowieckie","mazo_Kozienice",null,"mazowieckie","kozienicki","Sieciechów"]
["26-930","mazowieckie","mazo_Kozienice",null,"mazowieckie","kozienicki","Garbatka-Letnisko"]
["27-100","mazowieckie","mazo_Radom2",null,"mazowieckie","radomski","Iłża"]
["27-300","mazowieckie","mazo_Lipsko",null,"mazowieckie","lipski","Lipsko"]
["27-301","mazowieckie","mazo_Lipsko",null,"mazowieckie","lipski","Chotcza"]
["27-302","mazowieckie","mazo_Lipsko",null,"mazowieckie","lipski","Rzeczniów"]
["27-310","mazowieckie","mazo_Lipsko",null,"mazowieckie","lipski","Ciepielów"]
["27-312","mazowieckie","mazo_Lipsko",null,"mazowieckie","lipski","Chotcza"]
["27-320","mazowieckie","mazo_Lipsko",null,"mazowieckie","lipski","Solec nad Wisłą"]
["27-330","mazowieckie","mazo_Lipsko",null,"mazowieckie","lipski","Solec nad Wisłą"]
["27-350","mazowieckie","mazo_Lipsko",null,"mazowieckie","lipski","Sienno"]
["27-353","mazowieckie","mazo_Lipsko",null,"mazowieckie","lipski","Rzeczniów"]
["96-300","mazowieckie","mazo_Zyrardow",null,"mazowieckie","żyrardowski","Radziejowice"]
["96-301","mazowieckie","mazo_Zyrardow",null,"mazowieckie","żyrardowski","Żyrardów"]
["96-302","mazowieckie","mazo_Zyrardow",null,"mazowieckie","żyrardowski","Żyrardów"]
["96-304","mazowieckie","mazo_Zyrardow",null,"mazowieckie","żyrardowski","Żyrardów"]
["96-312","mazowieckie","mazo_Grodzisk_Mazowiecki",null,"mazowieckie","grodziski","Baranów"]
["96-313","mazowieckie","mazo_Grodzisk_Mazowiecki",null,"mazowieckie","grodziski","Jaktorów"]
["96-314","mazowieckie","mazo_Grodzisk_Mazowiecki",null,"mazowieckie","grodziski","Baranów"]
["96-315","mazowieckie","mazo_Zyrardow",null,"mazowieckie","żyrardowski","Wiskitki"]
["96-316","mazowieckie","mazo_Grodzisk_Mazowiecki",null,"mazowieckie","grodziski","Jaktorów"]
["96-317","mazowieckie","mazo_Zyrardow",null,"mazowieckie","żyrardowski","Wiskitki"]
["96-320","mazowieckie","mazo_Zyrardow",null,"mazowieckie","żyrardowski","Mszczonów"]
["96-321","mazowieckie","mazo_Grodzisk_Mazowiecki",null,"mazowieckie","grodziski","Żabia Wola"]
["96-322","mazowieckie","mazo_Zyrardow",null,"mazowieckie","żyrardowski","Mszczonów"]
["96-323","mazowieckie","mazo_Zyrardow",null,"mazowieckie","żyrardowski","Mszczonów"]
["96-325","mazowieckie","mazo_Zyrardow",null,"mazowieckie","żyrardowski","Radziejowice"]
["96-330","mazowieckie","mazo_Zyrardow",null,"mazowieckie","żyrardowski","Puszcza Mariańska"]
["96-332","mazowieckie","mazo_Zyrardow",null,"mazowieckie","żyrardowski","Puszcza Mariańska"]
["96-500","mazowieckie","mazo_Sochaczew",null,"mazowieckie","sochaczewski","Sochaczew"]
["96-501","mazowieckie","mazo_Sochaczew",null,"mazowieckie","sochaczewski","Sochaczew"]
["96-502","mazowieckie","mazo_Sochaczew",null,"mazowieckie","sochaczewski","Sochaczew"]
["96-503","mazowieckie","mazo_Sochaczew",null,"mazowieckie","sochaczewski","Sochaczew"]
["96-504","mazowieckie","mazo_Sochaczew",null,"mazowieckie","sochaczewski","Sochaczew"]
["96-505","mazowieckie","mazo_Sochaczew",null,"mazowieckie","sochaczewski","Sochaczew"]
["96-512","mazowieckie","mazo_Sochaczew",null,"mazowieckie","sochaczewski","Młodzieszyn"]
["96-513","mazowieckie","mazo_Sochaczew",null,"mazowieckie","sochaczewski","Nowa Sucha"]
["96-514","mazowieckie","mazo_Sochaczew",null,"mazowieckie","sochaczewski","Rybno"]
["96-515","mazowieckie","mazo_Sochaczew",null,"mazowieckie","sochaczewski","Teresin"]
["96-516","mazowieckie","mazo_Sochaczew",null,"mazowieckie","sochaczewski","Teresin"]
["96-520","mazowieckie","mazo_Sochaczew",null,"mazowieckie","sochaczewski","Iłów"]
["96-521","mazowieckie","mazo_Sochaczew",null,"mazowieckie","sochaczewski","Iłów"]

{"sheet":"GUS","index":7,"n_rows":44,"n_cols":9,"rows_kept":44,"cut":false,"hidden":true,"merged":[]}
["TERYT","Województwo","Powiat","Gmina","Typ_gminy","Liczba mieszkańców (2014)","Powierzchnia (km2) (2014)","Średnie miesięczne wynagrodzenie (2013)","Wynagrodzenie/średnia krajowa (=100) (2013)"]
["14","mazowieckie",null,null,null,5334511,35558,4773.41,123.1]
["1465","mazowieckie","Warszawa",null,null,1735442,517,5226.05,134.80000000000001]
["1461","mazowieckie","Ostrołęka",null,null,52611,29,3912.91,100.9]
["1462","mazowieckie","Płock",null,null,122224,88,4799.33,123.8]
["1463","mazowieckie","Radom",null,null,217201,112,3523.34,90.9]
["1464","mazowieckie","Siedlce",null,null,76603,32,3533.39,91.1]
["1401","mazowieckie","białobrzeski",null,null,33599,639,3384.33,87.3]
["1402","mazowieckie","ciechanowski",null,null,90703,1060,3460.07,89.2]
["1403","mazowieckie","garwoliński",null,null,108654,1285,3406.49,87.9]
["1404","mazowieckie","gostyniński",null,null,46221,615,3073.49,79.3]
["1405","mazowieckie","grodziski",null,null,89663,367,3997.34,103.1]
["1406","mazowieckie","grójecki",null,null,98670,1268,3646.41,94]
["1407","mazowieckie","kozienicki",null,null,61722,916,4445.71,114.7]
["1408","mazowieckie","legionowski",null,null,112226,390,3689.53,95.2]
["1409","mazowieckie","lipski",null,null,35309,740,3228.39,83.3]
["1410","mazowieckie","łosicki",null,null,31973,772,3058.17,78.900000000000006]
["1411","mazowieckie","makowski",null,null,46365,1065,3064.46,79]
["1412","mazowieckie","miński",null,null,150889,1164,3238.87,83.5]
["1413","mazowieckie","mławski",null,null,73887,1182,2824.25,72.8]
["1414","mazowieckie","nowodworski",null,null,78693,695,4283.8900000000003,110.5]
["1415","mazowieckie","ostrołęcki",null,null,88413,2097,3248.62,83.8]
["1416","mazowieckie","ostrowski",null,null,74348,1218,3340.13,86.1]
["1417","mazowieckie","otwocki",null,null,122854,616,3629.76,93.6]
["1418","mazowieckie","piaseczyński",null,null,174085,621,3892.64,100.4]
["1419","mazowieckie","płocki",null,null,111149,1796,3212.67,82.9]
["1420","mazowieckie","płoński",null,null,88583,1380,3370.85,86.9]
["1421","mazowieckie","pruszkowski",null,null,159515,246,4726.1099999999997,121.9]
["1422","mazowieckie","przasnyski",null,null,53439,1219,3246.87,83.7]
["1423","mazowieckie","przysuski",null,null,42888,801,3142.24,81]
["1424","mazowieckie","pułtuski",null,null,51436,827,3113.27,80.3]
["1425","mazowieckie","radomski",null,null,151321,1530,2961.92,76.400000000000006]
["1426","mazowieckie","siedlecki",null,null,81590,1603,3059.64,78.900000000000006]
["1427","mazowieckie","sierpecki",null,null,53259,852,3161.67,81.5]
["1428","mazowieckie","sochaczewski",null,null,85100,735,3770.19,97.2]
["1429","mazowieckie","sokołowski",null,null,55424,1131,3034.42,78.3]
["1430","mazowieckie","szydłowiecki",null,null,40339,452,2950.92,76.099999999999994]
["1432","mazowieckie","warszawski zachodni",null,null,111899,534,4118.21,106.2]
["1433","mazowieckie","węgrowski",null,null,67360,1221,3075.59,79.3]
["1434","mazowieckie","wołomiński",null,null,231757,954,3504.2,90.4]
["1435","mazowieckie","wyszkowski",null,null,73892,876,3138.01,80.900000000000006]
["1436","mazowieckie","zwoleński",null,null,36919,573,3204.57,82.6]
["1437","mazowieckie","żuromiński",null,null,39866,807,3000.9,77.400000000000006]
["1438","mazowieckie","żyrardowski",null,null,76420,533,3624.61,93.5]

{"sheet":"_MP_dane_","index":8,"n_rows":16,"n_cols":3,"rows_kept":16,"cut":false,"hidden":true,"merged":[]}
[null,"Opisy do danych używanych w programie"]
[{"$f":"MIN(Dane!H2:H4000)","v":0},"Wskaznik ostatnio używanego arkusza przy \"Wybór zakresu danych\"",0]
[{"$f":"(A6-A2)/4+A2","v":0}]
[{"$f":"A3+A3-A2","v":0}]
[{"$f":"A4+A4-A3","v":0}]
[{"$f":"MAX(Dane!H2:H4000)","v":0}]
[14.5]
[14.5]
[14.5]
[14.5]
[14.5]
[50.6]
[50.35]
[50.05]
[49.7]
[49.3]

{"sheet":"Ster","index":9,"n_rows":408,"n_cols":27,"rows_kept":408,"cut":false,"hidden":true,"merged":[]}
["Kod","Nazwa ksztaltu",null,"Przedziały","Kod RGB","Kod","Wartość",null,1,"włączona",null,7,"Tablica z danymi aplikacji",null,null,null,null,null,null,7,null,null,null,null,null,null,1000]
["s_doln_Wroclaw","doln_Wroclaw",null,{"$f":"D3-1000000","v":{"$error":"#REF!"}},{"$f":"INDEX(Paleta!$A$1:$L$90,$I$1,ROW(E2))","v":13609319},"kolor11",{"$f":"D2","v":{"$error":"#REF!"}},null,null,"wyłączona",null,{"$f":"#REF!","v":{"$error":"#REF!"}},"Kolor neutralny",16316664]
["s_doln_Jelenia_Gora","doln_Jelenia_Gora",null,{"$f":"#REF!","v":{"$error":"#REF!"}},{"$f":"INDEX(Paleta!$A$1:$L$90,$I$1,ROW(E3))","v":16250871},"kolor10",{"$f":"D3","v":{"$error":"#REF!"}},null,null,1,null,{"$f":"#REF!","v":{"$error":"#REF!"}}]
["s_doln_Legnica","doln_Legnica",null,{"$f":"#REF!","v":{"$error":"#REF!"}},{"$f":"INDEX(Paleta!$A$1:$L$90,$I$1,ROW(E4))","v":6458095},"kolor9",{"$f":"D4","v":{"$error":"#REF!"}},null,null,null,null,{"$f":"#REF!","v":{"$error":"#REF!"}}]
["s_doln_Walbrzych2","doln_Walbrzych2",null,{"$f":"#REF!","v":{"$error":"#REF!"}},{"$f":"INDEX(Paleta!$A$1:$L$90,$I$1,ROW(E5))","v":0},"kolor8",{"$error":"#REF!"},null,"Numer",0,null,{"$f":"#REF!","v":{"$error":"#REF!"}}]
["s_doln_Boleslawiec","doln_Boleslawiec",null,{"$f":"#REF!","v":{"$error":"#REF!"}},{"$f":"INDEX(Paleta!$A$1:$L$90,$I$1,ROW(E6))","v":0},"kolor7",{"$error":"#REF!"},null,"Obszar",{"$f":"IF(Numer>0,INDEX(#REF!,Numer,1),\"\")","v":{"$error":"#NAME?"}},null,{"$f":"#REF!","v":{"$error":"#REF!"}}]
["s_doln_Dzierzoniow","doln_Dzierzoniow",null,{"$f":"#REF!","v":{"$error":"#REF!"}},{"$f":"INDEX(Paleta!$A$1:$L$90,$I$1,ROW(E7))","v":0},"kolor6",{"$error":"#REF!"},null,"Format","0,00",null,{"$f":"#REF!","v":{"$error":"#REF!"}}]
["s_doln_Glogow","doln_Glogow",null,{"$f":"#REF!","v":{"$error":"#REF!"}},{"$f":"INDEX(Paleta!$A$1:$L$90,$I$1,ROW(E8))","v":0},"kolor5",{"$error":"#REF!"},null,"Wartość",{"$f":"IF(Numer>0,TEXT(INDEX(#REF!,Numer,1),Format),\"\")","v":{"$error":"#NAME?"}},null,{"$f":"#REF!","v":{"$error":"#REF!"}}]
["s_doln_Gora","doln_Gora",null,{"$f":"#REF!","v":{"$error":"#REF!"}},{"$f":"INDEX(Paleta!$A$1:$L$90,$I$1,ROW(E9))","v":0},"kolor4",{"$error":"#REF!"},null,"Numer2",41,null,{"$f":"#REF!","v":{"$error":"#REF!"}}]
["s_doln_Jawor","doln_Jawor",null,{"$f":"#REF!","v":{"$error":"#REF!"}},{"$f":"INDEX(Paleta!$A$1:$L$90,$I$1,ROW(E10))","v":0},"kolor3",{"$error":"#REF!"},null,null,null,null,{"$f":"#REF!","v":{"$error":"#REF!"}}]
["s_doln_Jelenia_Gora2","doln_Jelenia_Gora2",null,{"$f":"#REF!","v":{"$error":"#REF!"}},{"$f":"INDEX(Paleta!$A$1:$L$90,$I$1,ROW(E11))","v":0},"kolor2",{"$error":"#REF!"},null,null,null,null,{"$f":"#REF!","v":{"$error":"#REF!"}}]
["s_doln_Kamienna_Gora","doln_Kamienna_Gora",null,{"$f":"#REF!","v":{"$error":"#REF!"}},{"$f":"INDEX(Paleta!$A$1:$L$90,$I$1,ROW(E12))","v":0},"kolor1",{"$error":"#REF!"}]
["s_doln_Klodzko","doln_Klodzko"]
["s_doln_Legnica2","doln_Legnica2"]
["s_doln_Luban","doln_Luban"]
["s_doln_Lubin","doln_Lubin"]
["s_doln_Lwowek_Slaski","doln_Lwowek_Slaski"]
["s_doln_Milicz","doln_Milicz"]
["s_doln_Olesnica","doln_Olesnica"]
["s_doln_Olawa","doln_Olawa"]
["s_doln_Polkowice","doln_Polkowice"]
["s_doln_Strzelin","doln_Strzelin"]
["s_doln_Sroda_Slaska","doln_Sroda_Slaska"]
["s_doln_Swidnica","doln_Swidnica"]
["s_doln_Trzebnica","doln_Trzebnica"]
["s_doln_Walbrzych","doln_Walbrzych"]
["s_doln_Wolow","doln_Wolow"]
["s_doln_Wroclaw2","doln_Wroclaw2"]
["s_doln_Zabkowice_Slaskie","doln_Zabkowice_Slaskie"]
["s_doln_Zgorzelec","doln_Zgorzelec"]
["s_doln_Zlotoryja","doln_Zlotoryja"]
["s_kuja_Bydgoszcz","kuja_Bydgoszcz"]
["s_kuja_Torun","kuja_Torun"]
["s_kuja_Wloclawek","kuja_Wloclawek"]
["s_kuja_Grudziadz","kuja_Grudziadz"]
["s_kuja_Aleksandrow_Kujawski","kuja_Aleksandrow_Kujawski"]
["s_kuja_Brodnica","kuja_Brodnica"]
["s_kuja_Bydgoszcz2","kuja_Bydgoszcz2"]
["s_kuja_Chelmno","kuja_Chelmno"]
["s_kuja_Golub_Dobrzyn","kuja_Golub_Dobrzyn"]
["s_kuja_Grudziadz2","kuja_Grudziadz2"]
["s_kuja_Inowroclaw","kuja_Inowroclaw"]
["s_kuja_Lipno","kuja_Lipno"]
["s_kuja_Mogilno","kuja_Mogilno"]
["s_kuja_Naklo_nad_Notecia","kuja_Naklo_nad_Notecia"]
["s_kuja_Radziejow","kuja_Radziejow"]
["s_kuja_Rypin","kuja_Rypin"]
["s_kuja_Sepolno_Krajenskie","kuja_Sepolno_Krajenskie"]
["s_kuja_Swiecie","kuja_Swiecie"]
["s_kuja_Torun2","kuja_Torun2"]
["s_kuja_Tuchola","kuja_Tuchola"]
["s_kuja_Wabrzezno","kuja_Wabrzezno"]
["s_kuja_Wloclawek2","kuja_Wloclawek2"]
["s_kuja_Znin","kuja_Znin"]
["s_lube_Lublin","lube_Lublin"]
["s_lube_Biala_Podlaska","lube_Biala_Podlaska"]
["s_lube_Chelm","lube_Chelm"]
["s_lube_Zamosc","lube_Zamosc"]
["s_lube_Biala_Podlaska2","lube_Biala_Podlaska2"]
["s_lube_Bilgoraj","lube_Bilgoraj"]
["s_lube_Chelm2","lube_Chelm2"]
["s_lube_Hrubieszow","lube_Hrubieszow"]
["s_lube_Janow_Lubelski","lube_Janow_Lubelski"]
["s_lube_Krasnystaw","lube_Krasnystaw"]
["s_lube_Krasnik","lube_Krasnik"]
["s_lube_Lubartow","lube_Lubartow"]
["s_lube_Lublin2","lube_Lublin2"]
["s_lube_Leczna","lube_Leczna"]
["s_lube_Lukow","lube_Lukow"]
["s_lube_Opole_Lubelskie","lube_Opole_Lubelskie"]
["s_lube_Parczew","lube_Parczew"]
["s_lube_Pulawy","lube_Pulawy"]
["s_lube_Radzyn_Podlaski","lube_Radzyn_Podlaski"]
["s_lube_Ryki","lube_Ryki"]
["s_lube_Swidnik","lube_Swidnik"]
["s_lube_Tomaszow_Lubelski","lube_Tomaszow_Lubelski"]
["s_lube_Wlodawa","lube_Wlodawa"]
["s_lube_Zamosc2","lube_Zamosc2"]
["s_lubu_Gorzow_Wielkopolski","lubu_Gorzow_Wielkopolski"]
["s_lubu_Zielona_Gora","lubu_Zielona_Gora"]
["s_lubu_Gorzow_Wielkopolski2","lubu_Gorzow_Wielkopolski2"]
["s_lubu_Krosno_Odrzanskie","lubu_Krosno_Odrzanskie"]
["s_lubu_Miedzyrzecz","lubu_Miedzyrzecz"]
["s_lubu_Nowa_Sol","lubu_Nowa_Sol"]
["s_lubu_Slubice","lubu_Slubice"]
["s_lubu_Strzelce_Krajenskie","lubu_Strzelce_Krajenskie"]
["s_lubu_Sulecin","lubu_Sulecin"]
["s_lubu_Swiebodzin","lubu_Swiebodzin"]
["s_lubu_Wschowa","lubu_Wschowa"]
["s_lubu_Zielona_Gora2","lubu_Zielona_Gora2"]
["s_lubu_Zagan","lubu_Zagan"]
["s_lubu_Zary","lubu_Zary"]
["s_lodz_Lodz","lodz_Lodz"]
["s_lodz_Piotrkow_Trybunalski","lodz_Piotrkow_Trybunalski"]
["s_lodz_Skierniewice","lodz_Skierniewice"]
["s_lodz_Belchatow","lodz_Belchatow"]
["s_lodz_Brzeziny","lodz_Brzeziny"]
["s_lodz_Kutno","lodz_Kutno"]
["s_lodz_Lask","lodz_Lask"]
["s_lodz_Leczyca","lodz_Leczyca"]
["s_lodz_Lowicz","lodz_Lowicz"]
["s_lodz_Lodz2","lodz_Lodz2"]
["s_lodz_Opoczno","lodz_Opoczno"]
["s_lodz_Pabianice","lodz_Pabianice"]
["s_lodz_Pajeczno","lodz_Pajeczno"]
["s_lodz_Piotrkow_Trybunalski2","lodz_Piotrkow_Trybunalski2"]
["s_lodz_Poddebice","lodz_Poddebice"]
["s_lodz_Radomsko","lodz_Radomsko"]
["s_lodz_Rawa_Mazowiecka","lodz_Rawa_Mazowiecka"]
["s_lodz_Sieradz","lodz_Sieradz"]
["s_lodz_Skierniewice2","lodz_Skierniewice2"]
["s_lodz_Tomaszow_Mazowiecki","lodz_Tomaszow_Mazowiecki"]
["s_lodz_Wielun","lodz_Wielun"]
["s_lodz_Wieruszow","lodz_Wieruszow"]
["s_lodz_Zdunska_Wola","lodz_Zdunska_Wola"]
["s_lodz_Zgierz","lodz_Zgierz"]
["s_malo_Krakow","malo_Krakow"]
["s_malo_Nowy_Sacz","malo_Nowy_Sacz"]
["s_malo_Tarnow","malo_Tarnow"]
["s_malo_Bochnia","malo_Bochnia"]
["s_malo_Brzesko","malo_Brzesko"]
["s_malo_Chrzanow","malo_Chrzanow"]
["s_malo_Dabrowa_Tarnowska","malo_Dabrowa_Tarnowska"]
["s_malo_Gorlice","malo_Gorlice"]
["s_malo_Krakow2","malo_Krakow2"]
["s_malo_Limanowa","malo_Limanowa"]
["s_malo_Miechow","malo_Miechow"]
["s_malo_Myslenice","malo_Myslenice"]
["s_malo_Nowy_Sacz2","malo_Nowy_Sacz2"]
["s_malo_Nowy_Targ","malo_Nowy_Targ"]
["s_malo_Olkusz","malo_Olkusz"]
["s_malo_Oswiecim","malo_Oswiecim"]
["s_malo_Proszowice","malo_Proszowice"]
["s_malo_Sucha_Beskidzka","malo_Sucha_Beskidzka"]
["s_malo_Tarnow2","malo_Tarnow2"]
["s_malo_Zakopane","malo_Zakopane"]
["s_malo_Wadowice","malo_Wadowice"]
["s_malo_Wieliczka","malo_Wieliczka"]
["s_mazo_Warszawa","mazo_Warszawa"]
["s_mazo_Ostroleka","mazo_Ostroleka"]
["s_mazo_Plock","mazo_Plock"]
["s_mazo_Radom","mazo_Radom"]
["s_mazo_Siedlce","mazo_Siedlce"]
["s_mazo_Bialobrzegi","mazo_Bialobrzegi"]
["s_mazo_Ciechanow","mazo_Ciechanow"]
["s_mazo_Garwolin","mazo_Garwolin"]
["s_mazo_Gostynin","mazo_Gostynin"]
["s_mazo_Grodzisk_Mazowiecki","mazo_Grodzisk_Mazowiecki"]
["s_mazo_Grojec","mazo_Grojec"]
["s_mazo_Kozienice","mazo_Kozienice"]
["s_mazo_Legionowo","mazo_Legionowo"]
["s_mazo_Lipsko","mazo_Lipsko"]
["s_mazo_Losice","mazo_Losice"]
["s_mazo_Makow_Mazowiecki","mazo_Makow_Mazowiecki"]
["s_mazo_Minsk_Mazowiecki","mazo_Minsk_Mazowiecki"]
["s_mazo_Mlawa","mazo_Mlawa"]
["s_mazo_Nowy_Dwor_Mazowiecki","mazo_Nowy_Dwor_Mazowiecki"]
["s_mazo_Ostroleka2","mazo_Ostroleka2"]
["s_mazo_Ostrow_Mazowiecka","mazo_Ostrow_Mazowiecka"]
["s_mazo_Otwock","mazo_Otwock"]
["s_mazo_Piaseczno","mazo_Piaseczno"]
["s_mazo_Plock2","mazo_Plock2"]
["s_mazo_Plonsk","mazo_Plonsk"]
["s_mazo_Pruszkow","mazo_Pruszkow"]
["s_mazo_Przasnysz","mazo_Przasnysz"]
["s_mazo_Przysucha","mazo_Przysucha"]
["s_mazo_Pultusk","mazo_Pultusk"]
["s_mazo_Radom2","mazo_Radom2"]
["s_mazo_Siedlce2","mazo_Siedlce2"]
["s_mazo_Sierpc","mazo_Sierpc"]
["s_mazo_Sochaczew","mazo_Sochaczew"]
["s_mazo_Sokolow_Podlaski","mazo_Sokolow_Podlaski"]
["s_mazo_Szydlowiec","mazo_Szydlowiec"]
["s_mazo_Ozarow_Mazowiecki","mazo_Ozarow_Mazowiecki"]
["s_mazo_Wegrow","mazo_Wegrow"]
["s_mazo_Wolomin","mazo_Wolomin"]
["s_mazo_Wyszkow","mazo_Wyszkow"]
["s_mazo_Zwolen","mazo_Zwolen"]
["s_mazo_Zuromin","mazo_Zuromin"]
["s_mazo_Zyrardow","mazo_Zyrardow"]
["s_opol_Opole","opol_Opole"]
["s_opol_Brzeg","opol_Brzeg"]
["s_opol_Glubczyce","opol_Glubczyce"]
["s_opol_Kedzierzyn_Kozle","opol_Kedzierzyn_Kozle"]
["s_opol_Kluczbork","opol_Kluczbork"]
["s_opol_Krapkowice","opol_Krapkowice"]
["s_opol_Namyslow","opol_Namyslow"]
["s_opol_Nysa","opol_Nysa"]
["s_opol_Olesno","opol_Olesno"]
["s_opol_Opole2","opol_Opole2"]
["s_opol_Prudnik","opol_Prudnik"]
["s_opol_Strzelce_Opolskie","opol_Strzelce_Opolskie"]
["s_podk_Rzeszow","podk_Rzeszow"]
["s_podk_Krosno","podk_Krosno"]
["s_podk_Przemysl","podk_Przemysl"]
["s_podk_Tarnobrzeg","podk_Tarnobrzeg"]
["s_podk_Ustrzyki_Dolne","podk_Ustrzyki_Dolne"]
["s_podk_Brzozow","podk_Brzozow"]
["s_podk_Debica","podk_Debica"]
["s_podk_Jaroslaw","podk_Jaroslaw"]
["s_podk_Jaslo","podk_Jaslo"]
["s_podk_Kolbuszowa","podk_Kolbuszowa"]
["s_podk_Krosno2","podk_Krosno2"]
["s_podk_Lesko","podk_Lesko"]
["s_podk_Lezajsk","podk_Lezajsk"]
["s_podk_Lubaczow","podk_Lubaczow"]
["s_podk_Lancut","podk_Lancut"]
["s_podk_Mielec","podk_Mielec"]
["s_podk_Nisko","podk_Nisko"]
["s_podk_Przemysl2","podk_Przemysl2"]
["s_podk_Przeworsk","podk_Przeworsk"]
["s_podk_Ropczyce","podk_Ropczyce"]
["s_podk_Rzeszow2","podk_Rzeszow2"]
["s_podk_Sanok","podk_Sanok"]
["s_podk_Stalowa_Wola","podk_Stalowa_Wola"]
["s_podk_Strzyzow","podk_Strzyzow"]
["s_podk_Tarnobrzeg2","podk_Tarnobrzeg2"]
["s_podl_Bialystok","podl_Bialystok"]
["s_podl_Lomza","podl_Lomza"]
["s_podl_Suwalki","podl_Suwalki"]
["s_podl_Augustow","podl_Augustow"]
["s_podl_Bialystok2","podl_Bialystok2"]
["s_podl_Bielsk_Podlaski","podl_Bielsk_Podlaski"]
["s_podl_Grajewo","podl_Grajewo"]
["s_podl_Hajnowka","podl_Hajnowka"]
["s_podl_Kolno","podl_Kolno"]
["s_podl_Lomza2","podl_Lomza2"]
["s_podl_Monki","podl_Monki"]
["s_podl_Sejny","podl_Sejny"]
["s_podl_Siemiatycze","podl_Siemiatycze"]
["s_podl_Sokolka","podl_Sokolka"]
["s_podl_Suwalki2","podl_Suwalki2"]
["s_podl_Wysokie_Mazowieckie","podl_Wysokie_Mazowieckie"]
["s_podl_Zambrow","podl_Zambrow"]
["s_pomo_Gdansk","pomo_Gdansk"]
["s_pomo_Gdynia","pomo_Gdynia"]
["s_pomo_Slupsk","pomo_Slupsk"]
["s_pomo_Sopot","pomo_Sopot"]
["s_pomo_Bytow","pomo_Bytow"]
["s_pomo_Chojnice","pomo_Chojnice"]
["s_pomo_Czluchow","pomo_Czluchow"]
["s_pomo_Kartuzy","pomo_Kartuzy"]
["s_pomo_Koscierzyna","pomo_Koscierzyna"]
["s_pomo_Kwidzyn","pomo_Kwidzyn"]
["s_pomo_Lebork","pomo_Lebork"]
["s_pomo_Malbork","pomo_Malbork"]
["s_pomo_Nowy_Dwor_Gdanski","pomo_Nowy_Dwor_Gdanski"]
["s_pomo_Pruszcz_Gdanski","pomo_Pruszcz_Gdanski"]
["s_pomo_Puck","pomo_Puck"]
["s_pomo_Slupsk2","pomo_Slupsk2"]
["s_pomo_Starogard_Gdanski","pomo_Starogard_Gdanski"]
["s_pomo_Sztum","pomo_Sztum"]
["s_pomo_Tczew","pomo_Tczew"]
["s_pomo_Wejherowo","pomo_Wejherowo"]
["s_slas_Katowice","slas_Katowice"]
["s_slas_Bielsko_Biala","slas_Bielsko_Biala"]
["s_slas_Bytom","slas_Bytom"]
["s_slas_Chorzow","slas_Chorzow"]
["s_slas_Czestochowa","slas_Czestochowa"]
["s_slas_Dabrowa_Gornicza","slas_Dabrowa_Gornicza"]
["s_slas_Gliwice","slas_Gliwice"]
["s_slas_Jastrzebie_Zdroj","slas_Jastrzebie_Zdroj"]
["s_slas_Jaworzno","slas_Jaworzno"]
["s_slas_Myslowice","slas_Myslowice"]
["s_slas_Piekary_Slaskie","slas_Piekary_Slaskie"]
["s_slas_Ruda_Slaska","slas_Ruda_Slaska"]
["s_slas_Rybnik","slas_Rybnik"]
["s_slas_Siemianowice_Slaskie","slas_Siemianowice_Slaskie"]
["s_slas_Sosnowiec","slas_Sosnowiec"]
["s_slas_Swietochlowice","slas_Swietochlowice"]
["s_slas_Tychy","slas_Tychy"]
["s_slas_Zabrze","slas_Zabrze"]
["s_slas_Zory","slas_Zory"]
["s_slas_Bedzin","slas_Bedzin"]
["s_slas_Bielsko_Biala2","slas_Bielsko_Biala2"]
["s_slas_Bierun","slas_Bierun"]
["s_slas_Cieszyn","slas_Cieszyn"]
["s_slas_Czestochowa2","slas_Czestochowa2"]
["s_slas_Gliwice2","slas_Gliwice2"]
["s_slas_Klobuck","slas_Klobuck"]
["s_slas_Lubliniec","slas_Lubliniec"]
["s_slas_Mikolow","slas_Mikolow"]
["s_slas_Myszkow","slas_Myszkow"]
["s_slas_Pszczyna","slas_Pszczyna"]
["s_slas_Raciborz","slas_Raciborz"]
["s_slas_Rybnik2","slas_Rybnik2"]
["s_slas_Tarnowskie_Gory","slas_Tarnowskie_Gory"]
["s_slas_Wodzislaw_Slaski","slas_Wodzislaw_Slaski"]
["s_slas_Zawiercie","slas_Zawiercie"]
["s_slas_Zywiec","slas_Zywiec"]
["s_swie_Kielce","swie_Kielce"]
["s_swie_Busko_Zdroj","swie_Busko_Zdroj"]
["s_swie_Jedrzejow","swie_Jedrzejow"]
["s_swie_Kazimierza_Wielka","swie_Kazimierza_Wielka"]
["s_swie_Kielce2","swie_Kielce2"]
["s_swie_Konskie","swie_Konskie"]
["s_swie_Opatow","swie_Opatow"]
["s_swie_Ostrowiec_Swietokrzyski","swie_Ostrowiec_Swietokrzyski"]
["s_swie_Pinczow","swie_Pinczow"]
["s_swie_Sandomierz","swie_Sandomierz"]
["s_swie_Skarzysko_Kamienna","swie_Skarzysko_Kamienna"]
["s_swie_Starachowice","swie_Starachowice"]
["s_swie_Staszow","swie_Staszow"]
["s_swie_Wloszczowa","swie_Wloszczowa"]
["s_warm_Olsztyn","warm_Olsztyn"]
["s_warm_Elblag","warm_Elblag"]
["s_warm_Bartoszyce","warm_Bartoszyce"]
["s_warm_Braniewo","warm_Braniewo"]
["s_warm_Dzialdowo","warm_Dzialdowo"]
["s_warm_Elblag2","warm_Elblag2"]
["s_warm_Elk","warm_Elk"]
["s_warm_Gizycko","warm_Gizycko"]
["s_warm_Goldap","warm_Goldap"]
["s_warm_Ilawa","warm_Ilawa"]
["s_warm_Ketrzyn","warm_Ketrzyn"]
["s_warm_Lidzbark_Warminski","warm_Lidzbark_Warminski"]
["s_warm_Mragowo","warm_Mragowo"]
["s_warm_Nidzica","warm_Nidzica"]
["s_warm_Nowe_Miasto_Lubawskie","warm_Nowe_Miasto_Lubawskie"]
["s_warm_Olecko","warm_Olecko"]
["s_warm_Olsztyn2","warm_Olsztyn2"]
["s_warm_Ostroda","warm_Ostroda"]
["s_warm_Pisz","warm_Pisz"]
["s_warm_Szczytno","warm_Szczytno"]
["s_warm_Wegorzewo","warm_Wegorzewo"]
["s_wiel_Poznan","wiel_Poznan"]
["s_wiel_Kalisz","wiel_Kalisz"]
["s_wiel_Konin","wiel_Konin"]
["s_wiel_Leszno","wiel_Leszno"]
["s_wiel_Chodziez","wiel_Chodziez"]
["s_wiel_Czarnkow","wiel_Czarnkow"]
["s_wiel_Gniezno","wiel_Gniezno"]
["s_wiel_Gostyn","wiel_Gostyn"]
["s_wiel_Grodzisk_Wielkopolski","wiel_Grodzisk_Wielkopolski"]
["s_wiel_Jarocin","wiel_Jarocin"]
["s_wiel_Kalisz2","wiel_Kalisz2"]
["s_wiel_Kepno","wiel_Kepno"]
["s_wiel_Kolo","wiel_Kolo"]
["s_wiel_Konin2","wiel_Konin2"]
["s_wiel_Koscian","wiel_Koscian"]
["s_wiel_Krotoszyn","wiel_Krotoszyn"]
["s_wiel_Leszno2","wiel_Leszno2"]
["s_wiel_Miedzychod","wiel_Miedzychod"]
["s_wiel_Nowy_Tomysl","wiel_Nowy_Tomysl"]
["s_wiel_Oborniki","wiel_Oborniki"]
["s_wiel_Ostrow_Wielkopolski","wiel_Ostrow_Wielkopolski"]
["s_wiel_Ostrzeszow","wiel_Ostrzeszow"]
["s_wiel_Pila","wiel_Pila"]
["s_wiel_Pleszew","wiel_Pleszew"]
["s_wiel_Poznan2","wiel_Poznan2"]
["s_wiel_Rawicz","wiel_Rawicz"]
["s_wiel_Slupca","wiel_Slupca"]
["s_wiel_Szamotuly","wiel_Szamotuly"]
["s_wiel_Sroda_Wielkopolska","wiel_Sroda_Wielkopolska"]
["s_wiel_Srem","wiel_Srem"]
["s_wiel_Turek","wiel_Turek"]
["s_wiel_Wagrowiec","wiel_Wagrowiec"]
["s_wiel_Wolsztyn","wiel_Wolsztyn"]
["s_wiel_Wrzesnia","wiel_Wrzesnia"]
["s_wiel_Zlotow","wiel_Zlotow"]
["s_zach_Szczecin","zach_Szczecin"]
["s_zach_Koszalin","zach_Koszalin"]
["s_zach_Swinoujscie","zach_Swinoujscie"]
["s_zach_Bialogard","zach_Bialogard"]
["s_zach_Choszczno","zach_Choszczno"]
["s_zach_Drawsko_Pomorskie","zach_Drawsko_Pomorskie"]
["s_zach_Goleniow","zach_Goleniow"]
["s_zach_Gryfice","zach_Gryfice"]
["s_zach_Gryfino","zach_Gryfino"]
["s_zach_Kamien_Pomorski","zach_Kamien_Pomorski"]
["s_zach_Kolobrzeg","zach_Kolobrzeg"]
["s_zach_Koszalin2","zach_Koszalin2"]
["s_zach_Lobez","zach_Lobez"]
["s_zach_Mysliborz","zach_Mysliborz"]
["s_zach_Police","zach_Police"]
["s_zach_Pyrzyce","zach_Pyrzyce"]
["s_zach_Slawno","zach_Slawno"]
["s_zach_Stargard_Szczecinski","zach_Stargard_Szczecinski"]
["s_zach_Szczecinek","zach_Szczecinek"]
["s_zach_Swidwin","zach_Swidwin"]
["s_zach_Walcz","zach_Walcz"]
["s_w_dolnoslaskie","dolnoslaskie"]
["s_w_kujawsko_pomorskie","kujawsko_pomorskie"]
["s_w_lubelskie","lubelskie"]
["s_w_lubuskie","lubuskie"]
["s_w_lodzkie","lodzkie"]
["s_w_malopolskie","malopolskie"]
["s_w_mazowieckie","mazowieckie"]
["s_w_opolskie","opolskie"]
["s_w_podkarpackie","podkarpackie"]
["s_w_podlaskie","podlaskie"]
["s_w_pomorskie","pomorskie"]
["s_w_slaskie","slaskie"]
["s_w_swietokrzyskie","swietokrzyskie"]
["s_w_warminsko_mazurskie","warminsko_mazurskie"]
["s_w_wielkopolskie","wielkopolskie"]
["s_w_zachodniopomorskie","zachodniopomorskie"]
["d_kolor1","s_kolor"]
["d_kolor2","s_kolor"]
["d_kolor3","s_kolor"]
["d_kolor4","s_kolor"]
["d_kolor5","s_kolor"]
["d_kolor6","s_kolor"]
["d_kolor7","s_kolor"]
["d_kolor8","s_kolor"]
["d_kolor9","s_kolor1"]
["d_kolor10","s_kolor2"]
["d_kolor11","s_kolor3"]

{"sheet":"Paleta","index":10,"n_rows":91,"n_cols":26,"rows_kept":91,"cut":false,"hidden":true,"merged":[]}
["czerwono-niebieska",13609319,16250871,6458095,null,null,null,null,null,null,null,null,null,3]
["czerwono-niebieska",11563269,14599570,8562164,2097354,null,null,null,null,null,null,null,null,4]
["czerwono-niebieska",11563269,14599570,16250871,8562164,2097354,null,null,null,null,null,null,null,5]
["czerwono-niebieska",11298337,13609319,15787473,13097981,6458095,2824370,null,null,null,null,null,null,6]
["czerwono-niebieska",11298337,13609319,15787473,16250871,13097981,6458095,2824370,null,null,null,null,null,7]
["czerwono-niebieska",11298337,12817219,14599570,15787473,13097981,8562164,5071062,2824370,null,null,null,null,8]
["czerwono-niebieska",11298337,12817219,14599570,15787473,16250871,13097981,8562164,5071062,2824370,null,null,null,9]
["czerwono-niebieska",6369285,11298337,12817219,14599570,15787473,13097981,8562164,5071062,2824370,2031719,null,null,10]
["czerwono-niebieska",6369285,11298337,12817219,14599570,15787473,16250871,13097981,8562164,5071062,2824370,2031719,null,11]
["czerwono-zolto-niebieska",9754009,12582911,5869052,null,null,null,null,null,null,null,null,null,3]
["czerwono-zolto-niebieska",12223275,10804651,6401789,1841623,null,null,null,null,null,null,null,null,4]
["czerwono-zolto-niebieska",12223275,10804651,12582911,6401789,1841623,null,null,null,null,null,null,null,5]
["czerwono-zolto-niebieska",12421170,9754009,10024422,9167102,5869052,5193429,null,null,null,null,null,null,6]
["czerwono-zolto-niebieska",12421170,9754009,10024422,12582911,9167102,5869052,5193429,null,null,null,null,null,7]
["czerwono-zolto-niebieska",12421170,10863206,10804651,10024422,9167102,6401789,4419060,5193429,null,null,null,null,8]
["czerwono-zolto-niebieska",12421170,10863206,10804651,10024422,12582911,9167102,6401789,4419060,5193429,null,null,null,9]
["czerwono-zolto-niebieska",10637150,12421170,10863206,10804651,10024422,9167102,6401789,4419060,5193429,4325790,null,null,10]
["czerwono-zolto-niebieska",10637150,12421170,10863206,10804651,10024422,12582911,9167102,6401789,4419060,5193429,4325790,null,11]
["czerwono-zielona",6344593,12582911,5869052,null,null,null,null,null,null,null,null,null,3]
["czerwono-zielona",4298266,7002534,6401789,1841623,null,null,null,null,null,null,null,null,4]
["czerwono-zielona",4298266,7002534,12582911,6401789,1841623,null,null,null,null,null,null,null,5]
["czerwono-zielona",5281818,6344593,9170905,9167102,5869052,2568407,null,null,null,null,null,null,6]
["czerwono-zielona",5281818,6344593,9170905,12582911,9167102,5869052,2568407,null,null,null,null,null,7]
["czerwono-zielona",5281818,6536550,7002534,9170905,9167102,6401789,4419060,2568407,null,null,null,null,8]
["czerwono-zielona",5281818,6536550,7002534,9170905,12582911,9167102,6401789,4419060,2568407,null,null,null,9]
["czerwono-zielona",3631104,5281818,6536550,7002534,9170905,9167102,6401789,4419060,2568407,2490533,null,null,10]
["czerwono-zielona",3631104,5281818,6536550,7002534,9170905,12582911,9167102,6401789,4419060,2568407,2490533,null,11]
["zielono-czerwone",5869052,12582911,6344593,null,null,null,null,null,null,null,null,null,3]
["zielono-czerwone",1841623,6401789,7002534,4298266,null,null,null,null,null,null,null,null,4]
["zielono-czerwone",1841623,6401789,12582911,7002534,4298266,null,null,null,null,null,null,null,5]
["zielono-czerwone",2568407,5869052,9167102,9170905,6344593,5281818,null,null,null,null,null,null,6]
["zielono-czerwone",2568407,5869052,9167102,12582911,9170905,6344593,5281818,null,null,null,null,null,7]
["zielono-czerwone",2568407,4419060,6401789,9167102,9170905,7002534,6536550,5281818,null,null,null,null,8]
["zielono-czerwone",2568407,4419060,6401789,9167102,12582911,9170905,7002534,6536550,5281818,null,null,null,9]
["zielono-czerwone",2490533,2568407,4419060,6401789,9167102,9170905,7002534,6536550,5281818,3631104,null,null,10]
["zielono-czerwone",2490533,2568407,4419060,6401789,9167102,12582911,9170905,7002534,6536550,5281818,3631104,null,11]
["czerwono-czarna",10066329,16777215,6458095,null,null,null,null,null,null,null,null,null,3]
["czerwono-czarna",4210752,12237498,8562164,2097354,null,null,null,null,null,null,null,null,4]
["czerwono-czarna",4210752,12237498,16777215,8562164,2097354,null,null,null,null,null,null,null,5]
["czerwono-czarna",5066061,10066329,14737632,13097981,6458095,2824370,null,null,null,null,null,null,6]
["czerwono-czarna",5066061,10066329,14737632,16777215,13097981,6458095,2824370,null,null,null,null,null,7]
["czerwono-czarna",5066061,8882055,12237498,14737632,13097981,8562164,5071062,2824370,null,null,null,null,8]
["czerwono-czarna",5066061,8882055,12237498,14737632,16777215,13097981,8562164,5071062,2824370,null,null,null,9]
["czerwono-czarna",1710618,5066061,8882055,12237498,14737632,13097981,8562164,5071062,2824370,2031719,null,null,10]
["czerwono-czarna",1710618,5066061,8882055,12237498,14737632,16777215,13097981,8562164,5071062,2824370,2031719,null,11]
["brazowo-niebieska",11318362,16119285,6665176,null,null,null,null,null,null,null,null,null,3]
["brazowo-niebieska",7439617,12701056,8241887,1728934,null,null,null,null,null,null,null,null,4]
["brazowo-niebieska",7439617,12701056,16119285,8241887,1728934,null,null,null,null,null,null,null,5]
["brazowo-niebieska",6186497,11318362,15067847,12839158,6665176,676236,null,null,null,null,null,null,6]
["brazowo-niebieska",6186497,11318362,15067847,16119285,12839158,6665176,676236,null,null,null,null,null,7]
["brazowo-niebieska",6186497,9410357,12701056,15067847,12839158,8241887,2982335,676236,null,null,null,null,8]
["brazowo-niebieska",6186497,9410357,12701056,15067847,16119285,12839158,8241887,2982335,676236,null,null,null,9]
["brazowo-niebieska",3161088,6186497,9410357,12701056,15067847,12839158,8241887,2982335,676236,340052,null,null,10]
["brazowo-niebieska",3161088,6186497,9410357,12701056,15067847,16119285,12839158,8241887,2982335,676236,340052,null,11]
["zolta",942041,5227774,12384255,16777215,null,null,null,null,null,null,null,null,4]
["zolta",150732,2726398,9361918,13959167,16777215,null,null,null,null,null,null,null,5]
["zolta",275609,942041,2726398,9361918,13959167,16777215,null,null,null,null,null,null,6]
["zolta",275609,942041,2726398,5227774,9561086,13959167,16777215,null,null,null,null,null,7]
["zolta",273804,150732,1339628,2726398,5227774,9561086,13959167,16777215,null,null,null,null,8]
["zolta",273804,150732,1339628,2726398,5227774,9561086,12384255,15073279,16777215,null,null,null,9]
["zolta",402790,275609,150732,1339628,2726398,5227774,9561086,12384255,15073279,16777215,null,null,10]
["czerwona",2502110,7508732,13820158,16777215,null,null,null,null,null,null,null,null,4]
["czerwona",1906891,4877051,9547516,14280190,16777215,null,null,null,null,null,null,null,5]
["czerwona",1380261,2502110,4877051,9547516,14280190,16777215,null,null,null,null,null,null,6]
["czerwona",1380261,2502110,4877051,7508732,10599420,14280190,16777215,null,null,null,null,null,7]
["czerwona",852121,1906891,2898927,4877051,7508732,10599420,14280190,16777215,null,null,null,null,8]
["czerwona",852121,1906891,2898927,4877051,7508732,10599420,13820158,15791615,16777215,null,null,null,9]
["czerwona",852071,1380261,1906891,2898927,4877051,7508732,10599420,13820158,15791615,16777215,null,null,10]
["zielona",5546801,10213793,14743013,16777215,null,null,null,null,null,null,null,null,4]
["zielona",4557603,7783540,11789498,15333613,16777215,null,null,null,null,null,null,null,5]
["zielona",2911488,5546801,7783540,11789498,15333613,16777215,null,null,null,null,null,null,6]
["zielona",2911488,5546801,7783540,10213793,12642759,15333613,16777215,null,null,null,null,null,7]
["zielona",3299840,4557603,6138689,7783540,10213793,12642759,15333613,16777215,null,null,null,null,8]
["zielona",3299840,4557603,6138689,7783540,10213793,12642759,14743013,16121079,16777215,null,null,null,9]
["zielona",1786880,2911488,4557603,6138689,7783540,10213793,12642759,14743013,16121079,16777215,null,null,10]
["niebieska",12419633,14797470,16247774,16777215,null,null,null,null,null,null,null,null,4]
["niebieska",11890977,14069355,15194045,16774127,16777215,null,null,null,null,null,null,null,5]
["niebieska",10244360,12419633,14069355,15194045,16774127,16777215,null,null,null,null,null,null,6]
["niebieska",10244360,12419633,14069355,14797470,15719366,16774127,16777215,null,null,null,null,null,7]
["niebieska",9717000,11890977,13013570,14069355,14797470,15719366,16774127,16777215,null,null,null,null,8]
["niebieska",9717000,11890977,13013570,14069355,14797470,15719366,16247774,16776183,16777215,null,null,null,9,null,null,null,null,null,null,null,null,null,null,null,8]
["niebieska",7024648,10244360,11890977,13013570,14069355,14797470,15719366,16247774,16776183,16777215,null,null,10]
["czarna",6513507,12434877,15790320,16777215,null,null,null,null,null,null,null,null,4]
["czarna",5395026,9868950,13421772,16250871,16777215,null,null,null,null,null,null,null,5]
["czarna",2434341,6513507,9868950,13421772,16250871,16777215,null,null,null,null,null,null,6]
["czarna",2434341,6513507,9868950,12434877,14277081,16250871,16777215,null,null,null,null,null,7]
["czarna",2434341,5395026,7566195,9868950,12434877,14277081,16250871,16777215,null,null,null,null,8]
["czarna",2434341,5395026,7566195,9868950,12434877,14277081,15790320,16777215,16777215,null,null,null,9]
["czarna",1710618,2434341,5395026,7566195,9868950,12434877,14277081,15790320,16777215,16777215,null,null,10]
["Wlasna",1841892,12090935,4894541,10702488,32767,3407871,2643622,12550647,10066329,14929574,11827231,null,9]
[null,1841892,12090935,4894541,10702488,32767,3407871,2643622,12550647,10066329,14929574,11827231]

{"sheet":"Przedstawiciele","index":11,"n_rows":398,"n_cols":27,"rows_kept":398,"cut":false,"hidden":true,"merged":[]}
["Nazwa","Kolor","Domyślne",null,null,null,null,null,null,null,null,null,null,null,null,null,null,null,null,null,null,null,null,null,null,null,"30"]
["Kategoria 1",1841892,1841892]
["Kategoria 2",12090935,12090935]
["Kategoria 3",4894541,4894541]
["Kategoria 4",10702488,10702488]
["Kategoria 5",32767,32767]
["Kategoria 6",3407871,3407871]
["Kategoria 7",2643622,2643622]
["Kategoria 8",12550647,12550647]
["Kategoria 9",10066329,10066329]
["Kategoria 10",14929574,14929574]
["Kategoria 11",11827231,11827231]
["Kategoria 12",9101234,9101234]
["Kategoria 13",2924595,2924595]
["Kategoria 14",10066683,10066683]
["Kategoria 15",1841891,1841891]
["Kategoria 16",7323645,7323645]
["Kategoria 17",32767,32767]
["Kategoria 18",14070474,14070474]
["Kategoria 19",10108266,10108266]
["Kategoria 20",10092543,10092543]
["Kategoria 21",2644401,2644401]
["Kategoria 22",7839259,7839259]
["Kategoria 23",155609,155609]
["Kategoria 24",11759733,11759733]
["Kategoria 25",9054695,9054695]
["Kategoria 26",2008678,2008678]
["Kategoria 27",175078,175078]
["Kategoria 28",1930918,1930918]
["Kategoria 29",6710886,6710886]
["Kategoria 30",11776947,11776947]
[]
[]
[]
[]
[]
[]
[]
[]
[]
[]
[]
[]
[]
[]
[]
[]
[]
[]
[]
[]
[]
[]
[]
[]
[]
[]
[]
[]
[]
[]
[]
[]
[]
[]
[]
[]
[]
[]
[]
[]
[]
[]
[]
[]
[]
[]
[]
[]
[]
[]
[]
[]
[]
[]
[]
[]
[]
[]
[]
[]
[]
[]
[]
[]
[]
[]
[]
[]
[]
[]
[]
[]
[]
[]
[]
[]
[]
[]
[]
[]
[]
[]
[]
[]
[]
[]
[]
[]
[]
[]
[]
[]
[]
[]
[]
[]
[]
[]
[]
[]
[]
[]
[]
[]
[]
[]
[]
[]
[]
[]
[]
[]
[]
[]
[]
[]
[]
[]
[]
[]
[]
[]
[]
[]
[]
[]
[]
[]
[]
[]
[]
[]
[]
[]
[]
[]
[]
[]
[]
[]
[]
[]
[]
[]
[]
[]
[]
[]
[]
[]
[]
[]
[]
[]
[]
[]
[]
[]
[]
[]
[]
[]
[]
[]
[]
[]
[]
[]
[]
[]
[]
[]
[]
[]
[]
[]
[]
[]
[]
[]
[]
[]
[]
[]
[]
[]
[]
[]
[]
[]
[]
[]
[]
[]
[]
[]
[]
[]
[]
[]
[]
[]
[]
[]
[]
[]
[]
[]
[]
[]
[]
[]
[]
[]
[]
[]
[]
[]
[]
[]
[]
[]
[]
[]
[]
[]
[]
[]
[]
[]
[]
[]
[]
[]
[]
[]
[]
[]
[]
[]
[]
[]
[]
[]
[]
[]
[]
[]
[]
[]
[]
[]
[]
[]
[]
[]
[]
[]
[]
[]
[]
[]
[]
[]
[]
[]
[]
[]
[]
[]
[]
[]
[]
[]
[]
[]
[]
[]
[]
[]
[]
[]
[]
[]
[]
[]
[]
[]
[]
[]
[]
[]
[]
[]
[]
[]
[]
[]
[]
[]
[]
[]
[]
[]
[]
[]
[]
[]
[]
[]
[]
[]
[]
[]
[]
[]
[]
[]
[]
[]
[]
[]
[]
[]
[]
[]
[]
[]
[]
[]
[]
[]
[]
[]
[]
[]
[]
[]
[]
[]
[]
[]
[]
[]
[]
[]
[]
[]
[]
[]
[]
[]
[]
[]
[]
[]
[]
[]
[]
[]
[]
[]
[]
[]
[]
[]
["Kategoria31"]